Workbook

Sheet メイン
A1: 試算条件入力欄 | B1: 試算条件入力欄 | D1: 基礎 | E1: 基礎 | F1: 高齢化指数 | G1: 基礎 | H1: 基礎 | I1: 基礎 | J1: 基礎 | K1: 基礎 | L1: 基礎 | M1: 基礎 | N1: 基礎 | O1: 基礎 | P1: 基礎 | Q1: 基礎 | R1: 基礎 | S1: 基礎 | T1: 基礎 | U1: 基礎 | V1: 基礎 | W1: 基礎 | X1: 基礎 | Y1: 基礎 | Z1: 基礎 | AA1: 基礎 | AB1: 基礎 | AC1: 基礎 | AD1: 基礎 | AE1: 基礎 | AF1: 基礎 | AG1: 基礎 | AL1: 家計 | AN1: 家計 | AO1: 家計 | AP1: 家計 | AQ1: 家計 | AR1: 家計 | AS1: 家計 | AT1: 家計 | AU1: 家計 | AV1: 家計 | AW1: 家計 | AX1: 家計 | AY1: 家計 | AZ1: 家計 | BA1: 家計 | BB1: 家計 | BC1: 家計 | BE1: 家計 | BF1: 家計 | BG1: 家計 | BH1: 家計 | BI1: 家計 | BJ1: 家計 | BL1: 家計 | BM1: 家計 | BN1: 基礎 | BO1: 家計 | BP1: 家計 | BQ1: 家計 | BR1: 家計 | BS1: 家計 | BV1: 家計 | BW1: 家計 | BX1: 基礎 | BY1: 家計 | BZ1: 家計 | CA1: 家計 | CB1: 家計 | CC1: 家計 | CD1: 家計 | CE1: 家計 | CF1: 家計 | CH1: 家計 | CI1: 家計 | CJ1: 家計 | CK1: 家計 | CL1: 家計 | CS1: 家計 | CT1: 家計 | CU1: 家計 | CV1: 家計 | CW1: 家計 | CX1: 家計 | CY1: 家計 | CZ1: 家計 | DA1: 家計 | DB1: 家計 | DC1: 家計 | DD1: 家計 | DE1: 家計 | DF1: 家計 | DG1: 家計 | DH1: 家計 | DI1: 家計 | DJ1: 家計 | DK1: 家計 | DL1: 家計 | DM1: 家計 | DN1: 家計 | DO1: 家計 | DP1: 家計 | DQ1: 家計 | DR1: 家計 | DS1: 家計 | DT1: 家計 | DU1: 家計 | DV1: 家計 | DW1: 家計 | DX1: 家計 | DY1: 家計 | DZ1: 家計 | EB1: 家計 | EC1: 家計 | ED1: 家計 | EE1: 家計 | EF1: 家計 | EG1: 家計 | EK1: 家計 | EL1: 家計 | EM1: 家計 | EO1: 家計 | EP1: 家計 | EQ1: 家計 | ER1: 家計 | ES1: 家計 | ET1: 家計 | EU1: 家計 | EV1: 家計 | EW1: 家計 | EX1: 家計 | EY1: 家計 | EZ1: 家計 | FA1: 家計 | FB1: 家計 | FC1: 家計 | FD1: 家計 | FE1: 家計 | FG1: 家計 | FI1: 家計 | FJ1: 家計 | FK1: 家計 | FO1: 家計 | FP1: 家計 | FQ1: 家計 | FR1: 家計 | FS1: 家計 | FT1: 家計 | FU1: 家計 | FV1: 家計 | FW1: 家計 | FX1: 家計 | FY1: 家計 | FZ1: 家計 | GA1: 家計 | GB1: 家計 | GC1: 家計 | GD1: 家計 | GE1: 家計 | GF1: 家計 | GG1: 家計 | GH1: 家計 | GI1: 家計 | GJ1: 家計 | GK1: 家計 | GL1: 家計 | GM1: 家計 | GN1: 家計 | GO1: 家計 | GP1: 家計 | GQ1: 家計 | GR1: 家計 | GS1: 家計 | GT1: 家計 | GU1: 家計 | GV1: 家計 | GW1: 家計 | GX1: 家計 | GY1: 家計 | GZ1: 家計 | HA1: 家計 | HB1: 家計 | HC1: 家計 | HD1: 家計 | HE1: 家計 | HF1: 家計 | HG1: 家計 | HH1: 家計 | HI1: 家計 | HJ1: 家計 | HK1: 家計 | HL1: 家計 | HM1: 家計 | HN1: 家計 | HO1: 家計 | HP1: 家計 | HQ1: 家計 | HR1: 家計 | HS1: 家計 | HT1: 家計 | HU1: 家計 | HV1: 家計 | HW1: 家計 | HX1: 家計 | HY1: 家計 | HZ1: 家計 | IA1: 家計 | IB1: 家計 | IC1: 家計 | ID1: 家計 | IE1: 家計 | IF1: 家計 | IG1: 家計 | IH1: 家計 | II1: 家計 | IJ1: 家計 | IK1: 家計 | IL1: 家計 | IM1: 家計 | IN1: 家計 | IO1: 家計 | IR1: 家計 | IS1: 家計 | IT1: 家計 | IU1: 家計 | IV1: 家計 | IW1: 家計 | IX1: 家計 | IY1: 家計 | IZ1: 家計 | JA1: 家計 | JB1: 家計 | JC1: 家計 | JD1: 家計 | JE1: 家計 | JF1: 家計 | JG1: 家計 | JH1: 家計 | JI1: 家計 | JJ1: 家計 | JK1: 家計 | JL1: 家計 | JM1: 家計 | JN1: 家計 | JO1: 家計 | JP1: 家計 | JQ1: 家計 | JR1: 家計 | JS1: 家計 | JT1: 家計 | JU1: 家計 | JV1: 家計 | JW1: 家計 | JX1: 家計 | JY1: 家計 | JZ1: 家計 | KA1: 家計 | KB1: 家計 | KC1: 家計 | KD1: 家計 | KE1: 家計 | KF1: 家計 | KG1: 家計 | KH1: 家計 | KI1: 家計 | KJ1: 家計 | KK1: 家計 | KL1: 家計 | KM1: 家計 | KN1: 家計 | KO1: 家計 | KP1: 家計 | KQ1: 家計 | KR1: 家計 | KS1: 家計 | KT1: 家計 | KU1: 家計 | KV1: 家計 | KW1: 家計 | KX1: 家計 | KY1: 家計 | KZ1: 家計 | LA1: 家計 | LB1: 家計 | LC1: 家計 | LD1: 家計 | LE1: 家計 | LF1: 家計 | LG1: 家計 | LH1: 家計 | LI1: 家計 | LJ1: 家計 | LK1: 家計 | LL1: 家計 | LM1: 家計 | LN1: 家計 | LO1: 家計 | LP1: 家計 | LQ1: 家計 | LR1: 家計 | LS1: 家計 | LT1: 家計 | LU1: 家計 | LV1: 家計 | LW1: 家計 | LX1: 家計 | LY1: 家計 | LZ1: 家計 | MA1: 家計 | MB1: 家計 | MC1: 家計 | MD1: 家計 | ME1: 家計 | MF1: 家計 | MG1: 家計 | MH1: 家計 | MI1: 家計 | MJ1: 家計 | MK1: 家計 | ML1: 家計 | MM1: 家計 | MN1: 家計 | MO1: 家計 | MP1: 家計 | MQ1: 家計 | MR1: 家計 | MS1: 家計 | MT1: 家計 | MU1: 家計 | MV1: 家計 | MX1: 家計 | MY1: 家計 | MZ1: 家計 | NA1: 家計 | NB1: 家計 | NC1: 家計 | ND1: 家計 | NE1: 家計 | NF1: 家計 | NI1: 家計 | NJ1: 家計 | NK1: 家計 | NL1: 家計 | NN1: 家計 | NO1: 家計 | NP1: 家計 | NQ1: 家計 | NT1: 家計 | NU1: 家計 | NV1: 家計 | NW1: 家計 | NX1: 家計 | NY1: 家計 | NZ1: 家計 | OA1: 家計 | OB1: 家計 | OC1: 家計 | OD1: 家計 | OE1: 家計 | OF1: 家計 | OG1: 家計 | OH1: 家計 | OI1: 家計 | OJ1: 家計 | OK1: 家計 | OL1: 家計 | OM1: 家計 | ON1: 家計 | OO1: 家計 | OP1: 家計 | OS1: 家計 | OT1: 家計 | OU1: 家計 | OV1: 家計 | OW1: 家計 | OX1: 家計 | OY1: 家計 | OZ1: 家計 | PA1: 家計 | PB1: 家計 | PC1: 家計 | PD1: 家計 | PE1: 家計 | PF1: 家計 | PH1: 家計 | PI1: 家計 | PJ1: 家計 | PK1: 家計 | PL1: 家計 | PM1: 家計 | PN1: 家計 | PO1: 家計 | PP1: 家計 | PQ1: 家計 | PR1: 家計 | PS1: 家計 | PT1: 家計 | PU1: 家計 | PV1: 家計 | PW1: 家計 | PX1: 家計 | PY1: 家計 | PZ1: 家計 | QA1: 家計 | QB1: 家計 | QC1: 家計 | QD1: 家計 | QE1: 家計 | QF1: 家計 | QG1: 家計 | QH1: 家計 | QI1: 家計 | QJ1: 家計 | QK1: 家計 | QL1: 家計 | QM1: 家計 | QN1: 家計 | QO1: 家計 | QP1: 家計 | QQ1: 家計 | QR1: 家計 | QT1: 家計 | QU1: 家計 | QV1: 家計 | QW1: 家計 | QX1: 家計 | QY1: 家計 | QZ1: 家計 | RA1: 家計 | RB1: 家計 | RC1: 家計 | RS1: 家計 | RT1: 家計 | RU1: 家計 | RV1: 家計 | RW1: 家計 | RX1: 家計 | RY1: 家計 | RZ1: 家計 | SA1: 家計 | SB1: 家計 | SE1: 会社 | SF1: 会社 | SG1: 会社 | SH1: 会社 | SI1: 会社 | SJ1: 会社 | SK1: 会社 | SL1: 会社 | SM1: 会社 | SN1: 会社 | SO1: 会社 | SP1: 会社 | SQ1: 会社 | SR1: 会社 | SS1: 会社 | ST1: 会社 | SU1: 会社 | SV1: 会社 | SW1: 会社 | SX1: 会社 | SY1: 会社 | SZ1: 会社 | TA1: 会社 | TB1: 会社 | TC1: 会社 | TD1: 会社 | TE1: 会社 | TF1: 会社 | TG1: 会社 | TH1: 会社 | TI1: 会社 | TJ1: 会社 | TK1: 会社 | TL1: 会社 | TM1: 会社 | TN1: 会社 | TO1: 会社 | TP1: 会社 | TQ1: 会社 | TR1: 会社 | TS1: 会社 | TT1: 会社 | TU1: 会社 | TV1: 会社 | TW1: 会社 | TX1: 会社 | TY1: 会社 | TZ1: 会社 | UA1: 会社 | UB1: 会社 | UC1: 会社 | UD1: 会社 | UE1: 会社 | UF1: 会社 | UG1: 会社 | UH1: 会社 | UI1: 会社 | UJ1: 会社 | UK1: 会社 | UL1: 会社 | UM1: 会社 | UN1: 会社 | UO1: 会社 | UP1: 会社 | UQ1: 会社 | UR1: 会社 | US1: 会社 | UT1: 会社 | UU1: 会社 | UV1: 会社 | UW1: 会社 | UX1: 会社 | UY1: 会社 | VD1: 会社 | VG1: 会社 | VI1: 会社 | VJ1: 会社 | VK1: 会社 | VL1: 会社 | VM1: 会社 | VN1: 会社 | VO1: 会社 | VP1: 会社 | VQ1: 会社 | VR1: 会社 | VS1: 会社 | VT1: 会社 | VU1: 会社 | VV1: 会社 | VW1: 会社 | VX1: 会社 | VY1: 会社 | VZ1: 会社 | WA1: 会社 | WB1: 会社 | WC1: 会社 | WD1: 会社 | WE1: 会社 | WF1: 会社 | WG1: 会社 | WH1: 会社 | WI1: 会社 | WJ1: 会社 | WK1: 会社 | WL1: 会社 | WM1: 会社 | WN1: 会社 | WO1: 会社 | WP1: 会社 | WQ1: 会社 | WR1: 会社 | WS1: 会社 | WT1: 会社 | WU1: 会社 | WV1: 会社 | WW1: 会社 | WX1: 会社 | WY1: 会社 | WZ1: 会社 | XA1: 会社 | XB1: 会社 | XC1: 会社 | XD1: 会社 | XE1: 会社 | XF1: 会社 | XG1: 会社 | XH1: 会社 | XI1: 会社 | XJ1: 会社 | XK1: 会社 | XL1: 会社 | XM1: 会社 | XN1: 会社 | XO1: 会社 | XP1: 会社 | XQ1: 会社 | XR1: 会社 | XS1: 会社 | XT1: 会社 | XU1: 会社 | XV1: 会社 | XW1: 会社 | XX1: 会社 | XY1: 会社 | XZ1: 会社 | YB1: 会社 | YC1: 会社 | YD1: 会社 | YE1: 会社 | YF1: 会社 | YG1: 会社 | YS1: 父 | YT1: 父 | YU1: 父 | YV1: 父 | YW1: 父 | YX1: 父 | YY1: 父 | YZ1: 父 | ZA1: 父 | ZB1: 父 | ZC1: 父 | ZD1: 父 | ZE1: 父 | ZF1: 父 | ZG1: 父 | ZH1: 父 | ZI1: 父 | ZJ1: 父 | ZK1: 父 | ZL1: 父 | ZM1: 父 | ZN1: 父 | ZO1: 父 | ZP1: 父 | ZQ1: 父 | ZR1: 父 | ZS1: 父 | ZT1: 父 | ZU1: 父 | ZV1: 父 | ZW1: 父 | ZX1: 父 | ZZ1: 父 | AAA1: 父 | AAB1: 父 | AAC1: 父 | AAH1: 父 | AAI1: 父 | AAJ1: 父 | AAK1: 父 | AAL1: 父 | AAM1: 父 | AAN1: 父 | AAO1: 父 | AAP1: 父 | AAQ1: 父 | AAR1: 父 | AAS1: 父 | AAT1: 父 | AAU1: 父 | AAV1: 父 | AAW1: 父 | AAX1: 父 | AAY1: 父 | AAZ1: 父 | ABA1: 父 | ABB1: 父 | ABC1: 父 | ABD1: 父 | ABE1: 父 | ABF1: 父 | ABG1: 父 | ABH1: 父 | ABI1: 父 | ABJ1: 父 | ABK1: 父 | ABL1: 父 | ABM1: 父 | ABN1: 父 | ABO1: 父 | ABP1: 父 | ABQ1: 父 | ABR1: 父 | ABS1: 父 | ABT1: 父 | ABU1: 父 | ABV1: 父 | ABW1: 父 | ABX1: 父 | ABY1: 父 | ABZ1: 父 | ACA1: 父 | ACB1: 父 | ACC1: 父 | ACD1: 父 | ACE1: 父 | ACF1: 父 | ACG1: 父 | ACI1: 父 | ACK1: 父 | ACL1: 父 | ACM1: 父 | ACO1: 父 | ACP1: 父 | ACQ1: 父 | ACT1: 母 | ACU1: 母 | ACV1: 母 | ACW1: 母 | ACX1: 母 | ACY1: 母 | ACZ1: 母 | ADA1: 母 | ADB1: 母 | ADC1: 母 | ADD1: 母 | ADE1: 母 | ADF1: 母 | ADG1: 母 | ADI1: 母 | ADK1: 母 | ADL1: 母 | ADM1: 母 | ADN1: 母 | ADO1: 母 | ADP1: 母 | ADQ1: 母 | ADR1: 母 | ADS1: 母 | ADT1: 母 | ADU1: 母 | ADV1: 母 | ADW1: 母 | ADX1: 母 | ADY1: 母 | ADZ1: 母 | AEA1: 母 | AEB1: 母 | AEC1: 母 | AED1: 母 | AEE1: 母 | AEF1: 母 | AEG1: 母 | AEH1: 母 | AEI1: 母 | AEJ1: 母 | AEK1: 母 | AEL1: 母 | AEM1: 母 | AEN1: 母 | AEO1: 母 | AEP1: 母 | AEQ1: 母 | AER1: 母 | AES1: 母 | AET1: 母 | AEU1: 母 | AEV1: 母 | AEW1: 母 | AEX1: 母 | AEY1: 母 | AEZ1: 母 | AFA1: 母 | AFB1: 母 | AFC1: 母 | AFD1: 母 | AFE1: 母 | AFF1: 母 | AFG1: 母 | AFH1: 母 | AFI1: 母 | AFJ1: 母 | AFK1: 母 | AFL1: 母 | AFM1: 母 | AFN1: 母 | AFO1: 母 | AFP1: 母 | AFQ1: 母 | AFR1: 母 | AFS1: 母 | AFT1: 母 | AFU1: 母 | AFV1: 母 | AFW1: 母 | AFX1: 母 | AFY1: 母 | AGB1: 兄弟 | AGC1: 兄弟 | AGD1: 兄弟 | AGE1: 兄弟 | AGF1: 兄弟 | AGG1: 兄弟 | AGH1: 兄弟 | AGI1: 兄弟 | AGJ1: 兄弟 | AGK1: 兄弟 | AGL1: 兄弟 | AGM1: 兄弟 | AGN1: 兄弟 | AGO1: 兄弟 | AGP1: 兄弟 | AGQ1: 兄弟 | AGR1: 兄弟 | AGS1: 兄弟 | AGT1: 兄弟 | AGU1: 兄弟 | AGV1: 兄弟 | AGW1: 兄弟 | AGX1: 兄弟 | AGY1: 兄弟 | AGZ1: 兄弟 | AHA1: 兄弟 | AHB1: 兄弟 | AHC1: 兄弟 | AHD1: 兄弟
A2: 試算条件入力欄 | D2: 基礎情報 | AL2: 収入 | DO2: 収入 | IO2: コスト | MV2: 利益 | MX2: 期末資産 | PJ2: 負債 | PZ2: 負債 | QV2: 資本 | SD2: 会社 | SE2: 収入 | TN2: コスト | VX2: 資産 | XM2: 負債 | YB2: 資本 | YR2: 父 | YS2: 収入 | ZI2: コスト | AAK2: 資産 | ABS2: 資本 | ABT2: 相続 | ACS2: 母 | ACT2: 収入 | AFO2: 資本 | AFP2: 相続 | AGA2: 兄弟
AL3: 収入 夫 | FT3: 収入 妻 | IC3: 収入 子 | IN3: 収入計
AL4: 給与所得/夫 | BA4: 不動産所得/夫 | BF4: 配当所得/夫 | BG4: 退職所得/夫 | BP4: 退職所得/夫 | CM4: 事業所得/夫 | CS4: 雑所得/夫 | DL4: 譲渡所得/夫 | EH4: 利子所得/夫 | EN4: 非課税所得/夫 | FT4: 給与所得/妻 | FZ4: 雑所得/妻 | GU4: 非課税所得/妻 | HE4: 評価益/妻 | IB4: 相続/妻 | IC4: 評価益 | IM4: 相続
E5: 年齢 | K5: 扶養人数 | AL5: 会社員 給与 | AT5: 会社員(移籍後) 給与 | AW5: 同族会社 | AX5: 小計 | BA5: 地代 | BC5: 小計 | BF5: 同族会社 | BG5: 会社員 退職金 | BP5: 会社員(移籍後) 退職金 | BZ5: 確定拠出年金/夫 | CL5: 退職金所得計 | CM5: 業務委託 | CN5: 副業 | CO5: 事業収入計 | CP5: 経費 | CQ5: 事業所得 一次計算 | CR5: 事業所得計 | CS5: 年金/夫 | DL5: 上場株式等・一般株式等に係る譲渡所得等 | DW5: 土地建物等の譲渡所得 | EH5: a | EN5: 給与/夫 | EO5: 失業手当/夫 | ES5: 公的補助金/夫 | EX5: ふるさと納税/夫 | EZ5: 有価証券 評価益/夫 | FQ5: 相続/夫 | FT5: 給与/妻 | FZ5: 公的年金/妻 | GJ5: 年金/妻 | GU5: 失業手当/妻 | HA5: ふるさと納税/妻 | HC5: 遺族厚生年金/妻 | HE5: 積立NISA/妻 妻 | HJ5: 投資信託/妻 妻 | HT5: 生命保険/妻 | IB5: a | IC5: ジュニアNISA 子① | IH5: ジュニアNISA 子② | IO5: 生活費 | JP5: 養育費内訳 | KO5: 養育費 | KU5: 参考 | KV5: 社会保険料 | LG5: 所得税・住民税 | LS5: A区 | LT5: B区 | LU5: 土地・建物の売却コスト | ML5: a | MM5: 奨学金 | MN5: 利子所得税 | MR5: 投資信託 | MX5: 投資信託 | NI5: 貯金 | NQ5: 貸付金 | NT5: C区（土地） | NZ5: A区（土地） | OH5: B区（土地） | OS5: 現物株式 （同族株式会社） | PL5: 奨学金 基本月額 子① | PS5: 奨学金 増額部 子① | QA5: 奨学金 基本月額 子② | QH5: 奨学金 増額部 子② | QO5: 奨学金 計 | RA5: 計算用 | RT5: 法定相続評価額 | RY5: 相続額 | SE5: A区 （建物） | SQ5: A区 （土地） | SW5: B区（建物） | TB5: A区（借地権） | TC5: B区（借地権） | TD5: 保険金 | TG5: 投資信託 | TN5: A区（建物） | UA5: A区（土地） | UD5: B区（建物） | UL5: B区（土地） | UO5: 報酬 | UW5: 退職金 | VD5: 経費 | VM5: 税金 | WC5: 生命保険 | WF5: A区（建物） | WR5: A区（土地） | WV5: B区（建物） 平成1年12月～ | XE5: A区（借地権） | XG5: B区（借地権） | XM5: A区 借入金 | XT5: 社長 借入金 | YI5: 自己資本比率 | YJ5: 固定比率 | YK5: 流動比率 | YS5: 不動産所得 | YV5: 給与所得 | YY5: 雑所得 | ZF5: A区 土地 | ZG5: B区 土地 | ZI5: 社会保険料 | ZK5: 所得税・住民税 | ZO5: C区（建物） | ZP5: C区（土地） | ZQ5: A区（土地） | ZS5: B区（土地） | ZU5: 生前贈与 | ZZ5: 生活費コスト | AAK5: 株式 自社 | AAN5: 株式 トヨタ | AAQ5: 株式 三菱自動車 | AAT5: ピクテ・グローバル・インカム株式ファンド（毎月分配型） | AAW5: マン・AHL・エンハンスト・ストラテジーズ償還時元本確保型ファンド2 | AAZ5: C区（建物） | ABD5: C区（土地） | ABG5: A区（土地） | ABJ5: B区（土地） | ABM5: 生命保険 | ABS5: 時価資産額 | ABT5: 法定相続評価額 | ABU5: 法定相続評価額 | ACC5: 生前贈与額 | ACF5: 相続人(子)対象資産 | ACG5: 自分 | ACL5: 兄弟 | ACP5: 相続人(母)対象資産 | ACX5: B区 | ACZ5: A区 | ADA5: B区 | ADB5: 雑所得 | ADL5: C区（建物） | ADM5: C区（土地） | ADN5: A区 | ADP5: B区 | ADR5: 社会保険料 | ADT5: 所得税・住民税 | ADX5: 生活費コスト | AEF5: 自社 | AEI5: トヨタ | AEL5: 三菱自動車 | AEO5: ピクテ・グローバル・インカム株式ファンド（毎月分配型） | AER5: マン・AHL・エンハンスト・ストラテジーズ償還時元本確保型ファンド2 | AEU5: C区（建物） | AEY5: C区（土地） | AFB5: A区（土地） | AFE5: B区（土地） | AFJ5: 現金 | AFP5: 法定相続評価額 | AFQ5: 法定相続評価額 | AFU5: 生前贈与額 | AFV5: 相続人(子)対象資産 | AFW5: 相続人(自分)対象資産 | AGB5: B区 | AGE5: B区 | AGF5: 自社 | AGI5: B区（土地） | AGL5: トヨタ | AGO5: 三菱自動車 | AGR5: ピクテ・グローバル・インカム株式ファンド（毎月分配型） | AGU5: マン・AHL・エンハンスト・ストラテジーズ償還時元本確保型ファンド2
E6: 夫 | F6: 妻 | G6: 子 | I6: 父 | J6: 母 | K6: 配偶者 控除 | L6: 老人 配偶者控除 | M6: 扶養 控除 | N6: 特定扶養控除 | O6: 23歳未満の扶養親族有無 | P6: 役員 勤続 | AL6: 給与 | AM6: 残業代 | AN6: 手当 | AO6: 賞与 | AP6: 一般財形貯蓄 | AR6: 住宅財形貯蓄 | AT6: 給与 | AU6: 手当 | AV6: 賞与 | AW6: 役員報酬 | AX6: 給与収入計 | AY6: 給与所得控除額 | AZ6: 給与所得 | BA6: A区 | BB6: B区 | BC6: 不動産収入計 | BD6: 必要経費 | BE6: 不動産所得 | BF6: 配当金 | BG6: 積立額 | BN6: 所得控除額 | BP6: 積立額 | BX6: 所得控除額 | BZ6: 積立額 | CE6: 一時金受取 | CF6: 所得控除額 | CS6: 確定拠出年金/夫 | CT6: 老齢基礎年金/夫 | CY6: 老齢厚生年金/夫 | DI6: 小計 | DL6: 投資信託/夫 | DW6: C区（建物） | DY6: C区（土地） | EB6: A区（土地） | EE6: B区（土地） | EH6: 運用金額 | EL6: 利回り | EM6: 利子計 | EZ6: 積立NISA/夫 | FE6: 新NISA | FO6: 同族会社 | FZ6: 確定拠出年金/妻 | GJ6: 老齢基礎年金/妻 | GM6: 老齢厚生年金/妻 | GR6: 小計 | IB6: a | IM6: 現金相続 | LU6: C区（建物） | LY6: C区（土地） | MC6: A区（土地） | MG6: B区（土地） | MK6: a | ML6: a | MM6: a
D7: 締= 翌年8月末 | H7: 子 ② | Q7: 現役 夫 | R7: 現役 妻 | S7: 基礎年金受注開始 夫 | T7: 厚生年金受注開始 夫 | U7: 基礎年金受注開始 妻 | V7: 厚生年金受注開始 妻 | W7: B区 T社 | X7: B区 借地化 | Y7: B区賃貸切り替え | Z7: B区 売却 | AA7: A区売却 | AB7: 地震ﾘｽｸ | AC7: 解散ﾌﾗｸﾞ | AD7: インフレ | AE7: インフレ 係数 | AF7: 実質賃金上昇率 | AG7: 実質賃金係数 | AH7: 高齢化率 | AJ7: 高齢化率 | AK7: 高齢化 係数 | AP7: 運用計 | AQ7: 利子補助金 | AR7: 運用計 | AS7: 利子補助金 | BG7: 基礎積立額累計/期首 | BH7: 基礎積立増加額/当年 | BI7: 早期退職割引係数 | BJ7: 月数 加算 | BK7: 退職時付加 | BL7: 退職金積立額（時価）/期末 | BM7: 退職金(時価) 当年増加額 | BN7: 勤続年数 | BO7: 所得控除額 | BP7: 基礎積立額累計/期首 | BQ7: 基礎積立増加額/当年 | BR7: 早期退職割引係数 | BS7: 月数 加算 | BT7: 勤続ﾎﾟｲﾝﾄ | BU7: 中間採用者定年退職ﾎﾟｲﾝﾄ | BV7: 退職金積立額（時価）/期末 | BW7: 退職金(時価) 当年増加額 | BX7: 勤続年数 | BY7: 所得控除額 | BZ7: 拠出金/会社負担 | CA7: 拠出金/個人負担 | CB7: 計 | CC7: 利 回り | CD7: 運用益 | CF7: 年 | CG7: 重複期間 | CH7: みなし勤続年数 | CI7: みなし重複期間 | CJ7: 受取残 | CK7: 所得控除額 | CS7: 年金受取 | CT7: 所得代替率ｹｰｽⅥ | CU7: 係数 基礎年金 | CV7: 繰下 増額率 | CW7: 基礎 見込額 | CX7: 基礎 受給額 | CY7: 所得代替率ｹｰｽⅥ | CZ7: 係数 厚生年金 | DA7: 経過的加算定額見込額 | DB7: 経過的加算 給付額 | DC7: 厚生 見込額 | DD7: 厚生受給基準額 | DE7: 支給停止額 | DF7: 厚生受給額 | DG7: 加給年金 見込額 | DH7: 加給年金 受給額 | DI7: 雑収入計 | DJ7: 雑所得 一次計算 | DK7: 雑所得 | DL7: 取り崩し (税引後) | DM7: 内元金 | DN7: 譲渡所得 | DO7: 運用投入 | DP7: 運用資産/期首 | DQ7: 利 回り | DR7: 運用益 | DS7: 元金計 | DT7: 利益計 | DU7: 計 | DV7: 利率/計 | DW7: 現金化 | DX7: 譲渡所得 | DY7: 評価益 | DZ7: 現金化 | EA7: 譲渡所得 | EB7: 評価益 | EC7: 現金化 | ED7: 譲渡所得 | EE7: 評価益 | EF7: 現金化 | EG7: 譲渡所得 | EH7: 定期預金 | EI7: 一般財形貯蓄 | EJ7: 住宅財形貯蓄 | EK7: 計 | EN7: 通勤交通費 | EO7: 賃金日額 | EP7: 給付 率 | EQ7: 給付日数 | ER7: 計 | ES7: 児童手当① | ET7: 児童手当② | EU7: 高等学校等就学支援金① | EV7: 高等学校等就学支援金② | EW7: 計 | EX7: 控除限度額 夫 | EY7: 返礼品 夫 | EZ7: 取り崩し | FA7: 拠出金 | FB7: 計 | FC7: 利 回り | FD7: 運用益 | FE7: 取り崩し | FF7: 内元金 | FG7: 拠出金 | FH7: 元金計 | FI7: 計 | FJ7: 利 回り | FK7: 運用益 | FL7: 計 | FM7: 利益率 | FN7: 利益計 | FO7: 評価益 | FP7: 現金化 | FQ7: 生命 保険金 | FR7: 死亡退職金 | FS7: 現金相続 | FT7: 基準給与 | FU7: 給与 | FV7: 賞与 | FW7: 給与収入 計 | FX7: 給与所得一次計算 | FY7: 給与所得 | FZ7: 年 | GA7: 受取残 | GB7: 一時金受取 （税込） | GC7: 年金受取 （税込） | GD7: 確定拠出年金 給付額 | GE7: 拠出金 | GF7: 計 | GG7: 利 回り | GH7: 運用益 | GI7: 控除 | GJ7: 繰下 増額率 | GK7: 基礎 見込額 | GL7: 基礎 給付額 | GM7: 繰下 増額率 | GN7: 厚生 見込額 | GO7: 厚生給付基準額 | GP7: 支給停止額 | GQ7: 厚生給付額 | GR7: 雑所得 一次計算 | GS7: 雑所得 年金控除後 | GT7: 雑所得 | GU7: 賃金日額 | GV7: 給付 率 | GW7: 給付日数 | GX7: 失業手当 | GY7: 休業給付金 | GZ7: 計 | HA7: 控除限度額 妻 | HB7: 返礼品 妻 | HC7: 遺族厚生年金見込額 | HD7: 遺族厚生年金受給額 | HE7: 取り崩し | HF7: 拠出金 | HG7: 計 | HH7: 利 回り | HI7: 運用益 | HJ7: 取り崩し (税引後) | HK7: 内元金 | HL7: 運用投入 | HM7: 計 | HN7: 利 回り | HO7: 運用益 | HP7: 元金計 | HQ7: 利益計 | HR7: 計 | HS7: 利益 | HT7: 拠出金 | HU7: 拠出金 累計 | HV7: 解約 払戻金 一次計算 | HW7: 解約 払戻金 | HX7: 当年度 解約払戻金増額 | HY7: 運用益 | HZ7: 期間 | IA7: 利回り | IB7: 父→妻 貸付金 生前贈与 | IC7: 取り崩し | ID7: 拠出金 | IE7: 計 | IF7: 利 回り | IG7: 運用益 | IH7: 取り崩し | II7: 拠出金 | IJ7: 計 | IK7: 利 回り | IL7: 運用益 | IM7: 父→子 生前贈与 | IO7: (基準生活コスト/月) | IP7: 家賃ベース（賃料のみ） | IQ7: 家賃ベース | IR7: （家賃） | IS7: （光熱費） | IT7: (電気代) | IU7: （回線費用） | IV7: （車両費維持費用） | IW7: 年齢階級別１人当たり医療費(医療費) | IX7: 年齢階級別１人当たり医療費(自己負担) | IY7: 組合費 月給分 | IZ7: 組合費 一時金分 | JA7: 基準医療費/月 | JB7: 実際医療費/月 夫 | JC7: 実際医療費/月 妻 | JD7: 介護費 平均/月 | JE7: 一時介護費 | JF7: 基準介護費/月 | JG7: 実際介護費/月 夫 | JH7: ←内、介護保険自己負担分 | JI7: 実際一時介護費 夫 | JJ7: 実際介護費/月 妻 | JK7: ←内、介護保険自己負担分 | JL7: 実際一時介護費 妻 | JM7: 勤務必要経費/月 | JN7: 生活/夫婦 | JO7: 生活/ｽﾎﾟｯﾄ | JP7: 生活費/月 | JQ7: 生活/ｽﾎﾟｯﾄ | JR7: 年齢階級別１人当たり医療費(自己負担) | JS7: 医療費 子① | JT7: 医療費 子② | JU7: 生活費 子① | JV7: 生活費 子② | JW7: (保育) | JX7: (授業料) 子供の学習費調査 文部科学省 | JY7: (修学旅行・遠足・ 見学費) | JZ7: (学級・児童会・生徒会費) | KA7: (PTA会費) | KB7: (学校給付金等) | KC7: (寄附金) | KD7: (教科書費・教科書以外の図書費) | KE7: (学用品・実験実習材料費) | KF7: (教科外活動費) | KG7: (通学費) | KH7: (制服) | KI7: (通学用品費) | KJ7: (その他) | KK7: (給食費) | KL7: 習い事 | KM7: 学習塾 | KN7: 備考 | KO7: 生活 子① | KP7: 生活 子② | KQ7: 学費 子① | KR7: 学費 子② | KS7: 生活 計 | KT7: 学費 計 | KU7: 生活費/月計 現在価値 | KV7: 厚生年金 夫 | KW7: 健康保険 | KX7: 介護保険 | KY7: 雇用保険 | KZ7: 厚生年金 妻 | LA7: 健康保険 妻 | LB7: 介護保険 妻 | LC7: 雇用保険 | LD7: 国民年金 子① | LE7: 国民年金 子② | LF7: 国民年金 子 計 | LG7: (所得税対象総所得) 夫 | LH7: 所得税 夫 | LI7: 退職金 所得税額 | LJ7: 復興特別所得税 | LK7: (住民税課税対象給与所得)夫 | LL7: 住民税 夫 | LM7: (所得税対象総所得) 妻 | LN7: 所得税 妻 | LO7: 復興特別所得税 | LP7: (住民税課税対象給与所得)妻 | LQ7: 住民税 妻 | LR7: 確定拠出年金 | LS7: 固定資産税 | LT7: 固定資産税 | LU7: 所得税 | LV7: 復興特別所得税 | LW7: 住民税 | LX7: 仲介手数料 | LY7: 所得税 | LZ7: 復興特別所得税 | MA7: 住民税 | MB7: 仲介手数料 | MC7: 所得税 | MD7: 復興特別所得税 | ME7: 住民税 | MF7: 仲介手数料 | MG7: 所得税 | MH7: 復興特別所得税 | MI7: 住民税 | MJ7: 仲介手数料 | MK7: 計 | ML7: 相続税 | MM7: 利息 | MN7: 所得税 | MO7: 復興特別所得税 | MP7: 住民税 | MQ7: 計 | MR7: 投信払出 コスト | MS7: 投信払出 コスト 妻 | MT7: 相続 評価損 | MU7: コスト計 | MW7: （現在価値） | MX7: 投資信託 | MY7: 投資信託 妻 | MZ7: 積立NISA 夫 | NA7: 積立NISA 妻 | NB7: NISA | NC7: ジュニアNISA | ND7: ジュニアNISA | NE7: 確定 拠出年金 | NF7: 確定 拠出年金/妻 | NG7: 投資信託計 | NH7: 投資信託計 （現在価値) | NI7: 生活闘争資金 | NJ7: 一般財形貯蓄 | NK7: 住宅財形貯蓄 | NL7: 生活防衛 資金 一次計算 | NM7: 生活防衛 資金 二次計算 | NN7: 生活防衛 資金 期末 | NO7: 保険 | NP7: 退職金 時価 | NR7: その他流動資産小計 | NS7: その他流動資産小計 (現在価値) | NT7: 人口 (NT） | NU7: 路線価 正面 | NV7: 路線価 裏 | NW7: 床面積 平米 | NX7: 価格 (相続税評価額) | NY7: 価格 (時価) | NZ7: 人口 (市) | OA7: 人口係数 | OB7: 路線価 正面 | OC7: 床面積 平米 | OD7: 価格 (時価) | OE7: 床面積 平米 | OF7: 価格 (相続税評価額) | OG7: 価格 (時価) | OH7: 人口 (市) | OI7: 人口係数 | OJ7: 路線価 正面 | OK7: 路線価 裏 | OL7: 総床面積 | OM7: 左記相続税評価額 | ON7: 床面積 平米 | OO7: 価格 (相続税評価額) | OP7: 価格 (時価) | OQ7: 不動産計 (時価) | OR7: 不動産計 (時価) (現在価値) | OS7: 類似業種の株価 | OT7: 類似業種の1株あたりの配当金 | OU7: 類似業種の1株あたりの利益 | OV7: 類似業種の1株当たりの純資産（帳簿価額で計算したもの） | OW7: 自社の1株当たりの配当金 | OX7: 自社の1株当たりの利益 | OY7: 自社の1株当たりの純資産（帳簿価額で計算したもの） | OZ7: 株価 （純資産価額方式) | PA7: 株価 類似業種比準価額 | PB7: 株価 （時価) | PC7: 持株数 | PD7: 評価額 （純資産価額方式) | PE7: 評価額 （類似業種比準評価額) | PF7: 評価額 （時価) | PG7: 評価額 （時価/現在価値) | PH7: 期末資産 | PI7: 期末資産 （現在価値） | PJ7: 在学フラグ | PK7: 返済残年数 | PL7: 借入額 基本月額部 | PM7: 借入総額 基本月額部 | PN7: 利率 基本月額部 | PO7: 利息 | PP7: 返済額 | PQ7: 内利息 | PR7: 計 | PS7: 借入額 増額部 | PT7: 借入総額 増額部 | PU7: 利率 増額部 | PV7: 利息 | PW7: 返済額 | PX7: 内利息 | PY7: 計 | PZ7: 返済残年数 | QA7: 借入額 基本月額部 | QB7: 借入総額 基本月額部 | QC7: 利率 基本月額部 | QD7: 利息 | QE7: 返済額 | QF7: 内利息 | QG7: 計 | QH7: 借入額 増額部 | QI7: 借入総額 増額部 | QJ7: 利率 増額部 | QK7: 利息 | QL7: 返済額 | QM7: 内利息 | QN7: 計 | QO7: 借入額 基本月額部 | QP7: 利息 | QQ7: 返済額 | QR7: 計 | QS7: 負債 (現在価値) | QT7: 期末 フリーキャッシュ | QV7: 期末純資本 | QW7: 期末純資本 (現在価値) | QX7: 資産 税引後評価額 | QY7: ←現在価値 | QZ7: キャッシュフロー期中 生活防衛 資金除く | RA7: キャッシュフロー 期中 | RB7: 変更前 期末純資本 (現在価値) | RC7: 差額 | RF7: 運用投入計 | RG7: 運用資産計 | RH7: 当年利益 | RI7: 利益率 | RO7: 資本収益率 | RS7: 相続資産 (相続税評価額) | RT7: 妻 | RU7: 法定相続税額 | RV7: 子 | RW7: 法定相続税額 | RX7: 相法定続税計 | RY7: 妻 | RZ7: 相続税額 | SA7: 子 | SB7: 相続税額 | SE7: 契約期間 | SF7: 契約経過 | SG7: 下率/契約年次 | SH7: 下落年率 | SI7: インフレ 係数 | SJ7: 人口係数 | SK7: (実際賃料) | SL7: 一括借上賃料 | SN7: 評価益 (時価) | SO7: 売却益 (法人税計算分) | SP7: 売却益 | SQ7: (実際賃料) | SR7: 一括借上賃料 | ST7: 評価益 (時価) | SU7: 売却益 (法人税計算分) | SV7: 売却益 | SW7: 契約期間 | SY7: 賃料 B区 | SZ7: 評価益 (時価) | TA7: (賃料/坪) | TB7: 評価益 (時価) | TC7: 評価益 (時価) | TD7: A区 地震保険金 | TE7: 入金 | TF7: 評価益 | TG7: 取り崩し | TH7: 運用投入 | TI7: 運用資産計 | TJ7: 利回り | TK7: 利益 | TL7: 法人税計算用 収入 | TM7: 実収益 | TN7: 固定 資産税 | TO7: 減価償却費 建物 | TP7: 減価償却費 給排水設備工事 | TQ7: 減価償却費 ガス設備工事 | TR7: 減価償却費 マンション付属駐車場 | TS7: 減価償却費 水道施設利用権 | TT7: 減価償却費 計 | TU7: 返済金利 | TV7: 保険料償却 | TW7: 修繕費用 | TX7: 売却 仲介手数料 | TY7: 解体費用 | TZ7: 評価損 | UA7: 固定 資産税 | UB7: 地代 | UC7: 売却 仲介手数料 | UD7: 火災保険 | UE7: 減価償却費 鉄骨店舗 | UF7: 減価償却費 改装工事 | UG7: 減価償却費 看板 | UH7: 減価償却費 計 | UI7: 修繕費用 | UJ7: 解体費用 | UK7: 評価損 | UL7: 地代 (叔母一族) | UM7: 地代 (父一族) | UN7: 固定資産税 | UO7: 役員報酬 損金算入可能額 | UP7: 役員報酬 | UQ7: 妻報酬 損金算入可能額 | UR7: 妻 報酬 | US7: 父 報酬 | UT7: 母 報酬 | UU7: 中退共 | UV7: 法定福利費 | UW7: 役員退職金 | UX7: 死亡 退職金 | UY7: 計 | UZ7: 消費税(入） | VA7: 消費税(出) | VB7: 一次計算 | VC7: 消費税(計) | VD7: (生活費) | VE7: (自動車保険) | VF7: (医療保険) | VG7: (生活費) | VH7: (業務委託費) | VI7: (税士事務所) | VJ7: 計 | VK7: 法人税計算用コスト計 | VL7: 法人税計算用損益 | VM7: 法人税 | VN7: 地方法人税 | VO7: 法人事業税 | VP7: 法人府民税法人税割 | VQ7: 法人府民税均等割 | VR7: 計 | VT7: 当期純利益 | VU7: 配当金 | VV7: 実コスト | VW7: 実利益 | VX7: 期末フリーキャッシュ | VY7: (想定運転資金) | VZ7: 預金 | WA7: 投資信託 | WB7: 流動資産計 | WC7: 積立金 (簿価) | WD7: 積立金 (時価) | WE7: 前払保険料 | WF7: 経過 年数 | WG7: 建物 | WH7: 給排水設備工事 | WI7: ガス設備工事 | WJ7: マンション付属駐車場 | WK7: 水道施設利用権 | WL7: 簿価 | WM7: マンション 建物 時価評価 | WN7: 期待利回り | WO7: 左記表面利回り | WP7: 実利回り 税引前 | WQ7: 実利回り 税引後 | WR7: 床面積 平米 | WS7: 価格 (簿価) | WT7: 価格 (相続税評価額) | WU7: 価格 (時価) | WV7: 築年数 | WW7: 床面積 平米 | WX7: 床面積 坪 | WY7: 鉄骨店舗 | WZ7: 改装工事 | XA7: 看板 | XB7: 価格 (簿価) | XC7: 価格 (時価) | XD7: 期待利回り | XE7: 価格 (相続税評価額) | XF7: 価格 (時価) | XG7: 路線価 裏 | XH7: 床面積 平米 | XI7: 価格 (相続税評価額) | XJ7: 価格 (時価) | XK7: 期末資産 時価評価 | XL7: 期末資産 （現在価値） | XM7: ﾛｰﾝ | XO7: 前倒し返済額 | XP7: 返済額 | XQ7: 返済額計 | XR7: 銀行 借入金 | XS7: B区 敷金 | XT7: 借入額 | XU7: 退職金 未払金 返済額 | XV7: 社長 借入金 返済額 | XW7: 返済額 計 | XX7: 退職金 未払金 | XY7: 社長 借入金 | XZ7: 計 | YA7: 負債計 | YB7: 総資本 簿価 | YC7: 総資本 相続税評価 | YD7: 総資本 時価評価 | YE7: ←現在価値 | YG7: キャッシュフロー | YI7: 40～70％程度以上 | YJ7: 100％以下 | YK7: 180％超 優良 180％以下150％超 良好 150％以下120％超 普通 120％以下80％超 注意 80％以下 危険 | YL7: 正味利益 | YM7: 正味利益率 | YS7: 地代 A区 | YT7: 地代 B区 | YU7: 不動産所得 | YV7: 役員報酬 | YW7: 給与所得 一次計算 | YX7: 給与所得 | YY7: (老齢 基礎年金 基準) | YZ7: 老齢 基礎年金 | ZA7: (老齢 厚生年金 基準) | ZB7: 老齢 厚生年金 | ZC7: 雑収入計 | ZD7: 雑所得 一次計算 | ZE7: 雑所得 | ZF7: 売却益 | ZG7: 売却益 | ZH7: 計 | ZI7: 健康保険 | ZJ7: 介護保険 | ZK7: (所得税課税対象給与所得) | ZL7: 所得税 | ZM7: (住民税課税対象給与所得) | ZN7: 住民税 | ZO7: 固定 資産税 | ZP7: 固定 資産税 | ZQ7: 固定 資産税 | ZR7: 売却手数料 | ZS7: 固定 資産税 | ZT7: 売却手数料 | ZU7: →子 | ZV7: →母 | ZW7: →兄弟 | ZX7: →妻 | ZY7: 相続税対象 | ZZ7: A区 不動産収入分 | AAA7: B区 不動産収入分 | AAB7: 給与分 | AAC7: 税額軽減分 | AAD7: 会社負担生活費 自己負担化 | AAE7: 実際介護費/月 | AAF7: ←内、介護保険自己負担分 | AAG7: 実際一時介護費 | AAH7: 計 | AAI7: コスト計 | AAJ7: 利益 | AAK7: 持株数 | AAL7: 評価額 (相続税評価額) | AAM7: 評価額 (時価) | AAN7: 株数 | AAO7: 時価 | AAP7: 評価額 | AAQ7: 株数 | AAR7: 時価 | AAS7: 評価額 | AAT7: 株数 | AAU7: 時価 | AAV7: 評価額 | AAW7: 株数 | AAX7: 時価 | AAY7: 評価額 | AAZ7: 年数 | ABA7: 床面積 平米 | ABB7: 床面積 坪 | ABC7: 価格 (評価額) | ABD7: 床面積 平米 | ABE7: 価格 (相続税評価額) | ABF7: 価格 (時価) | ABG7: 床面積 平米 | ABH7: 価格 (相続税評価額) | ABI7: 価格 (時価) | ABJ7: 床面積 平米 | ABK7: 価格 (相続税評価額) | ABL7: 価格 (時価) | ABM7: 終身保険 | ABN7: 定期保険特約 | ABO7: 計 (相続税評価額) | ABP7: 計 (時価) | ABQ7: 貸付金 | ABR7: 現金 | ABT7: 計 | ABU7: 母 | ABV7: 相続税額 | ABX7: 自分 | ABY7: 相続税額 | ABZ7: 兄弟 | ACA7: 相続税額 | ACB7: 相続税計 | ACC7: 自分 | ACD7: 兄弟 | ACE7: 母 | ACF7: 一人当たり | ACG7: 今回相続 自分 | ACH7: A区 比率 一次計算 | ACI7: A区 比率 | ACJ7: キャッシュ | ACK7: 相続税額 | ACL7: 今回相続 兄弟 | ACM7: B区比率 | ACN7: キャッシュ | ACO7: 相続税額 | ACP7: 今回相続 相続税評価額 | ACQ7: 時価 | ACT7: 給与 | ACU7: 給与所得 一次計算 | ACV7: 給与所得 | ACW7: 地代 A区 | ACX7: 地代 B区 | ACY7: 不動産所得 | ACZ7: 売却益 | ADA7: 売却益 | ADB7: (老齢 基礎年金 基準) | ADC7: 老齢 基礎年金 | ADD7: かんぽ生命 年金 | ADE7: 計 | ADF7: (雑所得 基礎控除後) | ADG7: (雑所得) | ADH7: 遺族厚生年金 | ADI7: 配当金 | ADJ7: 現金相続 | ADK7: 収入計 | ADL7: 固定 資産税 | ADM7: 固定 資産税 | ADN7: 固定資産税 | ADO7: 売却手数料 | ADP7: 固定資産税 | ADQ7: 売却手数料 | ADR7: 健康保険 | ADS7: 介護保険 | ADT7: (所得税課税対象給与所得) | ADU7: 所得税 | ADV7: (住民税課税対象給与所得) | ADW7: 住民税 | ADX7: 生活費 | ADY7: 会社負担生活費 自己負担化 | ADZ7: 実際介護費/月 | AEA7: ←内、介護保険自己負担分 | AEB7: 実際一時介護費 | AEC7: 計 | AED7: コスト計 | AEE7: 利益 | AEF7: 持株数 | AEG7: 評価額 (相続税評価額) | AEH7: 評価額 (時価) | AEI7: 株数 | AEJ7: 時価 | AEK7: 評価額 | AEL7: 株数 | AEM7: 時価 | AEN7: 評価額 | AEO7: 株数 | AEP7: 時価 | AEQ7: 評価額 | AER7: 株数 | AES7: 時価 | AET7: 評価額 | AEU7: 年数 | AEV7: 床面積 平米 | AEW7: 床面積 坪 | AEX7: 価格 (時価) | AEY7: 床面積 平米 | AEZ7: 価格 (相続税評価額) | AFA7: 価格 (時価) | AFB7: 床面積 平米 | AFC7: 価格 (相続税評価額) | AFD7: 価格 (時価) | AFE7: 床面積 平米 | AFF7: 価格 (相続税評価額) | AFG7: 価格 (時価) | AFH7: 貸付金 | AFI7: 運用投入 | AFJ7: 中退共 | AFL7: 利益 | AFM7: 現金 | AFN7: 現金計 | AFO7: 資産計 時価 | AFP7: 計 | AFQ7: 自分 | AFR7: 相続税額 | AFT7: 相続税計 | AFU7: 自分 | AFV7: 評価額 （相続税評価額） | AFW7: 今回相続額 | AFX7: キャッシュアウト 自分 | AFY7: 相続税額 | AGB7: 地代 | AGC7: 配当金 | AGD7: 売却益 | AGE7: 固定資産税 | AGF7: 持株数 | AGG7: 株価 （相続税評価額) | AGH7: 株価 （時価) | AGI7: 床面積 平米 | AGJ7: 価格 (相続税評価額) | AGK7: 価格 (時価) | AGL7: 株数 | AGM7: 時価 | AGN7: 評価額 | AGO7: 株数 | AGP7: 時価 | AGQ7: 評価額 | AGR7: 株数 | AGS7: 時価 | AGT7: 評価額 | AGU7: 株数 | AGV7: 時価 | AGW7: 評価額 | AGX7: 生前贈与 | AGY7: 貸付金 | AGZ7: 現金 | AHA7: 預金
D8: F2019 | E8: 38 | F8: 35 | G8: 0 | H8: ="" ->  | I8: 68 | J8: 64 | K8: 1 | L8: =IF(AND(F8>=70,FY8+GT8<480000*AE9),1,0) -> 0 | O8: =IF(OR(H8<23,G8<23),1,0) -> 1 | P8: 1 | Q8: =IF(AND(E8<=B$12,E8<>""),1,0) -> 1 | R8: =IF(AND(F8<=B$13,F8<>""),1+IF(F8>=B$16,1,0),0) -> 1 | S8: =IF(AND(E8=B$24,B$24<>""),1,IF(S7=1,1,0)) -> 0 | T8: =IF(AND(E8=B$23,B$23<>""),1,IF(T7=1,1,0)) -> 0 | U8: =IF(AND(F8=B$26,B$26<>""),1,IF(U7=1,1,0)) -> 0 | V8: =IF(AND(F8=B$25,B$25<>""),1,IF(V7=1,1,0)) -> 0 | W8: =IF(AND(E8=B$48,B$48<>""),1,IF(AND(E8=B$47,B$47<>""),1,IF(W7=1,1,0))) -> 0 | X8: =IF(AB8=1,0,IF(AND(E8=B$57,B$57<>""),1,IF(X7=1,1,0))) -> 0 | Z8: =IF(AB8=1,1,IF(AND(E8=B$59,B$59<>""),1,IF(Z7=1,1,0))) -> 0 | AA8: =IF(AND(E8=B$49,B$49<>""),1,IF(AA7=1,1,0)) -> 0 | AB8: =IF(AND(E8=B$47,B$47<>""),1,IF(AB7=1,1,0)) -> 0 | AD8: 0 | AE8: 1 | AF8: 0 | AG8: 1 | AH8: 28.4 | AI8: =AI7 -> 0 | AJ8: =AJ7*AI8 ->  | AK8: 1 | AL8: =IF(Q8=1,(434250-13500)*12,0) -> 5049000 | AN8: =13500*12 -> 162000 | AO8: =IF(Q8=1,1051050*2,0) -> 2102100 | AP8: =IF(Q8=1,1000000,0) -> 1000000 | AQ8: =AP8*1% -> 10000 | AR8: =5671145+1000*12+2000*2 -> 5687145 | AS8: =AR8*(4%) -> 227485.8 | AV8: =IF(AA8=1,1051050*2,0) -> 0 | AW8: =UP8 -> 1800000 | AX8: =AW8+AL8+AN8+AO8+AS8+AQ8+AT8+AU8+AV8+AM8 -> 9350585.8 | AY8: =IF(AX8=0,0,IF(AX8<=1625000*$AE8,550000*$AE8,IF(AX8<=1800000*$AE8,AX8*40%-100000*$AE8,IF(AX8<=3600000*$AE8,AX8*30%+80000*$AE8,IF(AX8<=6600000*$AE8,AX8*20%+440000*$AE8,IF(AX8<=8500000*$AE8,AX8*10%+1100000*$AE8,1950000*$AE8)))))) -> 1950000 | AZ8: =IF(AX8>AY8,AX8-AY8,0) -> 7400585.8 | BA8: =IF(AND(B$40=1,I8="",ACI8>0),UB8*ACI8,0) -> 0 | BB8: 0 | BC8: =BA8+BB8 -> 0 | BD8: =LS8+LT8 -> 0 | BE8: =BC8-BD8 -> 0 | BF8: =IF(B$40=1,VU8/100000*PC8,0) -> 0 | BG8: 4706000 | BH8: =301000+532000 -> 833000 | BI8: 0.74 | BL8: =IF(Q8=1,(BG8+BH8)*BI8+BK8+(AL8+AN8)/12*BJ8,0) -> 4098860 | BM8: 0 | BN8: 16 | BO8: =IF(AND(Q8=0,Q7=0),BO7,IF(AND(Q8=0,Q7=1),BO7-BL7,IF(BN8<20,400000*BN8*AE8,8000000*AE8+700000*AE8*(BN8-20)))) -> 6400000 | BV8: =IF(AB8=1,(BP8+BQ8)*BR8+(AU8+AV8)/12*BS8,0) -> 0 | BW8: 0 | BY8: =IF(AND(Q8=0,Q7=0),BO7,IF(AND(Q8=0,Q7=1),BY7-(BP7+BQ7)*BR7-(AU7+AV7)/12*BS7,IF(BX8<20,400000*BX8*AE8,8000000*AE8+700000*AE8*(BX8-20)))) -> 0 | BZ8: =IF(Q8=1,240000,0) -> 240000 | CB8: 772000 | CC8: =CD8/CB8 -> 0.1784209845 | CD8: 137741 | CF8: 3 | CG8: =IF(Q8=1,CF8,CI6) -> 3 | CH8: =IF(Q8=0,CH6,ROUNDDOWN(IF(BL8<BO8,IF(BL8>8000000,(BL8-8000000)/700000+20,BL8/400000),BN8),0)) -> 10 | CI8: =IF(Q8=0,CI6,IF((BN8-CH8)>CG8,0,CG8-(BN8-CH8))) -> 0 | CL8: =IF(AND(BL8>0,BL9=0),IF(BL8>BO8,(BL8-BO8)/2,0),0)+IF(AND(BV8>0,BV9=0),IF(BV8>BY8,(BV8-BY8)/2,0),0)+IF(AND(CE8>0,CE8>CK8),CE8-CK8,0) -> 0 | CM8: =IF(B$40=1,VH8,0) -> 0 | CO8: =CM8+CN8 -> 0 | CQ8: =CO8-CP8-650000*AE8 -> -650000 | CR8: =IF(CQ8>0,CQ8,0) -> 0 | CT8: 0.364 | CU8: =1/CT$8*CT8*AG8 -> 1 | CY8: 0.253 | CZ8: =1/CY$8*CY8 -> 1 | DI8: =CX8+DF8+CS8+DB8+DH8 -> 0 | DJ8: =IF(E8<=64,IF(DI8<700000*CU8,0,IF(DI8<1299999*CU8,DI8-700000*CU8,IF(DI8<4099999*CU8,DI8*75%-375000*CU8,IF(DI8<7699999*CU8,DI8*85%-785000*CU8)))),0)+IF(E8>=65,IF(DI8<1200000*CU8,0,IF(DI8<3299999*CU8,DI8-1200000*CU8,IF(DI8<4099999*CU8,DI8*75%-375000*CU8,IF(DI8<7699999*CU8,DI8*85%-785000*CU8)))),0) -> 0 | DK8: =IF(DJ8>0,DJ8,0) -> 0 | DL8: =IF(RA8<0,RA8,0) ->  | DO8: 31639641 | DP8: 31639641 | DQ8: =DR8/DP8 -> 0.09093845281 | DR8: 2877260 | DS8: =DP8 -> 31639641 | DT8: =DU8-DS8 -> 2877260 | DU8: =DP8+DR8 -> 34516901 | DV8: =(DU8-DS8)/DS8 -> 0.09093845281 | DW8: =IF(AND($J6<>"",$J8="",B$40=1),AEX7,0) -> 0 | DZ8: =IF(AND($J7<>"",$J8="",B$40=1),(NY7+AFA7),0) -> 0 | EA8: =IF(AND($J7<>"",$J8="",B$40=1),(NY7+AFA7)*95%-MB8,0) -> 0 | EC8: =IF(OR(AND($AA7=0,$AA8=1),AB8=1),OG7/0.8*IF(AB8=1,100%-B$50,1),0) -> 0 | ED8: =IF(OR(AND($AA7=0,$AA8=1),AND(AB7=0,AB8=1)),OG7/0.8*IF(AB8=1,100%-B$50,1)*95%-MF8,0) -> 0 | EF8: =IF(AND($J6<>"",$J8=""),AFG7/0.8*IF(AB8=1,100%-B$50,1),0) -> 0 | EG8: =IF(OR(AND($W7=0,$W8=1),AND(AB7=0,AB8=1)),AFG7/0.8*IF(AB8=1,100%-B$50,1)*95%-MJ8,0) -> 0 | EH8: 3000000 | EI8: =AP8 -> 1000000 | EJ8: =AR8 -> 5687145 | EK8: =EH8+EI8+EJ8 -> 9687145 | EL8: =0.15%*0.8 -> 0.0012 | EM8: =EK8*EL8 -> 11624.574 | EN8: =IF(Q8=1,2000*12,0) -> 24000 | ES8: =15000*12 -> 180000 | EW8: =ES8+EU8+ET8+EV8 -> 180000 | EX8: =LG8*0.02/IF(AND(LG8>0,LG8<=ふるさと納税計算式!B$2),ふるさと納税計算式!D$2,IF(LG8<=ふるさと納税計算式!B$3,ふるさと納税計算式!D$3,IF(LG8<=ふるさと納税計算式!B$4,ふるさと納税計算式!D$4,IF(LG8<=ふるさと納税計算式!B$5,ふるさと納税計算式!D$5,IF(LG8<=ふるさと納税計算式!B$6,ふるさと納税計算式!D$6,IF(LG8<=ふるさと納税計算式!B$7,ふるさと納税計算式!D$7,ふるさと納税計算式!D$8))))))+2000*AE8 -> 149860.4942 | EY8: =IF(EX8*0.3-2000*AE8>0,EX8*0.3-2000*AE8,0) -> 42958.14826 | FA8: =1289831-HF8 -> 857345.5196 | FB8: =1289831-HG8 -> 857345.5196 | FC8: =FD8/FB8 -> 0.06845990649 | FD8: =118839-HI8 -> 58693.7941 | FG8: 0 | FI8: =FG8 -> 0 | FJ8: =IF(アセットアロケーション!$R25=10,アセットアロケーション!$H$10*$B$33*-1+(アセットアロケーション!$H$9+$AD8),IF(アセットアロケーション!$R25=5,アセットアロケーション!$H$10*($B$33-1)*-1+(アセットアロケーション!$H$9+$AD8),(アセットアロケーション!$H$9+$AD8)+アセットアロケーション!$H$10*$B$33/8+アセットアロケーション!$H$10*($B$33-1)/8)) -> -0.258304 | FK8: =(FI8-FG8+FG8/12)*FJ8+FG8/12*FJ8/12*11+FG8/12*FJ8/12*10+FG8/12*FJ8/12*9+FG8/12*FJ8/12*8+FG8/12*FJ8/12*7+FG8/12*FJ8/12*6+FG8/12*FJ8/12*5+FG8/12*FJ8/12*4+FG8/12*FJ8/12*3+FG8/12*FJ8/12*2+FG8/12*FJ8/12*1 -> 0 | FN8: =FL8-FH8 -> 0 | FQ8: =IF(B$40=0,0,IF(AND(I7<>"",I8=""),0,IF(AND(J7<>"",J8=""),2500000,0))) -> 0 | FR8: =IF(B$40=0,0,UX8/2) -> 0 | FS8: =IF(B$40=0,0,IF(AND($J7<>"",$J8=""),AFX7+NQ7,0)+IF(AND($I7<>"",$I8=""),ACJ7)) -> 0 | FU8: =267430*(12-9.5) -> 668575 | FV8: 0 | FW8: =FU8+FV8 -> 668575 | FX8: =IF(FW8=0,0,IF(FW8<=1625000*AE8,FW8-550000*AE8,IF(FW8<=1800000*AE8,FW8-(FW8*40%-100000*AE8),IF(FW8<=3600000*AE8,FW8-(FW8*30%+80000*AE8),IF(FW8<=6600000*AE8,FW8-(FW8*20%+440000*AE8),IF(FW8<=8500000*AE8,FW8-(FW8*10%+1100000*AE8),FW8-1950000*AE8)))))) -> 118575 | FY8: =IF(FX8>0,FX8,0) -> 118575 | GD8: =GC8*-1 -> 0 | GG8: =IF(アセットアロケーション!$R25=10,アセットアロケーション!$H$10*$B$33*-1+(アセットアロケーション!$H$9+$AD8),IF(アセットアロケーション!$R25=5,アセットアロケーション!$H$10*($B$33-1)*-1+(アセットアロケーション!$H$9+$AD8),(アセットアロケーション!$H$9+$AD8)+アセットアロケーション!$H$10*$B$33/8+アセットアロケーション!$H$10*($B$33-1)/8)) -> -0.258304 | GH8: =(GF8-GE8+GE8/12)*GG8+GE8/12*GG8/12*11+GE8/12*GG8/12*10+GE8/12*GG8/12*9+GE8/12*GG8/12*8+GE8/12*GG8/12*7+GE8/12*GG8/12*6+GE8/12*GG8/12*5+GE8/12*GG8/12*4+GE8/12*GG8/12*3+GE8/12*GG8/12*2+GE8/12*GG8/12*1 -> 0 | GI8: =IF(FZ8<20,400000*FZ8*AE8,8000000*AE8+700000*AE8*(FZ8-20)) -> 0 | GR8: =GL8+GQ8+GD8 -> 0 | GS8: =IF(F8<65,IF(GR8<700000*CU8,0,IF(GR8<1299999*CU8,GR8-700000*CU8,IF(GR8<4099999*CU8,GR8*75%-375000*CU8,IF(GR8<7699999*CU8,GR8*85%-785000*CU8)))),0)+IF(F8>64,IF(GR8<1200000*CU8,0,IF(GR8<3299999*CU8,GR8-1200000*CU8,IF(GR8<4099999*CU8,GR8*75%-375000*CU8,IF(GR8<7699999*CU8,GR8*85%-785000*CU8)))),0) -> 0 | GT8: =IF(GS8>0,GS8,0) -> 0 | GY8: =266100*9.5 -> 2527950 | GZ8: =GX8+GY8 -> 2527950 | HF8: 432485.4804 | HG8: 432485.4804 | HH8: =HI8/HG8 -> 0.1390687286 | HI8: 60145.2059 | HL8: =IF(AND(HR7<DU7,J8=""),GL8+GQ8+GD8-HE8-GB8-GC8+FW8-KZ8-LA8-LB8-LC8-LN8-LQ8+1100000*AE8,0) -> 0 | HM8: 0 | HN8: =アセットアロケーション!S25 -> -0.213906686 | HT8: 207030 | HU8: 863240 | HV8: 743634.5684 | HW8: 743634.5684 | HX8: 193883.4921 | HY8: =HX8-HT8 -> -13146.50794 | HZ8: 4 | IA8: =(HW8/HU8)^(1/HZ8)-1 -> -0.03659919804 | IB8: =IF(B$40=1,ZX8,0) -> 0 | ID8: 533328 | IE8: 533328 | IF8: =IG8/IE8 -> 0.2009513845 | IG8: 107173 | IK8: =IL8/IJ8 ->  | IM8: =IF(I8<=B$37,ZU8,0) -> 1000000 | IN8: =DR8+FW8+BM8+BW8+AX8+CO8+EW8+ER8+GZ8+HY8+CD8+EM8+FD8+IG8+IL8+GH8+CX8+DF8+DB8+GL8+GQ8+FK8+IM8+FS8+FO8+EB8+EE8+DY8+DW8+DZ8+EC8+EF8+FQ8+BZ8+BC8+HI8+HO8+FR8+EY8+HB8+IB8+HD8+DH8+BF8+FP8+EN8 -> 17273560.01 | IO8: =320733-13003-3300-5000+HY8/12-KS8/12+(EY8+2000)/12-JB8-JC8-JM8 -> 285580.97 | IP8: =IQ8 -> 89357 | IQ8: 89357 | IR8: 89357 | IS8: 16079 | IU8: 4114 | IV8: 15359 | IW8: 130000 | IX8: 29000 | IY8: 10014 | IZ8: 7500 | JA8: =IX8/12 -> 2416.666667 | JB8: =JA11*AE8*IF(E8<70,1,IF(OR(AND(LK7<1450000*AE8,F8<70),AND(LK7<1450000*AE8,F8>=70,LM7<1450000*AE8),AND(F8>=70,AX8+BC8+DI8+FW8+GR8<5200000*AE8),AND(F8<70,AX8+BC8+DI8<3830000*AE8)),1,IF(E8>=75,3,3/2))) -> 2416.666667 | JC8: =JA8*AE8*IF(F8<70,1,IF(OR(AND(LK7<1450000*AE8,LM7<1450000*AE8),AND(E8<>"",AX8+BC8+DI8+FW8+GR8<5200000*AE8),AND(E8="",FW8+GR8<3830000*AE8)),1,IF(F8>=75,3,3/2))) -> 2416.666667 | JD8: 78000 | JE8: 690000 | JF8: =JD8 -> 78000 | JG8: =IF(AND(E8<>"",$B$10-9<=E8),$JF8*$AE8,0) -> 0 | JH8: =IF(JG8=0,0,44000*$AE8) -> 0 | JI8: =IF($B$10-9=E8,$JE8*$AE8,0) -> 0 | JJ8: =IF($B$11-9<=F8,JF8*AE8,0) -> 0 | JK8: =IF(JJ8=0,0,44000*$AE8) -> 0 | JL8: =+IF($B$11-9=F8,JE8*AE8,0) -> 0 | JM8: =20000/12 -> 1666.666667 | JN8: =(IO8*12-IF(B$40=1,VG8,0)+JM8*12)*IF(AND(E8<>"",F8<>""),1,2/3)+IF(AND(B$17=1,F8<60),3300*12,0)+(IY8+JB8+JC8+JG8+JJ8)*12+JI8+JL8+IZ8 -> 3672239.64 | JO8: =60000*AE8*IF(AND(E8<>"",F8<>""),1,2/3) -> 60000 | JP8: 10000 | JQ8: 0 | KO8: =((JP8+JU8)*12+JQ8)*AE8+JS8*12 -> 120000 | KQ8: =(SUM(JW8:KM8)-IF(OR(F8>=B$16,F8>=B$13),JW8,0))*AE8 -> 0 | KS8: =KO8+KP8 -> 120000 | KT8: =KQ8+KR8 -> 0 | KU8: =(KS8+KT8+JN8+JO8)/12/AE8 -> 321019.97 | KV8: =IF(E8="",0,IF(AND(E8<70,OR(Q8=1,AC8=0)),(IF((AX8-AO8)/12>=650000*AE8,650000*AE8*12*18.3%/2,IF((AX8-AO8)/12<93000*AE8,88000*AE8*12*18.3%/2,(AX8-AO8)*18.3%/2))+AO8*18.3%/2),IF(E8<65,16540*12*AE8,0))) -> 855578.6007 | KW8: =IF(E8="",0,IF(E8<75,(AL8+AN8+AO8+AQ8+AS8)*34.6/1000+IF(AW8>1390000*12*AE8,1390000*12*AE8,AW8)*10.22%/2+IF(AND(AC8=1,Q8=0),(30824+10969)*AE8+(29083+10528)*AE8*(2+IF(G8<=24,1,0))*IF(AZ6+BE6+BF7+DK7<=430000*AE8,0.2,IF(AZ6+BE6+BF7+DK7<=(430000+290000*(2+IF(G8<=24,1,0)))*AE8,0.5,IF(AZ6+BE6+BF7+DK7<=(430000+290000*(2+IF(G8<=24,1,0)))*AE8,0.8)))+IF(AZ6+BE6+BF7+DK7>330000*AE8,(AZ6+BE6+BF7+DK7-330000*AE8)*(8.5%+3.04%),0),0),(AZ8+BE8+BF8+DK8-330000*AE8)*10.52%*(IF(AZ6+BE6+BF7+DK7+FY7+GT7<330000*AE8,0.3,IF(AZ6+BE6+BF7+DK7+FY7+GT7<(330000+285000*COUNTA(E8:F8))*AE8,0.5,IF(AZ6+BE6+BF7+DK7+FY7+GT7<(330000+520000*COUNTIF(E8:F8,">=75"))*AE8,0.8))))+54111*AE8*IF(OR(E8=75,E8=76),50%,1)))*AK8 -> 353230.2687 | KY8: =IF(E8="",0,IF(Q8=1,AX8-AW8,0)*3/1000) -> 22651.7574 | LG8: =IF(E8<>"",AZ8+CR8+DK8+BE8+BF8-IF((JB8+JC8+JS8+JT8+JH8+JK8)*12>100000*$AE8,(JB8+JC8+JS8+JT8+JH8+JK8)*12-100000*$AE8)-IF(AND(FY8+GT8<=480000*$AE8,F8<70),IF(AZ8+DK8+BE8+BF8<=9000000*$AE8,380000*$AE8,IF(AZ8+DK8+BE8+BF8<=9500000*$AE8,260000*$AE8,IF(AZ8+DK8+BE8+BF8<=10000000*$AE8,130000*$AE8,0))))-IF(AND(FY8+GT8>480000*$AE8,FY8+GT8<=950000*$AE8),IF(AZ8+DK8+BE8+BF8<=9000000*$AE8,380000*$AE8,IF(AZ8+DK8+BE8+BF8<=9500000*$AE8,260000*$AE8,IF(AZ8+DK8+BE8+BF8<=10000000*$AE8,130000*$AE8,0))))-IF(AND(FY8+GT8>950000*$AE8,FY8+GT8<=1000000*$AE8),IF(AZ8+DK8+BE8+BF8<=9000000*$AE8,360000*$AE8,IF(AZ8+DK8+BE8+BF8<=9500000*$AE8,240000*$AE8,IF(AZ8+DK8+BE8+BF8<=10000000*$AE8,120000*$AE8,0))))-IF(AND(FY8+GT8>1000000*$AE8,FY8+GT8<=1050000*$AE8),IF(AZ8+DK8+BE8+BF8<=9000000*$AE8,310000*$AE8,IF(AZ8+DK8+BE8+BF8<=9500000*$AE8,210000*$AE8,IF(AZ8+DK8+BE8+BF8<=10000000*$AE8,110000*$AE8,0))))-IF(AND(FY8+GT8>1050000*$AE8,FY8+GT8<=1100000*$AE8),IF(AZ8+DK8+BE8+BF8<=9000000*$AE8,260000*$AE8,IF(AZ8+DK8+BE8+BF8<=9500000*$AE8,180000*$AE8,IF(AZ8+DK8+BE8+BF8<=10000000*$AE8,90000*$AE8,0))))-IF(AND(FY8+GT8>1100000*$AE8,FY8+GT8<=1150000*$AE8),IF(AZ8+DK8+BE8+BF8<=9000000*$AE8,210000*$AE8,IF(AZ8+DK8+BE8+BF8<=9500000*$AE8,140000*$AE8,IF(AZ8+DK8+BE8+BF8<=10000000*$AE8,70000*$AE8,0))))-IF(AND(FY8+GT8>1150000*$AE8,FY8+GT8<=1200000*$AE8),IF(AZ8+DK8+BE8+BF8<=9000000*$AE8,160000*$AE8,IF(AZ8+DK8+BE8+BF8<=9500000*$AE8,110000*$AE8,IF(AZ8+DK8+BE8+BF8<=10000000*$AE8,60000*$AE8,0))))-IF(AND(FY8+GT8>1200000*$AE8,FY8+GT8<=1250000*$AE8),IF(AZ8+DK8+BE8+BF8<=9000000*$AE8,110000*$AE8,IF(AZ8+DK8+BE8+BF8<=9500000*$AE8,80000*$AE8,IF(AZ8+DK8+BE8+BF8<=10000000*$AE8,40000*$AE8,0))))-IF(AND(FY8+GT8>1250000*$AE8,FY8+GT8<=1300000*$AE8),IF(AZ8+DK8+BE8+BF8<=9000000*$AE8,60000*$AE8,IF(AZ8+DK8+BE8+BF8<=9500000*$AE8,40000*$AE8,IF(AZ8+DK8+BE8+BF8<=10000000*$AE8,20000*$AE8,0))))-IF(AND(FY8+GT8>1300000*$AE8,FY8+GT8<=1330000*$AE8),IF(AZ8+DK8+BE8+BF8<=9000000*$AE8,30000*$AE8,IF(AZ8+DK8+BE8+BF8<=9500000*$AE8,20000*$AE8,IF(AZ8+DK8+BE8+BF8<=10000000*$AE8,10000*$AE8,0))))-IF(AND(FY8+GT8<=480000*$AE8,F8>=70),IF(AZ8+DK8+BE8+BF8<=9000000*$AE8,480000*$AE8,IF(AZ8+DK8+BE8+BF8<=9500000*$AE8,320000*$AE8,IF(AZ8+DK8+BE8+BF8<=10000000*$AE8,160000*$AE8,0))))-IF(AND(AZ8<>0,DK8<>0,AZ8+DK8>100000*$AE8),IF(AZ8>100000*$AE8,100000*$AE8,AZ8)+IF(DK8>100000*$AE8,100000*$AE8,DK8)-100000*$AE8,0)-IF(O8=1,(IF(AX8>10000000*$AE8,10000000*$AE8,AX8)-8500000*$AE8)*10%,0)-380000*M8*$AE8-630000*N8*$AE8-CA8-IF(AND(F8<60,HT8>0),80000*$AE8,0)-KW8-KX8-KV8-KY8-LF8+IF((AZ8+DK8+BE8+BF8)=0,0,IF((AZ8+DK8+BE8+BF8)<=24000000*AE8,-480000*AE8,IF((AZ8+DK8+BE8+BF8)<=24500000*AE8,-320000*AE8,IF((AZ8+DK8+BE8+BF8)<=25000000*AE8,-160000*AE8))))-IF(BF8>0,IF(AZ8+BE8+BF8+DK8<10000000*AE8,BF8*10%,IF(AZ8+BE8+DK8>10000000*AE8,BF8*5%,(10000000*AE8-AZ8-BE8-DK8)*10%+(BF8-(10000000*AE8-AZ8-BE8-DK8))*5%))),0) -> 5144066.593 | LH8: =IF(E8<>"",IF(LG8<=0,0,IF(LG8<=1950000*$AE8,LG8*5%,IF(LG8<=3300000*$AE8,LG8*10%-97500*$AE8,IF(LG8<=6950000*$AE8,LG8*20%-427500*$AE8,IF(LG8<=9000000*$AE8,LG8*23%-636000*$AE8,IF(LG8<=18000000*$AE8,LG8*33%-1536000*$AE8,LG8*40%)))))),0) -> 601313.3186 | LJ8: =(LH8+LI8)*2.1% -> 12627.57969 | LK8: =IF(E8<>"",AZ8+CR8+DK8+BE8+BF8-IF((JB8+JC8+JS8+JT8+JH8+JK8)*12>100000*$AE8,(JB8+JC8+JS8+JT8+JH8+JK8)*12-100000*$AE8)-IF(AND(AZ8<>0,DK8<>0,AZ8+DK8>100000*$AE8),IF(AZ8>100000*$AE8,100000*$AE8,AZ8)+IF(DK8>100000*$AE8,100000*$AE8,DK8)-100000*$AE8,0)-IF(O8=1,(IF(AX8>10000000*$AE8,10000000*$AE8,AX8)-8500000*$AE8)*10%,0)-IF(AND(FY8+GT8<=380000*$AE8,F8<70),IF(AZ8+DK8+BE8+BF8<=9000000*$AE8,330000*$AE8,IF(AZ8+DK8+BE8+BF8<=9500000*$AE8,220000*$AE8,IF(AZ8+DK8+BE8+BF8<=10000000*$AE8,110000*$AE8,0))))-IF(AND(FY8+GT8>380000*$AE8,FY8+GT8<=850000*$AE8),IF(AZ8+DK8+BE8+BF8<=9000000*$AE8,330000*$AE8,IF(AZ8+DK8+BE8+BF8<=9500000*$AE8,220000*$AE8,IF(AZ8+DK8+BE8+BF8<=10000000*$AE8,110000*$AE8,0))))-IF(AND(FY8+GT8>850000*$AE8,FY8+GT8<=900000*$AE8),IF(AZ8+DK8+BE8+BF8<=9000000*$AE8,330000*$AE8,IF(AZ8+DK8+BE8+BF8<=9500000*$AE8,220000*$AE8,IF(AZ8+DK8+BE8+BF8<=10000000*$AE8,120000*$AE8,0))))-IF(AND(FY8+GT8>900000*$AE8,FY8+GT8<=950000*$AE8),IF(AZ8+DK8+BE8+BF8<=9000000*$AE8,310000*$AE8,IF(AZ8+DK8+BE8+BF8<=9500000*$AE8,210000*$AE8,IF(AZ8+DK8+BE8+BF8<=10000000*$AE8,110000*$AE8,0))))-IF(AND(FY8+GT8>950000*$AE8,FY8+GT8<=1000000*$AE8),IF(AZ8+DK8+BE8+BF8<=9000000*$AE8,260000*$AE8,IF(AZ8+DK8+BE8+BF8<=9500000*$AE8,180000*$AE8,IF(AZ8+DK8+BE8+BF8<=10000000*$AE8,90000*$AE8,0))))-IF(AND(FY8+GT8>1000000*$AE8,FY8+GT8<=1050000*$AE8),IF(AZ8+DK8+BE8+BF8<=9000000*$AE8,210000*$AE8,IF(AZ8+DK8+BE8+BF8<=9500000*$AE8,140000*$AE8,IF(AZ8+DK8+BE8+BF8<=10000000*$AE8,70000*$AE8,0))))-IF(AND(FY8+GT8>1050000*$AE8,FY8+GT8<=1100000*$AE8),IF(AZ8+DK8+BE8+BF8<=9000000*$AE8,160000*$AE8,IF(AZ8+DK8+BE8+BF8<=9500000*$AE8,110000*$AE8,IF(AZ8+DK8+BE8+BF8<=10000000*$AE8,60000*$AE8,0))))-IF(AND(FY8+GT8>1100000*$AE8,FY8+GT8<=1150000*$AE8),IF(AZ8+DK8+BE8+BF8<=9000000*$AE8,110000*$AE8,IF(AZ8+DK8+BE8+BF8<=9500000*$AE8,80000*$AE8,IF(AZ8+DK8+BE8+BF8<=10000000*$AE8,40000*$AE8,0))))-IF(AND(FY8+GT8>1150000*$AE8,FY8+GT8<=1200000*$AE8),IF(AZ8+DK8+BE8+BF8<=9000000*$AE8,60000*$AE8,IF(AZ8+DK8+BE8+BF8<=9500000*$AE8,40000*$AE8,IF(AZ8+DK8+BE8+BF8<=10000000*$AE8,20000*$AE8,0))))-IF(AND(FY8+GT8>1200000*$AE8,FY8+GT8<=1230000*$AE8),IF(AZ8+DK8+BE8+BF8<=9000000*$AE8,30000*$AE8,IF(AZ8+DK8+BE8+BF8<=9500000*$AE8,20000*$AE8,IF(AZ8+DK8+BE8+BF8<=10000000*$AE8,10000*$AE8,0))))-IF(AND(FY8+GT8<=380000*$AE8,F8>=70),IF(AZ8+DK8+BE8+BF8<=9000000*$AE8,380000*$AE8,IF(AZ8+DK8+BE8+BF8<=9500000*$AE8,260000*$AE8,IF(AZ8+DK8+BE8+BF8<=10000000*$AE8,130000*$AE8,0))))-330000*M8*$AE8-450000*N8*$AE8-CA8-IF(AND(F8<60,HT8>0),56000*$AE8,0)-KW8-KX8-KV8-KY8-LF8+IF((AZ8+DK8+BE8+BF8)=0,0,IF((AZ8+DK8+BE8+BF8)<=24000000*AE8,-430000*AE8,IF((AZ8+DK8+BE8+BF8)<=24500000*AE8,-290000*AE8,IF((AZ8+DK8+BE8+BF8)<=25000000*AE8,-150000*AE8))))-IF(BF8>0,IF(AZ8+BE8+BF8+DK8<10000000*AE8,BF8*2.8%,IF(AZ8+BE8+DK8>10000000*AE8,BF8*1.4%,(10000000*AE8-AZ8-BE8-DK8)*2.8%+(BF8-(10000000*AE8-AZ8-BE8-DK8))*1.4%))),0) -> 5268066.593 | LL8: =LL9 -> 532606.6593 | LM8: =(FY8+GT8)-GE8-KZ8-LA8-LB8-LC8-IF(AND(E8="",(JC8+JK8)*12>100000*$AE8),(JC8+JK8)*12-100000*$AE8)-IF(AND(FY8<>0,GT8<>0,FY8+GT8>100000*$AE8),IF(FY8>100000*$AE8,100000*$AE8,FY8)+IF(GT8>100000*$AE8,100000*$AE8,GT8))+IF((FY8+GT8)=0,0,IF((FY8+GT8)<=24000000*AE8,-480000*AE8,IF((FY8+GT8)<=24500000*AE8,-320000*AE8,IF((FY8+GT8)<=25000000*AE8,-160000*AE8)))) -> -361425 | LO8: =LN8*2.1% -> 0 | LP8: =(FY8+GT8)-GE8-KZ8-LA8-LB8-LC8-IF(AND(FY8<>0,GT8<>0,FY8+GT8>100000*$AE8),IF(FY8>100000*$AE8,100000*$AE8,FY8)+IF(GT8>100000*$AE8,100000*$AE8,GT8))-IF(AND(E8="",(JC8+JK8)*12>100000*$AE8),(JC8+JK8)*12-100000*$AE8)+IF((FY8+GT8)=0,0,IF((FY8+GT8)<=24000000*AE8,-430000*AE8,IF((FY8+GT8)<=24500000*AE8,-290000*AE8,IF((FY8+GT8)<=25000000*AE8,-150000*AE8)))) -> -311425 | LQ8: 240000 | LT8: 0 | LU8: =DX8*15.315% -> 0 | LV8: =LU8*2.1% -> 0 | LW8: =DX8*5% -> 0 | LY8: =EA8*15.315% -> 0 | LZ8: =LY8*2.1% -> 0 | MA8: =EA8*5% -> 0 | MB8: =IF(AND($J7<>"",$J8=""),(NY7+AFA7)*3%*1.1+60000*AE8*1.1,0) -> 0 | MC8: =ED8*15.315% -> 0 | MD8: =MC8*2.1% -> 0 | ME8: =ED8*5% -> 0 | MF8: =IF(OR(AND($AA7=0,$AA8=1),AND(AB7=0,AB8=1)),OG7/0.8*IF(AB8=1,100%-B$50,1)*3%*1.1+IF(OG7<>0,60000*AE8*1.1,0),0) -> 0 | MG8: =EG8*15.315% -> 0 | MH8: =MG8*2.1% -> 0 | MI8: =EG8*5% -> 0 | MJ8: =IF(OR(AND($W7=0,$W8=1),AND(AB7=0,AB8=1)),OP7/0.8*IF(AB8=1,100%-B$50,1)*3%*1.1+IF(OP7<>0,60000*AE8*1.1,0),0) -> 0 | MK8: =SUM(LU8:MJ8) -> 0 | MM8: =QP8 -> 0 | MN8: =EM8*15% -> 1743.6861 | MO8: =MN8*2.1% -> 36.6174081 | MP8: =EM8*5% -> 581.2287 | MQ8: =MN8+MO8+MP8 -> 2361.532208 | MU8: =KV8+KW8+JN8+KS8+KT8+MR8+KZ8+LF8+JO8+LR8+KX8+LB8+LA8+LN8+MK8+ML8+LH8+LL8+MT8+LS8+LT8+KY8+MM8+LC8+LQ8+MS8+LI8+LJ8+LO8+MQ8 -> 6472609.357 | MV8: =IN8-MU8 -> 10800950.66 | MW8: =MV8/AE8 -> 10800950.66 | MX8: =DP8+DR8 -> 34516901 | MY8: =HM8+HO8 -> 0 | MZ8: =FB8+FD8 -> 916039.3137 | NA8: =HG8+HI8 -> 492630.6863 | NB8: =FI8+FK8 -> 0 | NC8: =IE8+IG8 -> 640501 | ND8: =IJ8+IL8 -> 0 | NE8: =CB8+CD8 -> 909741 | NF8: =GF8+GH8 -> 0 | NG8: =SUM(MX8:NF8) -> 37475813 | NH8: =NG8/AE8 -> 37475813 | NI8: =IF(Q8=1,400000,0) -> 400000 | NJ8: =AP8 -> 1000000 | NK8: =AR8+AS8 -> 5914630.8 | NL8: =(3000000*2*AE8-NJ8)+((CA9+JN9+KS9+JO9+KV9+KZ9+LF9+KW9+KX9+KT9+LA9+LB9+LN9+LH9+LJ9+LL9+LS9+LT9+KY9+QQ9+LQ9+LC9+FA9+GE9+HF9+HT9+ID9+II9)-EY9-HB9-ER9-GZ9-EW9-FU9-FV9-CX9-DF9-DH9-DB9-GL9-GQ9-HD9-AX9-CO9-BC9-QO9)+((CA10+JN10+KS10+JO10+KV10+KZ10+LF10+KW10+KX10+LA10+LB10+KT10+LN10+LH10+LJ10+LL10+LS10+LT10+KY10+QQ10+LQ10+LC10+FA10+GE10+HF10+HT10+ID10+II10)-EY10-HB10-ER10-GZ10-EW10-FU10-FV10-CX10-DF10-DH10-DB10-GL10-GQ10-HD10-AX10-CO10-BC10-QO10) -> -3797759.951 | NM8: =IF(OR(Q8=1,I8=""),(3000000*AE8-NJ8)+(JN8+KS8+ID8+II8+HT8+HF8+GE8+FA8)/4+KT8,IF(OR(FC5<0,FC6<0,FC7<0),(IF(NN7+QZ8>NL8,NL8,(IF(NN7+QZ8>(3000000*AE8-NJ8),NN7+QZ8,(3000000*AE8-NJ8))))),NL8)) -> 3455607.16 | NN8: =IF(NM8<0,2000000*AE8+JN9/4+KS9/4+KT9,NM8) -> 3455607.16 | NO8: =HW8 -> 743634.5684 | NP8: =BL8+BV8 -> 4098860 | NQ8: =IB8 -> 0 | NR8: =NI8+NJ8+NK8+NN8+NO8+NP8+NQ8 -> 15612732.53 | NS8: =NR8/AE8 -> 15612732.53 | NT8: 121700 | NU8: 80000 | NV8: 76000 | NW8: =IF(J8<>"",451.9/30,0) -> 15.06333333 | NX8: =($NU8*0.99+$NV8*0.99*0.02)*NW8 -> 1215683.304 | NY8: =(($NU8*0.99+$NV8*0.99*0.02)*NW8)/0.8*B$46 -> 1307275.715 | NZ8: 825632 | OA8: =NZ8/NZ$8 -> 1 | OB8: 130000 | OC8: 330.57 | OD8: =(OC8*$OB8*0.99)/0.8*B$44*0.8 -> 46334538.58 | OF8: =(OE8*$OB8*0.99)*0.8 -> 0 | OG8: =(OE8*$OB8*0.99)/0.8*B$44*0.8 -> 0 | OH8: 825632 | OI8: =OH8/OH$8 -> 1 | OJ8: 130000 | OK8: 89000 | OL8: 749 | OM8: =(($OJ8*1+$OK8*0.94*0.08)*OL8)*IF(X8=1,0.8,IF(W8=1,1,0.8)) -> 81906325.76 | OQ8: =NY8+OG8+OP8 -> 1307275.715 | OR8: =OQ8/AE8 -> 1307275.715 | OS8: =IF(OR(AB8=0,AA8=0),364*AE8,188*AE8) -> 364 | OT8: =IF(OR(AB8=0,AA8=0),5.2*AE8,4.9*AE8) -> 5.2 | OU8: =IF(OR(AB8=0,AA8=0),36*AE8,22*AE8) -> 36 | OV8: =IF(OR(AB8=0,AA8=0),175*AE8,143*AE8) -> 175 | OW8: =VU8/(20000000/50) -> 0 | OX8: =IF(TL8-VK8>0,(TL8-VK8)/(20000000/50),0) -> 0 | OY8: =YB8/(20000000/50) -> 98.4463119 | OZ8: =IF(YC8/100000>0,YC8/100000,0) -> 855.0704047 | PA8: =IF(OS8*(OW8/OT8+OX8/OU8+OY8/OV8)/3*(20000000/100000/50)*0.5+OZ8*0.5>0,(OS8*(OW8/OT8+OX8/OU8+OY8/OV8)/3*(20000000/100000/50)*0.5+OZ8*0.5),2) -> 564.0474215 | PB8: =IF(YD8/100000>0,(YD8-UY9-VR9-VU9)/100000,0) -> 1563.060047 | PC8: =100000-AGF8-AEF8-AAK8 -> 36550.19064 | PD8: =PC8*OZ8 -> 31252986.3 | PE8: =PC8*PA8 -> 20616040.78 | PF8: =IF(B$40=1,PB8*PC8,0) -> 57130142.68 | PG8: =PF8/AE8 -> 57130142.68 | PH8: =QV8+QR8 -> 111525963.9 | PI8: =PH8/AE8 -> 111525963.9 | QO8: =PL8+PS8+QA8+QH8 -> 0 | QP8: =PO8+PV8+QD8+QK8 -> 0 | QQ8: =(PP8+PW8+QE8+QL8)*-1 -> 0 | QR8: =PR8+PY8+QG8+QN8 -> 0 | QS8: =QR8*-1/AE8 -> 0 | QT8: =QV8+QR8-MX8-MY8-NE8-NO8-NJ8-NK8-NP8-NN8-MZ8-NA8-NC8-NF8-NB8-NI8-PF8-NY8-OG8-OP8-ND8-NQ8 -> 5.820766091e-09 | QU8: =SUM(MX8:NF8)+SUM(NI8:NK8)+PF8+NY8+NN8+NO8+NP8+OP8+OG8-QR8+QT8+NQ8 -> 111525963.9 | QV8: =SUM(MX8:NF8)+SUM(NI8:NK8)+PF8+NY8+NN8+NO8+NP8 -> 111525963.9 | QW8: =QV8/AE8 -> 111525963.9 | QX8: =QV8-IF((DU8-DS8)>0,(DU8-DS8)*0.2,0)+(メイン!YD8-メイン!XC8-メイン!WX8*32000*AE8-メイン!WU8*3%-メイン!WM8*3%-(メイン!YD8-メイン!XC8-メイン!WX8*32000*AE8-メイン!WU8*3%-メイン!WM8*3%-メイン!YC8)*23%)*0.8/100000*PC8-PF8-NY8*3%-(NY8*95%-NY8*3%)*20%-(OG8*95%-OG8*3%)*20%-(OP8*95%-OP8*3%)*20% -> 81070452.7 | QY8: =QX8/AE8 -> 81070452.7 | QZ8: =ER8+FW8+GZ8+EW8-CA8-HT8+AX8+CO8+EM8+CX8+DF8+DB8+GL8+GQ8-KV8-KW8-JN8-KS8-JO8-KT8-KZ8-LF8+IF(NO8=0,NO7-NO8)+IF(NJ8=0,NJ7-NJ8)+IF(NI8=0,NI7-NI8)+IF(NK8=0,NK7-NK8)+IF(BL8=0,BL7-BL8)+IF(BV8=0,BV7-BV8)+IF(NQ8=0,NQ7-NQ8)-KY8-FA8-ID8-II8-EZ8-HE8-HF8+IM8+FS8+FR8-GE8-LR8+CE8+CS8-GB8-GC8-KX8-LB8-LA8-LN8-MK8+DW8+DZ8+EC8+EF8-ML8+FQ8-LH8-LL8-LS8-LT8+QO8-QQ8+BC8-LQ8-LC8-HL8+EY8+HB8+HD8+DH8+BF8+IF(H8=18,(IJ7+IL7))+IF(G8=18,(IE7+IG7))+FP8-LI8-LJ8-LO8-MQ8+EN8 ->  | RA8: =QZ8-(NN8-NN7) ->  | RB8: 111525963.9 | RC8: =QW8-RB8 -> 0 | RG8: =CB8+DP8+FB8+GF8+HG8+HM8+IE8+IJ8 -> 34234800 | RH8: =CD8+DR8+FD8+GH8+HI8+HO8+IG8+IL8 -> 3241013 | RI8: =RH8/RG8 -> 0.09467013098 | RJ8: 100 | RK8: =RJ8*RI8 -> 9.467013098 | RL8: =RJ8+RK8 -> 109.4670131 | RO8: =MV8/QV8 -> 0.09684696081 | RS8: =MX8+MZ8+NE8+NI8+NJ8+NK8+NN8+NP8+PE8+NX8+OF8+OO8+QT8+NQ8 -> 73043503.36 | RT8: =IF($E8<>"",(RS8-30000000*$AE8-6000000*$AE8*2)/2,0) -> 15521751.68 | RU8: =IF($E8<>"",(IF(RT8<30000000*$AE8,RT8*15%-500000*$AE8,IF(RT8<50000000*$AE8,RT8*20%-2000000*$AE8,IF(RT8<100000000*$AE8,RT8*30%-7000000*$AE8,IF(RT8<200000000*$AE8,RT8*40%-17000000*$AE8,IF(RT8<300000000*$AE8,RT8*45%-27000000*$AE8,IF(RT8<600000000*$AE8,RT8*50%-42000000*$AE8))))))),0) -> 1828262.752 | RV8: =RT8 -> 15521751.68 | RW8: =IF($E8<>"",(IF(RV8<30000000*$AE8,RV8*15%-500000*$AE8,IF(RV8<50000000*$AE8,RV8*20%-2000000*$AE8,IF(RV8<100000000*$AE8,RV8*30%-7000000*$AE8,IF(RV8<200000000*$AE8,RV8*40%-17000000*$AE8,IF(RV8<300000000*$AE8,RV8*45%-27000000*$AE8,IF(RV8<600000000*$AE8,RV8*50%-42000000*$AE8))))))),0) -> 1828262.752 | RX8: =RU8+RW8 -> 3656525.504 | RY8: =RS8/2 -> 36521751.68 | RZ8: =IF(RU8<0,0,IF((RY8-160000000*$AE8)/RS8*RX8>0,(RY8-160000000*$AE8)/RS8*RX8,0)) -> 0 | SA8: =RY8 -> 36521751.68 | SB8: =IF(RX8<0,0,SA8/RS8*RX8-IF(G8<20,(20-G8)*100000*AE8,0)) -> -171737.2479 | SE8: ～2021/5/E | SF8: 4 | SG8: 0 | SH8: =家賃下落率!C11 -> 0.022 | SI8: =AE8 -> 1 | SJ8: =IF(SG7<>SG8,メイン!OA8,SJ7) -> 1 | SK8: =IF($AA8=0,SUM(一括!$J$3:$J$40)*12*(100%-$SG8)*$SI8*SJ8,0) -> 27792000 | SL8: =IF(AB8=1,0,IF($AA8=0,SUM(一括!$D$3:$D$40)*12,0)) -> 25147200 | SM8: =SL8/SK8 -> 0.904835924 | SO8: =IF(AND($AA7=0,$AA8=1),WM7-WL7,0) -> 0 | SP8: =IF(AND($AA7=0,$AA8=1),WM7-SO8,0) -> 0 | SQ8: =IF($AA8=0,SUM(一括!$J$41:$J$42)*12,0) -> 2534400 | SR8: =IF(一括!AD5=1,0,IF($AA8=0,(一括!$D$41+一括!$J$42*95%)*12,0)) -> 2403249.6 | SS8: =SR8/SQ8 -> 0.9482518939 | SU8: =IF(OR(AND($AA7=0,$AA8=1),AB8=1),WU7*IF(AB8=1,100%-B$50,1)-WS7,0) -> 0 | SV8: =IF(OR(AND($AA7=0,$AA8=1),AB8=1),WU7-SU8,0) -> 0 | SW8: ～R4年2月28日 | SY8: 21124800 | TD8: =156425000 -> 156425000 | TI8: 0 | TJ8: =アセットアロケーション!S25 -> -0.213906686 | TK8: 0 | TL8: =SL8+SY8+SO8+SU8+TK8+SR8+TE8 -> 48675249.6 | TM8: =TL8+SN8+ST8+SV8+SP8+SZ8+TB8+TC8+TF8 -> 48675249.6 | TN8: =1980778 -> 1980778 | TO8: 5881943 | TP8: =622369*0.167 -> 103935.623 | TQ8: =1926936*0.167 -> 321798.312 | TR8: =8578210*0.167 -> 1432561.07 | TS8: =3223800*0.067 -> 215994.6 | TT8: =IF(AB8=1,0,TO8+TP8+TQ8+TR8+TS8) -> 7956232.605 | TU8: =VLOOKUP(XN8,返済明細!A:Z,9,FALSE) -> 5929307.289 | TV8: 270666 | TW8: 550000 | TX8: =IF(AND(AA7=0,AA8=1),WM7*3%,0) -> 0 | TY8: =IF(AND(AB7=0,AB8=1),(WR7+ABG7+OE7)/2/3.31*80000*AE8,0) -> 0 | TZ8: =IF(AB8=1,WL7-WL8,0) -> 0 | UA8: =47033+12055+50674 -> 109762 | UB8: 1680000 | UC8: =IF(OR(AND(AA7=0,AA8=1),AB8=1),WU7*IF(AB8=1,100%-B$50,1)*3%,0) -> 0 | UD8: =75420*(100%+メイン!AD8) -> 75420 | UE8: =8906682*0.057 -> 507680.874 | UF8: =12671582*0.057 -> 722280.174 | UG8: 82693 | UH8: =IF(W8=1,0,UE8+UF8+UG8) -> 1312654.048 | UI8: 3969309 | UL8: 6600000 | UM8: 4920000 | UN8: 236520 | UO8: =IF(YB5<0,0,IF(E8="",0,IF(I8<>"",1800000*AE8,B$53*AE8))) -> 1800000 | UP8: 1800000 | UQ8: =IF(E8="",B$53*AE8,IF(I8="",1800000*AE8,0)) -> 0 | UR8: 0 | US8: 1971000 | UT8: =IF(メイン!J8<>"",960000,0) -> 960000 | UU8: =30000*12 -> 360000 | UV8: =IF(AC8=1,0,IF(I8<75,ZI8,0)+IF(I8<65,ZJ8,0)+IF(J8<75,ADR8,0)+IF(J8<65,ADS8,0)+IF(AX8<>0,KV8*AW8/AX8)+IF(AND(E8<75,E8<>"",AX8<>0),KW8*AW8/AX8,0)+IF(AND(E8<65,E8<>"",AX8<>0),KX8*AW8/AX8,0)+IF(FW8<>0,KY8*AW8/AX8+KZ8*UQ8/FW8+IF(F8<75,LA8*UQ8/FW8,0)+IF(F8<65,LB8*UQ8/FW8)+LC8*UQ8/FW8,0)) -> 395423.8818 | UW8: 18500000 | UY8: =UW8+UX8 -> 18500000 | VD8: 1500000 | VE8: 198780 | VF8: 493154 | VI8: =22000*12+180000 -> 444000 | VJ8: =VD8+VI8+VG8+VF8+VE8+VH8 -> 2635934 | VK8: =TN8+TT8+TU8+TV8+TW8+TX8+UA8+UB8+UC8+UD8+UI8+UJ8+UK8+UL8+UM8+IF(UP8>UO8,UO8,UP8)+IF(UR8>UQ8,UQ8,UR8)+US8+UT8+UV8+VJ8+UN8+UH8+UU8+UY8+TZ8+TY8+VC8 -> 62213006.82 | VL8: =TL8-VK8+IF(VL7<0,VL7) -> -13537757.22 | VM8: =IF(VL8<0,0,IF(VL8>8000000,8000000*15%+(VL8-8000000)*23.2%,VL8*15%)) -> 0 | VN8: =VM8*10.3% -> 0 | VO8: =IF(VL8>0,VL8*7%,0) -> 0 | VP8: =IF(VL8>0,VL8*1%,0) -> 0 | VQ8: 20000 | VS8: =VR8/VL7 ->  | VT8: =TL8-VK8 -> -13537757.22 | VV8: =TN8+TU8+TW8+TX8+UA8+UB8+UC8+UD8+UJ8+UL8+UM8+UP8+US8+UT8+VJ8+VR8+UI8+UV8+UR8+UY8+TY8+VU8+TV8+UN8+UU8+VC8 -> 52944120.17 | VW8: =TM8-VV8 -> -4268870.571 | VX8: =YD8-VZ8-WA8-WM8-WU8-XC8-WE8-WC8-WD8-XF8-XJ8+(XS8+XZ8+XR8) -> 0 | VY8: =XQ8+VQ8+UU8+VI8+VG8+VD8+IF(AND(I6<>"",I8=""),UV7,UV8)+IF(AND(I6<>"",I8=""),UT7,UT8)+IF(AND(I6<>"",I8=""),US7,US8)+UR8+IF(AND(I6<>"",I8=""),UP7,UP8)+UM8+UL8+UI8+UN8+UD8+UB8+UA8+TW8+TN8+XW8-(SL8+SR8) -> 13632117.87 | VZ8: =13738189 -> 13738189 | WA8: =TI8+TK8 -> 0 | WB8: =VZ8+WA8+VX8 -> 13738189 | WC8: 11983000 | WD8: =14064450-WC8 -> 2081450 | WE8: =1311206+5638895 -> 6950101 | WF8: 8.5 | WG8: =246061317-TO8 -> 240179374 | WH8: =622369-TP8 -> 518433.377 | WI8: =1926936-TQ8 -> 1605137.688 | WJ8: =8578210-TR8 -> 7145648.93 | WK8: =1482955-TS8 -> 1266960.4 | WL8: =IF(AB8=1,0,WG8+WH8+WI8+WJ8+WK8) -> 250715554.4 | WM8: =IF(AB8=1,0,IF(AA8=0,(SL8+SR8-TN8-TV8-TW8-ZQ8-ADN8-LS8)/WN8-WU8-ABI8-AFD8-OG8-XF8,0)) -> 250164328.8 | WN8: =築年スプレッド!C9 -> 0.06721834363 | WO8: =(SK8+SQ8)/(WM8+WU8+ABI8+OG8) -> 0.08540908075 | WP8: =(SL8+SR8-TN8-UA8-ZQ8-TU8-TV8-TW8+SN8)/(WM8+WU8+ABI8+OG8) -> 0.05240323038 | WQ8: =(SL8+SR8-TN8-UA8-メイン!ZQ8-TU8-TV8-TW8-(SL8+SR8-TN8-UA8-メイン!ZQ8-TU8-TT8-TV8-TW8)*20%)/(WM8+WU8+メイン!ABI8+メイン!OG8) -> 0.04640405598 | WR8: 334.31 | WS8: 18600000 | WT8: =IF(AB8=1,0,(WR8*$OB8*0.99)) -> 43025697 | WU8: =IF(AB8=1,0,(WR8*$OB8*0.99)/0.8*B$44) -> 58573447.35 | WV8: 30 | WW8: 664.28 | WX8: =WW8/3.31 -> 200.6888218 | WY8: =8906682-UE8 -> 8399001.126 | WZ8: =12671582-UF8 -> 11949301.83 | XA8: =3969309-UG8 -> 3886616 | XB8: =IF(W8=1,0,WY8+WZ8+XA8) -> 24234918.95 | XC8: =IF(W8=1,0,(SY8-UD8-UN8-SY8*4%-ZS8-ADP8-UL8-IF(AND(I8="",J8<>""),UM8*ACM8,0))/XD8-(ABL8+OP8+AFG8+XJ8)) -> 43909113.76 | XD8: 0.06853919156 | XE8: =IF(OR(AB8=1,AA8=1),0,ABH8/0.8*0.2+AFC8/0.8*0.2+OF8/0.8*0.2) -> 8508871.8 | XF8: =IF(OR(AB8=1,AA8=1),0,ABI8/0.8*0.2+AFD8/0.8*0.2+OG8/0.8*0.9*0.2) -> 11583634.65 | XG8: 105000 | XH8: =339+260 -> 599 | XI8: =IF(XH8=0,0,((ABK8/0.8*0.2+OO8/0.8*0.2+AGJ8/0.8*0.2+AFF8/0.8*0.2)+(($OJ8*1+$XG8*0.94*0.08)*XH8)*0.2)) -> 36982852.96 | XJ8: =IF(XH8=0,0,(ABL8/0.8*B$45*0.2+OP8/0.8*B$45*0.2+AGK8/0.8*B$45*0.2+AFG8/0.8*B$45*0.2)+(($OJ8*1+$XG8*0.94*0.08)*XH8)/0.8*B$45*0.2) -> 42085438.68 | XK8: =YD8+YA8 -> 441068703.2 | XL8: =XK8/AE8 -> 441068703.2 | XM8: 22 | XN8: 111 | XP8: =VLOOKUP(XN8,返済明細!A:Z,10,FALSE)*-1 -> 13610354.59 | XQ8: =XO8+XP8 -> 13610354.59 | XR8: =VLOOKUP(XN8,返済明細!A:H,8,FALSE) -> 216242698.6 | XS8: =IF(W8=1,0,IF(メイン!J8="",0,18000000)) -> 18000000 | XT8: 16500000 | XX8: =XT8 -> 16500000 | XY8: =XZ8-XX8 -> 34000000 | XZ8: =34000000+XT8-XW8 -> 50500000 | YA8: =XZ8+XS8+XR8 -> 284742698.6 | YB8: =VX8+VZ8+WA8+WE8+WL8+WS8+XB8-(XR8+XS8+XZ8)+WC8-UY9-VC8/2-VR9/2-TN8-UA8 -> 39378524.76 | YC8: =VX8+VZ8+WA8+WC8+WE8+WL8+WT8+XB8+XE8+XI8-XR8-XS8-XZ8-UY9-TF9-VR9-VU9-(XI8+XE8+(WT8-WS8)-UY9-TF9)*37% -> 85507040.47 | YD8: =(WM8+WU8)-XR8-XS8-XZ8+XC8+VZ8+WA8+WE8+WC8+XF8+XJ8+WD8 -> 156326004.7 | YE8: =YD8/メイン!AE8 -> 156326004.7 | YF8: =VX8+VZ8+WA8+WM8+WU8+XC8-XR8-XS8-XZ8+WE8+WC8+XF8+XJ8+WD8 -> 156326004.7 | YG8: =TE8+SL8+SY8-TN8-TW8-TX8-UA8-UB8-UC8-UD8-UN8-UJ8-UL8-UM8-UP8-UR8-US8-UT8-VJ8-XQ8-IF(XM8=22,0,(XS7-XS8))+SR8-UI8-UV8-UY8-VC8+SO8+SP8+SU8+SV8-UU8+XT8-XW8-TY8-IF(XM8=22,0,VZ8-VZ7)-VR8-VU8+IF(AND(WE7>0,WE8=0),WE7,0)+IF(AND(WC7>0,WC8=0),WC7,0) -> 4820748.125 | YI8: =YD8/(YD8+XR8+XS8+XZ8) -> 0.3544255204 | YJ8: =(WM8+WU8+XC8)/YD8 -> 2.255842786 | YK8: =(VX8+VZ8+WA8)/XQ8 -> 1.009392438 | YL8: =VW8+UM8+UP8+UR8+US8+UT8+UV8+VD8+VG8-ZQ8-ZS8+UB8+VU8 -> 7979953.311 | YM8: =YL8/(YD8+メイン!ABI8+メイン!ABL8) -> 0.02669370155 | YS8: =IF(I8<>"",メイン!UB8,0) -> 1680000 | YT8: =IF(I8<>"",メイン!UM8+IF(X8=1,381610*12*AE8*IF(E8-B$57>1,1,0.5),0),0) -> 4920000 | YU8: =YS8+YT8-ZQ8-ZS8 -> 5622400 | YV8: =IF(I8<>"",メイン!US8,0) -> 1971000 | YW8: =IF(YV8=0,0,IF(YV8<=1625000*$AE8,YV8-550000*$AE8,IF(YV8<=1800000*$AE8,YV8-(YV8*40%-100000*$AE8),IF(YV8<=3600000*$AE8,YV8-(YV8*30%+80000*$AE8),IF(YV8<=6600000*$AE8,YV8-(YV8*20%+440000*$AE8),IF(YV8<=8500000*$AE8,YV8-(YV8*10%+1100000*$AE8),YV8-1950000*$AE8)))))) -> 1299700 | YX8: =IF(YW8<0,0,YW8) -> 1299700 | YY8: =IF(I8<>"",780100,0) -> 780100 | YZ8: =YY8*CU8 -> 780100 | ZA8: =352651*6-YY8 -> 1335806 | ZB8: =IF(I8<>"",ZA8*CZ8*AG8,0) -> 1335806 | ZC8: =YZ8+ZB8 -> 2115906 | ZD8: =IF(I8<65,IF(ZC8<700000*CU8,0,IF(ZC8<1299999*CU8,ZC8-700000*CU8,IF(ZC8<4099999*CU8,ZC8*75%-375000*CU8,IF(ZC8<7699999*CU8,ZC8*85%-785000*CU8)))),0)+IF(I8>64,IF(ZC8<1200000*CU8,0,IF(ZC8<3299999*CU8,ZC8-1200000*CU8,IF(ZC8<4099999*CU8,ZC8*75%-375000*CU8,IF(ZC8<7699999*CU8,ZC8*85%-785000*CU8)))),0) -> 915906 | ZE8: =IF(ZD8>0,ZD8,0) -> 915906 | ZF8: =IF(OR(AND(AB7=0,AB8=1),AND(AA7=0,AA8=1)),ABI7/0.8*IF(AB8=1,100%-B$50,1)-(ABI7/0.8*IF(AB8=1,100%-B$50,1)*95%-ABI7/0.8*IF(AB8=1,100%-B$50,1)*3%)*20%,0) -> 0 | ZG8: =IF(AND(Z7=0,Z8=1),ABL7/0.8*IF(AB8=1,100%-B$50,1)-(ABL7/0.8*IF(AB8=1,100%-B$50,1)*95%-ABL7/0.8*IF(AB8=1,100%-B$50,1)*3%)*20%,0) -> 0 | ZH8: =YS8+YT8+YV8+YZ8+ZG8+ZF8+ZB8 -> 10686906 | ZI8: =IF(I8="",0,IF(I8<75,IF(YV8>1390000*12*AE8,1390000*12*AE8,YV8)*10.22%/2,(YX8+ZE8+YU8-330000*AE8)*10.52%*(IF(YX8+ZE8+YU8+ACV8+ACY8+ADI8+ADG8<330000*AE8,0.3,IF(YX8+ZE8+YU8+ACV8+ACY8+ADI8+ADG8<(330000+285000*COUNTA(I8:J8))*AE8,0.5,IF(YX8+ZE8+YU8+ACV8+ACY8+ADI8+ADG8<(330000+520000*COUNTIF(I8:J8,">=75"))*AE8,0.8))))+54111*AE8*IF(OR(I8=75,I8=76),50%,1)))*AK8 -> 100718.1 | ZK8: =IF(I8<>"",YU8+YX8+ZE8-IF(AND(ACV8+ACY8+ADI8+ADG8<=480000*$AE8,J8<70),IF(YU8+YX8+ZE8<=9000000*$AE8,380000*$AE8,IF(YU8+YX8+ZE8<=9500000*$AE8,260000*$AE8,IF(YU8+YX8+ZE8<=10000000*$AE8,130000*$AE8,0))))-IF(AND(ACV8+ACY8+ADI8+ADG8>480000*$AE8,ACV8+ACY8+ADI8+ADG8<=950000*$AE8),IF(YU8+YX8+ZE8<=9000000*$AE8,380000*$AE8,IF(YU8+YX8+ZE8<=9500000*$AE8,260000*$AE8,IF(YU8+YX8+ZE8<=10000000*$AE8,130000*$AE8,0))))-IF(AND(ACV8+ACY8+ADI8+ADG8>950000*$AE8,ACV8+ACY8+ADI8+ADG8<=1000000*$AE8),IF(YU8+YX8+ZE8<=9000000*$AE8,360000*$AE8,IF(YU8+YX8+ZE8<=9500000*$AE8,240000*$AE8,IF(YU8+YX8+ZE8<=10000000*$AE8,120000*$AE8,0))))-IF(AND(ACV8+ACY8+ADI8+ADG8>1000000*$AE8,ACV8+ACY8+ADI8+ADG8<=1050000*$AE8),IF(YU8+YX8+ZE8<=9000000*$AE8,310000*$AE8,IF(YU8+YX8+ZE8<=9500000*$AE8,210000*$AE8,IF(YU8+YX8+ZE8<=10000000*$AE8,110000*$AE8,0))))-IF(AND(ACV8+ACY8+ADI8+ADG8>1050000*$AE8,ACV8+ACY8+ADI8+ADG8<=1100000*$AE8),IF(YU8+YX8+ZE8<=9000000*$AE8,260000*$AE8,IF(YU8+YX8+ZE8<=9500000*$AE8,180000*$AE8,IF(YU8+YX8+ZE8<=10000000*$AE8,90000*$AE8,0))))-IF(AND(ACV8+ACY8+ADG8>1100000*$AE8,ACV8+ACY8+ADI8+ADG8<=1150000*$AE8),IF(YU8+YX8+ZE8<=9000000*$AE8,210000*$AE8,IF(YU8+YX8+ZE8<=9500000*$AE8,140000*$AE8,IF(YU8+YX8+ZE8<=10000000*$AE8,70000*$AE8,0))))-IF(AND(ACV8+ACY8+ADI8+ADG8>1150000*$AE8,ACV8+ACY8+ADI8+ADG8<=1200000*$AE8),IF(YU8+YX8+ZE8<=9000000*$AE8,160000*$AE8,IF(YU8+YX8+ZE8<=9500000*$AE8,110000*$AE8,IF(YU8+YX8+ZE8<=10000000*$AE8,60000*$AE8,0))))-IF(AND(ACV8+ACY8+ADI8+ADG8>1200000*$AE8,ACV8+ACY8+ADI8+ADG8<=1250000*$AE8),IF(YU8+YX8+ZE8<=9000000*$AE8,110000*$AE8,IF(YU8+YX8+ZE8<=9500000*$AE8,80000*$AE8,IF(YU8+YX8+ZE8<=10000000*$AE8,40000*$AE8,0))))-IF(AND(ACV8+ACY8+ADI8+ADG8>1250000*$AE8,ACV8+ACY8+ADI8+ADG8<=1300000*$AE8),IF(YU8+YX8+ZE8<=9000000*$AE8,60000*$AE8,IF(YU8+YX8+ZE8<=9500000*$AE8,40000*$AE8,IF(YU8+YX8+ZE8<=10000000*$AE8,20000*$AE8,0))))-IF(AND(ACV8+ACY8+ADI8+ADG8>1300000*$AE8,ACV8+ACY8+ADI8+ADG8<=1330000*$AE8),IF(YU8+YX8+ZE8<=9000000*$AE8,30000*$AE8,IF(YU8+YX8+ZE8<=9500000*$AE8,20000*$AE8,IF(YU8+YX8+ZE8<=10000000*$AE8,10000*$AE8,0))))-IF(AND(ACV8+ACY8+ADI8+ADG8<=480000*$AE8,J8>=70),IF(YU8+YX8+ZE8<=9000000*$AE8,480000*$AE8,IF(YU8+YX8+ZE8<=9500000*$AE8,320000*$AE8,IF(YU8+YX8+ZE8<=10000000*$AE8,160000*$AE8,0))))-IF(AND(YX8<>0,ZE8<>0,YX8+ZE8>100000*$AE8),IF(YX8>100000*$AE8,100000*$AE8,YX8)+IF(ZE8>100000*$AE8,100000*$AE8,ZE8)-100000*$AE8,0)-ZI8-ZJ8+IF((YU8+YX8+ZE8)=0,0,IF((YU8+YX8+ZE8)<=24000000*AE8,-480000*AE8,IF((YU8+YX8+ZE8)<=24500000*AE8,-320000*AE8,IF((YU8+YX8+ZE8)<=25000000*AE8,-160000*AE8)))),0) -> 6777287.9 | ZL8: =IF(I8<>"",IF(ZK8<=0,0,IF(ZK8<=1950000*$AE8,ZK8*5%,IF(ZK8<=3300000*$AE8,ZK8*10%-97500*$AE8,IF(ZK8<=6950000*$AE8,ZK8*20%-427500*$AE8,IF(ZK8<=9000000*$AE8,ZK8*23%-636000*$AE8,IF(ZK8<=18000000*$AE8,ZK8*33%-1536000*$AE8,ZK8*40%)))))),0) -> 927957.58 | ZM8: =IF(I8<>"",YU8+YX8+ZE8-IF(AND(YX8<>0,ZE8<>0,YX8+ZE8>100000*$AE8),IF(YX8>100000*$AE8,100000*$AE8,YX8)+IF(ZE8>100000*$AE8,100000*$AE8,ZE8)-100000*$AE8,0)-IF(AND(ACV8+ACY8+ADI8+ADG8<=380000*$AE8,J8<70),IF(YU8+YX8+ZE8<=9000000*$AE8,330000*$AE8,IF(YU8+YX8+ZE8<=9500000*$AE8,220000*$AE8,IF(YU8+YX8+ZE8<=10000000*$AE8,110000*$AE8,0))))-IF(AND(ACV8+ACY8+ADI8+ADG8>380000*$AE8,ACV8+ACY8+ADG8<=850000*$AE8),IF(YU8+YX8+ZE8<=9000000*$AE8,330000*$AE8,IF(YU8+YX8+ZE8<=9500000*$AE8,220000*$AE8,IF(YU8+YX8+ZE8<=10000000*$AE8,110000*$AE8,0))))-IF(AND(ACV8+ACY8+ADI8+ADG8>850000*$AE8,ACV8+ACY8+ADI8+ADG8<=900000*$AE8),IF(YU8+YX8+ZE8<=9000000*$AE8,330000*$AE8,IF(YU8+YX8+ZE8<=9500000*$AE8,220000*$AE8,IF(YU8+YX8+ZE8<=10000000*$AE8,120000*$AE8,0))))-IF(AND(ACV8+ACY8+ADI8+ADG8>900000*$AE8,ACV8+ACY8+ADI8+ADG8<=950000*$AE8),IF(YU8+YX8+ZE8<=9000000*$AE8,310000*$AE8,IF(YU8+YX8+ZE8<=9500000*$AE8,210000*$AE8,IF(YU8+YX8+ZE8<=10000000*$AE8,110000*$AE8,0))))-IF(AND(ACV8+ACY8+ADI8+ADG8>950000*$AE8,ACV8+ACY8+ADI8+ADG8<=1000000*$AE8),IF(YU8+YX8+ZE8<=9000000*$AE8,260000*$AE8,IF(YU8+YX8+ZE8<=9500000*$AE8,180000*$AE8,IF(YU8+YX8+ZE8<=10000000*$AE8,90000*$AE8,0))))-IF(AND(ACV8+ACY8+ADI8+ADG8>1000000*$AE8,ACV8+ACY8+ADI8+ADG8<=1050000*$AE8),IF(YU8+YX8+ZE8<=9000000*$AE8,210000*$AE8,IF(YU8+YX8+ZE8<=9500000*$AE8,140000*$AE8,IF(YU8+YX8+ZE8<=10000000*$AE8,70000*$AE8,0))))-IF(AND(ACV8+ACY8+ADI8+ADG8>1050000*$AE8,ACV8+ACY8+ADI8+ADG8<=1100000*$AE8),IF(YU8+YX8+ZE8<=9000000*$AE8,160000*$AE8,IF(YU8+YX8+ZE8<=9500000*$AE8,110000*$AE8,IF(YU8+YX8+ZE8<=10000000*$AE8,60000*$AE8,0))))-IF(AND(ACV8+ACY8+ADI8+ADG8>1100000*$AE8,ACV8+ACY8+ADI8+ADG8<=1150000*$AE8),IF(YU8+YX8+ZE8<=9000000*$AE8,110000*$AE8,IF(YU8+YX8+ZE8<=9500000*$AE8,80000*$AE8,IF(YU8+YX8+ZE8<=10000000*$AE8,40000*$AE8,0))))-IF(AND(ACV8+ACY8+ADI8+ADG8>1150000*$AE8,ACV8+ACY8+ADI8+ADG8<=1200000*$AE8),IF(YU8+YX8+ZE8<=9000000*$AE8,60000*$AE8,IF(YU8+YX8+ZE8<=9500000*$AE8,40000*$AE8,IF(YU8+YX8+ZE8<=10000000*$AE8,20000*$AE8,0))))-IF(AND(ACV8+ACY8+ADI8+ADG8>1200000*$AE8,ACV8+ACY8+ADI8+ADG8<=1230000*$AE8),IF(YU8+YX8+ZE8<=9000000*$AE8,30000*$AE8,IF(YU8+YX8+ZE8<=9500000*$AE8,20000*$AE8,IF(YU8+YX8+ZE8<=10000000*$AE8,10000*$AE8,0))))-IF(AND(ACV8+ACY8+ADI8+ADG8<=380000*$AE8,J8>=70),IF(YU8+YX8+ZE8<=9000000*$AE8,380000*$AE8,IF(YU8+YX8+ZE8<=9500000*$AE8,260000*$AE8,IF(YU8+YX8+ZE8<=10000000*$AE8,130000*$AE8,0))))-ZI8-ZJ8+IF((YU8+YX8+ZE8)=0,0,IF((YU8+YX8+ZE8)<=24000000*AE8,-430000*AE8,IF((YU8+YX8+ZE8)<=24500000*AE8,-290000*AE8,IF((YU8+YX8+ZE8)<=25000000*AE8,-150000*AE8)))),0) -> 6877287.9 | ZN8: =IF(ZM8<=0,0,IF(I8<>"",ZM8*10%,0)) -> 687728.79 | ZO8: 145200 | ZP8: 142100 | ZQ8: 103000 | ZR8: =IF(OR(AND(AB7=0,AB8=1),AND(AA7=0,AA8=1)),ABI7/0.8*IF(AB8=1,100%-B$50,1)*3%,0) -> 0 | ZS8: 874600 | ZT8: =IF(AND(Z7=0,Z8=1),ABL7/0.8*IF(AB8=1,100%-B$50,1)*3%,0) -> 0 | ZU8: =IF(AND($I8<>"",AB8=0),1000000*$AE8,0) -> 1000000 | ZV8: 0 | ZW8: =IF(AND($I8<>"",AB8=0),1000000*$AE8,0) -> 1000000 | ZX8: 0 | ZY8: =SUM(ZV8:ZW8) -> 1000000 | ZZ8: 0 | AAA8: 0 | AAD8: =IF(AND(I8<>"",AC8=1),(VD$8+VE$8)*AE8,0) -> 0 | AAE8: =IF(AND(I8<>"",$B$37-9<=I8),$JF8*$AE8,0) -> 0 | AAF8: =IF(AAE8=0,0,44000*$AE8) -> 0 | AAG8: =IF($B$37-9=I8,$JE8*$AE8,0) -> 0 | AAH8: =ZZ8+AAA8+AAC8+AAB8+AAD8+AAE8*12+AAG8 -> 0 | AAI8: =ZI8+ZJ8+ZL8+ZN8+ZO8+ZP8+ZQ8+ZR8+ZS8+ZT8+AAH8+ZU8+ZV8+ZX8+ZW8 -> 4981304.47 | AAJ8: =ZH8-AAI8 -> 5705601.53 | AAK8: =6900-1700 -> 5200 | AAL8: =$PA8*AAK8 -> 2933046.592 | AAM8: =$PB8*AAK8 -> 8127912.242 | AAN8: 1000 | AAO8: 6979 | AAP8: =AAN8*AAO8 -> 6979000 | AAQ8: 2000 | AAR8: 256 | AAS8: =AAQ8*AAR8 -> 512000 | AAT8: 7930843 | AAU8: 2656 | AAV8: =AAT8*AAU8/10000 -> 2106431.901 | AAW8: 30000 | AAX8: =0.9906*105.58 -> 104.587548 | AAY8: =AAW8*AAX8 -> 3137626.44 | AAZ8: =E8+2 -> 40 | ABA8: 200.55 | ABB8: =ABA8/3.31 -> 60.58912387 | ABC8: 8547233 | ABD8: =451.9/30*29 -> 436.8366667 | ABE8: =IF(ABD8<>0,ABF8*0.8/ABD8*330*0.2+ABF8*0.8/ABD8*(ABD8-330),0) -> 11999743.85 | ABF8: =(($NU8*0.99+$NV8*0.99*0.02)*ABD8)/0.8*B$46 -> 37910995.73 | ABG8: 330.57 | ABH8: =(ABG8*$OB8*0.99)*0.8 -> 34035487.2 | ABI8: =(ABG8*$OB8*0.99)/0.8*$B$44*0.8 -> 46334538.58 | ABJ8: 748.5 | ABK8: =(($OJ8*1+$OK8*0.94*0.08)*ABJ8)*IF(X8=1,0.8,IF(W8=1,1,0.8)) -> 81851648.64 | ABL8: =(($OJ8*1+$OK8*0.94*0.08)*ABJ8)/0.8*B$45*IF(W8=1,1,0.8) -> 96284632.86 | ABM8: 4516472 | ABN8: 6231890 | ABO8: =IF(ABM8+ABN8-5000000*3*AE8<0,0) -> 0 | ABP8: =ABM8+ABN8 -> 10748362 | ABQ8: =IF(I8<>"",IF(AB8=1,ABQ7,XZ8-AFH8-NQ8),0) -> 50500000 | ABS8: =AAM8+AAP8+AAS8+ABC8+ABF8+ABI8+ABL8+ABQ8+AAV8+AAY8+ABP8+ABR8 -> 271188732.8 | ABT8: =IF(I8<>"",(AAL8+AAP8+AAS8+ABC8+ABE8+ABH8+ABK8+ABQ8+AAV8+AAY8+ABR8),0) -> 202602217.6 | ABU8: =IF($I8<>"",(ABT8+ZY8-30000000*$AE8-6000000*$AE8*3)/2,0) -> 77801108.81 | ABV8: =IF($I8<>"",(IF(ABU8<30000000*$AE8,ABU8*15%-500000*$AE8,IF(ABU8<50000000*$AE8,ABU8*20%-2000000*$AE8,IF(ABU8<100000000*$AE8,ABU8*30%-7000000*$AE8)))),0) -> 16340332.64 | ABW8: =ABV8/(ABT8/2) -> 0.1613045784 | ABX8: =ABU8/2 -> 38900554.41 | ABY8: =IF(I8<>"",(IF(ABX8<30000000*$AE8,ABX8*15%-500000*$AE8,IF(ABX8<50000000*$AE8,ABX8*20%-2000000*$AE8,IF(ABX8<100000000*$AE8,ABX8*30%-7000000*$AE8)))),0) -> 5780110.881 | ABZ8: =ABU8/2 -> 38900554.41 | ACA8: =IF(I8<>"",(IF(ABZ8<30000000*$AE8,ABZ8*15%-500000*$AE8,IF(ABZ8<50000000*$AE8,ABZ8*20%-2000000*$AE8,IF(ABZ8<100000000*$AE8,ABZ8*30%-7000000*$AE8)))),0) -> 5780110.881 | ACB8: =ABV8+ABY8+ACA8 -> 27900554.41 | ACC8: =(PC8-(AEF$8-AEF8))*(IF(B$41=1,0,IF(B$41=2,PA8,IF(B$41=3,OZ8,IF(B$41=4,PB8))))) -> 31252986.3 | ACD8: =(AGF8*(IF(B$41=1,0,IF(B$41=2,PA8,IF(B$41=3,OZ8,IF(B$41=4,PB8))))))+IF(B$41=1,0,AGX8) -> 28291253.08 | ACE8: =(AEF$8*(IF(B$41=1,0,IF(B$41=2,PA8,IF(B$41=3,OZ8,IF(B$41=4,PB8))))))+IF(B$41=1,0,AFH8) -> 28516434.99 | ACF8: =IF(I8="",0,(IF(B$41=4,ABS8,0)+IF(B$41<>4,ABT8,0)+ACC8+ACD8+ACE8)/4) -> 72665723 | ACG8: =IF(I8<>"",ACF8-ACC8,0) -> 41412736.7 | ACH8: =IF(OR(AB8=1,AA8=1),0,IF($I8="",ACI7,ACG8/IF($B$41=4,ABI8,ABH8))) -> 1.216751694 | ACI8: =IF(ACH8>100%,100%,ACH8) -> 1 | ACJ8: =IF(OR(ACH8>100%,ACH8=0%),IF($B$41=4,ACG8-ABI8,ACG8-ABH8),0) -> 7377249.498 | ACK8: =IF(ACG8>0,IF(ACI8>0,ABH8*ACI8,ACG8)/ABT8*ACB8,0) -> 4687061.048 | ACL8: =IF(I8<>"",ACF8-ACD8,0) -> 44374469.92 | ACM8: =IF(AND(W8=1,X8=0),0,IF(J8="",100%,IF($I8="",ACM7,ACL8/IF($B$41=4,ABL8,ABK8)))) -> 0.5421328789 | ACN8: =IF(ACM8=0%,ACL8,0) -> 0 | ACO8: =IF(ACL8>0,IF(ACM8>0,ABK8*ACM8,ACL8)/ABT8*ACB8,0) -> 6110852.718 | ACP8: =IF(I8="",0,AAP8+AAS8+ABC8+ABE8+ABQ8+AAV8+AAY8+ABK8*IF(AND(ACM8<100%,ACM8>0%),(100%-ACM8),0)+ABH8*IF(AND(ACI8<100%,ACI8>0%),(100%-ACI8),0)+ABR8-IF(ACI8=0%,ACG8,0)-IF(ACM8=0%,ACL8,0)) -> 121259213.9 | ACQ8: =IF(I8="",0,AAP8+AAS8+ABC8+ABF8+ABQ8+AAV8+AAY8+ABL8*IF(AND(ACM8<100%,ACM8>0%),(100%-ACM8),0)+ABI8*IF(AND(ACI8<100%,ACI8>0%),(100%-ACI8),0)+ABP8+AEF$8*PB8+(ABR8-IF(ACI8=0%,ACG8,0)-IF(ACM8=0%,ACL8,0))) -> 216654971.3 | ACT8: =メイン!UT8 -> 960000 | ACU8: =IF(ACT8=0,0,IF(ACT8<=1625000*$AE8,ACT8-550000*$AE8,IF(ACT8<=1800000*$AE8,ACT8-(ACT8*40%-100000*$AE8),IF(ACT8<=3600000*$AE8,ACT8-(ACT8*30%+80000*$AE8),IF(ACT8<=6600000*$AE8,ACT8-(ACT8*20%+440000*$AE8),IF(ACT8<=8500000*$AE8,ACT8-(ACT8*10%+1100000*$AE8),ACT8-1950000*$AE8)))))) -> 410000 | ACV8: =IF(ACU8<0,0,ACU8) -> 410000 | ACW8: =IF(I8="",UB8*(IF(ACI8<0,100%,(100%-ACI8))),0) -> 0 | ACX8: =IF(I8="",IF(AND(ACM8>0,ACM8<100%),UM8*(100%-ACM8)+IF(X8=1,388831*12*AE8*IF(E8-B$57>=1,1,0.5)*(100%-ACM8)),0),0) -> 0 | ACY8: =ACW8+ACX8-ADN8-ADP8 -> 0 | ACZ8: =IF(OR(AND(AB7=0,AB8=1),AND(AA7=0,AA8=1)),AFD7/0.8*IF(AB8=1,100%-B$50,1)-(AFD7/0.8*IF(AB8=1,100%-B$50,1)*95%-AFD7/0.8*IF(AB8=1,100%-B$50,1)*3%)*20%,0) -> 0 | ADA8: =IF(AND(Z7=0,Z8=1),AFG7/0.8*IF(AB8=1,100%-B$50,1)-(AFG7/0.8*IF(AB8=1,100%-B$50,1)*95%-AFG7/0.8*IF(AB8=1,100%-B$50,1)*3%)*20%,0) -> 0 | ADB8: =IF(GI8<>"",780100,0) -> 780100 | ADC8: =IF(J8<>"",ADB8*CU8,0) -> 780100 | ADD8: =300000*(103%)*(103%)*(103%)*(103%) -> 337652.643 | ADE8: =ADC8+ADD8 -> 1117752.643 | ADF8: =IF(ADE8-380000>0,ADE8-380000,0) -> 737752.643 | ADG8: =IF(メイン!XS8<65,IF(ADF8<700000,0,IF(ADF8<1299999,ADF8-700000,IF(ADF8<4099999,ADF8*75%-375000,IF(ADF8<7699999,ADF8*85%-785000)))),0)+IF(メイン!XS8>64,IF(ADF8<1200000,0,IF(ADF8<3299999,ADF8-1200000,IF(ADF8<4099999,ADF8*75%-375000,IF(ADF8<7699999,ADF8*85%-785000)))),0) -> 0 | ADH8: =IF(AND(I8="",J8<>""),ZA8*CZ8*AG8*3/4,0) -> 0 | ADI8: =VU8/100000*AEF8 -> 0 | ADJ8: =IF(AND(I8="",I7<>""),ABR7+ABP7-ACJ7-ACN7,0) -> 0 | ADK8: =ACT8+ACW8+ACX8+ACZ8+ADA8+ADE8+ADI8+ADH8 -> 2077752.643 | ADN8: =IF(OR(AB8=1,AA8=1),0,(IF($J8="",0,IF($I8="",ZQ7*(OB8/OB7)*IF(ACI8<0,100%,(100%-ACI8))+ADN7*(OB8/OB7),0)))) -> 0 | ADO8: =IF(OR(AND(AB7=0,AB8=1),AND(AA7=0,AA8=1)),AFD7/0.8*IF(AB8=1,100%-B$50,1)*3%,0) -> 0 | ADP8: =IF(Z8=1,0,(IF($J8="",0,IF($I8="",IF(AND(ACM7>0,ACM7<100%),ZS7*(OJ8/OJ7)*(100%-ACM7))+ADP7*(OJ8/OJ7),0)))) -> 0 | ADQ8: =IF(AND(Z7=0,Z8=1),AFG7/0.8*IF(AB8=1,100%-B$50,1)*3%,0) -> 0 | ADR8: =IF(J8="",0,IF(OR(AND(I8>=75,J8<75),AND(ACT8+ACW8+ACX8+ADE8>1800000*AE8,J8>=60,J8<75,I8<>""),AND(ACT8+ACW8+ACX8+ADE8>1300000*AE8,J8<60,I8<>"")),IF(ACT8>1390000*AE8*12,1390000*AE8*12,ACT8)*10.22%/2,IF(AND(I8<75,I8<>""),0,IF(AND(I8>=75,J8<75),ACT8*10.22%/2,(ACV7+ACY7+ADI7+ADG7-330000*AE8)*10.52%*(IF(YU7+YX7+ZE7+ACV7+ACY7+ADI7+ADG7<330000*AE8,0.3,IF(YU7+YX7+ZE7+ACV7+ACY7+ADI7+ADG7<(330000+285000*COUNTA(I8:J8))*AE8,0.5,IF(YU7+YX7+ZE7+ACV7+ACY7+ADI7+ADG7<(330000+520000*COUNTIF(I8:J8,">=75"))*AE8,0.8))))+54111*AE8*IF(OR(J8=75,J8=76),50%,1)))))*AK8 -> 49056 | ADS8: =IF(J8="",0,IF(OR(AND(I8>=75,J8<65),AND(ACT8+ACW8+ACX8+ADE8>1800000*AE8,J8>=60,J8<65,I8<>""),AND(ACT8+ACW8+ACX8+ADE8>1300000*AE8,J8<60,I8<>"")),IF(ACT8>1390000*AE8*12,1390000*AE8*12,ACT8)*(12.01%-10.22%)/2,IF(OR(I8="",AND(I8<>"",J8>=65)),95124*AE8*IF(ADW8=0,IF(ZN8=0,IF(ACV7+ACY7+ADI7+ADE7<800000*AE8,0.5,IF(ACV7+ACY7+ADI7+ADE7<1200000*AE8,0.65,0.75)),IF(ACV7+ACY7+ADI7+ADE7<800000*AE8,0.85,1)),IF(ACV7+ACY7+ADI7+ADG7<=1250000*AE8,1.1,IF(ACV7+ACY7+ADI7+ADG7<2000000*AE8,1.25,IF(ACV7+ACY7+ADI7+ADG7<4000000*AE8,1.5,IF(ACV7+ACY7+ADI7+ADG7<7000000*AE8,1.75,2))))),0)))*AK8 -> 8592 | ADT8: =(ACV8+ACY8+ADI8+ADG8)-ADR8-ADS8-IF(AND(ACV8<>0,ADG8<>0,ACV8+ADG8>100000*$AE8),IF(ACV8>100000*$AE8,100000*$AE8,ACV8)+IF(ADG8>100000*$AE8,100000*$AE8,ADG8))+IF((ACV8+ACY8+ADI8+ADG8)=0,0,IF((ACV8+ACY8+ADI8+ADG8)<=24000000*AE8,-480000*AE8,IF((ACV8+ACY8+ADI8+ADG8)<=24500000*AE8,-320000*AE8,IF((ACV8+ACY8+ADI8+ADG8)<=25000000*AE8,-160000*AE8))))-IF(ADI8>0,IF(ACV8+ACY8+ADG8+ADI8<10000000*AE8,ADI8*10%,IF(ACV8+ACY8+ADG8>10000000*AE8,ADI8*5%,(10000000*AE8-ACV8-ACY8-ADG8)*10%+(ADI8-(10000000*AE8-ACV8-ACY8-ADG8))*5%))) -> -127648 | ADU8: =IF(ADT8<=0,0,IF(ADT8<=1950000*$AE8,ADT8*5%,IF(ADT8<=3300000*$AE8,ADT8*10%-97500*$AE8,IF(ADT8<=6950000*$AE8,ADT8*20%-427500*$AE8,IF(ADT8<=9000000*$AE8,ADT8*23%-636000*$AE8,IF(ADT8<=18000000*$AE8,ADT8*33%-1536000*$AE8,ADT8*40%)))))) -> 0 | ADV8: =(ACV8+ACY8+ADI8+ADG8)-ADR8-ADS8-IF(AND(ACV8<>0,ADG8<>0,ACV8+ADG8>100000*$AE8),IF(ACV8>100000*$AE8,100000*$AE8,ACV8)+IF(ADG8>100000*$AE8,100000*$AE8,ADG8))+IF((ACV8+ACY8+ADI8+ADG8)=0,0,IF((ACV8+ACY8+ADI8+ADG8)<=24000000*AE8,-430000*AE8,IF((ACV8+ACY8+ADI8+ADG8)<=24500000*AE8,-290000*AE8,IF((ACV8+ACY8+ADI8+ADG8)<=25000000*AE8,-150000*AE8))))-IF(ADI8>0,IF(ACV8+ACY8+ADG8+ADI8<10000000*AE8,ADI8*2.8%,IF(ACV8+ACY8+ADG8>10000000*AE8,ADI8*1.4%,(10000000*AE8-ACV8-ACY8-ADG8)*2.8%+(ADI8-(10000000*AE8-ACV8-ACY8-ADG8))*1.4%))) -> -77648 | ADW8: 0 | ADX8: =IF(J8="",0,300000*12*AE8*IF(I8="",2/3,1)) -> 3600000 | ADY8: =IF(AND(J8<>"",AC8=1,I8=""),(VD$8+VE$8)*2/3*AE8,0) -> 0 | ADZ8: =IF(AND(J8<>"",$B$38-9<=J8),$JF8*$AE8,0) -> 0 | AEA8: =IF(ADZ8=0,0,44000*$AE8) -> 0 | AEB8: =IF($B$38-9=J8,$JE8*$AE8,0) -> 0 | AEC8: =ADX8+ADY8+ADZ8*12+AEB8 -> 3600000 | AED8: =ADN8+ADO8+ADP8+ADQ8+ADR8+ADS8+ADU8+ADW8+AEC8+ADL8+ADM8 -> 3657648 | AEE8: =ADK8-AED8 -> -1579895.357 | AEF8: =33600-(1100000/PA8-1700) -> 33349.80936 | AEG8: =$PA8*AEF8 -> 18810873.98 | AEH8: =$PB8*AEF8 -> 52127754.58 | AEI8: =IF(AND($I8="",$I6<>"",$J8<>""),AAN7,IF(AND($I8="",$J8<>""),AEI7,0)) -> 0 | AEJ8: =IF(AND($I8="",$I6<>"",$J8<>""),AAO7*(100%+$AD8),IF(AND($I8="",$J8<>""),AEJ7*(100%+$AD8),0)) -> 0 | AEK8: =AEI8*AEJ8 -> 0 | AEL8: =IF(AND($I8="",$I6<>"",$J8<>""),AAQ7,IF(AND($I8="",$J8<>""),AEL7,0)) -> 0 | AEM8: =IF(AND($I8="",$I6<>"",$J8<>""),AAR7*(100%+$AD8),IF(AND($I8="",$J8<>""),AEM7*(100%+$AD8),0)) -> 0 | AEN8: =AEL8*AEM8 -> 0 | AEO8: =IF(AND($I8="",$I6<>"",$J8<>""),AAT7,IF(AND($I8="",$J8<>""),AEO7,0)) -> 0 | AEP8: =IF(AND($I8="",$I6<>"",$J8<>""),AAU7*(100%+$AD8),IF(AND($I8="",$J8<>""),AEP7*(100%+$AD8),0)) -> 0 | AEQ8: =AEO8*AEP8/10000 -> 0 | AER8: =IF(AND($I8="",$I6<>"",$J8<>""),AAW7,IF(AND($I8="",$J8<>""),AER7,0)) -> 0 | AES8: =IF(AND($I8="",$I6<>"",$J8<>""),AAX7*(100%+$AD8),IF(AND($I8="",$J8<>""),AES7*(100%+$AD8),0)) -> 0 | AET8: =AER8*AES8 -> 0 | AEU8: =IF(AND($I8="",$I6<>"",$J8<>""),AAZ7+1,IF(AND($I8="",$J8<>""),AEU7+1,0)) -> 0 | AEV8: =IF(AND($I8="",$I6<>"",$J8<>""),ABA7,IF(AND($I8="",$J8<>""),AEV7,0)) -> 0 | AEW8: =IF(AND($I8="",$I6<>"",$J8<>""),ABB7,IF(AND($I8="",$J8<>""),AEW7,0)) -> 0 | AEX8: =IF(AND($I8="",$I6<>"",$J8<>""),ABC7*(100%+$AD8)*(100%-0.2%),IF(AND($I8="",$J8<>""),AEX7*(100%+$AD8)*(100%-0.2%),0)) -> 0 | AEY8: =IF(AND($I8="",$I6<>"",$J8<>""),ABD7,IF(AND($I8="",$J8<>""),AEY7,0)) -> 0 | AEZ8: =IF(AEY8<>0,AFA8*0.8/AEY8*330*0.2+AFA8*0.8/AEY8*(AEY8-330),0) -> 0 | AFA8: =(($NU8*0.99+$NV8*0.99*0.02)*AEY8)/0.8*B$46 -> 0 | AFB8: =IF(OR(AB8=1,AA8=1),0,IF(AND($I8="",$I6<>"",$J8<>""),ABG7*IF(ACI8<0,100%,100%-ACI8),IF(AND($I8="",$J8<>""),AFB7,0))) -> 0 | AFC8: =(AFB8*$OB8*0.99)*0.8 -> 0 | AFD8: =(AFB8*$OB8*0.99)/0.8*$B$44*0.8 -> 0 | AFE8: =IF(W8=1,0,IF(AND($I8="",$I6<>"",$J8<>""),IF(ACM8<100%,ABJ7*(100%-ACM7),0),IF(AND($I8="",$J8<>""),AFE7,0))) -> 0 | AFF8: =(($OJ8*1+$OK8*0.94*0.08)*AFE8)*IF(X8=1,0.8,IF(W8=1,1,0.8)) -> 0 | AFG8: =(($OJ8*1+$OK8*0.94*0.08)*AFE8)/0.8*B$45*IF(W8=1,1,0.8) -> 0 | AFH8: 0 | AFI8: =UU8 -> 360000 | AFJ8: 10548991 | AFM8: =IF(J8<>"",20000000,0) -> 20000000 | AFN8: =AFJ8+AFM8+AFL8 -> 30548991 | AFO8: =AEH8+AEK8+AEN8+AEX8+AFA8+AFH8+AFG8+AEQ8+AET8+AFN8+AFD8 -> 82676745.58 | AFP8: =AEG8+AEK8+AEN8+AEX8+AEZ8+AFH8+AFF8+AEQ8+AET8+AFN8+AFC8 -> 49359864.98 | AFQ8: =(AFP8-30000000*$AE8-6000000*2*$AE8)/2 -> 3679932.49 | AFR8: =IF(AFQ8<30000000*$AE8,AFQ8*15%-500000*$AE8,IF(AFQ8<50000000*$AE8,AFQ8*20%-2000000*$AE8,IF(AFQ8<100000000*$AE8,AFQ8*30%-7000000*$AE8))) -> 51989.87344 | AFS8: =AFR8/(AFP8/2) -> 0.002106564654 | AFT8: =IF(AFR8>0,AFR8*2,0) -> 103979.7469 | AFU8: =(AEF$8-AEF8)*(IF(B$41=1,0,IF(B$41=2,PA8,IF(B$41=3,OZ8,IF(B$41=4,PB8))))) -> 0 | AFV8: =IF(B$41=4,AFO8,0)+IF(B$41<>4,AFP8,0)+AFU8 -> 49359864.98 | AFW8: =AFV8/2-AFU8 -> 24679932.49 | AFX8: =AFW8-IF(B$41=4,AEH8,AEG8)-AEX8-IF(B$41=4,AFA8,AEZ8)-IF(B$41=4,FQ9,0)-IF(B$41=4,AFD8,AFC8) -> 5869058.51 | AFY8: =(AEG8+AEX8+AEZ8+AFC8+AFX8)/AFP8*AFT8 -> 51989.87344 | AGB8: =IF(W8=1,0,IF(J8="",UM8,IF(I8="",IF(ACM8>0,UM8*(IF(ACM8<100%,ACM8,100%))),0))) -> 0 | AGC8: =VU8/100000*AGF8*(100%-20.315%) -> 0 | AGD8: =IF(AND(W7=0,W8=1),AGK7/0.8-(AGK7/0.8*95%-AGK7/0.8*3%)*20%,0) -> 0 | AGE8: =IF(AND($J8="",$I8="",Z8=0),IF(ACM7>0,ZS7*(100%+$AD8)*(IF(ACM7<100%,ACM7,100%))*(OH8/OH7))+AGE7*(100%+$AD8)*(OH8/OH7),0) -> 0 | AGF8: 24900 | AGG8: =AGF8*PA8 -> 14044780.8 | AGH8: =$PB8*AGF8 -> 38920195.16 | AGX8: =6000000+ZW8 -> 7000000 | AGY8: 0 | AHH8: =AGF8+AEF8+AAK8+PC8 -> 100000 | AHI8: =AGK8+ABL8+OP8 -> 96284632.86
D9: F2020 | E9: =IF(E8="","",IF($B$10>=E8+1,E8+1,"")) -> 39 | F9: =IF(F8="","",IF($B$11>=F8+1,F8+1,"")) -> 36 | G9: 1 | H9: ="" ->  | I9: =IF(I8="","",IF(OR($B$37>=I8+1,$B$40=""),I8+1,"")) -> 69 | J9: =IF(J8="","",IF(OR($B$38>=J8+1,$B$40=""),J8+1,"")) -> 65 | K9: =IF(Q9=1,0,IF(AND(F9<70,FY9+GT9<480000*AE9),1,0)) -> 0 | L9: 0 | M9: =IF(OR(AND(G9<19,G9>14),AND(G9<25,G9>=23)),1,0)+IF(OR(AND(H9<19,H9>14),AND(H9<25,H9>=23)),1,0) -> 0 | N9: =IF(AND(G9>=19,G9<=22),1,0)+IF(AND(H9>=19,H9<=22),1,0) -> 0 | O9: 1 | P9: 2 | Q9: 1 | R9: 1 | S9: 0 | T9: 0 | U9: 0 | V9: 0 | W9: 0 | X9: =IF(AB9=1,0,IF(AND(E9=B$57,B$57<>""),1,IF(X8=1,1,0))) -> 0 | Z9: =IF(AB9=1,1,IF(AND(E9=B$59,B$59<>""),1,IF(Z8=1,1,0))) -> 0 | AA9: 0 | AB9: 0 | AD9: 0 | AE9: =AE8*(100%+AD9) -> 1 | AF9: 0 | AG9: =AG8*(100%+AD9)*(100%+AF9) -> 1 | AH9: 28.9 | AJ9: =AH9 -> 28.9 | AK9: 1 | AL9: =IF(Q9=1,AL8+5000*12,0) -> 5109000 | AN9: =10000*12+5000*6+IF(H9<>"",4200) -> 150000 | AO9: =IF(Q9=1,AO8/AL8*AL9,0) -> 2127080.392 | AP9: 1000000 | AQ9: =AP9*1% -> 10000 | AR9: =IF(AND(AR8+1000*12+2000*2+AS8<10000000,Q9=1),AR8+1000*12+2000*2+AS8,0) -> 5930630.8 | AS9: =AR9*(4%) -> 237225.232 | AV9: =IF(AA9=1,AV8/AT8*AT9,0) -> 0 | AW9: =UP9 -> 1800000 | AX9: =AW9+AL9+AN9+AO9+AS9+AQ9+AT9+AU9+AV9+AM9 -> 9433305.624 | AY9: =IF(AX9=0,0,IF(AX9<=1625000*$AE9,550000*$AE9,IF(AX9<=1800000*$AE9,AX9*40%-100000*$AE9,IF(AX9<=3600000*$AE9,AX9*30%+80000*$AE9,IF(AX9<=6600000*$AE9,AX9*20%+440000*$AE9,IF(AX9<=8500000*$AE9,AX9*10%+1100000*$AE9,1950000*$AE9)))))) -> 1950000 | AZ9: =IF(AX9>AY9,AX9-AY9,0) -> 7483305.624 | BA9: 0 | BB9: 0 | BC9: =BA9+BB9 -> 0 | BD9: =LS9+LT9 -> 0 | BE9: =BC9-BD9 -> 0 | BF9: 0 | BG9: =BG8+BH8 -> 5539000 | BH9: =301000+532000 -> 833000 | BI9: 0.752 | BL9: =IF(Q9=1,(BG9+BH9)*BI9+BK9+(AL9+AN9)/12*BJ9,0) -> 4791744 | BM9: =IF(BL9>0,BL9-BL8,0) -> 692884 | BN9: =IF(AND(Q9=1,E9<=B$15),BN8+1,BN8) -> 17 | BO9: =IF(AND(Q9=0,Q8=0),BO8,IF(AND(Q9=0,Q8=1),BO8-BL8,IF(BN9<20,400000*BN9*AE9,8000000*AE9+700000*AE9*(BN9-20)))) -> 6800000 | BV9: 0 | BW9: =IF(BV9>0,BV9-BV8,0) -> 0 | BY9: =IF(AND(Q9=0,Q8=0),BO8,IF(AND(Q9=0,Q8=1),BY8-(BP8+BQ8)*BR8-(AU8+AV8)/12*BS8,IF(BX9<20,400000*BX9*AE9,8000000*AE9+700000*AE9*(BX9-20)))) -> 0 | BZ9: =IF(Q9=1,240000,0) -> 240000 | CB9: 1149741 | CC9: =CD9/CB9 -> 0.3171966556 | CD9: 364694 | CE9: =IF(OR(E9=70,AND(E9>B$29,E9-B$12>=15,E9>60,E9<70)),IF(CK9>CB8+CD8,(CB8+CD8),CK9),0) -> 0 | CF9: 4 | CG9: =IF(Q9=1,CF9,CI8) -> 4 | CH9: =IF(Q9=0,CH8,ROUNDDOWN(IF(BL9<BO9,IF(BL9>8000000,(BL9-8000000)/700000+20,BL9/400000),BN9),0)) -> 11 | CI9: =IF(Q9=0,CI8,IF((BN9-CH9)>CG9,0,CG9-(BN9-CH9))) -> 0 | CJ9: =IF(CE9<0,10,IF(CJ8<>0,CJ8-1,0)) -> 0 | CK9: =IF(E9-B$12>=15,IF(CF9<20,400000*CF9*AE9,8000000*AE9+700000*AE9*((CF9-20))),IF(BO9<0,IF(CF9<20,400000*CF9*AE9,8000000*AE9+700000*AE9*((CF9-20))),IF(CF9<20,400000*CF9*AE9,8000000*AE9+700000*AE9*((CF9-20)))-IF(CI9<20,400000*CI9*AE9,8000000*AE9+700000*AE9*((CI9-20))))) -> 1600000 | CL9: =IF(AND(BL9>0,BL10=0),IF(BL9>BO9,(BL9-BO9)/2,0),0)+IF(AND(BV9>0,BV10=0),IF(BV9>BY9,(BV9-BY9)/2,0),0)+IF(AND(CE9>0,CE9>CK9),CE9-CK9,0) -> 0 | CM9: 0 | CO9: =CM9+CN9 -> 0 | CQ9: =CO9-CP9-650000*AE9 -> -650000 | CR9: 0 | CS9: =IF(CJ9<>0,(CB8+CD8+CE9)/CJ9,0) -> 0 | CT9: 0.363 | CU9: 1 | CY9: 0.252 | CZ9: =1/CY$8*CY9 -> 0.9960474308 | DI9: 0 | DJ9: =IF(E9<=64,IF(DI9<700000*CU9,0,IF(DI9<1299999*CU9,DI9-700000*CU9,IF(DI9<4099999*CU9,DI9*75%-375000*CU9,IF(DI9<7699999*CU9,DI9*85%-785000*CU9)))),0)+IF(E9>=65,IF(DI9<1200000*CU9,0,IF(DI9<3299999*CU9,DI9-1200000*CU9,IF(DI9<4099999*CU9,DI9*75%-375000*CU9,IF(DI9<7699999*CU9,DI9*85%-785000*CU9)))),0) -> 0 | DK9: 0 | DL9: =IF(AND(RA9<0,RA9+QT8-FG9-IC9-IH9-FE9<0),IF((RA9+QT8-FG9)*-1+IC9+IH9+FE9<DU8-DT8*20.315%,RA9+QT8-FG9-IC9-IH9-FE9,-1*(DU8-DT8*20.315%)),0) -> 0 | DM9: =DL9/(100%+DV8*(1-0.20315)) -> 0 | DN9: =-1*DM9*DV8 -> 0 | DO9: 5237992.958 | DP9: =IF(AND(DM9+DS8<0.01,DO9=0),0,DU8+DO9+(DL9/(100%+DV8-(DV8*0.20315))*(100%+DV8)))-IF(AND(E8<>"",E9="",SA8-PE8>0,SA8-PE8<DU8),SA8-PE8,0) -> 39754893.96 | DQ9: =DR9/DP9 -> 0.2628080077 | DR9: 10447904.48 | DS9: =DS8+DO9+DM9-IF(AND(E8<>"",E9="",SA8-PE8>0,SA8-PE8<DU8),DS8*(MT9/DU8),0) -> 36877633.96 | DT9: =DU9-DS9 -> 13325164.48 | DU9: =DP9+DR9 -> 50202798.44 | DV9: =IF(DU9=0,0,(DU9-DS9)/DS9) -> 0.3613345828 | DW9: 0 | DX9: =IF(AND($J8<>"",$J9="",B$40=1),AEX8*95%-LX9,0) -> 0 | DY9: =NY9-NY8 -> 0 | DZ9: 0 | EA9: 0 | EB9: =OG9-OG8 -> 0 | EC9: 0 | ED9: 0 | EE9: =OP9-OP8 -> 0 | EF9: 0 | EG9: 0 | EH9: =NN8+QT8 -> 3455607.16 | EI9: 1000000 | EJ9: 5930630.8 | EK9: =EH9+EI9+EJ9 -> 10386237.96 | EL9: =0.15%*0.8 -> 0.0012 | EM9: 12463.48555 | EN9: 24000 | EO9: =(AL8+AN8)/12*6/180 -> 14475 | EP9: 0.5 | EQ9: 90 | ER9: =IF(Q8-Q9=1,IF((EO9*EP9-(AW9/12*6/180))*EQ9>0,(EO9*EP9-(AW9/12*6/180))*EQ9,0),0) -> 0 | ES9: =5000*12*AE9 -> 60000 | EW9: =ES9+EU9+ET9+EV9 -> 60000 | EX9: =LG9*0.02/IF(AND(LG9>0,LG9<=ふるさと納税計算式!B$2),ふるさと納税計算式!D$2,IF(LG9<=ふるさと納税計算式!B$3,ふるさと納税計算式!D$3,IF(LG9<=ふるさと納税計算式!B$4,ふるさと納税計算式!D$4,IF(LG9<=ふるさと納税計算式!B$5,ふるさと納税計算式!D$5,IF(LG9<=ふるさと納税計算式!B$6,ふるさと納税計算式!D$6,IF(LG9<=ふるさと納税計算式!B$7,ふるさと納税計算式!D$7,ふるさと納税計算式!D$8))))))+2000*AE9 -> 162616.1341 | EY9: 46784.84023 | FA9: 308938.0404 | FB9: =FA9+FB8+FD8+EZ9 -> 1224977.354 | FC9: =FD9/FB9 -> 0.2928320876 | FD9: 358712.6759 | FG9: 0 | FI9: =FG9+FI8+FK8+FE9 -> 0 | FJ9: =IF(アセットアロケーション!$R26=10,アセットアロケーション!$H$10*$B$33*-1+(アセットアロケーション!$H$9+$AD9),IF(アセットアロケーション!$R26=5,アセットアロケーション!$H$10*($B$33-1)*-1+(アセットアロケーション!$H$9+$AD9),(アセットアロケーション!$H$9+$AD9)+アセットアロケーション!$H$10*$B$33/8+アセットアロケーション!$H$10*($B$33-1)/8)) -> 0.123696 | FK9: 0 | FN9: =FL9-FH9 -> 0 | FO9: =PF9-PF8 -> 16576882.19 | FP9: =IF(AND(AC8=0,AC9=1),PC8*100,0) -> 0 | FQ9: 0 | FR9: 0 | FS9: 0 | FT9: =IF(R9=1,(254100+25410+10000+24000+4100)+1817.357*(8)+2271.774*(6+20/60),IF(R9=2,(1030000*AE9)/12,0)) -> 346536.758 | FU9: =FT9*8 -> 2772294.064 | FV9: =IF(R9=1,(254100+25410+10000)*2*(8/12),0) -> 386013.3333 | FW9: 3158307.397 | FX9: 2130815.178 | FY9: =IF(FX9>0,FX9,0) -> 2130815.178 | FZ9: =IF(AND(Q8=1,Q9=0),1,IF(FZ8>0,FZ8+1,0)) -> 0 | GD9: 0 | GE9: 92000 | GF9: =GF8+GH8+GB9+GC9+GE9 -> 92000 | GG9: =GH9/GF9 -> -0.002 | GH9: -184 | GI9: 0 | GR9: 0 | GS9: 0 | GT9: 0 | GU9: =IF(AND(R9=0,R8>0),FU8/12*6/180,0) -> 0 | GV9: 0.5 | GW9: 30 | GX9: =GU9*GV9*GW9 -> 0 | GY9: =199575*4 -> 798300 | GZ9: =GX9+GY9 -> 798300 | HA9: =LM9*0.02/IF(AND(LM9>0,LM9<=ふるさと納税計算式!B$2),ふるさと納税計算式!D$2,IF(LM9<=ふるさと納税計算式!B$3,ふるさと納税計算式!D$3,IF(LM9<=ふるさと納税計算式!B$4,ふるさと納税計算式!D$4,IF(LM9<=ふるさと納税計算式!B$5,ふるさと納税計算式!D$5,IF(LM9<=ふるさと納税計算式!B$6,ふるさと納税計算式!D$6,IF(LM9<=ふるさと納税計算式!B$7,ふるさと納税計算式!D$7,ふるさと納税計算式!D$8))))))+2000*AE9 -> 27889.99637 | HB9: =IF(HA9*0.3-2000*AE9>0,HA9*0.3-2000*AE9,0) -> 6366.998912 | HF9: 400884.4196 | HG9: =HF9+HG8+HI8+HE9 -> 893515.1059 | HH9: =HI9/HG9 -> 0.2805466214 | HI9: 250672.6441 | HJ9: =IF(AND(RA9<0,RA9+QT8-FG9-IC9-IH9-DL9-FE9<0),IF((RA9+QT8-FG9)*-1+IC9+IH9+DL9+FE9<HM8+HO8,RA9+QT8-FG9-IC9-IH9-DL9-FE9,-1*(HR8-HQ8*20.315%)),0) -> 0 | HK9: =HJ9/(100%+HS8*(1-0.20315)) -> 0 | HL9: 0 | HM9: =IF(HR8+HL9=0,0,HR8+HL9+(HJ9/(100%+HS8-(HS8*0.20315))*(100%+HS8))-IF(AND(E8<>"",E9="",SA8-PE8>0,SA8-PE8>DU8),SA8-PE8,0)) -> 0 | HN9: =アセットアロケーション!S26 -> 0.1080800917 | HO9: =(HM9-HL9+HL9/12)*HN9+HL9/12*HN9/12*11+HL9/12*HN9/12*10+HL9/12*HN9/12*9+HL9/12*HN9/12*8+HL9/12*HN9/12*7+HL9/12*HN9/12*6+HL9/12*HN9/12*5+HL9/12*HN9/12*4+HL9/12*HN9/12*3+HL9/12*HN9/12*2+HL9/12*HN9/12*1 -> 0 | HP9: =HP8+HL9+HK9-IF(AND(E8<>"",E9="",SA8-PE8>0,SA8-PE8>DU8),HP8*(MT9/HR8),0) -> 0 | HQ9: =HR9-HP9 -> 0 | HR9: =HM9+HO9 -> 0 | HS9: =IF(HR9=0,0,(HR9-HP9)/HP9) -> 0 | HT9: 207030 | HU9: =HU8+HT9 -> 1070270 | HV9: 943835.9497 | HW9: 943835.9497 | HX9: =HW9-HW8 -> 200201.3814 | HY9: =HX9-HT9 -> -6828.618643 | HZ9: 5 | IA9: -0.02482932558 | IB9: 1000000 | IC9: =IF(RA9<0,IF((RA9+QT8)*-1<IE8+IG8,RA9+QT8,-1*(IE8+IG8)),0) -> 0 | ID9: 1066664 | IE9: =ID9+IE8+IG8+IC9 -> 1707165 | IF9: =IG9/IE9 -> 0.2415683311 | IG9: 412397 | IH9: =IF(H9=18,(IJ8+IL8)*-1,IF((RA9+QT8)<0,IF((RA9+QT8)*-1+IC9<IJ8+IL8,RA9+QT8-IC9,-1*(IJ8+IL8)),0)) -> 0 | IJ9: =II9+IJ8+IL8+IH9 -> 0 | IK9: =IF(アセットアロケーション!$R26=10,アセットアロケーション!$H$10*$B$33*-1+(アセットアロケーション!$H$9+$AD9),IF(アセットアロケーション!$R26=5,アセットアロケーション!$H$10*($B$33-1)*-1+(アセットアロケーション!$H$9+$AD9),(アセットアロケーション!$H$9+$AD9)+アセットアロケーション!$H$10*$B$33/8+アセットアロケーション!$H$10*($B$33-1)/8)) -> 0.123696 | IL9: =(IJ9-II9+II9/12)*IK9+II9/12*IK9/12*11+II9/12*IK9/12*10+II9/12*IK9/12*9+II9/12*IK9/12*8+II9/12*IK9/12*7+II9/12*IK9/12*6+II9/12*IK9/12*5+II9/12*IK9/12*4+II9/12*IK9/12*3+II9/12*IK9/12*2+II9/12*IK9/12*1 -> 0 | IM9: =IF(I9<=B$37,ZU9,0) -> 1000000 | IN9: 44876662.72 | IO9: =347389-13003-3300-5000+HY9/12-KS9/12+(EY9+2000)/12-JB9-JC9-JM9 -> 302998.0185 | IP9: =IQ9 -> 89357 | IQ9: =IQ8*(100%+$AD9) -> 89357 | IR9: =IR8*(100%+$AD9) -> 89357 | IS9: =IS8*(100%+$AD9) -> 16079 | IT9: 8944.4 | IU9: 3500 | IV9: 17753 | IW9: 130000 | IX9: 29000 | IY9: =IF(Q9=1,IY8,0) -> 10014 | IZ9: =IF(Q9=1,IZ8,0) -> 7500 | JA9: 2416.666667 | JB9: 2416.666667 | JC9: 2416.666667 | JD9: 78000 | JE9: =JE8 -> 690000 | JF9: =JD9 -> 78000 | JG9: 0 | JH9: =IF(JG9=0,0,44000*$AE9) -> 0 | JI9: 0 | JJ9: 0 | JK9: =IF(JJ9=0,0,44000*$AE9) -> 0 | JL9: 0 | JM9: 6751 | JN9: 3792923.422 | JO9: =300000*AE9*IF(AND(E9<>"",F9<>""),1,2/3) -> 300000 | JP9: 15000 | JQ9: 0 | JW9: =(70*8)*20*12 -> 134400 | JX9: 0 | JZ9: =(JW9+KK9)/12 -> 15200 | KK9: =(150+50)*20*12 -> 48000 | KN9: 保育園 | KO9: 180000 | KQ9: 197600 | KS9: =KO9+KP9 -> 180000 | KT9: =KQ9+KR9 -> 197600 | KU9: 372543.6185 | KV9: 863147.4646 | KW9: 356092.3746 | KY9: =IF(E9="",0,IF(Q9=1,AX9-AW9,0)*3/1000) -> 22899.91687 | KZ9: =IF(OR(R9=1,AND(AC9=0,R9<>1,FW9+GR9>1800000*AE9,F9>=60,E9<70,E9<>""),AND(AC9=0,R9<>1,FW9+GR9>1300000*AE9,F9<60,E9<>"")),IF(FU9/12>=650000*AE9,650000*AE9*12*18.3%/2,IF(FU9/12>93000*AE9,FU9*18.3%/2,8052*AE9*12))+FV9*18.3%/2,0) -> 288985.1269 | LA9: =IF(OR(AND(E9>=75,F9<75),AND(FW9+GR9>1800000*AE9,F9>=60,F9<75,E9<>""),AND(FW9+GR9>1300000*AE9,F9<60,E9<>"")),IF(FU9>1390000*AE9*12,1390000*AE9*12,FU9)*10.22%/2+IF(FV9>5730000,5730000,FV9)*10.22%/2,IF(F9<75,0,IF(AND(E9<75,F9<75),(29376+9892)*AE9+(24372+8207)*AE9*(1+IF(AND(E9>=75,G9<=24),1,0))+IF(GT8+FY8>330000*AE9,(GT8+FY8-330000*AE9)*(8.06%+2.78%),0),IF(AND(E9>=75,F9<75),FW9*10.22%/2,(FY9+GT9-330000*AE9)*10.52%*(IF(AZ8+BE8+BF8+DK8+FY8+GT8<330000*AE9,0.3,IF(AZ8+BE8+BF8+DK8+FY8+GT8<(330000+285000*COUNTA(E9:F9))*AE9,0.5,IF(AZ8+BE8+BF8+DK8+FY8+GT8<(330000+520000*COUNTIF(E9:F9,">=75"))*AE9,0.8))))+54111*AE9*IF(OR(F9=75,F9=76),50%,1)))))*AK9 -> 161389.508 | LC9: =IF(R9=1,(FU9+FV9)*3/1000,0) -> 9474.922192 | LG9: 5587835.306 | LH9: 690067.0611 | LI9: =IF(OR(AND(Q8=1,Q9=0),E8=B$15),IF(CL8<=0,0,IF(CL8<=1950000*$AE8,CL8*5%,IF(CL8<=3300000*$AE8,CL8*10%-97500*$AE8,IF(CL8<=6950000*$AE8,CL8*20%-427500*$AE8,IF(CL8<=9000000*$AE8,CL8*23%-636000*$AE8,IF(CL8<=18000000*$AE8,CL8*33%-1536000*$AE8,CL8*40%)))))),0) -> 0 | LJ9: =(LH9+LI9)*2.1% -> 14491.40828 | LK9: 5661835.306 | LL9: =IF(LK8>0,LK8*10%+(3500+2300)*$AE8,0) -> 532606.6593 | LM9: 1098965.621 | LN9: =IF(LM9<=0,0,IF(LM9<=1950000*$AE9,LM9*5%,IF(LM9<=3300000*$AE9,LM9*10%-97500*$AE9,IF(LM9<=6950000*$AE9,LM9*20%-427500*$AE9,IF(LM9<=9000000*$AE9,LM9*23%-636000*$AE9,IF(LM9<=18000000*$AE9,LM9*33%-1536000*$AE9,LM9*40%)))))) -> 54948.28105 | LO9: =LN9*2.1% -> 1153.913902 | LP9: 1148965.621 | LQ9: =IF(LP8>0,LP8*10%+(3500+2300)*$AE8,0) -> 0 | LR9: =IF(CA9>0,167*AE8*12,IF(AND(CA9=0,CB9<>0,BZ9=0),64*AE8*12,0))+IF(GE9<>0,167*AE8*12,0)+IF(AND(CE9<>0,CE9>=CK8),(-1*CE9-CK8)/2*20%,0)+IF(AND(GB9<>0,GB9>=GI8),(-1*GB9-GI8)/2*20%,0) -> 2004 | LS9: =IF(OR(AB9=1,AA9=1),0,IF($J9="",ADN8*(100%+$AD9),IF($I9="",ZQ8*(100%+$AD9)*IF(ACI9>0,ACI9,0)))+LS8*(100%+$AD9)) -> 0 | LT9: 0 | LU9: 0 | LV9: =LU9*2.1% -> 0 | LW9: 0 | LX9: =IF(AND($J8<>"",$J9=""),AEX8*3%*1.1+60000*AE9*1.1,0) -> 0 | LY9: 0 | LZ9: =LY9*2.1% -> 0 | MA9: 0 | MB9: 0 | MC9: 0 | MD9: =MC9*2.1% -> 0 | ME9: 0 | MF9: 0 | MG9: 0 | MH9: =MG9*2.1% -> 0 | MI9: 0 | MJ9: 0 | MK9: =SUM(LU9:MJ9) -> 0 | ML9: =IF(AND(I8<>"",I9=""),IF(ACK8>0,ACK8,0),IF(AND(J8<>"",J9=""),AFY8,IF(AND(E8<>"",E9=""),RZ8,0))) -> 0 | MM9: 0 | MN9: 1869.522833 | MO9: =MN9*2.1% -> 39.25997949 | MP9: 623.1742776 | MQ9: =MN9+MO9+MP9 -> 2531.95709 | MR9: =-1*DL9/(100%+DV8*(100%-20.315%))*DV8*20.315% -> 0 | MS9: =-1*HJ9/(100%+HS8*(100%-20.315%))*HS8*20.315% -> 0 | MT9: =IF(AND(E8<>"",E9="",SA8-PE8>0),SA8-PE8,0) -> 0 | MU9: =KV9+KW9+JN9+KS9+KT9+MR9+KZ9+LF9+JO9+LR9+KX9+LB9+LA9+LN9+MK9+ML9+LH9+LL9+MT9+LS9+LT9+KY9+MM9+LC9+LQ9+MS9+LI9+LJ9+LO9+MQ9 -> 7470316.016 | MV9: 37406346.7 | MW9: =MV9/AE9 -> 37406346.7 | MX9: 50202798.44 | MY9: 0 | MZ9: 1583690.03 | NA9: 1144187.75 | NB9: 0 | NC9: 2119562 | ND9: 0 | NE9: 1514435 | NF9: 91816 | NG9: =SUM(MX9:NF9) -> 56656489.22 | NH9: =NG9/AE9 -> 56656489.22 | NI9: 400000 | NJ9: 1000000 | NK9: 6167856.032 | NL9: -5046825.039 | NM9: 3709709.97 | NN9: 3709709.97 | NO9: 943835.9497 | NP9: 4791744 | NQ9: =IF(B$40=1,IF(XY9=0,0,NQ8+IB9),0) -> 1000000 | NR9: =NI9+NJ9+NK9+NN9+NO9+NP9+NQ9 -> 18013145.95 | NS9: =NR9/AE9 -> 18013145.95 | NT9: =NT8*(100%+((90000/121700)^(1/(2035-2019))-1)) -> 119426.3265 | NU9: 80000 | NV9: =NV8 -> 76000 | NW9: 15.06333333 | NX9: 1215683.304 | NY9: 1307275.715 | NZ9: =NZ8*(100%+((720000/838000)^(1/(2040-2015))-1)) -> 820635.0388 | OA9: 0.9939477138 | OB9: =OB8 -> 130000 | OC9: =OC8 -> 330.57 | OD9: 46334538.58 | OE9: =IF(OR(AB9=1,AA9),0,IF($J9="",AFB8,IF($I9="",ABG8*IF(ACI9>0,ACI9,0)))+OE8) -> 0 | OF9: 0 | OG9: 0 | OH9: =OH8*(100%+((720000/838000)^(1/(2040-2015))-1)) -> 820635.0388 | OI9: 0.9939477138 | OJ9: =OJ8 -> 130000 | OK9: =OK8 -> 89000 | OL9: =OL8 -> 749 | OM9: 81906325.76 | ON9: 0 | OO9: =(($OJ9*1+$OK9*0.94*0.08)*ON9)*IF(X9=1,0.8,IF(W9=1,1,0.8)) -> 0 | OP9: =(($OJ9*1+$OK9*0.94*0.08)*ON9)/0.8*B$45*0.8 -> 0 | OQ9: =NY9+OG9+OP9 -> 1307275.715 | OR9: =OQ9/AE9 -> 1307275.715 | OS9: =IF(OR(AB9=0,AA9=0),364*AE9,188*AE9) -> 364 | OT9: 5.2 | OU9: 36 | OV9: 175 | OW9: =VU9/(20000000/50) -> 0 | OX9: 24.64198032 | OY9: =YB9/(20000000/50) -> 134.3872313 | OZ9: =IF(YC9/100000>0,YC9/100000,0) -> 998.798014 | PA9: =IF(OS9*(OW9/OT9+OX9/OU9+OY9/OV9)/3*(20000000/100000/50)*0.5+OZ9*0.5>0,(OS9*(OW9/OT9+OX9/OU9+OY9/OV9)/3*(20000000/100000/50)*0.5+OZ9*0.5),2) -> 851.8545017 | PB9: =IF(YD9/100000>0,(YD9-UY10-VR10-VU10)/100000,0) -> 1847.293856 | PC9: 39900 | PD9: 39852040.76 | PE9: 33988994.62 | PF9: 73707024.87 | PG9: =PF9/AE9 -> 73707024.87 | PH9: =QV9+QR9 -> 148932310.6 | PI9: 148932310.6 | QO9: =PL9+PS9+QA9+QH9 -> 0 | QP9: =PO9+PV9+QD9+QK9 -> 0 | QQ9: =(PP9+PW9+QE9+QL9)*-1 -> 0 | QR9: =PR9+PY9+QG9+QN9 -> 0 | QS9: =QR9*-1/AE9 -> 0 | QT9: -751625.1301 | QU9: 148932310.6 | QV9: =QV8+IN9-MU9 -> 148932310.6 | QW9: 148932310.6 | QX9: =QV9-IF((DU9-DS9)>0,(DU9-DS9)*0.2,0)+(メイン!YD9-メイン!XC9-メイン!WX9*32000*AE9-メイン!WU9*3%-メイン!WM9*3%-(メイン!YD9-メイン!XC9-メイン!WX9*32000*AE9-メイン!WU9*3%-メイン!WM9*3%-メイン!YC9)*23%)*0.8/100000*PC9-PF9-NY9*3%-(NY9*95%-NY9*3%)*20%-(OG9*95%-OG9*3%)*20%-(OP9*95%-OP9*3%)*20% -> 110255222.1 | QY9: 110255222.1 | QZ9: 4993695.871 | RA9: 4739593.06 | RB9: 148932310.6 | RC9: 0 | RF9: =RG9-RG8-RH8 -> 7346479.418 | RG9: 44822292.42 | RH9: 11834196.8 | RI9: =RH9/RG9 -> 0.2640248002 | RJ9: =RL8 -> 109.4670131 | RK9: =RJ9*RI9 -> 28.90200626 | RL9: =RJ9+RK9 -> 138.3690194 | RN9: =(RL9-100)/100/2-B$34 -> 0.1668450968 | RO9: 0.251163408 | RS9: 104823286.3 | RT9: 31411643.13 | RU9: 4282328.626 | RV9: 31411643.13 | RW9: 4282328.626 | RX9: 8564657.252 | RY9: 52411643.13 | RZ9: =IF(RU9<0,0,IF((RY9-160000000*$AE9)/RS9*RX9>0,(RY9-160000000*$AE9)/RS9*RX9,0)) -> 0 | SA9: 52411643.13 | SB9: 2382328.626 | SF9: 5 | SG9: 0 | SH9: =家賃下落率!C12 -> 0.022 | SI9: =AE9 -> 1 | SJ9: =IF(SG8<>SG9,OA9,SJ8) -> 1 | SK9: =IF($AA9=0,SUM(一括!$H$3:$H$40)*12*(100%-$SG9)*$SI9*SJ9,0) -> 28308000 | SL9: =IF(AB9=1,0,IF($AA9=0,SUM(一括!$D$3:$D$40)*12,0)) -> 25147200 | SM9: =SL9/SK9 -> 0.888342518 | SN9: =WM9-WM8 -> 4389477.544 | SO9: 0 | SP9: 0 | SQ9: =IF($AA9=0,SUM(一括!$H$41:$H$42)*12,0) -> 2706000 | SR9: =SR8 -> 2403249.6 | SS9: =SR9/SQ9 -> 0.888118847 | ST9: =WU9-WU8 -> 0 | SU9: 0 | SV9: 0 | SY9: =IF(W9=1,0,SY8) -> 21124800 | SZ9: =(XC9-XC8) -> 354169.997 | TA9: =SY9/((XH9+OL9)/3.30579) -> 51805.75118 | TB9: =XF9-XF8 -> 0 | TC9: =XJ9-XJ8 -> -6734.617945 | TD9: =156425000 -> 156425000 | TE9: =IF(AND(WD8>0,WD9=0),WD8,0)+IF(AND(AB8=0,AB9=1),TD9*60%) -> 0 | TF9: =IF(WD9-WD8<0,WD9-WD8,0) -> 0 | TG9: =IF(YG9+VX8<0,IF(-1*(YG9+VX8)>TI8+TK8,-1*(TI8+TK8),YG9+VX8),0) -> 0 | TH9: 0 | TI9: =TH9+TI8+TK8+TG9 -> 0 | TJ9: =アセットアロケーション!S26 -> 0.1080800917 | TK9: =IF(TI9<0,0,TI9*TJ9) -> 0 | TL9: =SL9+SY9+SO9+SU9+TK9+SR9+TE9 -> 48675249.6 | TM9: =TL9+SN9+ST9+SV9+SP9+SZ9+TB9+TC9+TF9 -> 53412162.52 | TN9: 1980778 | TO9: =IF($AA9=0,5881943,0) -> 5881943 | TP9: =IF($AA9=0,IF(TP8<2761500*0.03217,TP8,IF(WH8*0.167>2761500*0.03217,WH8*0.167,WH8*0.2)),0) -> 103686.6754 | TQ9: =IF($AA9=0,IF(TQ8<8550000*0.03217,TQ8,IF(WI8*0.167>8550000*0.03217,WI8*0.167,WI8*0.2)),0) -> 321027.5376 | TR9: =IF($AA9=0,IF(TR8<38062366*0.03217,TR8,IF(WJ8*0.167>38062366*0.03217,WJ8*0.167,WJ8*0.2)),0) -> 1429129.786 | TS9: =IF($AA9=0,3223800*0.067,0) -> 215994.6 | TT9: 7951781.599 | TU9: =VLOOKUP(XN9,返済明細!A:Z,9,FALSE) -> 5720120.53 | TV9: =IF(AB9=1,0,270666) -> 270666 | TX9: 0 | TY9: 0 | TZ9: 0 | UA9: =47033+12055+50674 -> 109762 | UB9: =UB8 -> 1680000 | UC9: 0 | UD9: =IF(W9=1,0,UD8*(100%+$AD9)*WY9/WY8) -> 71121.06 | UE9: =IF(W9=1,0,IF(WY8<41200000*5%,(WY8-1)/5,WY8*0.057)) -> 478743.0642 | UF9: =IF(W9=1,0,IF(WZ8<26250000*5%,(WZ8-1)/5,WZ8*0.057)) -> 681110.2041 | UG9: =IF(W9=1,0,IF(XA8<3969309*0.05,XA8-1,3969309*0.05)) -> 198465.45 | UH9: 1358318.718 | UL9: =IF(W9=1,0,UL8*(100%+$AD9)) -> 6600000 | UM9: =IF(W9=1,0,IF(UM8>OM9*6%,UM8,OM9*6%)) -> 4920000 | UN9: 216929 | UO9: =IF(YB7<0,0,IF(E9="",0,IF(I9<>"",1800000*AE9,B$53*AE9))) -> 1800000 | UP9: =UP8 -> 1800000 | UQ9: 0 | UR9: 0 | US9: 1548000 | UT9: =UT8 -> 960000 | UU9: =IF(J9="",0,UU8) -> 360000 | UV9: 365175.5627 | UY9: =UW9+UX9 -> 0 | VD9: =1769871-VG9 -> 1620538.2 | VE9: =VE8 -> 198780 | VF9: 493154 | VG9: =IF(AC9=1,0,IF($I9="",(IR9*(1/7)+IS9*(1/7)+IU9*(1/7)+IV9)*12,(IT9+IU9)*12)) -> 149332.8 | VI9: =IF(YB7<0,0,VI8*(100%+$AD9)) -> 444000 | VJ9: =VD9+VI9+VG9+VF9+VE9+VH9 -> 2905805 | VK9: =TN9+TT9+TU9+TV9+TW9+TX9+UA9+UB9+UC9+UD9+UI9+UJ9+UK9+UL9+UM9+IF(UP9>UO9,UO9,UP9)+IF(UR9>UQ9,UQ9,UR9)+US9+UT9+UV9+VJ9+UN9+UH9+UU9+UY9+TZ9+TY9+VC9 -> 38818457.47 | VL9: -3680965.094 | VM9: 0 | VN9: 0 | VO9: 0 | VP9: 0 | VQ9: =IF(WB7<0,0,VQ8*(100%+$AD9)) -> 20000 | VR9: =VM8+VN8+VO8+VP8+VQ8 -> 20000 | VS9: =VR9/VL8 -> -0.001477349584 | VT9: 9856792.13 | VU9: =IF(AND(I9="",VT8>0),VT8*B$51,0) -> 0 | VV9: =TN9+TU9+TW9+TX9+UA9+UB9+UC9+UD9+UJ9+UL9+UM9+UP9+US9+UT9+VJ9+VR9+UI9+UV9+UR9+UY9+TY9+VU9+TV9+UN9+UU9+VC9 -> 29528357.15 | VW9: 23883805.37 | VX9: 0 | VY9: =XQ9+VQ9+UU9+VI9+VG9+VD9+IF(AND(I8<>"",I9=""),UV8,UV9)+IF(AND(I8<>"",I9=""),UT8,UT9)+IF(AND(I8<>"",I9=""),US8,US9)+UR9+IF(AND(I8<>"",I9=""),UP8,UP9)+UM9+UL9+UI9+UN9+UD9+UB9+UA9+TW9+TN9+XW9-(SL9+SR9) -> 10905541.62 | VZ9: =27293729+455367 -> 27749096 | WA9: 0 | WB9: =VZ9+WA9+VX9 -> 27749096 | WC9: =WC10 -> 12038993 | WD9: =IF(AND(I8<>"",I9=""),0,WD8) -> 2081450 | WE9: =IF(TV9=0,0,WE8-TV9) -> 6679435 | WF9: =WF8+1 -> 9.5 | WG9: =IF($AA9=0,WG8-TO9,0) -> 234297431 | WH9: =IF($AA9=0,WH8-TP9,0) -> 414746.7016 | WI9: =IF($AA9=0,WI8-TQ9,0) -> 1284110.15 | WJ9: =IF($AA9=0,WJ8-TR9,0) -> 5716519.144 | WK9: =IF($AA9=0,WK8-TS9,0) -> 1050965.8 | WL9: 242763772.8 | WM9: 254553806.3 | WN9: =築年スプレッド!C10 -> 0.06789052707 | WO9: 0.08627898894 | WP9: 0.06607117953 | WQ9: =(SL9+SR9-TN9-UA9-メイン!ZQ9-TU9-TV9-TW9-(SL9+SR9-TN9-UA9-メイン!ZQ9-TU9-TT9-TV9-TW9)*20%)/(WM9+WU9+メイン!ABI9+メイン!OG9) -> 0.04751221505 | WR9: =IF(AA9=0,WR8,0) -> 334.31 | WS9: =IF(AB9=1,0,IF($AA9=0,WS8,0)) -> 18600000 | WT9: 43025697 | WU9: 58573447.35 | WV9: 31 | WW9: =IF(XH9=0,0,WW8) -> 664.28 | WX9: =IF(W9=1,0,WX8) -> 200.6888218 | WY9: =IF(XH9=0,0,WY8-UE9) -> 7920258.062 | WZ9: =IF(XH9=0,0,WZ8-UF9) -> 11268191.62 | XA9: =IF(XH9=0,0,XA8-UG9) -> 3688150.55 | XB9: =IF(XH9=0,0,WY9+WZ9+XA9) -> 22876600.23 | XC9: =IF(XH9=0,0,(SY9-UD9-UN9-SY9*4%-ZS9-ADP9-UL9-IF(AND(I9="",J9<>""),UM9*ACM9,0))/XD9-(ABL9+OP9+AFG9+XJ9)) -> 44263283.76 | XD9: =IF(W9<>1,XD8,0) -> 0.06853919156 | XE9: 8508871.8 | XF9: 11583634.65 | XG9: =XG8*(100%+メイン!$AD9)*(メイン!NZ9/メイン!NZ8) -> 104364.5099 | XH9: =IF(OR(AND(X8=0,Z9=1,Z8=0),AND(X9=1,X8=0)),0,XH8) -> 599 | XI9: 36977127.86 | XJ9: 42078704.06 | XK9: =YD9+YA9 -> 459601850.2 | XL9: 459601850.2 | XM9: 21 | XN9: =XN8+12 -> 123 | XP9: =VLOOKUP(XN9,返済明細!A:Z,10,FALSE)*-1 -> 13610354.59 | XQ9: =XO9+XP9 -> 13610354.59 | XR9: =VLOOKUP(XN9,返済明細!A:H,8,FALSE) -> 208352464.5 | XS9: =IF(W9=1,0,IF(メイン!J9="",0,18000000)) -> 18000000 | XT9: 0 | XU9: =XX8-XX9 -> 2000000 | XV9: =IF(OR(AND(I8<>"",I9=""),AB9=1),XY8,IF(J9="",XY8,0)) -> 0 | XW9: =XU9+XV9 -> 2000000 | XX9: 14500000 | XY9: =XY8-XV9 -> 34000000 | XZ9: =XX9+XY9 -> 48500000 | YA9: =XZ9+XS9+XR9 -> 274852464.5 | YB9: =VX9+VZ9+WA9+WE9+WL9+WS9+XB9-(XR9+XS9+XZ9)+WC9-UY10-VC9/2-VR10/2-TN9-UA9 -> 53754892.5 | YC9: 99879801.4 | YD9: =(WM9+WU9)-XR9-XS9-XZ9+XC9+VZ9+WA9+WE9+WC9+XF9+XJ9+WD9 -> 184749385.6 | YE9: =YD9/メイン!AE9 -> 184749385.6 | YF9: =VX9+VZ9+WA9+WM9+WU9+XC9-XR9-XS9-XZ9+WE9+WC9+XF9+XJ9+WD9 -> 184749385.6 | YG9: =TE9+SL9+SY9-TN9-TW9-TX9-UA9-UB9-UC9-UD9-UN9-UJ9-UL9-UM9-UP9-UR9-US9-UT9-VJ9-XQ9-IF(XM9=22,0,(XS8-XS9))+SR9-UI9-UV9-UY9-VC9+SO9+SP9+SU9+SV9-UU9+XT9-XW9-TY9-IF(XM9=22,0,VZ9-VZ8)-VR9-VU9+IF(AND(WE8>0,WE9=0),WE8,0)+IF(AND(WC8>0,WC9=0),WC8,0) -> -4483582.616 | YI9: 0.4019770277 | YJ9: =(WM9+WU9+XC9)/YD9 -> 1.934461304 | YK9: 2.038822413 | YL9: 35943638.93 | YM9: =YL9/(YD9+メイン!ABI9+メイン!ABL9) -> 0.109795636 | YS9: =IF(I9<>"",メイン!UB9,0) -> 1680000 | YT9: =IF(I9<>"",メイン!UM9+IF(X9=1,381610*12*AE9*IF(E9-B$57>1,1,0.5),0),0) -> 4920000 | YU9: 5616787 | YV9: =IF(I9<>"",メイン!US9,0) -> 1548000 | YW9: =IF(YV9=0,0,IF(YV9<=1625000*$AE9,YV9-550000*$AE9,IF(YV9<=1800000*$AE9,YV9-(YV9*40%-100000*$AE9),IF(YV9<=3600000*$AE9,YV9-(YV9*30%+80000*$AE9),IF(YV9<=6600000*$AE9,YV9-(YV9*20%+440000*$AE9),IF(YV9<=8500000*$AE9,YV9-(YV9*10%+1100000*$AE9),YV9-1950000*$AE9)))))) -> 998000 | YX9: =IF(YW9<0,0,YW9) -> 998000 | YY9: 780100 | YZ9: 780100 | ZA9: =ZA8 -> 1335806 | ZB9: 1330526.134 | ZC9: =YZ9+ZB9 -> 2110626.134 | ZD9: 910626.1344 | ZE9: 910626.1344 | ZF9: 0 | ZG9: 0 | ZH9: =YS9+YT9+YV9+YZ9+ZG9+ZF9+ZB9 -> 10258626.13 | ZI9: 79102.8 | ZJ9: =IF(I9="",0,IF(I9<65,IF(YV9>1390000*12*AE9,1390000*12*AE9,YV9)*(12.01%-10.22%)/2,95124*AE9*IF(ZN9=0,IF(ADW9=0,IF(YU8+YX8+ZC8<800000*AE9,0.5,IF(YU8+YX8+ZC8<1200000*AE9,0.65,0.75)),IF(YU8+YX8+ZC8<800000*AE9,0.85,1)),IF(YU8+YX8+ZC8<=1250000*AE9,1.1,IF(YU8+YX8+ZE8<2000000*AE9,1.25,IF(YU8+YX8+ZE8<4000000*AE9,1.5,IF(YU8+YX8+ZE8<7000000*AE9,1.75,2)))))))*AK9 -> 190248 | ZK9: 6296062.334 | ZL9: 831712.4669 | ZM9: 6396062.334 | ZN9: =IF(ZM8>0,ZM8*10%+(3500+2300)*$AE8,0) -> 693528.79 | ZO9: 142400 | ZP9: 139244 | ZQ9: 108536 | ZR9: 0 | ZS9: =288638+343561+111014+131464 -> 874677 | ZT9: 0 | ZU9: 1000000 | ZV9: =IF(AND($I9<>"",AB9=0),IF(XY8-NQ8-AFH8-ZX8<3000000*$AE9,XY8-NQ8-AFH8-ZX9,3000000*$AE9),0) -> 3000000 | ZW9: 1000000 | ZX9: =IF(AND($I9<>"",AB9=0),IF(ABQ8<1000000*$AE9,ABQ8,1000000*$AE9),0) -> 1000000 | ZY9: =SUM(ZV$8:ZW9)+(AAK9-AAK$8)*PA9 -> 5000000 | ZZ9: =IF(I9<>"",IF(OR(AND(AA9=1,AA8=0),AND(AB9=1,AB8=0)),YS8*(100%+AD9)-ZQ8*(100%+AD9),0)+ZZ8*(100%+AD9),0) -> 0 | AAA9: =IF(I9<>"",IF(AND(X9=1,X8=0),(YT8-YT9*2)*(100%+AD9),IF(OR(AND(W9=1,W8=0),AND(X9=0,X8=1)),YT8*(100%+AD9)-ZS8*(100%+AD9),0))+AAA8*(100%+AD9),0) -> 0 | AAB9: =IF(I9<>"",IF(AND(AC9=1,AC8=0),YX8,0)+AAB8*(100%+AD9),0) -> 0 | AAC9: =IF(I9<>"",IF(OR(AND(AA9=1,AA8=0),AND(AB9=1,AB8=0),AND(W9=1,W8=0)),-1*((ZL8-ZL9)+(ZN9-ZN10)+(ZI9-ZI10)+(ZJ9-ZJ10)),0)+AAC8*(100%+AD9),0) -> 0 | AAD9: 0 | AAE9: 0 | AAF9: =IF(AAE9=0,0,44000*$AE9) -> 0 | AAG9: 0 | AAH9: =ZZ9+AAA9+AAC9+AAB9+AAD9+AAE9*12+AAG9 -> 0 | AAI9: 9059449.057 | AAJ9: 1199177.078 | AAK9: 5200 | AAL9: 4429643.409 | AAM9: 9605928.054 | AAN9: =IF($I9<>"",AAN8,0) -> 1000 | AAO9: 7252 | AAP9: =AAN9*AAO9 -> 7252000 | AAQ9: =IF($I9<>"",AAQ8,0) -> 2000 | AAR9: 319 | AAS9: =AAQ9*AAR9 -> 638000 | AAT9: =IF($I9<>"",AAT8,0) -> 7930843 | AAU9: 2625 | AAV9: =AAT9*AAU9/10000 -> 2081846.288 | AAW9: =IF($I9<>"",AAW8,0) -> 30000 | AAX9: =AAX8*(100%+AD9) -> 104.587548 | AAY9: =AAW9*AAX9 -> 3137626.44 | AAZ9: 41 | ABA9: =IF($I9<>"",ABA8,0) -> 200.55 | ABB9: =IF($I9<>"",ABB8,0) -> 60.58912387 | ABC9: 8376544 | ABD9: =IF($I9<>"",ABD8,0) -> 436.8366667 | ABE9: =IF(ABD9<>0,ABF9*0.8/ABD9*330*0.2+ABF9*0.8/ABD9*(ABD9-330),0) -> 11999743.85 | ABF9: 37910995.73 | ABG9: =IF(OR(AB9=1,AA9=1),0,IF($I9<>"",ABG8,0)) -> 330.57 | ABH9: 34035487.2 | ABI9: 46334538.58 | ABJ9: =IF(Z9=1,0,IF($I9<>"",ABJ8,0)) -> 748.5 | ABK9: 81851648.64 | ABL9: 96284632.86 | ABM9: =IF($I9="",0,ABM8) -> 4516472 | ABN9: =IF($I9="",0,ABN8) -> 6231890 | ABO9: 0 | ABP9: =ABM9+ABN9 -> 10748362 | ABQ9: 44500000 | ABR9: =IF(I9<>"",(ZG9-ZT9)+(ZF9-ZR9)+ABR8-AAH9,0) -> 0 | ABS9: =AAM9+AAP9+AAS9+ABC9+ABF9+ABI9+ABL9+ABQ9+AAV9+AAY9+ABP9+ABR9 -> 266870474 | ABT9: 198302539.8 | ABU9: =IF($I9<>"",(ABT9+ZY9-30000000*$AE9-6000000*$AE9*3)/2,0) -> 77651269.91 | ABV9: =IF(I9<>"",(IF(ABU9<30000000*$AE9,ABU9*15%-500000*$AE9,IF(ABU9<50000000*$AE9,ABU9*20%-2000000*$AE9,IF(ABU9<100000000*$AE9,ABU9*30%-7000000*$AE9)))),0) -> 16295380.97 | ABW9: =ABV9/(ABT9/2) -> 0.1643486865 | ABX9: =ABU9/2 -> 38825634.96 | ABY9: 5765126.991 | ABZ9: 38825634.96 | ACA9: 5765126.991 | ACB9: =ABV9+ABY9+ACA9 -> 27825634.96 | ACC9: 36506257.82 | ACD9: 32870070.55 | ACE9: 36309723.36 | ACF9: 75997147.89 | ACG9: 39490890.07 | ACH9: 1.160285729 | ACI9: =IF(ACH9>100%,100%,ACH9) -> 1 | ACJ9: =IF(OR(ACH9>100%,ACH9=0%),IF($B$41=4,ACG9-ABI9,ACG9-ABH9),0) -> 5455402.87 | ACK9: =IF(ACG9>0,IF(ACI9>0,ABH9*ACI9,ACG9)/ABT9*ACB9,0) -> 4775829.111 | ACL9: 43127077.34 | ACM9: 0.5268932032 | ACN9: =IF(ACM9=0%,ACL9,0) -> 0 | ACO9: =IF(ACL9>0,IF(ACM9>0,ABK9*ACM9,ACL9)/ABT9*ACB9,0) -> 6051552.904 | ACP9: 116710331.9 | ACQ9: 221805186.6 | ACT9: =メイン!UT9 -> 960000 | ACU9: =IF(ACT9=0,0,IF(ACT9<=1625000*$AE9,ACT9-550000*$AE9,IF(ACT9<=1800000*$AE9,ACT9-(ACT9*40%-100000*$AE9),IF(ACT9<=3600000*$AE9,ACT9-(ACT9*30%+80000*$AE9),IF(ACT9<=6600000*$AE9,ACT9-(ACT9*20%+440000*$AE9),IF(ACT9<=8500000*$AE9,ACT9-(ACT9*10%+1100000*$AE9),ACT9-1950000*$AE9)))))) -> 410000 | ACV9: =IF(ACU9<0,0,ACU9) -> 410000 | ACW9: 0 | ACX9: 0 | ACY9: 0 | ACZ9: 0 | ADA9: 0 | ADB9: 780100 | ADC9: 780100 | ADD9: =ADD8*103% -> 347782.2223 | ADE9: =ADC9+ADD9 -> 1127882.222 | ADF9: =IF(ADE9-380000>0,ADE9-380000,0) -> 747882.2223 | ADG9: =IF(メイン!XS9<65,IF(ADF9<700000,0,IF(ADF9<1299999,ADF9-700000,IF(ADF9<4099999,ADF9*75%-375000,IF(ADF9<7699999,ADF9*85%-785000)))),0)+IF(メイン!XS9>64,IF(ADF9<1200000,0,IF(ADF9<3299999,ADF9-1200000,IF(ADF9<4099999,ADF9*75%-375000,IF(ADF9<7699999,ADF9*85%-785000)))),0) -> 0 | ADH9: 0 | ADI9: 0 | ADJ9: 0 | ADK9: =ACT9+ACW9+ACX9+ACZ9+ADA9+ADE9+ADI9+ADH9 -> 2087882.222 | ADL9: =IF(J9="",0,IF(AND(I9="",J9<>""),ZO8*(100%+AD9),0)+ADL8*(100%+AD9)) -> 0 | ADM9: =IF(J9="",0,IF(AND(I9="",J9<>""),ZP8*(100%+AD9),0)+ADM8*(100%+AD9)) -> 0 | ADN9: 0 | ADO9: 0 | ADP9: 0 | ADQ9: 0 | ADR9: 49056 | ADS9: 95124 | ADT9: -214180 | ADU9: =IF(ADT9<=0,0,IF(ADT9<=1950000*$AE9,ADT9*5%,IF(ADT9<=3300000*$AE9,ADT9*10%-97500*$AE9,IF(ADT9<=6950000*$AE9,ADT9*20%-427500*$AE9,IF(ADT9<=9000000*$AE9,ADT9*23%-636000*$AE9,IF(ADT9<=18000000*$AE9,ADT9*33%-1536000*$AE9,ADT9*40%)))))) -> 0 | ADV9: -164180 | ADW9: =IF(ADV8>0,ADV8*10%+(3500+2300)*$AE8,0) -> 0 | ADX9: 3600000 | ADY9: 0 | ADZ9: 0 | AEA9: =IF(ADZ9=0,0,44000*$AE9) -> 0 | AEB9: 0 | AEC9: =ADX9+ADY9+ADZ9*12+AEB9 -> 3600000 | AED9: 3744180 | AEE9: -1656297.778 | AEF9: 30000 | AEG9: 25555635.05 | AEH9: 55418815.69 | AEI9: =IF(AND($I9="",$I8<>"",$J9<>""),AAN8,IF(AND($I9="",$J9<>""),AEI8,0)) -> 0 | AEJ9: =IF(AND($I9="",$I8<>"",$J9<>""),AAO8*(100%+$AD9),IF(AND($I9="",$J9<>""),AEJ8*(100%+$AD9),0)) -> 0 | AEK9: =AEI9*AEJ9 -> 0 | AEL9: =IF(AND($I9="",$I8<>"",$J9<>""),AAQ8,IF(AND($I9="",$J9<>""),AEL8,0)) -> 0 | AEM9: =IF(AND($I9="",$I8<>"",$J9<>""),AAR8*(100%+$AD9),IF(AND($I9="",$J9<>""),AEM8*(100%+$AD9),0)) -> 0 | AEN9: =AEL9*AEM9 -> 0 | AEO9: =IF(AND($I9="",$I8<>"",$J9<>""),AAT8,IF(AND($I9="",$J9<>""),AEO8,0)) -> 0 | AEP9: =IF(AND($I9="",$I8<>"",$J9<>""),AAU8*(100%+$AD9),IF(AND($I9="",$J9<>""),AEP8*(100%+$AD9),0)) -> 0 | AEQ9: =AEO9*AEP9/10000 -> 0 | AER9: =IF(AND($I9="",$I8<>"",$J9<>""),AAW8,IF(AND($I9="",$J9<>""),AER8,0)) -> 0 | AES9: =IF(AND($I9="",$I8<>"",$J9<>""),AAX8*(100%+$AD9),IF(AND($I9="",$J9<>""),AES8*(100%+$AD9),0)) -> 0 | AET9: =AER9*AES9 -> 0 | AEU9: =IF(AND($I9="",$I8<>"",$J9<>""),AAZ8+1,IF(AND($I9="",$J9<>""),AEU8+1,0)) -> 0 | AEV9: =IF(AND($I9="",$I8<>"",$J9<>""),ABA8,IF(AND($I9="",$J9<>""),AEV8,0)) -> 0 | AEW9: =IF(AND($I9="",$I8<>"",$J9<>""),ABB8,IF(AND($I9="",$J9<>""),AEW8,0)) -> 0 | AEX9: =IF(AND($I9="",$I8<>"",$J9<>""),ABC8*(100%+$AD9)*(100%-0.2%),IF(AND($I9="",$J9<>""),AEX8*(100%+$AD9)*(100%-0.2%),0)) -> 0 | AEY9: =IF(AND($I9="",$I8<>"",$J9<>""),ABD8,IF(AND($I9="",$J9<>""),AEY8,0)) -> 0 | AEZ9: =IF(AEY9<>0,AFA9*0.8/AEY9*330*0.2+AFA9*0.8/AEY9*(AEY9-330),0) -> 0 | AFA9: 0 | AFB9: =IF(OR(AB9=1,AA9=1),0,IF(AND($I9="",$I8<>"",$J9<>""),ABG8*IF(ACI9<0,100%,100%-ACI9),IF(AND($I9="",$J9<>""),AFB8,0))) -> 0 | AFC9: =(AFB9*$OB9*0.99)*0.8 -> 0 | AFD9: 0 | AFE9: =IF(W9=1,0,IF(AND($I9="",$I8<>"",$J9<>""),IF(ACM9<100%,ABJ8*(100%-ACM8),0),IF(AND($I9="",$J9<>""),AFE8,0))) -> 0 | AFF9: 0 | AFG9: 0 | AFH9: =IF(J9<>"",ZV9+AFH8,0) -> 3000000 | AFI9: 360000 | AFJ9: =AFI9+AFJ8+AFL8 -> 10908991 | AFK9: 0.01 | AFL9: =(AFJ9-AFI9+AFI9/12)*AFK9+AFI9/12*AFK9/12*11+AFI9/12*AFK9/12*10+AFI9/12*AFK9/12*9+AFI9/12*AFK9/12*8+AFI9/12*AFK9/12*7+AFI9/12*AFK9/12*6+AFI9/12*AFK9/12*5+AFI9/12*AFK9/12*4+AFI9/12*AFK9/12*3+AFI9/12*AFK9/12*2+AFI9/12*AFK9/12*1 -> 107439.91 | AFM9: =IF(J9="",0,IF(I9<>"",AFM8,AFM8+AEE9+ADJ9)) -> 20000000 | AFN9: =AFJ9+AFM9+AFL9 -> 31016430.91 | AFO9: 89435246.6 | AFP9: 59572065.96 | AFQ9: 8786032.981 | AFR9: 817904.9471 | AFS9: =AFR9/(AFP9/2) -> 0.02745934471 | AFT9: =IF(AFR9>0,AFR9*2,0) -> 1635809.894 | AFU9: 3345782.939 | AFV9: 62917848.9 | AFW9: =AFV9/2-AFU9 -> 28113141.51 | AFX9: 2557506.46 | AFY9: =(AEG9+AEX9+AEZ9+AFC9+AFX9)/AFP9*AFT9 -> 771968.4436 | AGB9: 0 | AGC9: 0 | AGD9: 0 | AGE9: 0 | AGF9: =AGF8 -> 24900 | AGG9: 21211177.09 | AGH9: 45997617.03 | AGI9: =IF(Z9=1,0,IF(AND($J9="",$J8<>""),OL8,IF(AND($I9="",$I8<>""),IF(ACM8<100%,OL8*ACM8,OL8),AGI8))) -> 0 | AGJ9: =(($OJ9*1+$OK9*0.94*0.08)*AGI9)*IF(Z9=1,1,0.8) -> 0 | AGK9: =(($OJ9*1+$OK9*0.94*0.08)*AGI9)/0.8*B$45*IF(Z9=1,1,0.8) -> 0 | AGL9: =IF(AND($J9="",$J8<>""),AEI8,AGL8) -> 0 | AGM9: =IF(AND($J9="",$J8<>""),AEJ8*(100%+$AD9),AGM8*(100%+$AD9)) -> 0 | AGN9: =AGL9*AGM9 -> 0 | AGO9: =IF(AND($J9="",$J8<>""),AEL8,AGO8) -> 0 | AGP9: =IF(AND($J9="",$J8<>""),AEM8*(100%+$AD9),AGP8*(100%+$AD9)) -> 0 | AGQ9: =AGO9*AGP9 -> 0 | AGR9: =IF(AND($J9="",$J8<>""),AEO8,AGR8) -> 0 | AGS9: =IF(AND($J9="",$J8<>""),AEP8*(100%+$AD9),AGS8*(100%+$AD9)) -> 0 | AGT9: =AGR9*AGS9/10000 -> 0 | AGU9: =IF(AND($J9="",$J8<>""),AER8,AGU8) -> 0 | AGV9: =IF(AND($J9="",$J8<>""),AES8*(100%+$AD9),AGV8*(100%+$AD9)) -> 0 | AGW9: =AGU9*AGV9 -> 0 | AGX9: =AGX8+ZW9 -> 8000000 | AGY9: =IF(AND($I9="",$I8<>"",W8=1),ACL8,IF(AND($J9="",$J8<>""),AGY8+AFH8,AGY8)) -> 0 | AGZ9: =IF(AND($J9="",$J8<>""),AFN8,AGZ8) -> 0 | AHA9: =AHA8+IF(AND($I9="",$I8<>"",ACM8<0),ACL8*-1,0)+AGB9-AGE9+AHD8+AGC9+AGD9 -> 0 | AHC9: =AGY9+AHA9+AGZ9+AGN9+AGQ9+AGT9+AGW9 -> 0 | AHD9: =AHC9*(B$32+AD9) -> 0 | AHE9: =AGH9+AHC9+AHD9+AGK9 -> 45997617.03 | AHF9: =AHE9/AE9 -> 45997617.03 | AHH9: 100000 | AHI9: 96284632.86
A10: 寿命 夫 | B10: 100 | D10: F2021 | E10: 40 | F10: 37 | G10: 2 | H10: ="" ->  | I10: 70 | J10: 66 | K10: 0 | L10: 0 | M10: =IF(OR(AND(G10<19,G10>14),AND(G10<25,G10>=23)),1,0)+IF(OR(AND(H10<19,H10>14),AND(H10<25,H10>=23)),1,0) -> 0 | N10: =IF(AND(G10>=19,G10<=22),1,0)+IF(AND(H10>=19,H10<=22),1,0) -> 0 | O10: 1 | P10: 3 | Q10: 1 | R10: 1 | S10: 0 | T10: 0 | U10: 0 | V10: 0 | W10: 0 | X10: 0 | Z10: 0 | AA10: 0 | AB10: 0 | AC10: =IF(OR(AC9=1,YB8<B$43*AE8),1,0) -> 0 | AD10: 0 | AE10: 1 | AF10: =B$35 -> -0.006 | AG10: 0.994 | AI10: =(1+((AH14/AH9)^(1/(MID(D14,2,4)-MID(D9,2,4)))-1)) -> 1.007499136 | AJ10: =AJ9*AI10 -> 29.11672503 | AK10: 1 | AL10: =IF(AND(Q10=1,E10<=B$15),(139750+240700+10000+33000)*12,0) -> 5081400 | AN10: =IF(AND(Q10=1,E10<=B$15),(11000+39000+6000+12000)*12+IF(H10<>"",4200),0) -> 816000 | AO10: =IF(Q10=1,950000+1131280,0) -> 2081280 | AP10: 1000000 | AQ10: 10000 | AR10: 0 | AS10: 0 | AT10: =IF(Q10=1,IF(E10-1=B$15,(AL9-12000*12)*((4837950/15)/(7405265/17.3)),IF(E10-1>B$15,AT9+3000*12,0)),0) -> 0 | AU10: =IF(Q10=1,IF(E10-1>=B$15,(10000+6000)*12+IF(H10<>"",3500),0),0) -> 0 | AV10: =IF(Q10=1,IF(E10-1>=B$15,AT10/12*3,0),0) -> 0 | AW10: =IF(B$40=1,UP10,0) -> 1800000 | AX10: 9788680 | AY10: 1950000 | AZ10: 7838680 | BA10: 0 | BB10: 0 | BC10: 0 | BD10: 0 | BE10: 0 | BF10: 0 | BG10: =BG9+BH9 -> 6372000 | BH10: =301000+532000 -> 833000 | BI10: 0.764 | BL10: 5504620 | BM10: =IF(BL10>0,BL10-BL9,0) -> 712876 | BN10: 18 | BO10: 7200000 | BP10: =IF(AND(Q10=1,E10>=B$15+1),BP9+BQ9,0) -> 0 | BQ10: 350000 | BR10: =_xlfn.IFS(AND(BX10>=1,BX10<=4),0.4,AND(BX10>=5,BX10<=9),0.5,AND(BX10>=10,BX10<=14),0.6,AND(BX10>=15,BX10<=19),0.7,TRUE,0) -> 0 | BT10: 237 | BV10: =IF(AND(Q10=1,E10>=B$15+1),(BP10+BQ10+(BT10+BU10)*1000)*BR10+(AT10+AV10)/12*BS10,0) -> 0 | BW10: =IF(BV10>0,BV10-BV9,0) -> 0 | BX10: =IF(E10=B$15+1,1,IF(BX9=0,0,IF(Q10=1,BX9+1,BX9))) -> 0 | BY10: 0 | BZ10: =IF(AND(Q10=1,E10<=B$15),252000,IF(Q10=1,240000,0)) -> 252000 | CB10: 1764435 | CC10: =CD10/CB10 -> 0.07118539362 | CD10: 125602 | CE10: 0 | CF10: 5 | CG10: 5 | CH10: 13 | CI10: 0 | CJ10: 0 | CK10: =IF(E10-B$12>=15,IF(CF10<20,400000*CF10*AE10,8000000*AE10+700000*AE10*((CF10-20))),IF(BO10<0,IF(CF10<20,400000*CF10*AE10,8000000*AE10+700000*AE10*((CF10-20))),IF(CF10<20,400000*CF10*AE10,8000000*AE10+700000*AE10*((CF10-20)))-IF(CI10<20,400000*CI10*AE10,8000000*AE10+700000*AE10*((CI10-20))))) -> 2000000 | CL10: 0 | CM10: 0 | CO10: 0 | CQ10: -650000 | CR10: 0 | CS10: =IF(CJ10<>0,(CB9+CD9+CE10)/CJ10,0) -> 0 | CT10: 0.362 | CU10: 1 | CY10: 0.251 | CZ10: =1/CY$9*CY10 -> 0.996031746 | DI10: 0 | DJ10: 0 | DK10: 0 | DL10: 0 | DM10: =DL10/(100%+DV9*(1-0.20315)) -> 0 | DN10: 0 | DO10: =DS10-DS9 -> 12796366.04 | DP10: 62999164.48 | DQ10: =IF(DP10=0,0,DR10/DP10) -> 0.004440686203 | DR10: =DT10-DT9 -> 279759.5205 | DS10: =DU10-DT10 -> 49674000 | DT10: 13604924 | DU10: 63278924 | DV10: =IF(DU10=0,0,(DU10-DS10)/DS10) -> 0.273884205 | DW10: 0 | DX10: 0 | DY10: 320.7251508 | DZ10: 0 | EA10: 0 | EB10: 0 | EC10: 0 | ED10: 0 | EE10: 0 | EF10: 0 | EG10: 0 | EH10: 2958084.84 | EI10: 1000000 | EJ10: 0 | EK10: 3958084.84 | EL10: =0.15%*0.8 -> 0.0012 | EM10: 4749.701808 | EN10: =IF(AND(Q10=1,E10<=B$15),2500*12,0) -> 30000 | EO10: 14608.33333 | EP10: 0.5 | EQ10: 90 | ER10: 0 | ES10: =IF(AZ9+BE9+BF9+CL9>8960000*AE10,0,IF(AZ9+BE9+BF9+CL9>6600000*AE10,5000*12*AE10,15000*12*AE10)) -> 60000 | EW10: 60000 | EX10: =LG10*0.02/IF(AND(LG10>0,LG10<=ふるさと納税計算式!B$2),ふるさと納税計算式!D$2,IF(LG10<=ふるさと納税計算式!B$3,ふるさと納税計算式!D$3,IF(LG10<=ふるさと納税計算式!B$4,ふるさと納税計算式!D$4,IF(LG10<=ふるさと納税計算式!B$5,ふるさと納税計算式!D$5,IF(LG10<=ふるさと納税計算式!B$6,ふるさと納税計算式!D$6,IF(LG10<=ふるさと納税計算式!B$7,ふるさと納税計算式!D$7,ふるさと納税計算式!D$8))))))+2000*AE10 -> 167961.0604 | EY10: 48388.31813 | FA10: 400000 | FB10: 1983490 | FC10: =FD10/FB10 -> 0.05981678758 | FD10: 118646 | FG10: 0 | FI10: 0 | FJ10: =IF(アセットアロケーション!$R27=10,アセットアロケーション!$H$10*$B$33*-1+(アセットアロケーション!$H$9+$AD10),IF(アセットアロケーション!$R27=5,アセットアロケーション!$H$10*($B$33-1)*-1+(アセットアロケーション!$H$9+$AD10),(アセットアロケーション!$H$9+$AD10)+アセットアロケーション!$H$10*$B$33/8+アセットアロケーション!$H$10*($B$33-1)/8)) -> 0.123696 | FK10: 0 | FN10: 0 | FO10: 1070920.752 | FP10: 0 | FQ10: 0 | FR10: 0 | FS10: 0 | FT10: =IF(R10=1,(254100+25410+10000+24000+4100)+1817.357*(8)+2271.774*(6+20/60),IF(R10=2,(1030000*AE10)/12,0)) -> 346536.758 | FU10: =IF(R10>=1,FT10*12*IF(H11="",1,IF(H11=0,10.5/12,IF(H10=0,0,IF(H10<>"",1)))))+IF(B$40=1,UR10,0) -> 4158441.096 | FV10: =IF(R10=1,(254100+25410+10000)*IF(H11="",1,IF(H11=0,10.5/12,IF(H10=0,0,IF(H10<>"",1))))*4,0) -> 1158040 | FW10: 5316481.096 | FX10: 3813184.877 | FY10: 3813184.877 | FZ10: 0 | GD10: 0 | GE10: =IF(F10<=B$30,IF(OR(R10>=1,I10=""),276000*AE8,IF(FU10>20000000,276000*AE8,0)),0) -> 276000 | GF10: 367816 | GG10: =GH10/GF10 -> 0.04453041738 | GH10: 16379 | GI10: 0 | GR10: 0 | GS10: 0 | GT10: 0 | GU10: 0 | GV10: 0.5 | GW10: 30 | GX10: =GU10*GV10*GW10 -> 0 | GY10: =FT9*IF(H11="",0,IF(H11=0,2/3*1.5,IF(H10=0,2/3*8+1/2*4,IF(H10<>"",0)))) -> 0 | GZ10: =GX10+GY10 -> 0 | HA10: =LM10*0.02/IF(AND(LM10>0,LM10<=ふるさと納税計算式!B$2),ふるさと納税計算式!D$2,IF(LM10<=ふるさと納税計算式!B$3,ふるさと納税計算式!D$3,IF(LM10<=ふるさと納税計算式!B$4,ふるさと納税計算式!D$4,IF(LM10<=ふるさと納税計算式!B$5,ふるさと納税計算式!D$5,IF(LM10<=ふるさと納税計算式!B$6,ふるさと納税計算式!D$6,IF(LM10<=ふるさと納税計算式!B$7,ふるさと納税計算式!D$7,ふるさと納税計算式!D$8))))))+2000*AE10 -> 59227.85385 | HB10: 15768.35615 | HF10: =HG10-HG9-HI9 -> 366688.25 | HG10: 1510876 | HH10: =IF(アセットアロケーション!$R27=10,アセットアロケーション!$H$10*$B$33*-1+(アセットアロケーション!$H$9+$AD10),IF(アセットアロケーション!$R27=5,アセットアロケーション!$H$10*($B$33-1)*-1+(アセットアロケーション!$H$9+$AD10),(アセットアロケーション!$H$9+$AD10)+アセットアロケーション!$H$10*$B$33/8+アセットアロケーション!$H$10*($B$33-1)/8)) -> 0.123696 | HI10: 113822 | HJ10: 0 | HK10: 0 | HL10: 0 | HM10: 0 | HN10: =アセットアロケーション!S27 -> 0.104289782 | HO10: =(HM10-HL10+HL10/12)*HN10+HL10/12*HN10/12*11+HL10/12*HN10/12*10+HL10/12*HN10/12*9+HL10/12*HN10/12*8+HL10/12*HN10/12*7+HL10/12*HN10/12*6+HL10/12*HN10/12*5+HL10/12*HN10/12*4+HL10/12*HN10/12*3+HL10/12*HN10/12*2+HL10/12*HN10/12*1 -> 0 | HP10: 0 | HQ10: =HR10-HP10 -> 0 | HR10: =HM10+HO10 -> 0 | HS10: =IF(HR10=0,0,(HR10-HP10)/HP10) -> 0 | HT10: =IF(B$17=2,0,207030) -> 207030 | HU10: =HU9+HT10 -> 1277300 | HV10: 1134992.029 | HW10: =IF(B$17=2,0,HV10) -> 1134992.029 | HX10: =IF(B$17=2,0,HW10-HW9) -> 191156.0791 | HY10: -15873.92088 | HZ10: 6 | IA10: -0.01949461494 | IB10: 1000000 | IC10: 0 | ID10: 800000 | IE10: 2919562 | IF10: =IG10/IE10 -> 0.05882560466 | IG10: 171745 | IH10: 0 | II10: =IF(H10<>"",800000,0) -> 0 | IJ10: 0 | IK10: =IF(アセットアロケーション!$R27=10,アセットアロケーション!$H$10*$B$33*-1+(アセットアロケーション!$H$9+$AD10),IF(アセットアロケーション!$R27=5,アセットアロケーション!$H$10*($B$33-1)*-1+(アセットアロケーション!$H$9+$AD10),(アセットアロケーション!$H$9+$AD10)+アセットアロケーション!$H$10*$B$33/8+アセットアロケーション!$H$10*($B$33-1)/8)) -> 0.123696 | IL10: =(IJ10-II10+II10/12)*IK10+II10/12*IK10/12*11+II10/12*IK10/12*10+II10/12*IK10/12*9+II10/12*IK10/12*8+II10/12*IK10/12*7+II10/12*IK10/12*6+II10/12*IK10/12*5+II10/12*IK10/12*4+II10/12*IK10/12*3+II10/12*IK10/12*2+II10/12*IK10/12*1 -> 0 | IM10: =IF(AND(B$40=1,I10<=B$37),ZU10,0) -> 1000000 | IN10: 20110264.55 | IO10: =365818-13003-3300-5000+HY10/12-KS10/12+(EY10+2000)/12-JB10-JC10-JM10 -> 314774.1998 | IP10: 89357 | IQ10: =IQ9*(100%+$AD10) -> 89357 | IR10: =IR9*(100%+$AD10) -> 89357 | IS10: 23691.25 | IT10: 10313.58333 | IU10: =3564+2100 -> 5664 | IV10: 20244 | IW10: 130000 | IX10: 29000 | IY10: 10181 | IZ10: 7500 | JA10: 2416.666667 | JB10: 2750 | JC10: 2416.666667 | JD10: 78000 | JE10: =JE9 -> 690000 | JF10: 78000 | JG10: 0 | JH10: 0 | JI10: 0 | JJ10: 0 | JK10: 0 | JL10: 0 | JM10: 8283.666667 | JN10: 3916235.397 | JO10: 300000 | JP10: 15000 | JQ10: 50000 | JW10: =(70*8)*20*12 -> 134400 | JX10: 0 | KK10: =(150+50)*20*12 -> 48000 | KN10: 保育園 | KO10: 230000 | KQ10: 182400 | KS10: 230000 | KT10: 182400 | KU10: 385719.6164 | KV10: 895664.22 | KW10: 368388.328 | KX10: =IF(E10="",0,IF(E10<65,(AL10+AN10+AO10+AQ10+AS10)*9/1000+IF(AW10>1390000*12*AE10,1390000*12*AE10,AW10)*(12.01%-10.22%)/2+IF(AND(AC10=1,Q10=0),4424*AE10+13396*AE10*(1+IF(G10<=24,1,0))+IF(AZ9+BE9+BF9+DK9>330000*AE10,(AZ9+BE9+BF9+DK9-330000*AE10)*2.62%,0),0),95124*AE10*IF(LL10=0,IF(LQ10=0,IF(AZ9+BE9+BF9+DI9<800000*AE10,0.5,IF(AZ9+BE9+BF9+DI9<1200000*AE10,0.65,0.75)),IF(AZ9+BE9+BF9+DI9<800000*AE10,0.85,1)),IF(AZ9+BE9+BF9+DI9<=1250000*AE10,1.1,IF(AZ9+BE9+BF9+DK9<2000000*AE10,1.25,IF(AZ9+BE9+BF9+DK9<4000000*AE10,1.5,IF(AZ9+BE9+BF9+DK9<7000000*AE10,1.75,2)))))))*AK10 -> 88008.12 | KY10: =IF(E10="",0,IF(Q10=1,AX10-AW10,0)*3/1000) -> 23966.04 | KZ10: =IF(OR(R10=1,AND(AC10=0,R10<>1,FW10+GR10>1800000*AE10,F10>=60,E10<70,E10<>""),AND(AC10=0,R10<>1,FW10+GR10>1300000*AE10,F10<60,E10<>"")),IF(FU10/12>=650000*AE10,650000*AE10*12*18.3%/2,IF(FU10/12>93000*AE10,FU10*18.3%/2,8052*AE10*12))+FV10*18.3%/2,0) -> 486458.0203 | LA10: =IF(OR(AND(E10>=75,F10<75),AND(FW10+GR10>1800000*AE10,F10>=60,F10<75,E10<>""),AND(FW10+GR10>1300000*AE10,F10<60,E10<>"")),IF(FU10>1390000*AE10*12,1390000*AE10*12,FU10)*10.22%/2+IF(FV10>5730000,5730000,FV10)*10.22%/2,IF(F10<75,0,IF(AND(E10<75,F10<75),(29376+9892)*AE10+(24372+8207)*AE10*(1+IF(AND(E10>=75,G10<=24),1,0))+IF(GT9+FY9>330000*AE10,(GT9+FY9-330000*AE10)*(8.06%+2.78%),0),IF(AND(E10>=75,F10<75),FW10*10.22%/2,(FY10+GT10-330000*AE10)*10.52%*(IF(AZ9+BE9+BF9+DK9+FY9+GT9<330000*AE10,0.3,IF(AZ9+BE9+BF9+DK9+FY9+GT9<(330000+285000*COUNTA(E10:F10))*AE10,0.5,IF(AZ9+BE9+BF9+DK9+FY9+GT9<(330000+520000*COUNTIF(E10:F10,">=75"))*AE10,0.8))))+54111*AE10*IF(OR(F10=75,F10=76),50%,1)))))*AK10 -> 271672.184 | LC10: =IF(R10=1,(FU10+FV10)*3/1000,0) -> 15949.44329 | LG10: 5773785.292 | LH10: 727257.0584 | LI10: 0 | LJ10: 15272.39823 | LK10: 5847785.292 | LL10: =IF(LK9>0,LK9*10%+(3500+2300)*$AE9,0) -> 571983.5306 | LM10: 2283105.229 | LN10: =IF(LM10<=0,0,IF(LM10<=1950000*$AE10,LM10*5%,IF(LM10<=3300000*$AE10,LM10*10%-97500*$AE10,IF(LM10<=6950000*$AE10,LM10*20%-427500*$AE10,IF(LM10<=9000000*$AE10,LM10*23%-636000*$AE10,IF(LM10<=18000000*$AE10,LM10*33%-1536000*$AE10,LM10*40%)))))) -> 130810.5229 | LO10: 2747.020981 | LP10: 2333105.229 | LQ10: =IF(LP9>0,LP9*10%+(3500+2300)*$AE9,0) -> 120696.5621 | LR10: 2004 | LS10: 0 | LT10: 0 | LU10: 0 | LV10: 0 | LW10: 0 | LX10: 0 | LY10: 0 | LZ10: 0 | MA10: 0 | MB10: 0 | MC10: 0 | MD10: 0 | ME10: 0 | MF10: 0 | MG10: 0 | MH10: 0 | MI10: 0 | MJ10: 0 | MK10: 0 | ML10: 0 | MM10: 0 | MN10: 712.4552712 | MO10: 14.9615607 | MP10: 237.4850904 | MQ10: 964.9019224 | MR10: 0 | MS10: 0 | MT10: 0 | MU10: 8350477.748 | MV10: 11759786.8 | MW10: 11759786.8 | MX10: 63278924 | MY10: 0 | MZ10: 2102136 | NA10: 1624698 | NB10: 0 | NC10: 3091307 | ND10: 0 | NE10: 1890037 | NF10: 384195 | NG10: 72371297 | NH10: 72371297 | NI10: 400000 | NJ10: 1000000 | NK10: 0 | NL10: -6599115.286 | NM10: 3731388.412 | NN10: 3731388.412 | NO10: 1134992.029 | NP10: 5504620 | NQ10: 2000000 | NR10: 13771000.44 | NS10: 13771000.44 | NT10: 117195.1312 | NU10: 80000 | NV10: 77000 | NW10: 15.06333333 | NX10: 1215981.558 | NY10: 1307596.44 | NZ10: 815668.3207 | OA10: 0.9879320577 | OB10: 130000 | OC10: =OC9 -> 330.57 | OD10: 46334538.58 | OE10: 0 | OF10: 0 | OG10: 0 | OH10: 815668.3207 | OI10: 0.9879320577 | OJ10: 130000 | OK10: 89000 | OL10: 749 | OM10: 81906325.76 | ON10: 0 | OO10: 0 | OP10: 0 | OQ10: 1307596.44 | OR10: 1307596.44 | OS10: =IF(OR(AB10=0,AA10=0),321*AE10,188*AE10) -> 321 | OT10: 5.2 | OU10: 36 | OV10: 175 | OW10: 0 | OX10: 20.38549802 | OY10: 153.476273 | OZ10: =IF(YC10/100000>0,YC10/100000,0) -> 1069.124645 | PA10: =IF(OS10*(OW10/OT10+OX10/OU10+OY10/OV10)/3*(20000000/100000/50)*0.5+OZ10*0.5>0,(OS10*(OW10/OT10+OX10/OU10+OY10/OV10)/3*(20000000/100000/50)*0.5+OZ10*0.5),2) -> 843.4223397 | PB10: =IF(YD10/100000>0,(YD10-UY11-VR11-VU11)/100000,0) -> 1797.54677 | PC10: 41600 | PD10: 44475585.24 | PE10: 35086369.33 | PF10: 74777945.63 | PG10: 74777945.63 | PH10: 160692097.4 | PI10: 160692097.4 | QO10: 0 | QP10: 0 | QQ10: 0 | QR10: 0 | QS10: 0 | QT10: -1535742.077 | QU10: 160692097.4 | QV10: 160692097.4 | QW10: 160692097.4 | QX10: =QV10-IF((DU10-DS10)>0,(DU10-DS10)*0.2,0)+(メイン!YD10-メイン!XC10-メイン!WX10*32000*AE10-メイン!WU10*3%-メイン!WM10*3%-(メイン!YD10-メイン!XC10-メイン!WX10*32000*AE10-メイン!WU10*3%-メイン!WM10*3%-メイン!YC10)*23%)*0.8/100000*PC10-PF10-NY10*3%-(NY10*95%-NY10*3%)*20%-(OG10*95%-OG10*3%)*20%-(OP10*95%-OP10*3%)*20% -> 122133846.8 | QY10: 122133846.8 | QZ10: 12031727.51 | RA10: 12010049.06 | RB10: 160692097.4 | RC10: 0 | RF10: =RG10-RG9-RH9 -> 14888854.26 | RG10: 71545343.48 | RH10: 825953.5205 | RI10: =RH10/RG10 -> 0.01154447628 | RJ10: =RL9 -> 138.3690194 | RK10: =RJ10*RI10 -> 1.597397861 | RL10: =RJ10+RK10 -> 139.9664172 | RN10: =(RL10-100)/100/3-B$34 -> 0.1082213907 | RO10: 0.07318211032 | RS10: 114673714.2 | RT10: 36336857.11 | RU10: 5267371.422 | RV10: 36336857.11 | RW10: 5267371.422 | RX10: 10534742.84 | RY10: 57336857.11 | RZ10: 0 | SA10: 57336857.11 | SB10: 3467371.422 | SF10: 1 | SG10: 0 | SH10: =家賃下落率!C13 -> 0.009 | SI10: =IF(SF10=1,AE10,SI9) -> 1 | SJ10: 1 | SK10: =IF($AB10=1,0,IF($AA10=0,SK9*(100%-$SH10)*(100%+$AD10)*($OA10/$OA9),0)) -> 27883441.83 | SL10: =IF(AB10=1,0,IF($AA10=0,SUM(一括!$E$3:$E$40)*12,0)) -> 23869560 | SM10: 0.8560478345 | SN10: -21571728.36 | SO10: 0 | SP10: 0 | SQ10: =IF($AB10=1,0,IF($AA10=0,SQ9*(100%-$SH10)*(100%+$AD10)*($OA10/$OA9),0)) -> 2665415.911 | SR10: 2403249.6 | SS10: 0.9016415 | ST10: 0 | SU10: 0 | SV10: 0 | SY10: =IF(W10=1,0,SY9) -> 21124800 | SZ10: =(XC10-XC9) -> 323485.2102 | TA10: 51805.75118 | TB10: =XF10-XF9 -> 0 | TC10: =XJ10-XJ9 -> -6693.85811 | TD10: 156425000 | TE10: 0 | TF10: =IF(WD10-WD9<0,WD10-WD9,0) -> 0 | TG10: 0 | TH10: 9967444 | TI10: 9967444 | TJ10: =TK10/TI10 -> 0.016222815 | TK10: =10129144-TI10 -> 161700 | TL10: 47559309.6 | TM10: =TL10+SN10+ST10+SV10+SP10+SZ10+TB10+TC10+TF10 -> 26304372.59 | TN10: =IF(AB10=1,0,IF($AA10=0,TN9*(100%+メイン!$AD10)*WG10/WG9,0)) -> 1931051.363 | TO10: =IF($AA10=0,5881943,0) -> 5881943 | TP10: 103686 | TQ10: 321027 | TR10: 1429129 | TS10: 215994 | TT10: 7951779 | TU10: =VLOOKUP(XN10,返済明細!A:Z,9,FALSE) -> 5505236.749 | TV10: 270666 | TX10: 0 | TY10: 0 | TZ10: 0 | UA10: =IF(AB10=1,0,IF($AA10=0,UA9*(100%+$AD10)*(NZ10/NZ9),0)) -> 109097.689 | UB10: =IF(AB10=1,0,IF($AA10=1,0,IF(UB9>(OC10*$OB10*0.99)*0.8*6%,UB9,(OC10*$OB10*0.99)*0.8*6%))) -> 2042129.232 | UC10: 0 | UD10: 67067.16595 | UE10: 451454 | UF10: 642286 | UG10: 198465.45 | UH10: 1292205.45 | UI10: =SY10*4% -> 844992 | UL10: 6600000 | UM10: 4920000 | UN10: =IF(W10=1,0,UN9*(100%+$AD10)*WY10/WY9) -> 204564.0664 | UO10: 1800000 | UP10: =UP9 -> 1800000 | UQ10: 0 | UR10: 0 | US10: =US9 -> 1548000 | UT10: =UT9 -> 960000 | UU10: =IF(J10="",0,UU9) -> 360000 | UV10: 381190.6771 | UY10: 0 | VD10: =175530+705476+128360+338792+4509+8530+120000-VG10 -> 1289466 | VE10: =VE9 -> 198780 | VF10: =VF9 -> 493154 | VG10: =IF(AC10=1,0,IF($I10="",(IR10*(1/7)+IS10*(1/7)+IU10*(1/7)+IV10)*12,(IT10+IU10)*12)) -> 191731 | VI10: =IF(YB8<0,0,VI9*(100%+$AD10)) -> 444000 | VJ10: 2617131 | VK10: 39405110.39 | VL10: 4473234.113 | VM10: 670985.117 | VN10: 69111.46705 | VO10: 313126.3879 | VP10: 44732.34113 | VQ10: =IF(WB8<0,0,VQ9*(100%+$AD10)) -> 20000 | VR10: =VM9+VN9+VO9+VP9+VQ9 -> 20000 | VS10: -0.00543335769 | VT10: 8154199.207 | VU10: =IF(AND(I10="",VT9>0),VT9*B$51,0) -> 0 | VV10: 30181125.94 | VW10: -3876753.349 | VX10: -581375.1865 | VY10: 13058573.19 | VZ10: =24564210+1173110 -> 25737320 | WA10: 10129144 | WB10: =VZ10+WA10+VX10 -> 35285088.81 | WC10: 12038993 | WD10: 2081450 | WE10: 6408769 | WF10: 10.5 | WG10: =IF($AA10=0,WG9-TO10,0) -> 228415488 | WH10: 311062 | WI10: 963084 | WJ10: 4287391 | WK10: 834973 | WL10: 234811998 | WM10: 232982078 | WN10: =築年スプレッド!C11 -> 0.06856943234 | WO10: 0.09041064242 | WP10: -0.009538160524 | WQ10: =(SL10+SR10-TN10-UA10-メイン!ZQ10-TU10-TV10-TW10-(SL10+SR10-TN10-UA10-メイン!ZQ10-TU10-TT10-TV10-TW10)*20%)/(WM10+WU10+メイン!ABI10+メイン!OG10) -> 0.04815015441 | WR10: 334.31 | WS10: 18600000 | WT10: 43025697 | WU10: 58573447.35 | WV10: 32 | WW10: =IF(XH10=0,0,WW9) -> 664.28 | WX10: 200.6888218 | WY10: =IF(XH10=0,0,WY9-UE10) -> 7468804.062 | WZ10: =IF(XH10=0,0,WZ9-UF10) -> 10625905.62 | XA10: =IF(XH10=0,0,XA9-UG10) -> 3489685.1 | XB10: =IF(XH10=0,0,WY10+WZ10+XA10) -> 21584394.78 | XC10: 44586768.97 | XD10: 0.06853919156 | XE10: 8508871.8 | XF10: 11583634.65 | XG10: =XG9*(100%+メイン!$AD10)*(メイン!NZ10/メイン!NZ9) -> 103732.8661 | XH10: 599 | XI10: 36971437.4 | XJ10: 42072010.21 | XK10: 445612240 | XL10: 445612240 | XM10: 20 | XN10: =XN9+12 -> 135 | XP10: =VLOOKUP(XN10,返済明細!A:Z,10,FALSE)*-1 -> 13610354.59 | XQ10: 13610354.59 | XR10: =VLOOKUP(XN10,返済明細!A:H,8,FALSE) -> 200247346.7 | XS10: =IF(W10=1,0,IF(メイン!J10="",0,18000000)) -> 18000000 | XT10: 0 | XU10: =XU9 -> 2000000 | XV10: =XY9-33992261 -> 7739 | XW10: =XU10+XV10 -> 2007739 | XX10: =IF(XX9>0,XX9-XU10,0) -> 12500000 | XY10: =XY9-XV10 -> 33992261 | XZ10: =XX10+XY10 -> 46492261 | YA10: 264739607.7 | YB10: 61390509.21 | YC10: 106912464.5 | YD10: =YD9+VW10 -> 180872632.3 | YE10: =YD10/メイン!AE10 -> 180872632.3 | YF10: 180872632.3 | YG10: 9386068.813 | YI10: 0.4058969123 | YJ10: 1.858447517 | YK10: 2.592517967 | YL10: 8278501.246 | YM10: =YL10/(YD10+メイン!ABI10+メイン!ABL10) -> 0.02559106954 | YS10: =IF(I10<>"",メイン!UB10,0) -> 2042129.232 | YT10: =IF(I10<>"",メイン!UM10+IF(X10=1,381610*12*AE10*IF(E10-B$57>1,1,0.5),0),0) -> 4920000 | YU10: 5984866.918 | YV10: =IF(I10<>"",メイン!US10,0) -> 1548000 | YW10: 998000 | YX10: 998000 | YY10: 780100 | YZ10: 780100 | ZA10: =ZA9 -> 1335806 | ZB10: 1322522.151 | ZC10: 2102622.151 | ZD10: 902622.1514 | ZE10: 902622.1514 | ZF10: 0 | ZG10: 0 | ZH10: 10612751.38 | ZI10: 79102.8 | ZJ10: 190248 | ZK10: 6656138.27 | ZL10: 903727.654 | ZM10: 6756138.27 | ZN10: =IF(ZM9>0,ZM9*10%+(3500+2300)*$AE9,0) -> 645406.2334 | ZO10: =IF($I10<>"",ZO9*(100%+$AD10)*(100%-0.2%),0) -> 142115.2 | ZP10: =IF($I10<>"",ZP9*(100%+$AD10)*(NT10/NT9),0) -> 136642.5588 | ZQ10: =IF(OR(AB10=1,AA10=1),0,IF($I10<>"",ZQ9*(100%+$AD10)*(NZ10/NZ9),0)) -> 107879.1091 | ZR10: 0 | ZS10: =IF(Z10=1,0,IF($I10<>"",ZS9*(100%+$AD10)*(OH10/OH9),0)) -> 869383.2044 | ZT10: 0 | ZU10: 1000000 | ZV10: 3000000 | ZW10: 1000000 | ZX10: 1000000 | ZY10: =SUM(ZV$8:ZW10)+(AAK10-AAK$8)*PA10 -> 9000000 | ZZ10: 0 | AAA10: 0 | AAB10: 0 | AAC10: 0 | AAD10: 0 | AAE10: 0 | AAF10: 0 | AAG10: 0 | AAH10: 0 | AAI10: 9074504.76 | AAJ10: 1538246.624 | AAK10: 5200 | AAL10: 4385796.166 | AAM10: 9347243.203 | AAN10: 1000 | AAO10: =AAO9*(100%+AD10) -> 7252 | AAP10: 7252000 | AAQ10: 2000 | AAR10: =AAR9*(100%+$AD10) -> 319 | AAS10: 638000 | AAT10: 7930843 | AAU10: =AAU9*(100%+AD10) -> 2625 | AAV10: 2081846.288 | AAW10: 30000 | AAX10: 104.587548 | AAY10: 3137626.44 | AAZ10: 42 | ABA10: 200.55 | ABB10: 60.58912387 | ABC10: =IF($I10<>"",ABC9*(100%+$AD10)*(100%-0.2%),0) -> 8359790.912 | ABD10: 436.8366667 | ABE10: 12002687.85 | ABF10: 37920296.76 | ABG10: 330.57 | ABH10: 34035487.2 | ABI10: 46334538.58 | ABJ10: 748.5 | ABK10: 81851648.64 | ABL10: 96284632.86 | ABM10: =IF($I10="",0,ABM9) -> 4516472 | ABN10: =IF($I10="",0,ABN9) -> 6231890 | ABO10: 0 | ABP10: 10748362 | ABQ10: 38492261 | ABR10: 0 | ABS10: 260596598 | ABT10: 192237144.5 | ABU10: 76618572.25 | ABV10: 15985571.67 | ABW10: 0.1663109564 | ABX10: 38309286.12 | ABY10: 5661857.225 | ABZ10: 38309286.12 | ACA10: 5661857.225 | ACB10: 27309286.12 | ACC10: 39076709.59 | ACD10: 35621203.66 | ACE10: 41655103.1 | ACF10: 77147540.21 | ACG10: 38070830.62 | ACH10: 1.118562822 | ACI10: 1 | ACJ10: 4035343.421 | ACK10: 4835095.011 | ACL10: 41526336.55 | ACM10: 0.507336593 | ACN10: 0 | ACO10: 5899248.085 | ACP10: 112289524.6 | ACQ10: 216013940.8 | ACT10: =メイン!UT10 -> 960000 | ACU10: 410000 | ACV10: 410000 | ACW10: 0 | ACX10: 0 | ACY10: 0 | ACZ10: 0 | ADA10: 0 | ADB10: 780100 | ADC10: 780100 | ADD10: =ADD9*103% -> 358215.689 | ADE10: 1138315.689 | ADF10: 758315.689 | ADG10: =IF(メイン!XS10<65,IF(ADF10<700000,0,IF(ADF10<1299999,ADF10-700000,IF(ADF10<4099999,ADF10*75%-375000,IF(ADF10<7699999,ADF10*85%-785000)))),0)+IF(メイン!XS10>64,IF(ADF10<1200000,0,IF(ADF10<3299999,ADF10-1200000,IF(ADF10<4099999,ADF10*75%-375000,IF(ADF10<7699999,ADF10*85%-785000)))),0) -> 0 | ADH10: 0 | ADI10: 0 | ADJ10: 0 | ADK10: 2098315.689 | ADL10: 0 | ADM10: 0 | ADN10: 0 | ADO10: 0 | ADP10: 0 | ADQ10: 0 | ADR10: 49056 | ADS10: 95124 | ADT10: -214180 | ADU10: 0 | ADV10: -164180 | ADW10: =IF(ADV9>0,ADV9*10%+(3500+2300)*$AE9,0) -> 0 | ADX10: 3600000 | ADY10: 0 | ADZ10: 0 | AEA10: 0 | AEB10: 0 | AEC10: 3600000 | AED10: 3744180 | AEE10: -1645864.311 | AEF10: 28300 | AEG10: 23868852.21 | AEH10: 50870573.59 | AEI10: 0 | AEJ10: 0 | AEK10: 0 | AEL10: 0 | AEM10: 0 | AEN10: 0 | AEO10: 0 | AEP10: 0 | AEQ10: 0 | AER10: 0 | AES10: 0 | AET10: 0 | AEU10: 0 | AEV10: 0 | AEW10: 0 | AEX10: 0 | AEY10: 0 | AEZ10: 0 | AFA10: 0 | AFB10: 0 | AFC10: 0 | AFD10: 0 | AFE10: 0 | AFF10: 0 | AFG10: 0 | AFH10: 6000000 | AFI10: 360000 | AFJ10: =AFI10+AFJ9+AFL9 -> 11376430.91 | AFK10: 0.01 | AFL10: 112114.3091 | AFM10: 20000000 | AFN10: 31488545.22 | AFO10: 88359118.81 | AFP10: 61357397.43 | AFQ10: 9678698.716 | AFR10: 951804.8075 | AFS10: 0.03102494067 | AFT10: 1903609.615 | AFU10: 5398875.643 | AFV10: 66756273.08 | AFW10: 27979260.89 | AFX10: 4110408.681 | AFY10: 868054.9092 | AGB10: 0 | AGC10: 0 | AGD10: 0 | AGE10: 0 | AGF10: =AGF9 -> 24900 | AGG10: 21001216.26 | AGH10: 44758914.57 | AGI10: 0 | AGJ10: 0 | AGK10: 0 | AGL10: 0 | AGM10: 0 | AGN10: =AGL10*AGM10 -> 0 | AGO10: 0 | AGP10: 0 | AGQ10: =AGO10*AGP10 -> 0 | AGR10: 0 | AGS10: 0 | AGT10: =AGR10*AGS10/10000 -> 0 | AGU10: 0 | AGV10: 0 | AGW10: =AGU10*AGV10 -> 0 | AGX10: 9000000 | AGY10: 0 | AGZ10: 0 | AHA10: 0 | AHC10: =AGY10+AHA10+AGZ10+AGN10+AGQ10+AGT10+AGW10 -> 0 | AHD10: 0 | AHE10: =AGH10+AHC10+AHD10+AGK10 -> 44758914.57 | AHF10: 44758914.57 | AHH10: 100000 | AHI10: 96284632.86
A11: 寿命 妻 | B11: 100 | D11: F2022 | E11: 41 | F11: 38 | G11: 3 | H11: =IF(B17=2,0,"") ->  | I11: 71 | J11: 67 | K11: 0 | L11: 0 | M11: 0 | N11: 0 | O11: 1 | P11: 4 | Q11: 1 | R11: 1 | S11: 0 | T11: 0 | U11: 0 | V11: 0 | W11: 0 | X11: 0 | Z11: 0 | AA11: 0 | AB11: 0 | AC11: 0 | AD11: 0 | AE11: 1 | AF11: -0.012 | AG11: 0.982072 | AI11: =AI10 -> 1.007499136 | AJ11: =AJ10*AI11 -> 29.33507531 | AK11: 1 | AL11: =IF(AND(Q11=1,E11<=B$15),(149150+252700+21000+36500)*12,0) -> 5512200 | AN11: =IF(AND(Q11=1,E11<=B$15),(11000+10000+12000)*12+IF(H11<>"",4200),0) -> 396000 | AO11: =IF(AND(Q11=1,E11<=B$15),1196090*2,0) -> 2392180 | AP11: =IF(AND(Q11=1,E11<=B$15),1000000,0) -> 1000000 | AQ11: 10000 | AR11: 0 | AS11: 0 | AT11: =IF(Q11=1,IF(E11-1=B$15,(AL10-12000*12)*((4837950/15)/(7405265/17.3)),IF(E11-1>B$15,AT10+3000*12,0)),0) -> 0 | AU11: 0 | AV11: 0 | AW11: 600000 | AX11: 8910380 | AY11: 1950000 | AZ11: 6960380 | BA11: 0 | BB11: 0 | BC11: 0 | BD11: 0 | BE11: 0 | BF11: 0 | BG11: 7205000 | BH11: =301000+532000 -> 833000 | BI11: 0.776 | BL11: 6237488 | BM11: 732868 | BN11: 19 | BO11: 7600000 | BP11: 0 | BQ11: =BQ10 -> 350000 | BR11: =_xlfn.IFS(AND(BX11>=1,BX11<=4),0.4,AND(BX11>=5,BX11<=9),0.5,AND(BX11>=10,BX11<=14),0.6,AND(BX11>=15,BX11<=19),0.7,TRUE,0) -> 0 | BT11: =BT10 -> 237 | BV11: =IF(AND(Q11=1,E11>=B$15+1),(BP11+BQ11+(BT11+BU11)*1000)*BR11+(AT11+AV11)/12*BS11,0) -> 0 | BW11: 0 | BX11: =IF(E11=B$15+1,1,IF(BX10=0,0,IF(Q11=1,BX10+1,BX10))) -> 0 | BY11: 0 | BZ11: =CB11-CD10-CB10 -> 265000 | CA11: =IF(E11<=B$29,IF(AND(Q11=1,E11<=B$15),0,IF(Q11=1,7500*12,276000*AE11)),0) -> 0 | CB11: =2611401-CD11 -> 2155037 | CC11: =CD11/CB11 -> 0.2117662017 | CD11: =1084401-CD10-CD9-CD8 -> 456364 | CE11: 0 | CF11: 6 | CG11: 6 | CH11: 15 | CI11: 2 | CJ11: 0 | CK11: 1600000 | CL11: 0 | CM11: 800000 | CO11: 800000 | CP11: =(IR11+IS11+IU11)*12*38% -> 352739.94 | CQ11: -202739.94 | CR11: 0 | CS11: 0 | CT11: 0.361 | CU11: =1/CT$10*CT11*AG11 -> 0.9793590939 | CY11: 0.25 | CZ11: =1/CY$9*CY11 -> 0.9920634921 | DI11: 0 | DJ11: 0 | DK11: 0 | DL11: 0 | DM11: 0 | DN11: 0 | DO11: =DS11-DS10 -> 5865066.792 | DP11: 69143990.79 | DQ11: 0.1639737181 | DR11: =DT11-DT10 -> 11337797.26 | DS11: =DU11-DT11 -> 55539066.79 | DT11: 24942721.26 | DU11: 80481788.05 | DV11: 0.4491022752 | DW11: 0 | DX11: 0 | DY11: 32393.24023 | DZ11: 0 | EA11: 0 | EB11: 0 | EC11: 0 | ED11: 0 | EE11: 0 | EF11: 0 | EG11: 0 | EH11: 2195646.335 | EI11: 1000000 | EJ11: 0 | EK11: 3195646.335 | EL11: =AD11*0.8 -> 0 | EM11: 0 | EN11: 0 | EO11: 16381.66667 | EP11: 0.5 | EQ11: 90 | ER11: 0 | ES11: =IF(AZ10+BE10+BF10+CL10>8960000*AE11,0,IF(AZ10+BE10+BF10+CL10>6600000*AE11,5000*12*AE11,15000*12*AE11)) -> 60000 | ET11: =IF(H11>14,0,IF(Q11=1,5000*12*AE11,10000*12*AE11)) -> 0 | EW11: 60000 | EX11: =LG11*0.02/IF(AND(LG11>0,LG11<=ふるさと納税計算式!B$2),ふるさと納税計算式!D$2,IF(LG11<=ふるさと納税計算式!B$3,ふるさと納税計算式!D$3,IF(LG11<=ふるさと納税計算式!B$4,ふるさと納税計算式!D$4,IF(LG11<=ふるさと納税計算式!B$5,ふるさと納税計算式!D$5,IF(LG11<=ふるさと納税計算式!B$6,ふるさと納税計算式!D$6,IF(LG11<=ふるさと納税計算式!B$7,ふるさと納税計算式!D$7,ふるさと納税計算式!D$8))))))+2000*AE11 -> 148712.4968 | EY11: 42613.74903 | FA11: =FB11-FD10-FB10 -> 387896.47 | FB11: =3089908-FD11 -> 2490032.47 | FC11: =FD11/FB11 -> 0.240910726 | FD11: =1135928-SUM(FD8:FD10) -> 599875.53 | FG11: 0 | FI11: 0 | FJ11: =IF(アセットアロケーション!$R28=10,アセットアロケーション!$H$10*$B$33*-1+(アセットアロケーション!$H$9+$AD11),IF(アセットアロケーション!$R28=5,アセットアロケーション!$H$10*($B$33-1)*-1+(アセットアロケーション!$H$9+$AD11),(アセットアロケーション!$H$9+$AD11)+アセットアロケーション!$H$10*$B$33/8+アセットアロケーション!$H$10*($B$33-1)/8)) -> 0.123696 | FK11: 0 | FN11: 0 | FO11: 3709630.49 | FP11: 0 | FQ11: 0 | FR11: 0 | FS11: 0 | FT11: 346536.758 | FU11: 4158441.096 | FV11: =IF(R11=1,(254100+25410+10000)*IF(H12="",1,IF(H12=0,10.5/12,IF(H11=0,0,IF(H11<>"",1))))*4,0) -> 1158040 | FW11: 5316481.096 | FX11: 3813184.877 | FY11: 3813184.877 | FZ11: 0 | GD11: 0 | GE11: =GF11-GH10-GF10 -> 389000 | GF11: =906806-GH11 -> 773195 | GG11: =IF(アセットアロケーション!$R28=10,アセットアロケーション!$H$10*$B$33*-1+(アセットアロケーション!$H$9+$AD11),IF(アセットアロケーション!$R28=5,アセットアロケーション!$H$10*($B$33-1)*-1+(アセットアロケーション!$H$9+$AD11),(アセットアロケーション!$H$9+$AD11)+アセットアロケーション!$H$10*$B$33/8+アセットアロケーション!$H$10*($B$33-1)/8)) -> 0.123696 | GH11: =149806-SUM(GH8:GH10) -> 133611 | GI11: 0 | GR11: 0 | GS11: 0 | GT11: 0 | GU11: 0 | GV11: 0.5 | GW11: 30 | GX11: 0 | GY11: 0 | GZ11: 0 | HA11: =LM11*0.02/IF(AND(LM11>0,LM11<=ふるさと納税計算式!B$2),ふるさと納税計算式!D$2,IF(LM11<=ふるさと納税計算式!B$3,ふるさと納税計算式!D$3,IF(LM11<=ふるさと納税計算式!B$4,ふるさと納税計算式!D$4,IF(LM11<=ふるさと納税計算式!B$5,ふるさと納税計算式!D$5,IF(LM11<=ふるさと納税計算式!B$6,ふるさと納税計算式!D$6,IF(LM11<=ふるさと納税計算式!B$7,ふるさと納税計算式!D$7,ふるさと納税計算式!D$8))))))+2000*AE11 -> 56128.89503 | HB11: 14838.66851 | HF11: =HG11-HI10-HG10 -> 433258.85 | HG11: =2493290-HI11 -> 2057956.85 | HH11: =IF(アセットアロケーション!$R28=10,アセットアロケーション!$H$10*$B$33*-1+(アセットアロケーション!$H$9+$AD11),IF(アセットアロケーション!$R28=5,アセットアロケーション!$H$10*($B$33-1)*-1+(アセットアロケーション!$H$9+$AD11),(アセットアロケーション!$H$9+$AD11)+アセットアロケーション!$H$10*$B$33/8+アセットアロケーション!$H$10*($B$33-1)/8)) -> 0.123696 | HI11: =859973-SUM(HI8:HI10) -> 435333.15 | HJ11: 0 | HK11: 0 | HL11: 0 | HM11: 0 | HN11: =アセットアロケーション!S28 -> 0.1004994723 | HO11: 0 | HP11: 0 | HQ11: 0 | HR11: 0 | HS11: 0 | HT11: 207030 | HU11: 1484330 | HV11: 1329652.614 | HW11: 1329652.614 | HX11: 194660.5856 | HY11: -12369.41439 | HZ11: 7 | IA11: -0.01559789799 | IB11: 1000000 | IC11: 0 | ID11: =IE11-IG10-IE10 -> 800000 | IE11: =4548887-IG11 -> 3891307 | IF11: =IG11/IE11 -> 0.1689869239 | IG11: =1348895-SUM(IG8:IG10) -> 657580 | IH11: 0 | II11: =IF(H11<>"",800000,0) -> 0 | IJ11: 0 | IK11: =IF(アセットアロケーション!$R28=10,アセットアロケーション!$H$10*$B$33*-1+(アセットアロケーション!$H$9+$AD11),IF(アセットアロケーション!$R28=5,アセットアロケーション!$H$10*($B$33-1)*-1+(アセットアロケーション!$H$9+$AD11),(アセットアロケーション!$H$9+$AD11)+アセットアロケーション!$H$10*$B$33/8+アセットアロケーション!$H$10*($B$33-1)/8)) -> 0.123696 | IL11: 0 | IM11: 1000000 | IN11: 35492396.77 | IO11: =(319951-8500)-13003-3300-5000+HY11/12-KS11/12+(EY11+2000)/12-JB11-JC11-JM11 -> 263047.6946 | IP11: 48000 | IQ11: 48000 | IR11: =IQ11*AE11 -> 48000 | IS11: =IS10*(100%+$AD11) -> 23691.25 | IT11: 10313.58333 | IU11: =IU10*(100%+$AD11) -> 5664 | IV11: 0 | IW11: 130000 | IX11: 29000 | IY11: =IF(Q11=1,IY10,0) -> 10181 | IZ11: 7500 | JA11: 2416.666667 | JB11: 2750 | JC11: 2416.666667 | JD11: 78000 | JE11: 690000 | JF11: 78000 | JG11: 0 | JH11: 0 | JI11: 0 | JJ11: 0 | JK11: 0 | JL11: 0 | JM11: 5454 | JN11: 3453292.335 | JO11: 300000 | JP11: 15000 | JQ11: 50000 | JX11: 0 | KK11: =5500*12 -> 66000 | KL11: =3000*12 -> 36000 | KM11: =3000*12 -> 36000 | KO11: 230000 | KP11: =IF(B$17=1,0,((JP8+JV8)*12+JQ8)*AE11+JT8*12) -> 0 | KQ11: 138000 | KR11: =IF(B$17=1,0,(SUM(JW8:KM8)-IF(OR(F11>=B$16,F11>=B$13),JW8,0))*AE11) -> 0 | KS11: 230000 | KT11: 138000 | KU11: 343441.0279 | KV11: 815299.77 | KW11: 318199.148 | KX11: 80163.42 | KY11: =IF(E11="",0,IF(Q11=1,AX11-AW11,0)*5/1000) -> 41551.9 | KZ11: 486458.0203 | LA11: 271672.184 | LC11: =IF(R11=1,(FU11+FV11)*5/1000,0) -> 26582.40548 | LG11: 5104127.762 | LH11: 593325.5524 | LI11: 0 | LJ11: 12459.8366 | LK11: 5178127.762 | LL11: 590578.5292 | LM11: 2159472.267 | LN11: 118447.2267 | LO11: 2487.391761 | LP11: 2209472.267 | LQ11: 239110.5229 | LR11: 2004 | LS11: 0 | LT11: 0 | LU11: 0 | LV11: 0 | LW11: 0 | LX11: 0 | LY11: 0 | LZ11: 0 | MA11: 0 | MB11: 0 | MC11: 0 | MD11: 0 | ME11: 0 | MF11: 0 | MG11: 0 | MH11: 0 | MI11: 0 | MJ11: 0 | MK11: 0 | ML11: 0 | MM11: 0 | MN11: 0 | MO11: 0 | MP11: 0 | MQ11: 0 | MR11: 0 | MS11: 0 | MT11: 0 | MU11: 7719632.242 | MV11: 27772764.52 | MW11: 27772764.52 | MX11: 80481788.05 | MY11: 0 | MZ11: 3089908 | NA11: 2493290 | NB11: 0 | NC11: 4548887 | ND11: 0 | NE11: 2611401 | NF11: 906806 | NG11: 94132080.05 | NH11: 94132080.05 | NI11: 400000 | NJ11: 1000000 | NK11: 0 | NL11: -8380923.396 | NM11: 3613119.414 | NN11: 3613119.414 | NO11: 1329652.614 | NP11: 6237488 | NQ11: 3000000 | NR11: 15580260.03 | NS11: 15580260.03 | NT11: 115005.6205 | NU11: 82000 | NV11: 78000 | NW11: 15.06333333 | NX11: =($NU11*0.99+$NV11*0.99*0.02)*NW11 -> 1246105.212 | NY11: 1339989.68 | NZ11: 810731.6626 | OA11: 0.9819528102 | OB11: 135000 | OC11: 330.57 | OD11: 48116636.22 | OE11: 0 | OF11: 0 | OG11: 0 | OH11: 810731.6626 | OI11: 0.9819528102 | OJ11: 135000 | OK11: 89000 | OL11: 749 | OM11: 84902325.76 | ON11: 0 | OO11: 0 | OP11: 0 | OQ11: 1339989.68 | OR11: 1339989.68 | OS11: 321 | OT11: 5.2 | OU11: 36 | OV11: 175 | OW11: 0 | OX11: 23.05556154 | OY11: 170.1338597 | OZ11: =IF(AC11=1,0,IF(YC11/100000>0,YC11/100000,0)) -> 1158.346327 | PA11: =IF(AC11=1,0,IF(OS11*(OW11/OT11+OX11/OU11+OY11/OV11)/3*(20000000/100000/50)*0.5+OZ11*0.5>0,(OS11*(OW11/OT11+OX11/OU11+OY11/OV11)/3*(20000000/100000/50)*0.5+OZ11*0.5),2)) -> 924.2750738 | PB11: =IF(AC11=1,0,IF(YD11/100000>0,(YD11-UY12-VR12-VU12)/100000,0)) -> 1821.05745 | PC11: 43100 | PD11: 49924726.7 | PE11: 39836255.68 | PF11: 78487576.12 | PG11: 78487576.12 | PH11: 188464862 | PI11: 188464862 | QO11: 0 | QP11: 0 | QQ11: 0 | QR11: 0 | QS11: 0 | QT11: -1075043.919 | QU11: 188464862 | QV11: 188464862 | QW11: 188464862 | QX11: =QV11-IF((DU11-DS11)>0,(DU11-DS11)*0.2,0)+(メイン!YD11-メイン!XC11-メイン!WX11*32000*AE11-メイン!WU11*3%-メイン!WM11*3%-(メイン!YD11-メイン!XC11-メイン!WX11*32000*AE11-メイン!WU11*3%-メイン!WM11*3%-メイン!YC11)*23%)*0.8/100000*PC11-PF11-NY11*3%-(NY11*95%-NY11*3%)*20%-(OG11*95%-OG11*3%)*20%-(OP11*95%-OP11*3%)*20% -> 148353970 | QY11: 148353970 | QZ11: 6207495.952 | RA11: 6325764.95 | RB11: 188464862 | RC11: 0 | RF11: 8140222.112 | RG11: 80511519.11 | RH11: 13620560.94 | RI11: =RH11/RG11 -> 0.1691753067 | RJ11: =RL10 -> 139.9664172 | RK11: 23.67886156 | RL11: =RJ11+RK11 -> 163.6452788 | RN11: =(RL11-100)/100/4-B$34 -> 0.1341131969 | RO11: 0.1473630906 | RS11: 140441021.4 | RT11: 49220510.72 | RU11: 7844102.144 | RV11: 49220510.72 | RW11: 7844102.144 | RX11: 15688204.29 | RY11: 70220510.72 | RZ11: 0 | SA11: 70220510.72 | SB11: 6144102.144 | SF11: 2 | SG11: =IF(SF11=1,家賃下落率!D13,SG10) -> 0 | SH11: =家賃下落率!C14 -> 0.009 | SI11: 1 | SJ11: 1 | SK11: =IF($AA11=0,SUM(一括!$F$3:$F$40)*12*(100%-$SG11)*$SI11*SJ11,0) -> 28494000 | SL11: =26602500-SR11 -> 24143340 | SM11: 0.8473131186 | SN11: -13137743.64 | SO11: 0 | SP11: 0 | SQ11: 2625440.494 | SR11: 2459160 | SS11: 0.9366656777 | ST11: 2252824.898 | SU11: 0 | SV11: 0 | SX11: =家賃下落率!C35 -> 0.007 | SY11: =SY10 -> 21124800 | SZ11: -4745826.581 | TA11: 51805.75118 | TB11: 445524.4094 | TC11: 1526561.22 | TD11: 156425000 | TE11: 0 | TF11: 0 | TG11: 0 | TH11: 0 | TI11: 10129144 | TJ11: =アセットアロケーション!S28 -> 0.1004994723 | TK11: =1721857-TK10 -> 1560157 | TL11: 49287457 | TM11: 35628797.31 | TN11: =IF(AB11=1,0,IF($AA11=0,TN10*(100%+メイン!$AD11)*WG11/WG10,0)) -> 1881324.726 | TO11: 5881943 | TP11: 103686 | TQ11: 321027 | TR11: 1429129 | TS11: =IF($AA11=0,3223800*0.067,0) -> 215994.6 | TT11: 7951779.6 | TU11: =VLOOKUP(XN11,返済明細!A:Z,9,FALSE) -> 5284500.792 | TV11: 270666 | TW11: 740000 | TX11: 0 | TY11: 0 | TZ11: 0 | UA11: 108437.3985 | UB11: 2120672.664 | UC11: 0 | UD11: 63244.33749 | UE11: =IF(W11=1,0,IF(WY10<41200000*5%,(WY10-1)/5,WY10*0.057)) -> 425721.8315 | UF11: =IF(W11=1,0,IF(WZ10<26250000*5%,(WZ10-1)/5,WZ10*0.057)) -> 605676.6204 | UG11: 198465.45 | UH11: 1229863.902 | UI11: 274560 | UL11: 6600000 | UM11: 5094139.546 | UN11: 192903.9146 | UO11: 1800000 | UP11: 600000 | UQ11: 0 | UR11: =IF(AC11=1,0,IF(AND(E11="",I11="",J11=""),0,IF(AND(I11="",AB11=1),B$56*AE11+GE11,IF(AND(I11="",PJ12<>""),(1300000-1)*AE11-GR11,IF(AND(I11="",F11<65),B$54*AE11+GE11,IF(AND(I11="",F11>=65),(1800000-1)*AE11-GR11,0)))))) -> 0 | US11: =IF(I11="",0,IF(AC11=1,0,US10*(100%+AD11))) -> 1548000 | UT11: =IF(J11="",0,IF(AC11=1,0,IF(AND(I10<>"",I11=""),US10*(100%+AD11),UT10*(100%+AD11)))) -> 960000 | UU11: 0 | UV11: 212681.4065 | UX11: =IF(AC11=1,0,IF(AND(E10<>"",E11=""),5000000*(1+B$17)*AE11,0)) -> 0 | UY11: 0 | UZ11: =SR11/110%*10%+SY11/110%*10% -> 2143996.364 | VA11: =(VJ11+UI12+UJ12+TW11+TY11)/110%*10% -> 436938.2646 | VB11: =UZ11-VA11 -> 1707058.099 | VC11: =IF(VB11>0,VB11,0) -> 1707058.099 | VD11: =IF($YB8<$B$43*$AE8,0,IF($J11<>"",VD10*(100%+$AD11),0)*IF(AND($I10<>"",$I11=""),2/3,1)) -> 1289466 | VE11: =IF($YB8<$B$43*$AE8,0,IF($J11<>"",VE10*(100%+$AD11),0)*IF(AND($I10<>"",$I11=""),2/3,1)) -> 198780 | VF11: =IF($YB8<$B$43*$AE8,0,IF($J11<>"",VF10*(100%+$AD11),0)*IF(AND($I10<>"",$I11=""),0,1)) -> 493154 | VG11: =IF(OR(AC11=1,AND(B$15=999,Q11=1)),0,IF($I11="",(IR11*(1/7)+IS11*(1/7)+IU11*(1/7)+IV11)*12,(IT11+IU11)*12)) -> 0 | VH11: =200000*4 -> 800000 | VI11: =IF(AC11=1,0,VI10*(100%+$AD11)) -> 444000 | VJ11: 3225400 | VK11: 40065232.39 | VL11: 9222224.614 | VM11: 1483556.11 | VN11: 152806.2794 | VO11: 645555.723 | VP11: 92222.24614 | VQ11: =IF(YB8<B$43*AE8,0,VQ10*(100%+$AD11)) -> 20000 | VR11: 1117955.313 | VS11: 0.2499210381 | VT11: 9222224.614 | VU11: =IF(AND(AC10=0,AC11=1),YB10-10000000-VR11,IF(AC11=1,0,IF(AND(I11="",VT10>0),VT10*B$51,0))) -> 0 | VV11: 32001544.2 | VW11: 3627253.11 | VX11: 138284.8154 | VY11: 10157284.59 | VZ11: 31688228 | WA11: 11689301 | WB11: 43515813.82 | WC11: =IF(AND(I10<>"",I11=""),0,WC10) -> 12038993 | WD11: 2081450 | WE11: 6138103 | WF11: 11.5 | WG11: 222533545 | WH11: =IF($AA11=0,WH10-TP11,0) -> 207376 | WI11: =IF($AA11=0,WI10-TQ11,0) -> 642057 | WJ11: =IF($AA11=0,WJ10-TR11,0) -> 2858262 | WK11: =IF($AA11=0,WK10-TS11,0) -> 618978.4 | WL11: 226860218.4 | WM11: 219844334.3 | WN11: =築年スプレッド!C12 -> 0.06925512666 | WO11: 0.0946491726 | WP11: 0.01542821798 | WQ11: =(SL11+SR11-TN11-UA11-メイン!ZQ11-TU11-TV11-TW11-(SL11+SR11-TN11-UA11-メイン!ZQ11-TU11-TT11-TV11-TW11)*20%)/(WM11+WU11+メイン!ABI11+メイン!OG11) -> 0.04914616423 | WR11: 334.31 | WS11: 18600000 | WT11: 44680531.5 | WU11: 60826272.25 | WV11: 33 | WW11: 664.28 | WX11: 200.6888218 | WY11: 7043082.23 | WZ11: 10020229 | XA11: 3291219.65 | XB11: 20354530.88 | XC11: 39840942.39 | XD11: 0.06853919156 | XE11: 8836136.1 | XF11: 12029159.06 | XG11: =XG10*(100%+$AD11)*(NZ11/NZ10) -> 103105.0451 | XH11: 599 | XI11: 38313281.39 | XJ11: 43598571.43 | XK11: 439913639.3 | XL11: 439913639.3 | XM11: 19 | XN11: 147 | XP11: =VLOOKUP(XN11,返済明細!A:Z,10,FALSE)*-1 -> 13610354.59 | XQ11: 13610354.59 | XR11: =VLOOKUP(XN11,返済明細!A:H,8,FALSE) -> 191921492.9 | XS11: =IF(W11=1,0,IF(メイン!J11="",0,18000000)) -> 18000000 | XT11: 0 | XU11: =IF(OR(AND(I10<>"",I11=""),AB11=1),XX10,IF(XX10>1000000,1000000,XX10)) -> 1000000 | XV11: =IF(OR(AND(I10<>"",I11=""),AB11=1),XY10,IF(J11="",XY10,0)) -> 0 | XW11: 1000000 | XX11: =IF(XX10>0,XX10-XU11,0) -> 11500000 | XY11: =XY10-XV11 -> 33992261 | XZ11: 45492261 | YA11: 255413753.9 | YB11: 68053543.86 | YC11: 115834632.7 | YD11: 184499885.4 | YE11: =YD11/メイン!AE11 -> 184499885.4 | YF11: 184499885.4 | YG11: 719660.0019 | YI11: 0.4194002389 | YJ11: 1.737191046 | YK11: 3.197257905 | YL11: 14480865.08 | YM11: =YL11/(YD11+メイン!ABI11+メイン!ABL11) -> 0.04356155014 | YS11: =IF(I11<>"",メイン!UB11,0) -> 2120672.664 | YT11: =IF(I11<>"",メイン!UM11+IF(X11=1,381610*12*AE11*IF(E11-B$57>1,1,0.5),0),0) -> 5094139.546 | YU11: 6243464.567 | YV11: =IF(I11<>"",メイン!US11,0) -> 1548000 | YW11: 998000 | YX11: 998000 | YY11: 780100 | YZ11: 763998.0292 | ZA11: 1335806 | ZB11: 1301446.101 | ZC11: 2065444.13 | ZD11: 890213.2177 | ZE11: 890213.2177 | ZF11: 0 | ZG11: 0 | ZH11: 10828256.34 | ZI11: 79102.8 | ZJ11: 190248 | ZK11: 6902326.985 | ZL11: 952965.397 | ZM11: 7002326.985 | ZN11: 681413.827 | ZO11: 141830.9696 | ZP11: 134089.7194 | ZQ11: 107226.1938 | ZR11: 0 | ZS11: 864121.4485 | ZT11: 0 | ZU11: 1000000 | ZV11: 3000000 | ZW11: 1000000 | ZX11: 1000000 | ZY11: =SUM(ZV9:ZW11)+(AAK11-AAK8)*PA11 -> 12000000 | ZZ11: 0 | AAA11: 0 | AAB11: 0 | AAC11: 0 | AAD11: 0 | AAE11: 0 | AAF11: 0 | AAG11: 0 | AAH11: 0 | AAI11: 9150998.355 | AAJ11: 1677257.985 | AAK11: 5200 | AAL11: 4806230.384 | AAM11: 9469498.743 | AAN11: 1000 | AAO11: 7252 | AAP11: 7252000 | AAQ11: 2000 | AAR11: 319 | AAS11: 638000 | AAT11: 7930843 | AAU11: 2625 | AAV11: 2081846.288 | AAW11: 30000 | AAX11: 104.587548 | AAY11: 3137626.44 | AAZ11: 43 | ABA11: 200.55 | ABB11: 60.58912387 | ABC11: 8343071.33 | ABD11: 436.8366667 | ABE11: 12300031.85 | ABF11: 38859700.72 | ABG11: 330.57 | ABH11: 35344544.4 | ABI11: 48116636.22 | ABJ11: 748.5 | ABK11: 84845648.64 | ABL11: 99806567.92 | ABM11: 4516472 | ABN11: 6231890 | ABO11: 0 | ABP11: 10748362 | ABQ11: 33492261 | ABR11: 0 | ABS11: 261945570.7 | ABT11: 192241260.3 | ABU11: 78120630.17 | ABV11: 16436189.05 | ABW11: 0.1709954359 | ABX11: 39060315.08 | ABY11: 5812063.017 | ABZ11: 39060315.08 | ACA11: 5812063.017 | ACB11: 28060315.08 | ACC11: 44075298.57 | ACD11: 37105304.06 | ACE11: 47630629.19 | ACF11: 80263123.04 | ACG11: 36187824.46 | ACH11: 1.023858847 | ACI11: 1 | ACJ11: 843280.0641 | ACK11: 5159033.241 | ACL11: 43157818.98 | ACM11: 0.5086627266 | ACN11: 0 | ACO11: 6299490.53 | ACP11: 108932666.6 | ACQ11: 214323473.5 | ACT11: =メイン!UT11 -> 960000 | ACU11: 410000 | ACV11: 410000 | ACW11: 0 | ACX11: 0 | ACY11: 0 | ACZ11: 0 | ADA11: 0 | ADB11: 780100 | ADC11: 763998.0292 | ADD11: 368962.1596 | ADE11: 1132960.189 | ADF11: 752960.1888 | ADG11: =IF(メイン!XS11<65,IF(ADF11<700000,0,IF(ADF11<1299999,ADF11-700000,IF(ADF11<4099999,ADF11*75%-375000,IF(ADF11<7699999,ADF11*85%-785000)))),0)+IF(メイン!XS11>64,IF(ADF11<1200000,0,IF(ADF11<3299999,ADF11-1200000,IF(ADF11<4099999,ADF11*75%-375000,IF(ADF11<7699999,ADF11*85%-785000)))),0) -> 0 | ADH11: 0 | ADI11: 0 | ADJ11: 0 | ADK11: 2092960.189 | ADL11: 0 | ADM11: 0 | ADN11: 0 | ADO11: 0 | ADP11: 0 | ADQ11: 0 | ADR11: 49056 | ADS11: 95124 | ADT11: -214180 | ADU11: 0 | ADV11: -164180 | ADW11: 0 | ADX11: 3600000 | ADY11: 0 | ADZ11: 0 | AEA11: 0 | AEB11: 0 | AEC11: 3600000 | AED11: 3744180 | AEE11: -1651219.811 | AEF11: =IF(OR(AC11=1,AEF10=0),0,IF(J11<>"",IF(AAK10=0,(IF(OR(1100000*AE11/PA11>AEF10,AEF10=0),0,AEF10-1100000*AE11/PA11)),IF(AEF10=0,0,IF(AAK10<1100000*AE11/PA11,AEF10-(1100000*AE11/PA11-AAK10),AEF10))),0)) -> 28300 | AEG11: 26156984.59 | AEH11: 51535925.85 | AEI11: 0 | AEJ11: 0 | AEK11: 0 | AEL11: 0 | AEM11: 0 | AEN11: 0 | AEO11: 0 | AEP11: 0 | AEQ11: 0 | AER11: 0 | AES11: 0 | AET11: 0 | AEU11: 0 | AEV11: 0 | AEW11: 0 | AEX11: 0 | AEY11: 0 | AEZ11: 0 | AFA11: 0 | AFB11: 0 | AFC11: 0 | AFD11: 0 | AFE11: 0 | AFF11: 0 | AFG11: 0 | AFH11: 9000000 | AFI11: 0 | AFJ11: 11488545.22 | AFK11: 0.01 | AFL11: 114885.4522 | AFM11: 20000000 | AFN11: =AFJ11+AFM11+AFL11 -> 31603430.67 | AFO11: 92139356.52 | AFP11: 66760415.26 | AFQ11: 12380207.63 | AFR11: 1357031.145 | AFS11: 0.04065376583 | AFT11: 2714062.289 | AFU11: 5849428.129 | AFV11: 72609843.39 | AFW11: 30455493.57 | AFX11: 4298508.977 | AFY11: 1238130.504 | AGB11: 0 | AGC11: 0 | AGD11: 0 | AGE11: 0 | AGF11: 23400 | AGG11: 21628036.73 | AGH11: 42612744.34 | AGI11: 0 | AGJ11: 0 | AGK11: 0 | AGL11: 0 | AGM11: 0 | AGN11: 0 | AGO11: 0 | AGP11: 0 | AGQ11: 0 | AGR11: 0 | AGS11: 0 | AGT11: 0 | AGU11: 0 | AGV11: 0 | AGW11: 0 | AGX11: 10000000 | AGY11: 0 | AGZ11: 0 | AHA11: 0 | AHC11: 0 | AHD11: 0 | AHE11: 42612744.34 | AHF11: 42612744.34 | AHH11: 100000 | AHI11: 99806567.92
A12: 現役 夫 | B12: 52 | D12: F2023 | E12: 42 | F12: 39 | G12: 4 | H12: =IF(H11<>"",H11+1,"") ->  | I12: 72 | J12: 68 | K12: 0 | L12: 0 | M12: =IF(OR(AND(G12<19,G12>14),AND(G12<25,G12>=23)),1,0)+IF(OR(AND(H12<19,H12>14),AND(H12<25,H12>=23)),1,0) -> 0 | N12: 0 | O12: 1 | P12: 5 | Q12: 1 | R12: 1 | S12: 0 | T12: 0 | U12: 0 | V12: 0 | W12: 0 | X12: 0 | Z12: 0 | AA12: 0 | AB12: 0 | AC12: 0 | AD12: 0.0083 | AE12: 1.0083 | AF12: -0.006 | AG12: 0.9842818584 | AI12: =AI11 -> 1.007499136 | AJ12: 29.55506303 | AK12: =AK$11/AJ$11*AJ12 -> 1.007499136 | AL12: =IF(AND(Q12=1,E12<=B$15),(149150+252700+21000+36500)*12,0) -> 5512200 | AM12: =IF(AND(Q12=1,E12<=B$15),(35569)*12,0) -> 426828 | AN12: =IF(AND(Q12=1,E12<=B$15),(11000+10000+12000)*12+IF(H12<>"",4200),0) -> 396000 | AO12: =IF(AND(Q12=1,E12<=B$15),AO11/AL11*AL12,0) -> 2392180 | AP12: 1000000 | AQ12: 10000 | AR12: 0 | AS12: 0 | AT12: 0 | AU12: 0 | AV12: 0 | AW12: 0 | AX12: 8737208 | AY12: 1966185 | AZ12: 6771023 | BA12: 0 | BB12: 0 | BC12: 0 | BD12: 0 | BE12: 0 | BF12: 0 | BG12: 8038000 | BH12: =301000+532000 -> 833000 | BI12: 0.788 | BL12: 6990348 | BM12: 752860 | BN12: 20 | BO12: 8066400 | BP12: 0 | BQ12: =BQ11 -> 350000 | BR12: =_xlfn.IFS(AND(BX12>=1,BX12<=4),0.4,AND(BX12>=5,BX12<=9),0.5,AND(BX12>=10,BX12<=14),0.6,AND(BX12>=15,BX12<=19),0.7,TRUE,0) -> 0 | BT12: 267 | BV12: 0 | BW12: 0 | BX12: 0 | BY12: 0 | BZ12: =IF(AND(Q12=1,E12<=B$15),27500*12,IF(Q12=1,240000,0)) -> 330000 | CA12: =IF(E12<=B$29,IF(AND(Q12=1,E12<=B$15),0,IF(Q12=1,7500*12,276000*AE12)),0) -> 0 | CB12: =CB11+CD11-CE12-CS12+CA12+BZ12 -> 2941401 | CC12: =IF(アセットアロケーション!$R29=10,アセットアロケーション!$H$10*$B$33*-1+(アセットアロケーション!$H$9+$AD12),IF(アセットアロケーション!$R29=5,アセットアロケーション!$H$10*($B$33-1)*-1+(アセットアロケーション!$H$9+$AD12),(アセットアロケーション!$H$9+$AD12)+アセットアロケーション!$H$10*$B$33/8+アセットアロケーション!$H$10*($B$33-1)/8)) -> 0.131996 | CD12: =(CB12-CA12-BZ12+(CA12+CA12)/12)*CC12+(CA12+CA12)/12*CC12/12*11+(CA12+CA12)/12*CC12/12*10+(CA12+CA12)/12*CC12/12*9+(CA12+CA12)/12*CC12/12*8+(CA12+CA12)/12*CC12/12*7+(CA12+CA12)/12*CC12/12*6+(CA12+CA12)/12*CC12/12*5+(CA12+CA12)/12*CC12/12*4+(CA12+CA12)/12*CC12/12*3+(CA12+CA12)/12*CC12/12*2+(CA12+CA12)/12*CC12/12*1 -> 344694.4864 | CE12: 0 | CF12: 7 | CG12: 7 | CH12: 17 | CI12: 4 | CJ12: 0 | CK12: 1209960 | CL12: 0 | CM12: 2400000 | CO12: 2400000 | CP12: =(IR12+IS12+IU12)*12*38% -> 371918.5151 | CQ12: 1372686.485 | CR12: 1372686.485 | CS12: 0 | CT12: 0.358 | CU12: =1/CT$10*CT12*AG12 -> 0.9734058158 | CY12: 0.248 | CZ12: 0.9841269841 | DI12: 0 | DJ12: 0 | DK12: 0 | DL12: 0 | DM12: 0 | DN12: 0 | DO12: =IF(AND(RA12>0,RA12+QT11-FG12>0),RA12+QT11-FG12,0) -> 0 | DP12: 80481788.05 | DQ12: 0.1001716782 | DR12: =IF(DP12=0,0,(((CB12-BZ12-CA12)+(BZ12+CA12)/12)+(DP12-DO12+DO12/12)+(FB12-FA12+FA12/12)+(FI12-FG12+FG12/12)+(GF12-GE12+GE12/12)+(HG12-HF12+HF12/12)+(IE12-ID12+ID12/12)+(IJ12-II12+II12/12))*アセットアロケーション!S29+((BZ12+CA12)/12+DO12/12+FA12/12+FG12/12+GE12/12+HF12/12+ID12/12+II12/12)*アセットアロケーション!S29/12*11+((BZ12+CA12)/12+DO12/12+FA12/12+FG12/12+GE12/12+HF12/12+ID12/12+II12/12)*アセットアロケーション!S29/12*10+((BZ12+CA12)/12+DO12/12+FA12/12+FG12/12+GE12/12+HF12/12+ID12/12+II12/12)*アセットアロケーション!S29/12*9+((BZ12+CA12)/12+DO12/12+FA12/12+FG12/12+GE12/12+HF12/12+ID12/12+II12/12)*アセットアロケーション!S29/12*8+((BZ12+CA12)/12+DO12/12+FA12/12+FG12/12+GE12/12+HF12/12+ID12/12+II12/12)*アセットアロケーション!S29/12*7+((BZ12+CA12)/12+DO12/12+FA12/12+FG12/12+GE12/12+HF12/12+ID12/12+II12/12)*アセットアロケーション!S29/12*6+((BZ12+CA12)/12+DO12/12+FA12/12+FG12/12+GE12/12+HF12/12+ID12/12+II12/12)*アセットアロケーション!S29/12*5+((BZ12+CA12)/12+DO12/12+FA12/12+FG12/12+GE12/12+HF12/12+ID12/12+II12/12)*アセットアロケーション!S29/12*4+((BZ12+CA12)/12+DO12/12+FA12/12+FG12/12+GE12/12+HF12/12+ID12/12+II12/12)*アセットアロケーション!S29/12*3+((BZ12+CA12)/12+DO12/12+FA12/12+FG12/12+GE12/12+HF12/12+ID12/12+II12/12)*アセットアロケーション!S29/12*2+((BZ12+CA12)/12+DO12/12+FA12/12+FG12/12+GE12/12+HF12/12+ID12/12+II12/12)*アセットアロケーション!S29/12*1-CD12-GH12-IG12-IL12-FK12-FD12-HI12) -> 8061995.77 | DS12: =DS11+DO12+DM12-IF(AND(E11<>"",E12="",SA11-PE11>0,SA11-PE11<DU11),DS11*(MT12/DU11),0) -> 55539066.79 | DT12: =DU12-DS12 -> 33004717.03 | DU12: =DP12+DR12 -> 88543783.82 | DV12: 0.5942612819 | DW12: 0 | DX12: 0 | DY12: -14120.37474 | DZ12: 0 | EA12: 0 | EB12: 0 | EC12: 0 | ED12: 0 | EE12: 0 | EF12: 0 | EG12: 0 | EH12: 2538075.494 | EI12: 1000000 | EJ12: 0 | EK12: 3538075.494 | EL12: 0.00664 | EM12: 23492.82128 | EN12: 0 | EO12: 16411.66667 | EP12: 0.5 | EQ12: 90 | ER12: 0 | ES12: =IF(AZ11+BE11+BF11+CL11>8960000*AE12,0,IF(AZ11+BE11+BF11+CL11>6600000*AE12,5000*12*AE12,10000*12*AE12)) -> 60498 | ET12: 0 | EW12: 60498 | EX12: =LG12*0.02/IF(AND(LG12>0,LG12<=ふるさと納税計算式!B$2),ふるさと納税計算式!D$2,IF(LG12<=ふるさと納税計算式!B$3,ふるさと納税計算式!D$3,IF(LG12<=ふるさと納税計算式!B$4,ふるさと納税計算式!D$4,IF(LG12<=ふるさと納税計算式!B$5,ふるさと納税計算式!D$5,IF(LG12<=ふるさと納税計算式!B$6,ふるさと納税計算式!D$6,IF(LG12<=ふるさと納税計算式!B$7,ふるさと納税計算式!D$7,ふるさと納税計算式!D$8))))))+2000*AE12 -> 184661.1922 | EY12: 53381.75767 | FB12: 3089908 | FC12: =IF(アセットアロケーション!$R29=10,アセットアロケーション!$H$10*$B$33*-1+(アセットアロケーション!$H$9+$AD12),IF(アセットアロケーション!$R29=5,アセットアロケーション!$H$10*($B$33-1)*-1+(アセットアロケーション!$H$9+$AD12),(アセットアロケーション!$H$9+$AD12)+アセットアロケーション!$H$10*$B$33/8+アセットアロケーション!$H$10*($B$33-1)/8)) -> 0.131996 | FD12: =(FB12-FA12+FA12/12)*FC12+FA12/12*FC12/12*11+FA12/12*FC12/12*10+FA12/12*FC12/12*9+FA12/12*FC12/12*8+FA12/12*FC12/12*7+FA12/12*FC12/12*6+FA12/12*FC12/12*5+FA12/12*FC12/12*4+FA12/12*FC12/12*3+FA12/12*FC12/12*2+FA12/12*FC12/12*1 -> 407855.4964 | FE12: =IF(RA12-IC11<0,IF((RA12+QT11-FG12)*-1+IC11<FI11+FK11,RA12+QT11-FG12-IC11,-1*(FI11+FK11)),0) -> 0 | FF12: =FE12/(100%+FM11) -> 0 | FG12: =IF(RA12>0,IF(FH11=36000000,0,IF(FH11<=36000000-7200000,IF(RA12>7200000,7200000,RA12),IF(RA12>36000000-FH11,36000000-FH11,RA12))),0) -> 7200000 | FH12: =FH11+FG12+FF12 -> 7200000 | FI12: =FG12+FI11+FK11+FE12 -> 7200000 | FJ12: =IF(アセットアロケーション!$R29=10,アセットアロケーション!$H$10*$B$33*-1+(アセットアロケーション!$H$9+$AD12),IF(アセットアロケーション!$R29=5,アセットアロケーション!$H$10*($B$33-1)*-1+(アセットアロケーション!$H$9+$AD12),(アセットアロケーション!$H$9+$AD12)+アセットアロケーション!$H$10*$B$33/8+アセットアロケーション!$H$10*($B$33-1)/8)) -> 0.131996 | FK12: 514784.4 | FL12: =FK12+FI12 -> 7714784.4 | FM12: =IF(FH12>0,FN12/FH12,0) -> 0.07149783333 | FN12: 514784.4 | FO12: 10365893.69 | FP12: 0 | FQ12: 0 | FR12: 0 | FS12: 0 | FT12: 346536.758 | FU12: 4158441.096 | FV12: =IF(R12=1,(FT12)*IF(H13="",1,IF(H13=0,10.5/12,IF(H12=0,0,IF(H12<>"",1))))*2,0) -> 693073.516 | FW12: 4851514.612 | FX12: 3437559.69 | FY12: 3437559.69 | FZ12: 0 | GD12: 0 | GE12: =IF(F12<=B$30,IF(OR(R12>=1,I12=""),276000*AE10,IF(FU12>20000000,276000*AE10,0)),0) -> 276000 | GF12: 1182806 | GG12: =IF(アセットアロケーション!$R29=10,アセットアロケーション!$H$10*$B$33*-1+(アセットアロケーション!$H$9+$AD12),IF(アセットアロケーション!$R29=5,アセットアロケーション!$H$10*($B$33-1)*-1+(アセットアロケーション!$H$9+$AD12),(アセットアロケーション!$H$9+$AD12)+アセットアロケーション!$H$10*$B$33/8+アセットアロケーション!$H$10*($B$33-1)/8)) -> 0.131996 | GH12: =(GF12-GE12+GE12/12)*GG12+GE12/12*GG12/12*11+GE12/12*GG12/12*10+GE12/12*GG12/12*9+GE12/12*GG12/12*8+GE12/12*GG12/12*7+GE12/12*GG12/12*6+GE12/12*GG12/12*5+GE12/12*GG12/12*4+GE12/12*GG12/12*3+GE12/12*GG12/12*2+GE12/12*GG12/12*1 -> 139428.1668 | GI12: 0 | GR12: 0 | GS12: 0 | GT12: 0 | GU12: 0 | GV12: 0.5 | GW12: 30 | GX12: 0 | GY12: 0 | GZ12: 0 | HA12: =LM12*0.02/IF(AND(LM12>0,LM12<=ふるさと納税計算式!B$2),ふるさと納税計算式!D$2,IF(LM12<=ふるさと納税計算式!B$3,ふるさと納税計算式!D$3,IF(LM12<=ふるさと納税計算式!B$4,ふるさと納税計算式!D$4,IF(LM12<=ふるさと納税計算式!B$5,ふるさと納税計算式!D$5,IF(LM12<=ふるさと納税計算式!B$6,ふるさと納税計算式!D$6,IF(LM12<=ふるさと納税計算式!B$7,ふるさと納税計算式!D$7,ふるさと納税計算式!D$8))))))+2000*AE12 -> 51136.36448 | HB12: 13324.30935 | HF12: =IF(F12<=B$28,HF11*(100%+AD12),0) -> 436854.8985 | HG12: 2930144.898 | HH12: =IF(アセットアロケーション!$R29=10,アセットアロケーション!$H$10*$B$33*-1+(アセットアロケーション!$H$9+$AD12),IF(アセットアロケーション!$R29=5,アセットアロケーション!$H$10*($B$33-1)*-1+(アセットアロケーション!$H$9+$AD12),(アセットアロケーション!$H$9+$AD12)+アセットアロケーション!$H$10*$B$33/8+アセットアロケーション!$H$10*($B$33-1)/8)) -> 0.131996 | HI12: =(HG12-HF12+HF12/12)*HH12+HF12/12*HH12/12*11+HF12/12*HH12/12*10+HF12/12*HH12/12*9+HF12/12*HH12/12*8+HF12/12*HH12/12*7+HF12/12*HH12/12*6+HF12/12*HH12/12*5+HF12/12*HH12/12*4+HF12/12*HH12/12*3+HF12/12*HH12/12*2+HF12/12*HH12/12*1 -> 360338.4856 | HJ12: 0 | HK12: 0 | HL12: 0 | HM12: 0 | HN12: =アセットアロケーション!S29 -> 0.1058941626 | HO12: 0 | HP12: 0 | HQ12: 0 | HR12: 0 | HS12: 0 | HT12: 207030 | HU12: 1691360 | HV12: 1526682.963 | HW12: 1526682.963 | HX12: 197030.3484 | HY12: -9999.65163 | HZ12: 8 | IA12: -0.01272281629 | IB12: 1008300 | IC12: 0 | ID12: 800000 | IE12: 5348887 | IF12: =IF(アセットアロケーション!$R29=10,アセットアロケーション!$H$10*$B$33*-1+(アセットアロケーション!$H$9+$AD12),IF(アセットアロケーション!$R29=5,アセットアロケーション!$H$10*($B$33-1)*-1+(アセットアロケーション!$H$9+$AD12),(アセットアロケーション!$H$9+$AD12)+アセットアロケーション!$H$10*$B$33/8+アセットアロケーション!$H$10*($B$33-1)/8)) -> 0.131996 | IG12: =(IE12-ID12+ID12/12)*IF12+ID12/12*IF12/12*11+ID12/12*IF12/12*10+ID12/12*IF12/12*9+ID12/12*IF12/12*8+ID12/12*IF12/12*7+ID12/12*IF12/12*6+ID12/12*IF12/12*5+ID12/12*IF12/12*4+ID12/12*IF12/12*3+ID12/12*IF12/12*2+ID12/12*IF12/12*1 -> 657633.1551 | IH12: 0 | II12: =IF(H12<>"",800000,0) -> 0 | IJ12: 0 | IK12: =IF(アセットアロケーション!$R29=10,アセットアロケーション!$H$10*$B$33*-1+(アセットアロケーション!$H$9+$AD12),IF(アセットアロケーション!$R29=5,アセットアロケーション!$H$10*($B$33-1)*-1+(アセットアロケーション!$H$9+$AD12),(アセットアロケーション!$H$9+$AD12)+アセットアロケーション!$H$10*$B$33/8+アセットアロケーション!$H$10*($B$33-1)/8)) -> 0.131996 | IL12: 0 | IM12: 1008300 | IN12: 40067383.13 | IO12: =(349352-8500-3000)-13003-3300-9000+HY12/12-KS12/12+(EY12+2000)/12-JB12-JC12-JM12 -> 288982.3755 | IP12: 48000 | IQ12: 48000 | IR12: 48398.4 | IS12: 27451.66667 | IT12: 10399.18607 | IU12: 5711.0112 | IV12: =IF(F12<=80,IV11*(100%+$AD12),0) -> 0 | IW12: 130000 | IX12: 29000 | IY12: =10717 -> 10717 | IZ12: 7500 | JA12: 2416.666667 | JB12: 2772.825 | JC12: 2436.725 | JD12: 78000 | JE12: 690000 | JF12: 78000 | JG12: 0 | JH12: 0 | JI12: 0 | JJ12: 0 | JK12: 0 | JL12: 0 | JM12: 2813.166667 | JN12: 3739765.106 | JO12: 302490 | JP12: 15000 | JQ12: 50000 | JX12: 0 | KK12: =5500*12 -> 66000 | KL12: =3000*12 -> 36000 | KM12: 0 | KO12: 231909 | KP12: 0 | KQ12: 102846.6 | KR12: 0 | KS12: 231909 | KT12: 102846.6 | KU12: 361748.3806 | KV12: 799454.532 | KW12: 289695.4432 | KX12: 75354.30603 | KY12: 43686.04 | KZ12: 443913.587 | LA12: 249771.5255 | LC12: 24257.57306 | LG12: 6354205.364 | LH12: 839792.8227 | LI12: 0 | LJ12: 17635.64928 | LK12: 6428819.564 | LL12: 523612.7762 | LM12: 1959633.004 | LN12: 97981.6502 | LO12: 2057.614654 | LP12: 2010048.004 | LQ12: 226747.2267 | LR12: 2004 | LS12: 0 | LT12: 0 | LU12: 0 | LV12: 0 | LW12: 0 | LX12: 0 | LY12: 0 | LZ12: 0 | MA12: 0 | MB12: 0 | MC12: 0 | MD12: 0 | ME12: 0 | MF12: 0 | MG12: 0 | MH12: 0 | MI12: 0 | MJ12: 0 | MK12: 0 | ML12: 0 | MM12: 0 | MN12: 3523.923192 | MO12: 74.00238704 | MP12: 1174.641064 | MQ12: 4772.566644 | MR12: 0 | MS12: 0 | MT12: 0 | MU12: 8017748.019 | MV12: 32049635.11 | MW12: 31785812.86 | MX12: 88543783.82 | MY12: 0 | MZ12: 3497763.496 | NA12: 3290483.384 | NB12: 7714784.4 | NC12: 6006520.155 | ND12: 0 | NE12: 3286095.486 | NF12: 1322234.167 | NG12: 113661664.9 | NH12: 112726038.8 | NI12: 400000 | NJ12: 1000000 | NK12: 0 | NL12: -5453418.839 | NM12: 3550636.351 | NN12: 3550636.351 | NO12: 1526682.963 | NP12: 6990348 | NQ12: 4008300 | NR12: 17475967.31 | NS12: 17332110.79 | NT12: 112857.0155 | NU12: =NU11*(100%+$AD12)*(NT12/NT11) -> 81135.91071 | NV12: =NV11*(100%+$AD12)*(NT12/NT11) -> 77178.06141 | NW12: 15.06333333 | NX12: 1232974.161 | NY12: 1325869.305 | NZ12: 805824.8825 | OA12: 0.9760097507 | OB12: =OB11*(100%+$AD12)*(NZ12/NZ11) -> 135296.6598 | OC12: 330.57 | OD12: 48222371.56 | OE12: 0 | OF12: 0 | OG12: 0 | OH12: 805824.8825 | OI12: 0.9760097507 | OJ12: =OJ11*(100%+$AD12)*(OH12/OH11) -> 135296.6598 | OK12: =OK11*(100%+$AD12)*(OH12/OH11) -> 89195.5757 | OL12: 749 | OM12: 85088896.91 | ON12: 0 | OO12: 0 | OP12: 0 | OQ12: 1325869.305 | OR12: 1314955.177 | OS12: 323.6643 | OT12: 5.24316 | OU12: 36.2988 | OV12: 176.4525 | OW12: 0 | OX12: 34.39643904 | OY12: 198.8596004 | OZ12: 1258.022903 | PA12: 1076.656055 | PB12: 2013.440832 | PC12: =IF(AND(E12="",I12="",J12=""),0,IF(PC11=75100,75100,IF(B$40=1,PC11+(AAK11-AAK12)+(AEF11-AEF12),0))) -> 44130.16186 | PD12: 55516754.34 | PE12: 47513005.99 | PF12: 88853469.81 | PG12: 88122056.74 | PH12: 220514497.1 | PI12: 218699292.9 | QO12: 0 | QP12: 0 | QQ12: 0 | QR12: 0 | QS12: 0 | QT12: -802474.274 | QU12: 220514497.1 | QV12: 220514497.1 | QW12: 218699292.9 | QX12: =QV12-IF((DU12-DS12)>0,(DU12-DS12)*0.2,0)+(メイン!YD12-メイン!XC12-メイン!WX12*32000*AE12-メイン!WU12*3%-メイン!WM12*3%-(メイン!YD12-メイン!XC12-メイン!WX12*32000*AE12-メイン!WU12*3%-メイン!WM12*3%-メイン!YC12)*23%)*0.8/100000*PC12-PF12-NY12*3%-(NY12*95%-NY12*3%)*20%-(OG12*95%-OG12*3%)*20%-(OP12*95%-OP12*3%)*20% -> 176528891 | QY12: 175075762.2 | QZ12: 7410086.583 | RA12: 7472569.645 | RB12: 218699292.9 | RC12: 0 | RF12: 1842854.898 | RG12: 95974934.95 | RH12: 9971945.56 | RI12: 0.103901561 | RJ12: 163.6452788 | RK12: 17.00299992 | RL12: 180.6482787 | RO12: 0.1453402635 | RP12: =SUM(MV8:MV12)/SUM(QV8:QV12) -> 0.1443021245 | RS12: 159220433 | RT12: 58435916.51 | RU12: 10472674.95 | RV12: 58435916.51 | RW12: 10472674.95 | RX12: 20945349.91 | RY12: 79610216.51 | RZ12: 0 | SA12: 79610216.51 | SB12: 8859394.954 | SF12: 3 | SG12: =IF(SF12=1,家賃下落率!D14,SG11) -> 0 | SH12: =家賃下落率!C15 -> 0.009 | SI12: 1 | SJ12: 1 | SK12: =IF($AB12=1,0,IF($AA12=0,SK11*(100%-$SH12)*(100%+$AD12)*($OA12/$OA11),0)) -> 28299605.45 | SL12: =IF(AB12=1,0,IF($AA12=0,SUM(一括!$E$3:$E$40)*12,0)) -> 23869560 | SM12: 0.8434591089 | SN12: 3515219.856 | SO12: 0 | SP12: 0 | SQ12: 2607528.958 | SR12: 2459160 | SS12: 0.943099785 | ST12: 133664.5049 | SU12: 0 | SV12: 0 | SX12: =家賃下落率!C36 -> 0.007 | SY12: =IF(W12=1,0,SY11*(100%-SX12)*(100%+AD12)*(OI12/OI11)) -> 21023022.77 | SZ12: -2383864.899 | TA12: 51556.15612 | TB12: 26433.8341 | TC12: 95806.98026 | TD12: 156425000 | TE12: 0 | TF12: 0 | TG12: 0 | TH12: =IF(VX11+YG12>0,VX11+YG12,0) -> 27743825.63 | TI12: 39433126.63 | TJ12: =アセットアロケーション!S29 -> 0.1058941626 | TK12: =IF(TI12<0,0,TI12*TJ12) -> 4175737.922 | TL12: 51527480.69 | TM12: 52914740.97 | TN12: =IF(AB12=1,0,IF($AA12=0,TN11*(100%+メイン!$AD12)*WG12/WG11,0)) -> 1846800.353 | TO12: 5881943 | TP12: =IF($AA12=0,IF(TP11<2761500*0.03217,TP11,IF(WH11*0.167>2761500*0.03217,WH11*0.167,WH11*0.2)),0) -> 41475.2 | TQ12: =IF($AA12=0,IF(TQ11<8550000*0.03217,TQ11,IF(WI11*0.167>8550000*0.03217,WI11*0.167,WI11*0.2)),0) -> 128411.4 | TR12: =IF($AA12=0,IF(TR11<38062366*0.03217,TR11,IF(WJ11*0.167>38062366*0.03217,WJ11*0.167,WJ11*0.2)),0) -> 571652.4 | TS12: =IF($AA12=0,3223800*0.067,0) -> 215994.6 | TT12: 6839476.6 | TU12: =VLOOKUP(XN12,返済明細!A:Z,9,FALSE) -> 5057753.28 | TV12: 270666 | TX12: 0 | TY12: 0 | TZ12: 0 | UA12: 108675.6875 | UB12: 2125332.799 | UC12: 0 | UD12: 60134.41736 | UE12: 401455.6871 | UF12: 571153.0531 | UG12: 198465.45 | UH12: 1171074.19 | UI12: =SY12*4% -> 840920.9109 | UL12: 6654780 | UM12: 5105333.814 | UN12: 183418.2312 | UO12: 1814940 | UP12: =IF(OR(AC12=1,E12="",AND(B$15=999,Q12=1)),0,IF(AB12=1,B$55*AE12+CA12,IF(I12<>"",1800000*AE12,IF(E12>=65,(470000*AE12-DD12/12)*12+CA12,IF(PJ13<>"",(6010000-1)*AE12-BE12-DK12-FY12-GT12+IF((6010000*AE12-BE12-DK12-FY12-GT12)<=1075000*AE12,550000*AE12,IF((6010000*AE12-BE12-DK12-FY12-GT12)<=1180000*AE12,((6010000*AE12-BE12-DK12-FY12-GT12)-100000*AE12)/(100%-40%)-(6010000*AE12-BE12-DK12-FY12-GT12),IF((6010000*AE12-BE12-DK12-FY12-GT12)<=2440000*AE12,((6010000*AE12-BE12-DK12-FY12-GT12)+80000*AE12)/(100%-30%)-(6010000*AE12-BE12-DK12-FY12-GT12),IF((6010000*AE12-BE12-DK12-FY12-GT12)<=4840000*AE12,((6010000*AE12-BE12-DK12-FY12-GT12)+440000*AE12)/(100%-20%)-(6010000*AE12-BE12-DK12-FY12-GT12),IF((6010000*AE12-BE12-DK12-FY12-GT12)<=6550000*AE12,((6010000*AE12-BE12-DK12-FY12-GT12)+1100000*AE12)/(100%-10%)-(6010000*AE12-BE12-DK12-FY12-GT12)))))),B$52*AE12+CA12))))) -> 0 | UQ12: 0 | UR12: 0 | US12: 1560848.4 | UT12: 967968 | UU12: =IF(J12="",0,IF(AC12=1,0,UU11)) -> 0 | UV12: 130191.5753 | UX12: 0 | UY12: 0 | UZ12: =SR12/110%*10%+SY12/110%*10% -> 2134743.888 | VA12: =(VJ12+UI13+UJ13+TW12+TY12)/110%*10% -> 2247465.377 | VB12: =UZ12-VA12 -> -112721.4884 | VC12: =IF(VB12>0,VB12,0) -> 0 | VD12: =IF(YB9<B$43*AE9,0,IF($J12<>"",VD11*(100%+$AD12),0)*IF(AND(I11<>"",I12=""),2/3,1)) -> 1300168.568 | VE12: =IF($YB9<$B$43*$AE9,0,IF($J12<>"",VE11*(100%+$AD12),0)*IF(AND($I11<>"",$I12=""),2/3,1)) -> 200429.874 | VF12: 497247.1782 | VG12: 0 | VH12: =IF(AC12=1,0,IF(AND(B$15=999,Q12=1),200000*12,0)) -> 2400000 | VI12: 447685.2 | VJ12: 4845530.82 | VK12: 37768905.08 | VL12: 13758575.62 | VM12: 2535989.543 | VN12: 261206.9229 | VO12: 963100.2931 | VP12: 137585.7562 | VQ12: 20166 | VR12: 2394140.359 | VS12: 0.2596055138 | VT12: 13758575.62 | VU12: 0 | VV12: 32152494.65 | VW12: 20762246.32 | VX12: 0 | VY12: 9634058.55 | VZ12: 10000000 | WA12: 43608864.55 | WB12: 53608864.55 | WC12: 12038993 | WD12: 2081450 | WE12: 5867437 | WF12: 12.5 | WG12: 216651602 | WH12: 165900.8 | WI12: 513645.6 | WJ12: 2286609.6 | WK12: 402983.8 | WL12: 220020741.8 | WM12: 223359554.2 | WN12: =築年スプレッド!C13 -> 0.06994767793 | WO12: 0.09294208608 | WP12: 0.06751806387 | WQ12: =(SL12+SR12-TN12-UA12-メイン!ZQ12-TU12-TV12-TW12-(SL12+SR12-TN12-UA12-メイン!ZQ12-TU12-TT12-TV12-TW12)*20%)/(WM12+WU12+メイン!ABI12+メイン!OG12) -> 0.04967129697 | WR12: 334.31 | WS12: 18600000 | WT12: 44778716.07 | WU12: 60959936.76 | WV12: 34 | WW12: 664.28 | WX12: 200.6888218 | WY12: 6641626.543 | WZ12: 9449075.948 | XA12: 3092754.2 | XB12: 19183456.69 | XC12: 37457077.49 | XD12: 0.06853919156 | XE12: 8855553.331 | XF12: 12055592.89 | XG12: 103331.6163 | XH12: 599 | XI12: 38397474.05 | XJ12: 43694378.41 | XK12: 451123284.3 | XL12: 447409783.1 | XM12: 18 | XN12: 159 | XP12: =VLOOKUP(XN12,返済明細!A:Z,10,FALSE)*-1 -> 13610354.59 | XQ12: 13610354.59 | XR12: =VLOOKUP(XN12,返済明細!A:H,8,FALSE) -> 183368891.6 | XS12: =IF(W12=1,0,IF(メイン!J12="",0,18000000)) -> 18000000 | XT12: 0 | XU12: 1000000 | XV12: 0 | XW12: 1000000 | XX12: 10500000 | XY12: 33992261 | XZ12: 44492261 | YA12: 245861152.6 | YB12: 79543840.18 | YC12: 125802290.3 | YD12: 205262131.7 | YE12: =YD12/メイン!AE12 -> 203572480.1 | YF12: 205262131.7 | YG12: 27605540.81 | YI12: 0.4550022995 | YJ12: 1.567637273 | YK12: 3.93882938 | YL12: 30978607.32 | YM12: =YL12/(YD12+メイン!ABI12+メイン!ABL12) -> 0.08763139029 | YS12: =IF(I12<>"",メイン!UB12,0) -> 2125332.799 | YT12: =IF(I12<>"",メイン!UM12+IF(X12=1,381610*12*AE12*IF(E12-B$57>1,1,0.5),0),0) -> 5105333.814 | YU12: 6257184.455 | YV12: =IF(I12<>"",メイン!US12,0) -> 1560848.4 | YW12: 1006283.4 | YX12: 1006283.4 | YY12: 780100 | YZ12: 759353.8769 | ZA12: 1335806 | ZB12: 1293939.618 | ZC12: 2053293.495 | ZD12: 885206.5163 | ZE12: 885206.5163 | ZF12: 0 | ZG12: 0 | ZH12: 10844808.51 | ZI12: 80357.47948 | ZJ12: 193265.5956 | ZK12: 6907083.296 | ZL12: 950368.4092 | ZM12: 7007913.296 | ZN12: 706032.6985 | ZO12: 142722.1503 | ZP12: 132676.7256 | ZQ12: 107461.8212 | ZR12: 0 | ZS12: 866020.3379 | ZT12: 0 | ZU12: 1008300 | ZV12: 3024900 | ZW12: 1008300 | ZX12: 1008300 | ZY12: =SUM(ZV10:ZW12)+(AAK12-AAK9)*PA12 -> 10924070 | ZZ12: 0 | AAA12: 0 | AAB12: 0 | AAC12: 0 | AAD12: 0 | AAE12: 0 | AAF12: 0 | AAG12: 0 | AAH12: 0 | AAI12: 9228705.218 | AAJ12: 1616103.291 | AAK12: =IF(AAK11=0,0,IF($I12<>"",IF(AAK11>1100000*AE12/PA12,AAK11-1100000*AE12/PA12,0),0)) -> 4169.838144 | AAL12: 4489481.488 | AAM12: 8395722.383 | AAN12: 1000 | AAO12: 7312.1916 | AAP12: 7312191.6 | AAQ12: 2000 | AAR12: 321.6477 | AAS12: 643295.4 | AAT12: 7930843 | AAU12: 2646.7875 | AAV12: 2099125.612 | AAW12: 30000 | AAX12: 105.4556246 | AAY12: 3163668.739 | AAZ12: 44 | ABA12: 200.55 | ABB12: 60.58912387 | ABC12: 8395494.185 | ABD12: 436.8366667 | ABE12: 12170418.12 | ABF12: 38450209.86 | ABG12: 330.57 | ABH12: 35422213.32 | ABI12: 48222371.56 | ABJ12: 748.5 | ABK12: 85032095.24 | ABL12: 100025890.8 | ABM12: 4516472 | ABN12: 6231890 | ABO12: 0 | ABP12: 10748362 | ABQ12: 28459061 | ABR12: 0 | ABS12: 255915393.2 | ABT12: 187187044.7 | ABU12: 74856357.35 | ABV12: 15398807.21 | ABW12: 0.1645285573 | ABX12: 37428178.68 | ABY12: 5469035.735 | ABZ12: 37428178.68 | ACA12: 5469035.735 | ACB12: 26336878.68 | ACC12: 49163978.5 | ACD12: 40446035.94 | ACE12: 53979724 | ACF12: 82694195.79 | ACG12: 33530217.28 | ACH12: 0.9465873004 | ACI12: 0.9465873004 | ACJ12: 0 | ACK12: 4717640.935 | ACL12: 42248159.85 | ACM12: 0.4968495687 | ACN12: 0 | ACO12: 5944239.688 | ACP12: 106919186.1 | ACQ12: 219323033.5 | ACT12: =メイン!UT12 -> 967968 | ACU12: 413403 | ACV12: 413403 | ACW12: 0 | ACX12: 0 | ACY12: 0 | ACZ12: 0 | ADA12: 0 | ADB12: 780100 | ADC12: 759353.8769 | ADD12: 380031.0244 | ADE12: 1139384.901 | ADF12: 759384.9013 | ADG12: =IF(メイン!XS12<65,IF(ADF12<700000,0,IF(ADF12<1299999,ADF12-700000,IF(ADF12<4099999,ADF12*75%-375000,IF(ADF12<7699999,ADF12*85%-785000)))),0)+IF(メイン!XS12>64,IF(ADF12<1200000,0,IF(ADF12<3299999,ADF12-1200000,IF(ADF12<4099999,ADF12*75%-375000,IF(ADF12<7699999,ADF12*85%-785000)))),0) -> 0 | ADH12: 0 | ADI12: 0 | ADJ12: 0 | ADK12: 2107352.901 | ADL12: 0 | ADM12: 0 | ADN12: 0 | ADO12: 0 | ADP12: 0 | ADQ12: 0 | ADR12: 49834.0958 | ADS12: 96632.7978 | ADT12: -217047.8936 | ADU12: 0 | ADV12: -166632.8936 | ADW12: 0 | ADX12: 3629880 | ADY12: 0 | ADZ12: 0 | AEA12: 0 | AEB12: 0 | AEC12: 3629880 | AED12: 3776346.894 | AEE12: -1668993.992 | AEF12: 28300 | AEG12: 30469366.37 | AEH12: 56980375.55 | AEI12: 0 | AEJ12: 0 | AEK12: 0 | AEL12: 0 | AEM12: 0 | AEN12: 0 | AEO12: 0 | AEP12: 0 | AEQ12: 0 | AER12: 0 | AES12: 0 | AET12: 0 | AEU12: 0 | AEV12: 0 | AEW12: 0 | AEX12: 0 | AEY12: 0 | AEZ12: 0 | AFA12: 0 | AFB12: 0 | AFC12: 0 | AFD12: 0 | AFE12: 0 | AFF12: 0 | AFG12: 0 | AFH12: 12024900 | AFI12: 0 | AFJ12: 11603430.67 | AFK12: 0.01 | AFL12: =(AFJ12-AFI12+AFI12/12)*AFK12+AFI12/12*AFK12/12*11+AFI12/12*AFK12/12*10+AFI12/12*AFK12/12*9+AFI12/12*AFK12/12*8+AFI12/12*AFK12/12*7+AFI12/12*AFK12/12*6+AFI12/12*AFK12/12*5+AFI12/12*AFK12/12*4+AFI12/12*AFK12/12*3+AFI12/12*AFK12/12*2+AFI12/12*AFK12/12*1 -> 116034.3067 | AFM12: 20000000 | AFN12: =AFJ12+AFM12+AFL12 -> 31719464.98 | AFO12: 100724740.5 | AFP12: 74213731.35 | AFQ12: 15932565.67 | AFR12: 1885734.851 | AFS12: 0.05081902814 | AFT12: 3771469.702 | AFU12: 6352775.836 | AFV12: 80566507.18 | AFW12: 33930477.75 | AFX12: 3461111.387 | AFY12: 1724313.904 | AGB12: 0 | AGC12: 0 | AGD12: 0 | AGE12: 0 | AGF12: 23400 | AGG12: 25193751.7 | AGH12: 47114515.47 | AGI12: 0 | AGJ12: 0 | AGK12: 0 | AGL12: 0 | AGM12: 0 | AGN12: 0 | AGO12: 0 | AGP12: 0 | AGQ12: 0 | AGR12: 0 | AGS12: 0 | AGT12: 0 | AGU12: 0 | AGV12: 0 | AGW12: 0 | AGX12: 11008300 | AGY12: 0 | AGZ12: 0 | AHA12: 0 | AHC12: 0 | AHD12: 0 | AHE12: 47114515.47 | AHF12: 46726684 | AHH12: 100000 | AHI12: 100025890.8
A13: 現役 妻 | B13: =B12-3 -> 49 | D13: F2024 | E13: 43 | F13: 40 | G13: 5 | H13: =IF(H12<>"",H12+1,"") ->  | I13: 73 | J13: 69 | K13: 0 | L13: 0 | M13: 0 | N13: 0 | O13: 1 | P13: 6 | Q13: 1 | R13: 1 | S13: 0 | T13: 0 | U13: 0 | V13: 0 | W13: 1 | X13: 1 | Z13: 0 | AA13: 0 | AB13: 0 | AC13: 0 | AD13: 0.0093 | AE13: 1.01767719 | AF13: -0.006 | AG13: 0.9874750656 | AI13: =AI12 -> 1.007499136 | AJ13: 29.77670047 | AK13: =AK$11/AJ$11*AJ13 -> 1.015054509 | AL13: =IF(AND(Q13=1,E13<=B$15),AL12+5000*12,0) -> 5572200 | AM13: =IF(AND(Q13=1,E13<=B$15),AM12/AL12*AL13,0) -> 431473.9998 | AN13: =IF(AND(Q13=1,E13<=B$15),(11000+10000+12000)*12+IF(H13<>"",4200),0) -> 396000 | AO13: =IF(AND(Q13=1,E13<=B$15),AO12/AL12*AL13,0) -> 2418218.75 | AP13: 1000000 | AQ13: 10000 | AR13: 0 | AS13: 0 | AT13: 0 | AU13: 0 | AV13: 0 | AW13: 0 | AX13: 8827892.75 | AY13: 1984470.521 | AZ13: 6843422.23 | BA13: 0 | BB13: 0 | BC13: 0 | BD13: 0 | BE13: 0 | BF13: 0 | BG13: 8871000 | BH13: =348000+201000+532000 -> 1081000 | BI13: 0.8 | BL13: 7961600 | BM13: 971252 | BN13: 21 | BO13: 8853791.553 | BP13: 0 | BQ13: 350000 | BR13: =_xlfn.IFS(AND(BX13>=1,BX13<=4),0.4,AND(BX13>=5,BX13<=9),0.5,AND(BX13>=10,BX13<=14),0.6,AND(BX13>=15,BX13<=19),0.7,TRUE,0) -> 0 | BT13: =BT12 -> 267 | BV13: 0 | BW13: 0 | BX13: 0 | BY13: 0 | BZ13: 330000 | CA13: 0 | CB13: 3616095.486 | CC13: =IF(アセットアロケーション!$R30=10,アセットアロケーション!$H$10*$B$33*-1+(アセットアロケーション!$H$9+$AD13),IF(アセットアロケーション!$R30=5,アセットアロケーション!$H$10*($B$33-1)*-1+(アセットアロケーション!$H$9+$AD13),(アセットアロケーション!$H$9+$AD13)+アセットアロケーション!$H$10*$B$33/8+アセットアロケーション!$H$10*($B$33-1)/8)) -> -0.440004 | CD13: -1445895.158 | CE13: 0 | CF13: 8 | CG13: 8 | CH13: 19 | CI13: 6 | CJ13: 0 | CK13: 814141.752 | CL13: 0 | CM13: 2400000 | CO13: 2400000 | CP13: 375377.3573 | CQ13: 1363132.469 | CR13: 1363132.469 | CS13: 0 | CT13: 0.355 | CU13: 0.9683802439 | CY13: 0.246 | CZ13: 0.9761904762 | DI13: 0 | DJ13: 0 | DK13: 0 | DL13: 0 | DM13: 0 | DN13: 0 | DO13: 118252.4052 | DP13: 88662036.22 | DQ13: -0.2929940131 | DR13: =IF(DP13=0,0,(((CB13-BZ13-CA13)+(BZ13+CA13)/12)+(DP13-DO13+DO13/12)+(FB13-FA13+FA13/12)+(FI13-FG13+FG13/12)+(GF13-GE13+GE13/12)+(HG13-HF13+HF13/12)+(IE13-ID13+ID13/12)+(IJ13-II13+II13/12))*アセットアロケーション!S30+((BZ13+CA13)/12+DO13/12+FA13/12+FG13/12+GE13/12+HF13/12+ID13/12+II13/12)*アセットアロケーション!S30/12*11+((BZ13+CA13)/12+DO13/12+FA13/12+FG13/12+GE13/12+HF13/12+ID13/12+II13/12)*アセットアロケーション!S30/12*10+((BZ13+CA13)/12+DO13/12+FA13/12+FG13/12+GE13/12+HF13/12+ID13/12+II13/12)*アセットアロケーション!S30/12*9+((BZ13+CA13)/12+DO13/12+FA13/12+FG13/12+GE13/12+HF13/12+ID13/12+II13/12)*アセットアロケーション!S30/12*8+((BZ13+CA13)/12+DO13/12+FA13/12+FG13/12+GE13/12+HF13/12+ID13/12+II13/12)*アセットアロケーション!S30/12*7+((BZ13+CA13)/12+DO13/12+FA13/12+FG13/12+GE13/12+HF13/12+ID13/12+II13/12)*アセットアロケーション!S30/12*6+((BZ13+CA13)/12+DO13/12+FA13/12+FG13/12+GE13/12+HF13/12+ID13/12+II13/12)*アセットアロケーション!S30/12*5+((BZ13+CA13)/12+DO13/12+FA13/12+FG13/12+GE13/12+HF13/12+ID13/12+II13/12)*アセットアロケーション!S30/12*4+((BZ13+CA13)/12+DO13/12+FA13/12+FG13/12+GE13/12+HF13/12+ID13/12+II13/12)*アセットアロケーション!S30/12*3+((BZ13+CA13)/12+DO13/12+FA13/12+FG13/12+GE13/12+HF13/12+ID13/12+II13/12)*アセットアロケーション!S30/12*2+((BZ13+CA13)/12+DO13/12+FA13/12+FG13/12+GE13/12+HF13/12+ID13/12+II13/12)*アセットアロケーション!S30/12*1-CD13-GH13-IG13-IL13-FK13-FD13-HI13) -> -25977445.8 | DS13: 55657319.2 | DT13: 7027271.227 | DU13: 62684590.42 | DV13: 0.1262596066 | DW13: 0 | DX13: 0 | DY13: -12670.48022 | DZ13: 0 | EA13: 0 | EB13: 0 | EC13: 0 | ED13: 0 | EE13: 0 | EF13: 0 | EG13: 0 | EH13: 2748162.077 | EI13: 1000000 | EJ13: 0 | EK13: 3748162.077 | EL13: 0.00744 | EM13: 27886.32585 | EN13: 0 | EO13: 16411.66667 | EP13: 0.5 | EQ13: 150 | ER13: 0 | ES13: =IF(AZ12+BE12+BF12+CL12>8960000*AE13,0,IF(AZ12+BE12+BF12+CL12>6600000*AE13,5000*12*AE13,10000*12*AE13)) -> 61060.6314 | ET13: 0 | EW13: 61060.6314 | EX13: =LG13*0.02/IF(AND(LG13>0,LG13<=ふるさと納税計算式!B$2),ふるさと納税計算式!D$2,IF(LG13<=ふるさと納税計算式!B$3,ふるさと納税計算式!D$3,IF(LG13<=ふるさと納税計算式!B$4,ふるさと納税計算式!D$4,IF(LG13<=ふるさと納税計算式!B$5,ふるさと納税計算式!D$5,IF(LG13<=ふるさと納税計算式!B$6,ふるさと納税計算式!D$6,IF(LG13<=ふるさと納税計算式!B$7,ふるさと納税計算式!D$7,ふるさと納税計算式!D$8))))))+2000*AE13 -> 185864.187 | EY13: 53723.90173 | FB13: 3497763.496 | FC13: =IF(アセットアロケーション!$R30=10,アセットアロケーション!$H$10*$B$33*-1+(アセットアロケーション!$H$9+$AD13),IF(アセットアロケーション!$R30=5,アセットアロケーション!$H$10*($B$33-1)*-1+(アセットアロケーション!$H$9+$AD13),(アセットアロケーション!$H$9+$AD13)+アセットアロケーション!$H$10*$B$33/8+アセットアロケーション!$H$10*($B$33-1)/8)) -> -0.440004 | FD13: -1539029.929 | FE13: 0 | FF13: 0 | FG13: 7200000 | FH13: =FH12+FG13+FF13 -> 14400000 | FI13: 14914784.4 | FJ13: =IF(アセットアロケーション!$R30=10,アセットアロケーション!$H$10*$B$33*-1+(アセットアロケーション!$H$9+$AD13),IF(アセットアロケーション!$R30=5,アセットアロケーション!$H$10*($B$33-1)*-1+(アセットアロケーション!$H$9+$AD13),(アセットアロケーション!$H$9+$AD13)+アセットアロケーション!$H$10*$B$33/8+アセットアロケーション!$H$10*($B$33-1)/8)) -> -0.440004 | FK13: -5110551.595 | FL13: =FK13+FI13 -> 9804232.805 | FM13: =IF(FH13>0,FN13/FH13,0) -> -0.3191504997 | FN13: -4595767.195 | FO13: -39340425.69 | FP13: 0 | FQ13: 0 | FR13: 0 | FS13: 0 | FT13: 346536.758 | FU13: 4158441.096 | FV13: 693073.516 | FW13: 4851514.612 | FX13: 3433433.726 | FY13: 3433433.726 | FZ13: 0 | GD13: 0 | GE13: 276000 | GF13: 1598234.167 | GG13: =IF(アセットアロケーション!$R30=10,アセットアロケーション!$H$10*$B$33*-1+(アセットアロケーション!$H$9+$AD13),IF(アセットアロケーション!$R30=5,アセットアロケーション!$H$10*($B$33-1)*-1+(アセットアロケーション!$H$9+$AD13),(アセットアロケーション!$H$9+$AD13)+アセットアロケーション!$H$10*$B$33/8+アセットアロケーション!$H$10*($B$33-1)/8)) -> -0.440004 | GH13: -647568.9203 | GI13: 0 | GR13: 0 | GS13: 0 | GT13: 0 | GU13: 0 | GV13: 0.5 | GW13: 30 | GX13: 0 | GY13: 0 | GZ13: 0 | HA13: =LM13*0.02/IF(AND(LM13>0,LM13<=ふるさと納税計算式!B$2),ふるさと納税計算式!D$2,IF(LM13<=ふるさと納税計算式!B$3,ふるさと納税計算式!D$3,IF(LM13<=ふるさと納税計算式!B$4,ふるさと納税計算式!D$4,IF(LM13<=ふるさと納税計算式!B$5,ふるさと納税計算式!D$5,IF(LM13<=ふるさと納税計算式!B$6,ふるさと納税計算式!D$6,IF(LM13<=ふるさと納税計算式!B$7,ふるさと納税計算式!D$7,ふるさと納税計算式!D$8))))))+2000*AE13 -> 46931.09295 | HB13: 12043.9735 | HF13: 440917.649 | HG13: 3731401.033 | HH13: =IF(アセットアロケーション!$R30=10,アセットアロケーション!$H$10*$B$33*-1+(アセットアロケーション!$H$9+$AD13),IF(アセットアロケーション!$R30=5,アセットアロケーション!$H$10*($B$33-1)*-1+(アセットアロケーション!$H$9+$AD13),(アセットアロケーション!$H$9+$AD13)+アセットアロケーション!$H$10*$B$33/8+アセットアロケーション!$H$10*($B$33-1)/8)) -> -0.440004 | HI13: -1552912.179 | HJ13: 0 | HK13: 0 | HL13: 0 | HM13: 0 | HN13: =アセットアロケーション!S30 -> -0.3292611471 | HO13: 0 | HP13: 0 | HQ13: 0 | HR13: 0 | HS13: 0 | HT13: 207030 | HU13: 1898390 | HV13: 1726655.171 | HW13: 1726655.171 | HX13: 199972.2086 | HY13: -7057.791364 | HZ13: 9 | IA13: -0.0104802563 | IB13: 1017677.19 | IC13: 0 | ID13: 0 | IE13: 6006520.155 | IF13: =IF(アセットアロケーション!$R30=10,アセットアロケーション!$H$10*$B$33*-1+(アセットアロケーション!$H$9+$AD13),IF(アセットアロケーション!$R30=5,アセットアロケーション!$H$10*($B$33-1)*-1+(アセットアロケーション!$H$9+$AD13),(アセットアロケーション!$H$9+$AD13)+アセットアロケーション!$H$10*$B$33/8+アセットアロケーション!$H$10*($B$33-1)/8)) -> -0.440004 | IG13: -2642892.894 | IH13: 0 | IJ13: 0 | IK13: =IF(アセットアロケーション!$R30=10,アセットアロケーション!$H$10*$B$33*-1+(アセットアロケーション!$H$9+$AD13),IF(アセットアロケーション!$R30=5,アセットアロケーション!$H$10*($B$33-1)*-1+(アセットアロケーション!$H$9+$AD13),(アセットアロケーション!$H$9+$AD13)+アセットアロケーション!$H$10*$B$33/8+アセットアロケーション!$H$10*($B$33-1)/8)) -> -0.440004 | IL13: 0 | IM13: 1017677.19 | IN13: -58705721.86 | IO13: =(IO12-IF(AND(IV12<>"",IV13=0),IV12,0))*(100%+AD13)+IF(IQ13<>IQ12,IR13-IR12,0)+IF(AND(I12<>"",I13="",B$40=1),B$20*AE13,0)+IF(AND(M12+O12>=1,M13+O13=0),B$21*AE13,0)+IF(AND(Q12=1,Q13=0),B$19*AE13,0)+IF(DATEDIF("1981/9/3",TODAY(),"Y")+1=E13,B$18*AE13,0) -> 291669.9116 | IP13: 48000 | IQ13: 48000 | IR13: 48848.50512 | IS13: 27706.96717 | IT13: 10495.89851 | IU13: 5764.123604 | IV13: 0 | IW13: 147000 | IX13: 33000 | IY13: =IF(Q13=1,IY12,0) -> 10717 | IZ13: 7500 | JA13: 2750 | JB13: 2798.612273 | JC13: 2798.612273 | JD13: 78000 | JE13: 690000 | JF13: 78000 | JG13: 0 | JH13: 0 | JI13: 0 | JJ13: 0 | JK13: 0 | JL13: 0 | JM13: =IF(Q13=1,JM12*(100%+$AD13),0) -> 2839.329117 | JN13: 3776981.583 | JO13: 305303.157 | JP13: 15000 | JQ13: 50000 | JX13: 0 | KK13: 0 | KL13: =7000*12 -> 84000 | KM13: =7150*12 -> 85800 | KO13: 234065.7537 | KP13: 0 | KQ13: 172801.5869 | KR13: 0 | KS13: 234065.7537 | KT13: 172801.5869 | KU13: 367597.9086 | KV13: 807752.1866 | KW13: 294889.6659 | KX13: 76705.40442 | KY13: 44139.46375 | KZ13: 443913.587 | LA13: 251644.5961 | LB13: =IF(OR(AND(FW13+GR13>1800000*AE13,F13>=60,F13<65,E13<>""),AND(FW13+GR13>1300000*AE13,F13<60,E13<>"")),IF(FU13>1390000*AE13*12,1390000*AE13*12,FU13)*(12.01%-10.22%)/2+IF(FV13>5730000,5730000,FV13)*(12.01%-10.22%)/2,IF(F13<65,0,IF(AND(E13<75,F13<75),4424*AE13+13396*AE13*(1+IF(AND(E13>65,G13<=24),1,0))+IF(GT12+FY12>330000*AE13,(GT12+FY12-330000*AE13)*2.62%,0),IF(OR(E13="",AND(E13<>"",F13>=65)),95124*AE13*IF(LQ13=0,IF(LL13=0,IF(FY12+GR12<800000*AE13,0.5,IF(FY12+GR12<1200000*AE13,0.65,0.75)),IF(FY12+GR12<800000*AE13,0.85,1)),IF(FY12+GT12<=1250000*AE13,1.1,IF(FY12+GT12<2000000*AE13,1.25,IF(FY12+GT12<4000000*AE13,1.5,IF(FY12+GT12<7000000*AE13,1.75,2)))))))*AK13)) -> 43421.05578 | LC13: 24257.57306 | LG13: 6395405.088 | LH13: 844024.0189 | LI13: 0 | LJ13: 17724.5044 | LK13: 6470713.2 | LL13: 648730.0964 | LM13: 1905711.863 | LN13: 95285.59314 | LO13: 2000.997456 | LP13: 1956595.722 | LQ13: 206852.9404 | LR13: 2020.6332 | LS13: 0 | LT13: 0 | LU13: 0 | LV13: 0 | LW13: 0 | LX13: 0 | LY13: 0 | LZ13: 0 | MA13: 0 | MB13: 0 | MC13: 0 | MD13: 0 | ME13: 0 | MF13: 0 | MG13: 0 | MH13: 0 | MI13: 0 | MJ13: 0 | MK13: 0 | ML13: 0 | MM13: 0 | MN13: 4182.948878 | MO13: 87.84192644 | MP13: 1394.316293 | MQ13: 5665.107097 | MR13: 0 | MS13: 0 | MT13: 0 | MU13: 8298179.504 | MV13: -67003901.37 | MW13: -65840034.57 | MX13: 62684590.42 | MY13: 0 | MZ13: 1958733.567 | NA13: 2178488.854 | NB13: 9804232.805 | NC13: 3363627.261 | ND13: 0 | NE13: 2170200.328 | NF13: 950665.2465 | NG13: 83110538.48 | NH13: 81666897.23 | NI13: 400000 | NJ13: 1000000 | NK13: 0 | NL13: -2214656.391 | NM13: 3459581.903 | NN13: 3459581.903 | NO13: 1726655.171 | NP13: 7961600 | NQ13: 5025977.19 | NR13: 19573814.26 | NS13: 19233814.47 | NT13: 110748.552 | NU13: 80360.547 | NV13: 76440.52031 | NW13: 15.06333333 | NX13: 1221191.42 | NY13: 1313198.825 | NZ13: 800947.7997 | OA13: 0.9701026603 | OB13: 135728.4493 | OC13: 330.57 | OD13: 48376269.76 | OE13: 0 | OF13: 0 | OG13: 0 | OH13: 800947.7997 | OI13: 0.9701026603 | OJ13: 135728.4493 | OK13: 89480.23692 | OL13: 749 | OM13: 85360451.95 | ON13: 0 | OO13: 0 | OP13: 0 | OQ13: 1313198.825 | OR13: 1290388.385 | OS13: 326.674378 | OT13: 5.291921388 | OU13: 36.63637884 | OV13: 178.0935083 | OW13: 0 | OX13: 0 | OY13: 101.7501581 | OZ13: 647.9170566 | PA13: 448.3844359 | PB13: 1061.901415 | PC13: 46626.78043 | PD13: 30210286.33 | PE13: 20906722.64 | PF13: 49513044.12 | PG13: 48652995.87 | PH13: 153510595.7 | PI13: 150844095.9 | QO13: 0 | QP13: 0 | QQ13: 0 | QR13: 0 | QS13: 0 | QT13: 3.445893526e-08 | QU13: 153510595.7 | QV13: 153510595.7 | QW13: 150844095.9 | QX13: =QV13-IF((DU13-DS13)>0,(DU13-DS13)*0.2,0)+(メイン!YD13-メイン!XC13-メイン!WX13*32000*AE13-メイン!WU13*3%-メイン!WM13*3%-(メイン!YD13-メイン!XC13-メイン!WX13*32000*AE13-メイン!WU13*3%-メイン!WM13*3%-メイン!YC13)*23%)*0.8/100000*PC13-PF13-NY13*3%-(NY13*95%-NY13*3%)*20%-(OG13*95%-OG13*3%)*20%-(OP13*95%-OP13*3%)*20% -> 135952791.8 | QY13: 133591273.4 | QZ13: 8029672.231 | RA13: 8120726.679 | RB13: 150844095.9 | RC13: 0 | RF13: 1165170.054 | RG13: 107112050.6 | RH13: -33805744.88 | RI13: -0.3156110326 | RJ13: 180.6482787 | RK13: -57.01458978 | RL13: 123.6336889 | RO13: -0.4364773719 | RP13: 0.04814119978 | RS13: 106788597.5 | RT13: 32023077.75 | RU13: 4369261.169 | RV13: 32023077.75 | RW13: 4369261.169 | RX13: 8738522.338 | RY13: 53394298.74 | RZ13: 0 | SA13: 53394298.74 | SB13: 2842745.384 | SF13: 4 | SG13: =IF(SF13=1,家賃下落率!D15,SG12) -> 0 | SH13: =家賃下落率!C16 -> 0.009 | SI13: 1 | SJ13: 1 | SK13: 28134412.3 | SL13: =IF(AB13=1,0,IF($AA13=0,SUM(一括!$E$3:$E$40)*12,0)) -> 23869560 | SM13: 0.8484115376 | SN13: -3330429.818 | SO13: 0 | SP13: 0 | SQ13: 2592308.042 | SR13: 2459160 | SS13: 0.9486372609 | ST13: 194549.2197 | SU13: 0 | SV13: 0 | SX13: =家賃下落率!C37 -> 0.007 | SY13: 0 | SZ13: -37457077.49 | TA13: 0 | TB13: 38474.55091 | TC13: -43694378.41 | TD13: 156425000 | TE13: 0 | TF13: 0 | TG13: -41683775.94 | TH13: 0 | TI13: 1925088.611 | TJ13: =アセットアロケーション!S30 -> -0.3292611471 | TK13: -633856.8842 | TL13: 25694863.12 | TM13: -58553998.83 | TN13: =IF(AB13=1,0,IF($AA13=0,TN12*(100%+メイン!$AD13)*WG13/WG12,0)) -> 1813369.932 | TO13: 5881943 | TP13: =IF($AA13=0,IF(TP12<2761500*0.03217,TP12,IF(WH12*0.167>2761500*0.03217,WH12*0.167,WH12*0.2)),0) -> 41475.2 | TQ13: =IF($AA13=0,IF(TQ12<8550000*0.03217,TQ12,IF(WI12*0.167>8550000*0.03217,WI12*0.167,WI12*0.2)),0) -> 128411.4 | TR13: =IF($AA13=0,IF(TR12<38062366*0.03217,TR12,IF(WJ12*0.167>38062366*0.03217,WJ12*0.167,WJ12*0.2)),0) -> 571652.4 | TS13: =IF($AA13=0,3223800*0.067,0) -> 215994.6 | TT13: 6839476.6 | TU13: =VLOOKUP(XN13,返済明細!A:Z,9,FALSE) -> 4824830.493 | TV13: 270666 | TX13: 0 | TY13: 0 | TZ13: 0 | UA13: 109022.5181 | UB13: 2132115.645 | UC13: 0 | UD13: 0 | UE13: 0 | UF13: 0 | UG13: 0 | UH13: 0 | UI13: 0 | UJ13: =IF(OR(AND(X12=0,Z13=1,Z12=0),AND(X13=1,X12=0)),WX12*60000*AE13+(OL13+XH13-WW13)*10000*AE13,0) -> 19876588.32 | UK13: =IF(OR(AND(X12=0,Z13=1,Z12=0),AND(X13=1,X12=0)),XB12,0) -> 19183456.69 | UL13: 0 | UM13: 0 | UN13: 0 | UO13: 1831818.942 | UP13: 0 | UQ13: 0 | UR13: 0 | US13: 1575364.29 | UT13: 976970.1024 | UU13: 0 | UV13: 132387.7611 | UX13: 0 | UY13: 0 | UZ13: 223560 | VA13: 442570.387 | VB13: -219010.387 | VC13: 0 | VD13: 1312260.135 | VE13: 202293.8718 | VF13: 501871.577 | VG13: 0 | VH13: 2400000 | VI13: 451848.6724 | VJ13: 4868274.257 | VK13: 62602522.61 | VL13: -36907659.5 | VM13: 0 | VN13: 0 | VO13: 0 | VP13: 0 | VQ13: 20353.5438 | VR13: 3918048.515 | VS13: 0.2847713764 | VT13: -36907659.5 | VU13: 0 | VV13: 40497637.84 | VW13: -99051636.67 | VX13: 0 | VY13: -3194672.806 | VZ13: 10000000 | WA13: 1291231.726 | WB13: 11291231.73 | WC13: 12038993 | WD13: 2081450 | WE13: 5596771 | WF13: 13.5 | WG13: 210769659 | WH13: 124425.6 | WI13: 385234.2 | WJ13: 1714957.2 | WK13: 186989.2 | WL13: 213181265.2 | WM13: 220029124.4 | WN13: =築年スプレッド!C14 -> 0.07064715471 | WO13: 0.09323562179 | WP13: 0.048163012 | WQ13: =(SL13+SR13-TN13-UA13-メイン!ZQ13-TU13-TV13-TW13-(SL13+SR13-TN13-UA13-メイン!ZQ13-TU13-TT13-TV13-TW13)*20%)/(WM13+WU13+メイン!ABI13+メイン!OG13) -> 0.05076563427 | WR13: 334.31 | WS13: 18600000 | WT13: 44921624.09 | WU13: 61154485.98 | WV13: 35 | WW13: 0 | WX13: 0 | WY13: 0 | WZ13: 0 | XA13: 0 | XB13: 0 | XC13: 0 | XD13: 0 | XE13: 8883815.187 | XF13: 12094067.44 | XG13: 103661.3917 | XH13: 0 | XI13: 0 | XJ13: 0 | XK13: 324286123.5 | XL13: 318653229.8 | XM13: 17 | XN13: 171 | XP13: =VLOOKUP(XN13,返済明細!A:Z,10,FALSE)*-1 -> 13610354.59 | XQ13: 13610354.59 | XR13: =VLOOKUP(XN13,返済明細!A:H,8,FALSE) -> 174583367.5 | XS13: =IF(W13=1,0,IF(メイン!J13="",0,18000000)) -> 0 | XT13: 0 | XU13: 1000000 | XV13: 0 | XW13: 1000000 | XX13: 9500000 | XY13: 33992261 | XZ13: 43492261 | YA13: 218075628.5 | YB13: 40700063.24 | YC13: 64791705.66 | YD13: 106210495.1 | YE13: =YD13/メイン!AE13 -> 104365604.4 | YF13: 106210495.1 | YG13: -41683775.94 | YI13: 0.3275209371 | YJ13: 2.64741832 | YK13: 0.8296059922 | YL13: -93899127.69 | YM13: =YL13/(YD13+メイン!ABI13+メイン!ABL13) -> -0.3353322787 | YS13: =IF(I13<>"",メイン!UB13,0) -> 2132115.645 | YT13: =IF(I13<>"",メイン!UM13+IF(X13=1,388831*12*AE13*IF(E13-B$57>=1,1,0.5),0),0) -> 2374226.637 | YU13: 3529753.325 | YV13: =IF(I13<>"",メイン!US13,0) -> 1575364.29 | YW13: 1015641.836 | YX13: 1015641.836 | YY13: 780100 | YZ13: 755433.4283 | ZA13: 1335806 | ZB13: 1287668.567 | ZC13: 2043101.995 | ZD13: 881045.7027 | ZE13: 881045.7027 | ZF13: 0 | ZG13: 0 | ZH13: 8124808.567 | ZI13: 81713.02 | ZJ13: 196525.7694 | ZK13: 4171231.971 | ZL13: 399189.3956 | ZM13: 4272999.69 | ZN13: 706639.4696 | ZO13: 143761.3674 | ZP13: 131408.8195 | ZQ13: 107804.7778 | ZR13: 0 | ZS13: 868784.179 | ZT13: 0 | ZU13: 1017677.19 | ZV13: 3053031.57 | ZW13: 1017677.19 | ZX13: 1017677.19 | ZY13: =SUM(ZV11:ZW13)+(AAK13-AAK10)*PA13 -> 10522555.31 | ZZ13: 0 | AAA13: 360199.5298 | AAB13: 0 | AAC13: -844723.6248 | AAD13: 0 | AAE13: 0 | AAF13: 0 | AAG13: 0 | AAH13: -484524.095 | AAI13: 8257365.843 | AAJ13: -132557.276 | AAK13: 1673.219575 | AAL13: 750245.6152 | AAM13: 1776794.234 | AAN13: 1000 | AAO13: 7380.194982 | AAP13: 7380194.982 | AAQ13: 2000 | AAR13: 324.6390236 | AAS13: 649278.0472 | AAT13: 7930843 | AAU13: 2671.402624 | AAV13: 2118647.48 | AAW13: 30000 | AAX13: 106.436362 | AAY13: 3193090.859 | AAZ13: 45 | ABA13: 200.55 | ABB13: 60.58912387 | ABC13: 8456625.136 | ABD13: 436.8366667 | ABE13: 12054113.26 | ABF13: 38082765.93 | ABG13: 330.57 | ABH13: 35535260.75 | ABI13: 48376269.76 | ABJ13: 748.5 | ABK13: 85303469.01 | ABL13: 125431395.3 | ABM13: 4516472 | ABN13: 6231890 | ABO13: 0 | ABP13: 10748362 | ABQ13: 23388352.24 | ABR13: 484524.095 | ABS13: 270086300 | ABT13: 179313801.5 | ABU13: 70493925.83 | ABV13: 14024437.42 | ABW13: 0.1564234019 | ABX13: 35246962.92 | ABY13: 5014038.203 | ABZ13: 35246962.92 | ACA13: 5014038.203 | ACB13: 24052513.83 | ACC13: 26938428.71 | ACD13: 27187236.32 | ACE13: 36685841.89 | ACF13: 67531327.1 | ACG13: 40592898.38 | ACH13: 1.142327298 | ACI13: 1 | ACJ13: 5057637.636 | ACK13: 4766573.144 | ACL13: 40344090.78 | ACM13: 0.4729478326 | ACN13: 0 | ACO13: 5411612.455 | ACP13: 102684204.3 | ACQ13: 196024939.3 | ACT13: =メイン!UT13 -> 976970.1024 | ACU13: 417247.6479 | ACV13: 417247.6479 | ACW13: 0 | ACX13: 0 | ACY13: 0 | ACZ13: 0 | ADA13: 0 | ADB13: 780100 | ADC13: 755433.4283 | ADD13: 391431.9551 | ADE13: 1146865.383 | ADF13: 766865.3834 | ADG13: =IF(メイン!XS13<65,IF(ADF13<700000,0,IF(ADF13<1299999,ADF13-700000,IF(ADF13<4099999,ADF13*75%-375000,IF(ADF13<7699999,ADF13*85%-785000)))),0)+IF(メイン!XS13>64,IF(ADF13<1200000,0,IF(ADF13<3299999,ADF13-1200000,IF(ADF13<4099999,ADF13*75%-375000,IF(ADF13<7699999,ADF13*85%-785000)))),0) -> 66865.38342 | ADH13: 0 | ADI13: 0 | ADJ13: 0 | ADK13: 2123835.486 | ADL13: 0 | ADM13: 0 | ADN13: 0 | ADO13: 0 | ADP13: 0 | ADQ13: 0 | ADR13: 50674.74108 | ADS13: 98262.88468 | ADT13: -321942.7481 | ADU13: 0 | ADV13: -271058.8886 | ADW13: 0 | ADX13: 3663637.884 | ADY13: 0 | ADZ13: 0 | AEA13: 0 | AEB13: 0 | AEC13: 3663637.884 | AED13: 3812575.51 | AEE13: -1688740.024 | AEF13: 28300 | AEG13: 12689279.54 | AEH13: 30051810.05 | AEI13: 0 | AEJ13: 0 | AEK13: 0 | AEL13: 0 | AEM13: 0 | AEN13: 0 | AEO13: 0 | AEP13: 0 | AEQ13: 0 | AER13: 0 | AES13: 0 | AET13: 0 | AEU13: 0 | AEV13: 0 | AEW13: 0 | AEX13: 0 | AEY13: 0 | AEZ13: 0 | AFA13: 0 | AFB13: 0 | AFC13: 0 | AFD13: 0 | AFE13: 0 | AFF13: 0 | AFG13: 0 | AFH13: 15077931.57 | AFI13: 0 | AFJ13: 11719464.98 | AFK13: 0.01 | AFL13: 117194.6498 | AFM13: 20000000 | AFN13: 31836659.63 | AFO13: 76966401.25 | AFP13: 59603870.73 | AFQ13: 8430714.377 | AFR13: 755768.5616 | AFS13: 0.02535971414 | AFT13: 1511537.123 | AFU13: 3271857.619 | AFV13: 62875728.35 | AFW13: 28166006.56 | AFX13: 15476727.02 | AFY13: 714281.8746 | AGB13: 0 | AGC13: 0 | AGD13: 0 | AGE13: 0 | AGF13: 23400 | AGG13: 10492195.8 | AGH13: 24848493.12 | AGI13: 0 | AGJ13: 0 | AGK13: 0 | AGL13: 0 | AGM13: 0 | AGN13: 0 | AGO13: 0 | AGP13: 0 | AGQ13: 0 | AGR13: 0 | AGS13: 0 | AGT13: 0 | AGU13: 0 | AGV13: 0 | AGW13: 0 | AGX13: 12025977.19 | AGY13: 0 | AGZ13: 0 | AHA13: 0 | AHC13: 0 | AHD13: 0 | AHE13: 24848493.12 | AHF13: 24416871.44 | AHH13: 100000 | AHI13: 125431395.3
D14: F2025 | E14: 44 | F14: 41 | G14: 6 | I14: 74 | J14: 70 | K14: 0 | L14: 0 | M14: 0 | N14: 0 | O14: 1 | P14: 7 | Q14: 1 | R14: 2 | S14: 0 | T14: 0 | U14: 0 | V14: 0 | W14: 1 | X14: 1 | Z14: 0 | AA14: 0 | AB14: 0 | AC14: 0 | AD14: 0.01 | AE14: 1.027853962 | AF14: -0.006 | AG14: 0.9913657174 | AH14: 30 | AI14: =AI13 -> 1.007499136 | AJ14: 30 | AK14: 1.022666541 | AL14: 5632200 | AM14: =IF(AND(Q14=1,E14<=B$15),AM13/AL13*AL14,0) -> 436119.9996 | AN14: =IF(AND(Q14=1,E14<=B$15),(11000+(IF(IP14>=140000,70000,IP14/2))+10000+12000)*12+IF(H14<>"",4200),0) -> 1056000 | AO14: 2444257.501 | AP14: 1000000 | AQ14: 10000 | AR14: 0 | AS14: 0 | AT14: 0 | AU14: 0 | AV14: 0 | AW14: 0 | AX14: 9578577.5 | AY14: 2004315.226 | AZ14: 7574262.275 | BA14: 0 | BB14: 0 | BC14: 0 | BD14: 0 | BE14: 0 | BF14: 0 | BG14: 9952000 | BH14: =348000+201000+532000 -> 1081000 | BI14: 0.806 | BL14: 8892598 | BM14: 930998 | BN14: 22 | BO14: 9661827.242 | BP14: 0 | BQ14: 350000 | BR14: =_xlfn.IFS(AND(BX14>=1,BX14<=4),0.4,AND(BX14>=5,BX14<=9),0.5,AND(BX14>=10,BX14<=14),0.6,AND(BX14>=15,BX14<=19),0.7,TRUE,0) -> 0 | BT14: 267 | BV14: 0 | BW14: 0 | BX14: 0 | BY14: 0 | BZ14: 330000 | CA14: 0 | CB14: 2500200.328 | CC14: =IF(アセットアロケーション!$R31=10,アセットアロケーション!$H$10*$B$33*-1+(アセットアロケーション!$H$9+$AD14),IF(アセットアロケーション!$R31=5,アセットアロケーション!$H$10*($B$33-1)*-1+(アセットアロケーション!$H$9+$AD14),(アセットアロケーション!$H$9+$AD14)+アセットアロケーション!$H$10*$B$33/8+アセットアロケーション!$H$10*($B$33-1)/8)) -> 0.133696 | CD14: 290147.1031 | CE14: 0 | CF14: 9 | CG14: 9 | CH14: 21 | CI14: 8 | CJ14: 0 | CK14: 411141.5848 | CL14: 0 | CM14: 2400000 | CO14: 2400000 | CP14: 669726.0029 | CQ14: 1062168.922 | CR14: 1062168.922 | CS14: 0 | CT14: 0.352 | CU14: 0.9639799241 | CY14: 0.243 | CZ14: 0.9642857143 | DI14: 0 | DJ14: 0 | DK14: 0 | DL14: 0 | DM14: 0 | DN14: 0 | DO14: 3.445893526e-08 | DP14: 62684590.42 | DQ14: 0.1250780376 | DR14: =IF(DP14=0,0,(((CB14-BZ14-CA14)+(BZ14+CA14)/12)+(DP14-DO14+DO14/12)+(FB14-FA14+FA14/12)+(FI14-FG14+FG14/12)+(GF14-GE14+GE14/12)+(HG14-HF14+HF14/12)+(IE14-ID14+ID14/12)+(IJ14-II14+II14/12))*アセットアロケーション!S31+((BZ14+CA14)/12+DO14/12+FA14/12+FG14/12+GE14/12+HF14/12+ID14/12+II14/12)*アセットアロケーション!S31/12*11+((BZ14+CA14)/12+DO14/12+FA14/12+FG14/12+GE14/12+HF14/12+ID14/12+II14/12)*アセットアロケーション!S31/12*10+((BZ14+CA14)/12+DO14/12+FA14/12+FG14/12+GE14/12+HF14/12+ID14/12+II14/12)*アセットアロケーション!S31/12*9+((BZ14+CA14)/12+DO14/12+FA14/12+FG14/12+GE14/12+HF14/12+ID14/12+II14/12)*アセットアロケーション!S31/12*8+((BZ14+CA14)/12+DO14/12+FA14/12+FG14/12+GE14/12+HF14/12+ID14/12+II14/12)*アセットアロケーション!S31/12*7+((BZ14+CA14)/12+DO14/12+FA14/12+FG14/12+GE14/12+HF14/12+ID14/12+II14/12)*アセットアロケーション!S31/12*6+((BZ14+CA14)/12+DO14/12+FA14/12+FG14/12+GE14/12+HF14/12+ID14/12+II14/12)*アセットアロケーション!S31/12*5+((BZ14+CA14)/12+DO14/12+FA14/12+FG14/12+GE14/12+HF14/12+ID14/12+II14/12)*アセットアロケーション!S31/12*4+((BZ14+CA14)/12+DO14/12+FA14/12+FG14/12+GE14/12+HF14/12+ID14/12+II14/12)*アセットアロケーション!S31/12*3+((BZ14+CA14)/12+DO14/12+FA14/12+FG14/12+GE14/12+HF14/12+ID14/12+II14/12)*アセットアロケーション!S31/12*2+((BZ14+CA14)/12+DO14/12+FA14/12+FG14/12+GE14/12+HF14/12+ID14/12+II14/12)*アセットアロケーション!S31/12*1-CD14-GH14-IG14-IL14-FK14-FD14-HI14) -> 7840465.555 | DS14: 55657319.2 | DT14: 14867736.78 | DU14: 70525055.98 | DV14: 0.267129948 | DW14: 0 | DX14: 0 | DY14: -11647.3312 | DZ14: 0 | EA14: 0 | EB14: 0 | EC14: 0 | ED14: 0 | EE14: 0 | EF14: 0 | EG14: 0 | EH14: 3459581.903 | EI14: 1000000 | EJ14: 0 | EK14: 4459581.903 | EL14: 0.008 | EM14: 35676.65523 | EN14: 0 | EO14: 16578.33333 | EP14: 0.5 | EQ14: 150 | ER14: 0 | ES14: 61671.23771 | ET14: 0 | EW14: 61671.23771 | EX14: =LG14*0.02/IF(AND(LG14>0,LG14<=ふるさと納税計算式!B$2),ふるさと納税計算式!D$2,IF(LG14<=ふるさと納税計算式!B$3,ふるさと納税計算式!D$3,IF(LG14<=ふるさと納税計算式!B$4,ふるさと納税計算式!D$4,IF(LG14<=ふるさと納税計算式!B$5,ふるさと納税計算式!D$5,IF(LG14<=ふるさと納税計算式!B$6,ふるさと納税計算式!D$6,IF(LG14<=ふるさと納税計算式!B$7,ふるさと納税計算式!D$7,ふるさと納税計算式!D$8))))))+2000*AE14 -> 181822.5253 | EY14: 52491.04968 | FB14: 1958733.567 | FC14: =IF(アセットアロケーション!$R31=10,アセットアロケーション!$H$10*$B$33*-1+(アセットアロケーション!$H$9+$AD14),IF(アセットアロケーション!$R31=5,アセットアロケーション!$H$10*($B$33-1)*-1+(アセットアロケーション!$H$9+$AD14),(アセットアロケーション!$H$9+$AD14)+アセットアロケーション!$H$10*$B$33/8+アセットアロケーション!$H$10*($B$33-1)/8)) -> 0.133696 | FD14: 261874.843 | FE14: 0 | FF14: 0 | FG14: 4111281.586 | FH14: 18511281.59 | FI14: 13915514.39 | FJ14: =IF(アセットアロケーション!$R31=10,アセットアロケーション!$H$10*$B$33*-1+(アセットアロケーション!$H$9+$AD14),IF(アセットアロケーション!$R31=5,アセットアロケーション!$H$10*($B$33-1)*-1+(アセットアロケーション!$H$9+$AD14),(アセットアロケーション!$H$9+$AD14)+アセットアロケーション!$H$10*$B$33/8+アセットアロケーション!$H$10*($B$33-1)/8)) -> 0.133696 | FK14: 1608520.24 | FL14: 15524034.63 | FM14: -0.1613743998 | FN14: -2987246.955 | FO14: 5652655.61 | FP14: 0 | FQ14: 0 | FR14: 0 | FS14: 0 | FT14: 88224.13173 | FU14: 1058689.581 | FV14: 0 | FW14: 1058689.581 | FX14: 493369.9017 | FY14: 493369.9017 | FZ14: 0 | GD14: 0 | GE14: 278290.8 | GF14: 1228956.046 | GG14: =IF(アセットアロケーション!$R31=10,アセットアロケーション!$H$10*$B$33*-1+(アセットアロケーション!$H$9+$AD14),IF(アセットアロケーション!$R31=5,アセットアロケーション!$H$10*($B$33-1)*-1+(アセットアロケーション!$H$9+$AD14),(アセットアロケーション!$H$9+$AD14)+アセットアロケーション!$H$10*$B$33/8+アセットアロケーション!$H$10*($B$33-1)/8)) -> 0.133696 | GH14: 147253.5895 | GI14: 0 | GR14: 0 | GS14: 0 | GT14: 0 | GU14: 0 | GV14: 0.5 | GW14: 30 | GX14: 0 | GY14: 0 | GZ14: 0 | HA14: =LM14*0.02/IF(AND(LM14>0,LM14<=ふるさと納税計算式!B$2),ふるさと納税計算式!D$2,IF(LM14<=ふるさと納税計算式!B$3,ふるさと納税計算式!D$3,IF(LM14<=ふるさと納税計算式!B$4,ふるさと納税計算式!D$4,IF(LM14<=ふるさと納税計算式!B$5,ふるさと納税計算式!D$5,IF(LM14<=ふるさと納税計算式!B$6,ふるさと納税計算式!D$6,IF(LM14<=ふるさと納税計算式!B$7,ふるさと納税計算式!D$7,ふるさと納税計算式!D$8))))))+2000*AE14 -> -4919.872976 | HB14: 0 | HF14: 445326.8255 | HG14: 2623815.679 | HH14: =IF(アセットアロケーション!$R31=10,アセットアロケーション!$H$10*$B$33*-1+(アセットアロケーション!$H$9+$AD14),IF(アセットアロケーション!$R31=5,アセットアロケーション!$H$10*($B$33-1)*-1+(アセットアロケーション!$H$9+$AD14),(アセットアロケーション!$H$9+$AD14)+アセットアロケーション!$H$10*$B$33/8+アセットアロケーション!$H$10*($B$33-1)/8)) -> 0.133696 | HI14: 323505.2207 | HJ14: 0 | HK14: 0 | HL14: 0 | HM14: 0 | HN14: =アセットアロケーション!S31 -> 0.1271295528 | HO14: 0 | HP14: 0 | HQ14: 0 | HR14: 0 | HS14: 0 | HT14: 207030 | HU14: 2105420 | HV14: 1929580.8 | HW14: 1929580.8 | HX14: 202925.6282 | HY14: -4104.371827 | HZ14: 10 | IA14: -0.008683299991 | IB14: 1027853.962 | IC14: 0 | ID14: 0 | IE14: 3363627.261 | IF14: =IF(アセットアロケーション!$R31=10,アセットアロケーション!$H$10*$B$33*-1+(アセットアロケーション!$H$9+$AD14),IF(アセットアロケーション!$R31=5,アセットアロケーション!$H$10*($B$33-1)*-1+(アセットアロケーション!$H$9+$AD14),(アセットアロケーション!$H$9+$AD14)+アセットアロケーション!$H$10*$B$33/8+アセットアロケーション!$H$10*($B$33-1)/8)) -> 0.133696 | IG14: 449703.5103 | IH14: 0 | IJ14: 0 | IK14: =IF(アセットアロケーション!$R31=10,アセットアロケーション!$H$10*$B$33*-1+(アセットアロケーション!$H$9+$AD14),IF(アセットアロケーション!$R31=5,アセットアロケーション!$H$10*($B$33-1)*-1+(アセットアロケーション!$H$9+$AD14),(アセットアロケーション!$H$9+$AD14)+アセットアロケーション!$H$10*$B$33/8+アセットアロケーション!$H$10*($B$33-1)/8)) -> 0.133696 | IL14: 0 | IM14: 1027853.962 | IN14: 33062185.92 | IO14: 358802.0414 | IP14: 110000 | IQ14: 110000 | IR14: 113063.9358 | IS14: 27984.03684 | IT14: 10600.85749 | IU14: 5821.76484 | IV14: 0 | IW14: 147000 | IX14: 33000 | IY14: 10717 | IZ14: 7500 | JA14: 2750 | JB14: 2826.598395 | JC14: 2826.598395 | JD14: 78000 | JE14: 690000 | JF14: 78000 | JG14: 0 | JH14: 0 | JI14: 0 | JJ14: 0 | JK14: 0 | JL14: 0 | JM14: 2867.722408 | JN14: 4583579.527 | JO14: 308356.1886 | JP14: 30000 | JQ14: 100000 | JW14: =7000*12 -> 84000 | JX14: 0 | JY14: 1358 | JZ14: 7534 | KA14: 2892 | KB14: 1013 | KC14: 7 | KD14: 2927 | KE14: 28601 | KF14: 889 | KG14: 719 | KH14: 4664 | KI14: 53047 | KJ14: 6102 | KK14: 43105 | KL14: 84000 | KM14: 85800 | KN14: 小学校 | KO14: 472812.8225 | KP14: 0 | KQ14: 331645.3036 | KR14: 0 | KS14: 472812.8225 | KT14: 331645.3036 | KU14: 461835.5374 | KV14: 876439.8413 | KW14: 323499.1144 | KX14: 84147.16849 | KY14: 47892.8875 | KZ14: 0 | LA14: 0 | LB14: =IF(OR(AND(FW14+GR14>1800000*AE14,F14>=60,F14<65,E14<>""),AND(FW14+GR14>1300000*AE14,F14<60,E14<>"")),IF(FU14>1390000*AE14*12,1390000*AE14*12,FU14)*(12.01%-10.22%)/2+IF(FV14>5730000,5730000,FV14)*(12.01%-10.22%)/2,IF(F14<65,0,IF(AND(E14<75,F14<75),4424*AE14+13396*AE14*(1+IF(AND(E14>65,G14<=24),1,0))+IF(GT13+FY13>330000*AE14,(GT13+FY13-330000*AE14)*2.62%,0),IF(OR(E14="",AND(E14<>"",F14>=65)),95124*AE14*IF(LQ14=0,IF(LL14=0,IF(FY13+GR13<800000*AE14,0.5,IF(FY13+GR13<1200000*AE14,0.65,0.75)),IF(FY13+GR13<800000*AE14,0.85,1)),IF(FY13+GT13<=1250000*AE14,1.1,IF(FY13+GT13<2000000*AE14,1.25,IF(FY13+GT13<4000000*AE14,1.5,IF(FY13+GT13<7000000*AE14,1.75,2)))))))*AK14)) -> 0 | LC14: 0 | LG14: 6254087.578 | LH14: 811409.9469 | LI14: 0 | LJ14: 17039.60889 | LK14: 6381541.469 | LL14: 652973.8477 | LM14: -278290.8 | LN14: 0 | LO14: 0 | LP14: -226898.1019 | LQ14: 201562.0999 | LR14: 2039.425089 | LS14: 0 | LT14: 0 | LU14: 0 | LV14: 0 | LW14: 0 | LX14: 0 | LY14: 0 | LZ14: 0 | MA14: 0 | MB14: 0 | MC14: 0 | MD14: 0 | ME14: 0 | MF14: 0 | MG14: 0 | MH14: 0 | MI14: 0 | MJ14: 0 | MK14: 0 | ML14: 0 | MM14: 0 | MN14: 5351.498284 | MO14: 112.381464 | MP14: 1783.832761 | MQ14: 7247.712509 | MR14: 0 | MS14: 0 | MT14: 0 | MU14: 8720645.495 | MV14: 24341540.42 | MW14: 23681905.53 | MX14: 70525055.98 | MY14: 0 | MZ14: 2220608.41 | NA14: 2947320.9 | NB14: 15524034.63 | NC14: 3813330.771 | ND14: 0 | NE14: 2790347.431 | NF14: 1376209.636 | NG14: 99196907.76 | NH14: 96508756.53 | NI14: 400000 | NJ14: 1000000 | NK14: 0 | NL14: -2465252.389 | NM14: 3911967.183 | NN14: 3911967.183 | NO14: 1929580.8 | NP14: 8892598 | NQ14: 6053831.152 | NR14: 22187977.13 | NS14: 21586701.96 | NT14: 108679.4802 | NU14: 79647.79437 | NV14: 75762.53611 | NW14: 15.06333333 | NX14: 1210360.143 | NY14: 1301551.494 | NZ14: 796100.2343 | OA14: 0.9642313214 | OB14: 136256.0517 | OC14: 330.57 | OD14: 48564317.56 | OE14: 0 | OF14: 0 | OG14: 0 | OH14: 796100.2343 | OI14: 0.9642313214 | OJ14: 136256.0517 | OK14: 89828.06368 | OL14: 749 | OM14: 85692264.33 | ON14: 0 | OO14: 0 | OP14: 0 | OQ14: 1301551.494 | OR14: 1266280.563 | OS14: 329.9411218 | OT14: 5.344840602 | OU14: 37.00274263 | OV14: 179.8744433 | OW14: 0 | OX14: 7.995787558 | OY14: 109.7761929 | OZ14: 681.0122938 | PA14: 522.2772635 | PB14: 1130.639138 | PC14: 48791.60635 | PD14: 33227683.75 | PE14: 25482746.64 | PF14: 55165699.73 | PG14: 53670756.52 | PH14: 177852136.1 | PI14: 173032495.6 | QO14: 0 | QP14: 0 | QQ14: 0 | QR14: 0 | QS14: 0 | QT14: -3.166496754e-08 | QU14: 177852136.1 | QV14: 177852136.1 | QW14: 173032495.6 | QX14: =QV14-IF((DU14-DS14)>0,(DU14-DS14)*0.2,0)+(メイン!YD14-メイン!XC14-メイン!WX14*32000*AE14-メイン!WU14*3%-メイン!WM14*3%-(メイン!YD14-メイン!XC14-メイン!WX14*32000*AE14-メイン!WU14*3%-メイン!WM14*3%-メイン!YC14)*23%)*0.8/100000*PC14-PF14-NY14*3%-(NY14*95%-NY14*3%)*20%-(OG14*95%-OG14*3%)*20%-(OP14*95%-OP14*3%)*20% -> 157029661.3 | QY14: 152774292 | QZ14: 4563666.865 | RA14: 4111281.586 | RB14: 173032495.6 | RC14: 0 | RF14: 1053617.626 | RG14: 74359923.31 | RH14: 9312949.822 | RI14: 0.12524152 | RJ14: 123.6336889 | RK14: 15.48407112 | RL14: 139.11776 | RO14: 0.1368639194 | RP14: 0.03209625768 | RS14: 122487514.9 | RT14: 39658824.27 | RU14: 5876056.93 | RV14: 39658824.27 | RW14: 5876056.93 | RX14: 11752113.86 | RY14: 61243757.47 | RZ14: 0 | SA14: 61243757.47 | SB14: 4437061.384 | SF14: 5 | SG14: =IF(SF14=1,家賃下落率!D16,SG13) -> 0 | SH14: =家賃下落率!C17 -> 0.009 | SI14: 1 | SJ14: 1 | SK14: 27989582.15 | SL14: =IF(AB14=1,0,IF($AA14=0,SUM(一括!$E$3:$E$40)*12,0)) -> 23869560 | SM14: 0.8528015843 | SN14: -3399186.999 | SO14: 0 | SP14: 0 | SQ14: 2578963.374 | SR14: 2459160 | SS14: 0.9535459186 | ST14: 237719.1625 | SU14: 0 | SV14: 0 | SX14: =家賃下落率!C38 -> 0.007 | SY14: 0 | SZ14: 0 | TA14: 0 | TB14: 47011.94913 | TC14: 0 | TD14: 156425000 | TE14: 0 | TF14: 0 | TG14: 0 | TH14: 62240.9612 | TI14: 1353472.688 | TJ14: =アセットアロケーション!S31 -> 0.1271295528 | TK14: 172066.3775 | TL14: 26500786.38 | TM14: 23386330.49 | TN14: =IF(AB14=1,0,IF($AA14=0,TN13*(100%+メイン!$AD14)*WG14/WG13,0)) -> 1780391.911 | TO14: 5881943 | TP14: =IF($AA14=0,IF(TP13<2761500*0.03217,TP13,IF(WH13*0.167>2761500*0.03217,WH13*0.167,WH13*0.2)),0) -> 41475.2 | TQ14: =IF($AA14=0,IF(TQ13<8550000*0.03217,TQ13,IF(WI13*0.167>8550000*0.03217,WI13*0.167,WI13*0.2)),0) -> 128411.4 | TR14: =IF($AA14=0,IF(TR13<38062366*0.03217,TR13,IF(WJ13*0.167>38062366*0.03217,WJ13*0.167,WJ13*0.2)),0) -> 571652.4 | TS14: =IF($AA9=0,WK13-1,0) -> 186988.2 | TT14: 6810470.2 | TU14: =VLOOKUP(XN14,返済明細!A:Z,9,FALSE) -> 4585564.252 | TV14: 270666 | TX14: 0 | TY14: 0 | TZ14: 0 | UA14: 109446.3094 | UB14: 2140403.586 | UC14: 0 | UD14: 0 | UE14: 0 | UF14: 0 | UG14: 0 | UH14: 0 | UI14: 0 | UJ14: 0 | UK14: 0 | UL14: 0 | UM14: 0 | UN14: 0 | UO14: 1850137.131 | UP14: 0 | UQ14: 0 | UR14: 0 | US14: 1591117.933 | UT14: 986739.8034 | UU14: 0 | UV14: 134714.3605 | UX14: 0 | UY14: 0 | UZ14: 223560 | VA14: 444814.2727 | VB14: -221254.2727 | VC14: 0 | VD14: 1325382.737 | VE14: 204316.8105 | VF14: 506890.2927 | VG14: 0 | VH14: 2400000 | VI14: 456367.1591 | VJ14: 4892956.999 | VK14: 23302471.35 | VL14: -33709344.48 | VM14: 0 | VN14: 0 | VO14: 0 | VP14: 0 | VQ14: 20557.07924 | VR14: 20353.5438 | VS14: -0.0005514720813 | VT14: 3198315.023 | VU14: 0 | VV14: 16512354.7 | VW14: 6873975.792 | VX14: -2.384185791e-07 | VY14: -3173244.529 | VZ14: 10000000 | WA14: 1525539.065 | WB14: 11525539.07 | WC14: 12038993 | WD14: 2081450 | WE14: 5326105 | WF14: 14.5 | WG14: 204887716 | WH14: 82950.4 | WI14: 256822.8 | WJ14: 1143304.8 | WK14: 1 | WL14: 206370795 | WM14: 216629937.4 | WN14: =築年スプレッド!C15 -> 0.07135362625 | WO14: 0.09360016185 | WP14: 0.04922200598 | WQ14: =(SL14+SR14-TN14-UA14-メイン!ZQ14-TU14-TV14-TW14-(SL14+SR14-TN14-UA14-メイン!ZQ14-TU14-TT14-TV14-TW14)*20%)/(WM14+WU14+メイン!ABI14+メイン!OG14) -> 0.05187488847 | WR14: 334.31 | WS14: 18600000 | WT14: 45096243.02 | WU14: 61392205.14 | WV14: 36 | WW14: 0 | WX14: 0 | WY14: 0 | WZ14: 0 | XA14: 0 | XB14: 0 | XC14: 0 | XD14: 0 | XE14: 8918348.273 | XF14: 12141079.39 | XG14: 104064.3433 | XH14: 0 | XI14: 0 | XJ14: 0 | XK14: 321135309 | XL14: 312432817.2 | XM14: 16 | XN14: 183 | XP14: =VLOOKUP(XN14,返済明細!A:Z,10,FALSE)*-1 -> 13610354.59 | XQ14: =XO14+XP14 -> 13610354.59 | XR14: =VLOOKUP(XN14,返済明細!A:H,8,FALSE) -> 165558577.1 | XS14: =IF(W14=1,0,IF(メイン!J14="",0,18000000)) -> 0 | XT14: 0 | XU14: 1000000 | XV14: 0 | XW14: 1000000 | XX14: 8500000 | XY14: 33992261 | XZ14: 42492261 | YA14: 208050838.1 | YB14: 43910477.18 | YC14: 68101229.38 | YD14: 113084470.9 | YE14: =YD14/メイン!AE14 -> 110019978.6 | YF14: 113084470.9 | YG14: 62240.9612 | YI14: 0.3521396361 | YJ14: 2.458535115 | YK14: 0.8468213658 | YL14: 12071949.07 | YM14: =YL14/(YD14+メイン!ABI14+メイン!ABL14) -> 0.04197949412 | YN14: =(SUM(YL10:YL14)+SUM(メイン!DR10:DR14)+SUM(メイン!FD10:FD14)+SUM(メイン!IG10:IG14)+SUM(メイン!CD10:CD14)+SUM(メイン!GH10:GH14))/(SUM(YD10:YD14)+SUM(メイン!ABI10:ABI14)+SUM(メイン!ABL10:ABL14)+SUM(メイン!OG10:OG14)+SUM(メイン!OP10:OP14)+SUM(メイン!DP10:DP14)+SUM(メイン!FB10:FB14)+SUM(メイン!IE10:IE14)+SUM(メイン!CB10:CB14)+SUM(メイン!GF10:GF14)) -> -0.01396608035 | YS14: =IF(I14<>"",メイン!UB14,0) -> 2140403.586 | YT14: =IF(I14<>"",メイン!UM14+IF(X14=1,388831*12*AE14*IF(E14-B$57>=1,1,0.5),0),0) -> 4795937.806 | YU14: 5955956.247 | YV14: =IF(I14<>"",メイン!US14,0) -> 1591117.933 | YW14: 1025798.254 | YX14: 1025798.254 | YY14: 780100 | YZ14: 752000.7388 | ZA14: 1335806 | ZB14: 1276976.835 | ZC14: 2028977.574 | ZD14: 872201.665 | ZE14: 872201.665 | ZF14: 0 | ZG14: 0 | ZH14: 10556436.9 | ZI14: 83149.05502 | ZJ14: 174982.096 | ZK14: 6609085.212 | ZL14: 882409.4736 | ZM14: 6711870.608 | ZN14: 433202.4967 | ZO14: 144908.5831 | ZP14: 130243.2975 | ZQ14: 108223.8356 | ZR14: 0 | ZS14: 872161.309 | ZT14: 0 | ZU14: 1027853.962 | ZV14: 3083561.886 | ZW14: 1027853.962 | ZX14: 1027853.962 | ZY14: =SUM(ZV12:ZW14)+(AAK14-AAK11)*PA14 -> 9499482.838 | ZZ14: 0 | AAA14: 363801.5251 | AAB14: 0 | AAC14: -853170.861 | AAD14: 0 | AAE14: 0 | AAF14: 0 | AAG14: 0 | AAH14: -489369.3359 | AAI14: 8507034.582 | AAJ14: 2049402.317 | AAK14: 0 | AAL14: 0 | AAM14: 0 | AAN14: 1000 | AAO14: 7453.996932 | AAP14: 7453996.932 | AAQ14: 2000 | AAR14: 327.8854138 | AAS14: 655770.8277 | AAT14: 7930843 | AAU14: 2698.11665 | AAV14: 2139833.955 | AAW14: 30000 | AAX14: 107.5007256 | AAY14: 3225021.767 | AAZ14: 46 | ABA14: 200.55 | ABB14: 60.58912387 | ABC14: 8524109.005 | ABD14: 436.8366667 | ABE14: 11947200.09 | ABF14: 37744993.33 | ABG14: 330.57 | ABH14: 35673393.09 | ABI14: 48564317.56 | ABJ14: 748.5 | ABK14: 85635059.88 | ABL14: 125918971.1 | ABM14: 4516472 | ABN14: 6231890 | ABO14: 0 | ABP14: 10748362 | ABQ14: 18276936.39 | ABR14: 973893.4309 | ABS14: 264226206.2 | ABT14: 174505215.4 | ABU14: 67333854.02 | ABV14: 13005178.47 | ABW14: 0.149052032 | ABX14: 33666927.01 | ABY14: 4677677.478 | ABZ14: 33666927.01 | ACA14: 4677677.478 | ACB14: 22360533.43 | ACC14: 29453911.53 | ACD14: 28989518.83 | ACE14: 40873123.63 | ACF14: 68455442.34 | ACG14: 39001530.81 | ACH14: 1.093294678 | ACI14: 1 | ACJ14: 3328137.716 | ACK14: 4571073.117 | ACL14: 39465923.51 | ACM14: 0.4608617495 | ACN14: 0 | ACO14: 5057035.689 | ACP14: 99365898.77 | ACQ14: 195337251.1 | ACT14: =メイン!UT14 -> 986739.8034 | ACU14: 421420.1244 | ACV14: 421420.1244 | ACW14: 0 | ACX14: 0 | ACY14: 0 | ACZ14: 0 | ADA14: 0 | ADB14: 780100 | ADC14: 752000.7388 | ADD14: 403174.9138 | ADE14: 1155175.653 | ADF14: 775175.6526 | ADG14: =IF(メイン!XS14<65,IF(ADF14<700000,0,IF(ADF14<1299999,ADF14-700000,IF(ADF14<4099999,ADF14*75%-375000,IF(ADF14<7699999,ADF14*85%-785000)))),0)+IF(メイン!XS14>64,IF(ADF14<1200000,0,IF(ADF14<3299999,ADF14-1200000,IF(ADF14<4099999,ADF14*75%-375000,IF(ADF14<7699999,ADF14*85%-785000)))),0) -> 75175.65258 | ADH14: 0 | ADI14: 0 | ADJ14: 0 | ADK14: =ACT14+ACW14+ACX14+ACZ14+ADA14+ADE14+ADI14+ADH14 -> 2141915.456 | ADL14: 0 | ADM14: 0 | ADN14: 0 | ADO14: 0 | ADP14: 0 | ADQ14: 0 | ADR14: 51565.30544 | ADS14: 99989.76913 | ADT14: -326290.2481 | ADU14: 0 | ADV14: -274897.55 | ADW14: 0 | ADX14: 3700274.263 | ADY14: 0 | ADZ14: 0 | AEA14: 0 | AEB14: 0 | AEC14: 3700274.263 | AED14: 3851829.337 | AEE14: -1709913.881 | AEF14: 27808.39365 | AEG14: 14523691.74 | AEH14: 31441258.22 | AEI14: 0 | AEJ14: 0 | AEK14: 0 | AEL14: 0 | AEM14: 0 | AEN14: 0 | AEO14: 0 | AEP14: 0 | AEQ14: 0 | AER14: 0 | AES14: 0 | AET14: 0 | AEU14: 0 | AEV14: 0 | AEW14: 0 | AEX14: 0 | AEY14: 0 | AEZ14: 0 | AFA14: 0 | AFB14: 0 | AFC14: 0 | AFD14: 0 | AFE14: 0 | AFF14: 0 | AFG14: 0 | AFH14: 18161493.46 | AFI14: 0 | AFJ14: 11836659.63 | AFK14: 0.01 | AFL14: 118366.5963 | AFM14: 20000000 | AFN14: 31955026.22 | AFO14: 81557777.9 | AFP14: 64640211.42 | AFQ14: 10735172.51 | AFR14: 1096348.895 | AFS14: 0.03392157517 | AFT14: 2192697.791 | AFU14: 3773772.223 | AFV14: 68413983.64 | AFW14: 30433219.6 | AFX14: 15909527.86 | AFY14: 1032342.746 | AGB14: 0 | AGC14: 0 | AGD14: 0 | AGE14: 0 | AGF14: 23400 | AGG14: 12221287.97 | AGH14: 26456955.82 | AGI14: 0 | AGJ14: 0 | AGK14: 0 | AGL14: 0 | AGM14: 0 | AGN14: 0 | AGO14: 0 | AGP14: 0 | AGQ14: 0 | AGR14: 0 | AGS14: 0 | AGT14: 0 | AGU14: 0 | AGV14: 0 | AGW14: 0 | AGX14: 13053831.15 | AGY14: 0 | AGZ14: 0 | AHA14: 0 | AHC14: 0 | AHD14: 0 | AHE14: 26456955.82 | AHF14: 25739994.98 | AHH14: 100000 | AHI14: 125918971.1
A15: 移籍 夫 | B15: 999 | D15: F2026 | E15: 45 | F15: 42 | G15: 7 | I15: 75 | J15: 71 | K15: 0 | L15: 0 | M15: 0 | N15: 0 | O15: 1 | P15: 8 | Q15: 1 | R15: 2 | S15: 0 | T15: 0 | U15: 0 | V15: 0 | W15: 1 | X15: 1 | Z15: 0 | AA15: 0 | AB15: 0 | AC15: 0 | AD15: 0.0097 | AE15: 1.037824145 | AF15: -0.006 | AG15: 0.994976073 | AI15: =(1+((AH19/AH14)^(1/(MID(D19,2,4)-MID(D14,2,4)))-1)) -> 1.007874989 | AJ15: 30.23624966 | AK15: 1.030720028 | AL15: 5692200 | AM15: 440765.9993 | AN15: =IF(AND(Q15=1,E15<=B$15),(11000+(IF(IP15>=140000,70000,IP15/2))+10000+12000)*12+IF(H15<>"",4200),0) -> 1056000 | AO15: 2470296.251 | AP15: 1000000 | AQ15: 10000 | AR15: 0 | AS15: 0 | AT15: 0 | AU15: 0 | AV15: 0 | AW15: 0 | AX15: 9669262.251 | AY15: 2023757.083 | AZ15: 7645505.167 | BA15: 0 | BB15: 0 | BC15: 0 | BD15: 0 | BE15: 0 | BF15: 0 | BG15: 11033000 | BH15: =348000+201000+532000 -> 1081000 | BI15: 0.812 | BL15: 9836568 | BM15: 943970 | BN15: 23 | BO15: 10482023.87 | BP15: 0 | BQ15: 350000 | BR15: =_xlfn.IFS(AND(BX15>=1,BX15<=4),0.4,AND(BX15>=5,BX15<=9),0.5,AND(BX15>=10,BX15<=14),0.6,AND(BX15>=15,BX15<=19),0.7,TRUE,0) -> 0 | BT15: 267 | BV15: 0 | BW15: 0 | BX15: 0 | BY15: 0 | BZ15: 330000 | CA15: 0 | CB15: 3120347.431 | CC15: =IF(アセットアロケーション!$R32=10,アセットアロケーション!$H$10*$B$33*-1+(アセットアロケーション!$H$9+$AD15),IF(アセットアロケーション!$R32=5,アセットアロケーション!$H$10*($B$33-1)*-1+(アセットアロケーション!$H$9+$AD15),(アセットアロケーション!$H$9+$AD15)+アセットアロケーション!$H$10*$B$33/8+アセットアロケーション!$H$10*($B$33-1)/8)) -> 0.133396 | CD15: 372221.1859 | CE15: 0 | CF15: 10 | CG15: 10 | CH15: 22 | CI15: 9 | CJ15: 0 | CK15: 415129.6581 | CL15: 0 | CM15: 2400000 | CO15: 2400000 | CP15: 676222.3452 | CQ15: 1049191.96 | CR15: 1049191.96 | CS15: 0 | CT15: 0.333 | CU15: 0.9152680451 | CY15: 0.229 | CZ15: 0.9087301587 | DI15: 0 | DJ15: 0 | DK15: 0 | DL15: 0 | DM15: 0 | DN15: 0 | DO15: 0 | DP15: 70525055.98 | DQ15: 0.1198469688 | DR15: =IF(DP15=0,0,(((CB15-BZ15-CA15)+(BZ15+CA15)/12)+(DP15-DO15+DO15/12)+(FB15-FA15+FA15/12)+(FI15-FG15+FG15/12)+(GF15-GE15+GE15/12)+(HG15-HF15+HF15/12)+(IE15-ID15+ID15/12)+(IJ15-II15+II15/12))*アセットアロケーション!S32+((BZ15+CA15)/12+DO15/12+FA15/12+FG15/12+GE15/12+HF15/12+ID15/12+II15/12)*アセットアロケーション!S32/12*11+((BZ15+CA15)/12+DO15/12+FA15/12+FG15/12+GE15/12+HF15/12+ID15/12+II15/12)*アセットアロケーション!S32/12*10+((BZ15+CA15)/12+DO15/12+FA15/12+FG15/12+GE15/12+HF15/12+ID15/12+II15/12)*アセットアロケーション!S32/12*9+((BZ15+CA15)/12+DO15/12+FA15/12+FG15/12+GE15/12+HF15/12+ID15/12+II15/12)*アセットアロケーション!S32/12*8+((BZ15+CA15)/12+DO15/12+FA15/12+FG15/12+GE15/12+HF15/12+ID15/12+II15/12)*アセットアロケーション!S32/12*7+((BZ15+CA15)/12+DO15/12+FA15/12+FG15/12+GE15/12+HF15/12+ID15/12+II15/12)*アセットアロケーション!S32/12*6+((BZ15+CA15)/12+DO15/12+FA15/12+FG15/12+GE15/12+HF15/12+ID15/12+II15/12)*アセットアロケーション!S32/12*5+((BZ15+CA15)/12+DO15/12+FA15/12+FG15/12+GE15/12+HF15/12+ID15/12+II15/12)*アセットアロケーション!S32/12*4+((BZ15+CA15)/12+DO15/12+FA15/12+FG15/12+GE15/12+HF15/12+ID15/12+II15/12)*アセットアロケーション!S32/12*3+((BZ15+CA15)/12+DO15/12+FA15/12+FG15/12+GE15/12+HF15/12+ID15/12+II15/12)*アセットアロケーション!S32/12*2+((BZ15+CA15)/12+DO15/12+FA15/12+FG15/12+GE15/12+HF15/12+ID15/12+II15/12)*アセットアロケーション!S32/12*1-CD15-GH15-IG15-IL15-FK15-FD15-HI15) -> 8452214.181 | DS15: 55657319.2 | DT15: 23319950.96 | DU15: 78977270.16 | DV15: 0.4189916313 | DW15: 0 | DX15: 0 | DY15: -11927.19649 | DZ15: 0 | EA15: 0 | EB15: 0 | EC15: 0 | ED15: 0 | EE15: 0 | EF15: 0 | EG15: 0 | EH15: 3911967.183 | EI15: 1000000 | EJ15: 0 | EK15: 4911967.183 | EL15: 0.00776 | EM15: 38116.86534 | EN15: 0 | EO15: 18578.33333 | EP15: 0.5 | EQ15: 150 | ER15: 0 | ES15: 62269.44872 | ET15: 0 | EW15: 62269.44872 | EX15: =LG15*0.02/IF(AND(LG15>0,LG15<=ふるさと納税計算式!B$2),ふるさと納税計算式!D$2,IF(LG15<=ふるさと納税計算式!B$3,ふるさと納税計算式!D$3,IF(LG15<=ふるさと納税計算式!B$4,ふるさと納税計算式!D$4,IF(LG15<=ふるさと納税計算式!B$5,ふるさと納税計算式!D$5,IF(LG15<=ふるさと納税計算式!B$6,ふるさと納税計算式!D$6,IF(LG15<=ふるさと納税計算式!B$7,ふるさと納税計算式!D$7,ふるさと納税計算式!D$8))))))+2000*AE15 -> 182775.8466 | EY15: 52757.1057 | FB15: 2220608.41 | FC15: =IF(アセットアロケーション!$R32=10,アセットアロケーション!$H$10*$B$33*-1+(アセットアロケーション!$H$9+$AD15),IF(アセットアロケーション!$R32=5,アセットアロケーション!$H$10*($B$33-1)*-1+(アセットアロケーション!$H$9+$AD15),(アセットアロケーション!$H$9+$AD15)+アセットアロケーション!$H$10*$B$33/8+アセットアロケーション!$H$10*($B$33-1)/8)) -> 0.133396 | FD15: 296220.2794 | FE15: 0 | FF15: 0 | FG15: 4904391.925 | FH15: 23415673.51 | FI15: 20428426.56 | FJ15: =IF(アセットアロケーション!$R32=10,アセットアロケーション!$H$10*$B$33*-1+(アセットアロケーション!$H$9+$AD15),IF(アセットアロケーション!$R32=5,アセットアロケーション!$H$10*($B$33-1)*-1+(アセットアロケーション!$H$9+$AD15),(アセットアロケーション!$H$9+$AD15)+アセットアロケーション!$H$10*$B$33/8+アセットアロケーション!$H$10*($B$33-1)/8)) -> 0.133396 | FK15: 2425216.684 | FL15: 22853643.24 | FM15: -0.02400231073 | FN15: -562030.2715 | FO15: -3772128.012 | FP15: 0 | FQ15: 0 | FR15: 0 | FS15: 0 | FT15: 89079.90581 | FU15: 1068958.87 | FV15: 0 | FW15: 1068958.87 | FX15: 498155.5898 | FY15: 498155.5898 | FZ15: 0 | GD15: 0 | GE15: 280878.9044 | GF15: 1657088.54 | GG15: =IF(アセットアロケーション!$R32=10,アセットアロケーション!$H$10*$B$33*-1+(アセットアロケーション!$H$9+$AD15),IF(アセットアロケーション!$R32=5,アセットアロケーション!$H$10*($B$33-1)*-1+(アセットアロケーション!$H$9+$AD15),(アセットアロケーション!$H$9+$AD15)+アセットアロケーション!$H$10*$B$33/8+アセットアロケーション!$H$10*($B$33-1)/8)) -> 0.133396 | GH15: 203876.0935 | GI15: 0 | GR15: 0 | GS15: 0 | GT15: 0 | GU15: 0 | GV15: 0.5 | GW15: 30 | GX15: 0 | GY15: 0 | GZ15: 0 | HA15: =LM15*0.02/IF(AND(LM15>0,LM15<=ふるさと納税計算式!B$2),ふるさと納税計算式!D$2,IF(LM15<=ふるさと納税計算式!B$3,ふるさと納税計算式!D$3,IF(LM15<=ふるさと納税計算式!B$4,ふるさと納税計算式!D$4,IF(LM15<=ふるさと納税計算式!B$5,ふるさと納税計算式!D$5,IF(LM15<=ふるさと納税計算式!B$6,ふるさと納税計算式!D$6,IF(LM15<=ふるさと納税計算式!B$7,ふるさと納税計算式!D$7,ふるさと納税計算式!D$8))))))+2000*AE15 -> -4964.805512 | HB15: 0 | HF15: 449646.4957 | HG15: 3396967.396 | HH15: =IF(アセットアロケーション!$R32=10,アセットアロケーション!$H$10*$B$33*-1+(アセットアロケーション!$H$9+$AD15),IF(アセットアロケーション!$R32=5,アセットアロケーション!$H$10*($B$33-1)*-1+(アセットアロケーション!$H$9+$AD15),(アセットアロケーション!$H$9+$AD15)+アセットアロケーション!$H$10*$B$33/8+アセットアロケーション!$H$10*($B$33-1)/8)) -> 0.133396 | HI15: 425650.5509 | HJ15: 0 | HK15: 0 | HL15: 0 | HM15: 0 | HN15: =アセットアロケーション!S32 -> 0.1238342431 | HO15: 0 | HP15: 0 | HQ15: 0 | HR15: 0 | HS15: 0 | HT15: 207030 | HU15: 2312450 | HV15: 2134774.297 | HW15: 2134774.297 | HX15: 205193.4976 | HY15: -1836.502373 | HZ15: 11 | IA15: -0.007241529491 | IB15: 1037824.145 | IC15: 0 | ID15: 0 | IE15: 3813330.771 | IF15: =IF(アセットアロケーション!$R32=10,アセットアロケーション!$H$10*$B$33*-1+(アセットアロケーション!$H$9+$AD15),IF(アセットアロケーション!$R32=5,アセットアロケーション!$H$10*($B$33-1)*-1+(アセットアロケーション!$H$9+$AD15),(アセットアロケーション!$H$9+$AD15)+アセットアロケーション!$H$10*$B$33/8+アセットアロケーション!$H$10*($B$33-1)/8)) -> 0.133396 | IG15: 508683.0715 | IH15: 0 | IJ15: 0 | IK15: =IF(アセットアロケーション!$R32=10,アセットアロケーション!$H$10*$B$33*-1+(アセットアロケーション!$H$9+$AD15),IF(アセットアロケーション!$R32=5,アセットアロケーション!$H$10*($B$33-1)*-1+(アセットアロケーション!$H$9+$AD15),(アセットアロケーション!$H$9+$AD15)+アセットアロケーション!$H$10*$B$33/8+アセットアロケーション!$H$10*($B$33-1)/8)) -> 0.133396 | IL15: 0 | IM15: 1037824.145 | IN15: 25539173.17 | IO15: 362282.4212 | IP15: 110000 | IQ15: =IF(OR(AND(Q15=0,Q14=1),E15>52),98000,IQ14) -> 110000 | IR15: 114160.656 | IS15: 28255.482 | IT15: 10703.68581 | IU15: 5878.235959 | IV15: 0 | IW15: 147000 | IX15: 33000 | IY15: 10717 | IZ15: 7500 | JA15: 2750 | JB15: 3459.413818 | JC15: 2854.0164 | JD15: 78000 | JE15: 690000 | JF15: 78000 | JG15: 0 | JH15: 0 | JI15: 0 | JJ15: 0 | JK15: 0 | JL15: 0 | JM15: 2895.539315 | JN15: 4633600.689 | JO15: 311347.2436 | JP15: 30000 | JQ15: 100000 | JW15: 84000 | JX15: 0 | JY15: 1696 | JZ15: 6333 | KA15: 2852 | KB15: 1045 | KC15: 6 | KD15: 1823 | KE15: 11471 | KF15: 482 | KG15: 578 | KH15: 624 | KI15: 6864 | KJ15: 2703 | KK15: 43667 | KL15: 84000 | KM15: 85800 | KN15: 小学校 | KO15: 477399.1069 | KP15: 0 | KQ15: 259397.9182 | KR15: 0 | KS15: 477399.1069 | KT15: 259397.9182 | KU15: 456222.5196 | KV15: 884737.4959 | KW15: 329115.0587 | KX15: 85607.96325 | KY15: 48346.31125 | KZ15: 0 | LA15: 0 | LB15: 0 | LC15: 0 | LG15: 6286559.9 | LH15: 813642.1579 | LI15: 0 | LJ15: 17086.48532 | LK15: 6415250.094 | LL15: 644115.6999 | LM15: -280878.9044 | LN15: 0 | LO15: 0 | LP15: -228987.6972 | LQ15: 0 | LR15: 2059.81934 | LS15: 0 | LT15: 0 | LU15: 0 | LV15: 0 | LW15: 0 | LX15: 0 | LY15: 0 | LZ15: 0 | MA15: 0 | MB15: 0 | MC15: 0 | MD15: 0 | ME15: 0 | MF15: 0 | MG15: 0 | MH15: 0 | MI15: 0 | MJ15: 0 | MK15: 0 | ML15: 0 | MM15: 0 | MN15: 5717.529801 | MO15: 120.0681258 | MP15: 1905.843267 | MQ15: 7743.441194 | MR15: 0 | MS15: 0 | MT15: 0 | MU15: 8514199.39 | MV15: 17024973.78 | MW15: 16404488.04 | MX15: 78977270.16 | MY15: 0 | MZ15: 2516828.689 | NA15: 3822617.947 | NB15: 22853643.24 | NC15: 4322013.843 | ND15: 0 | NE15: 3492568.617 | NF15: 1860964.634 | NG15: 117845907.1 | NH15: 113550939.9 | NI15: 400000 | NJ15: 1000000 | NK15: 0 | NL15: -1932771.705 | NM15: 3885009.153 | NN15: 3885009.153 | NO15: 2134774.297 | NP15: 9836568 | NQ15: 7091655.297 | NR15: 24348006.75 | NS15: 23460628.52 | NT15: 106649.064 | NU15: 78917.91553 | NV15: 75068.26112 | NW15: 15.06333333 | NX15: 1199268.608 | NY15: 1289624.298 | NZ15: 791282.0078 | OA15: 0.9583955174 | OB15: 136745.0755 | OC15: 330.57 | OD15: 48738615.21 | OE15: 0 | OF15: 0 | OG15: 0 | OH15: 791282.0078 | OI15: 0.9583955174 | OJ15: 136745.0755 | OK15: 90150.4572 | OL15: 749 | OM15: 85999814.43 | ON15: 0 | OO15: 0 | OP15: 0 | OQ15: 1289624.298 | OR15: 1242623.139 | OS15: 333.1415507 | OT15: 5.396685556 | OU15: 37.36166923 | OV15: 181.6192254 | OW15: 0 | OX15: 5.657749524 | OY15: 115.4671628 | OZ15: 704.657037 | PA15: 527.160541 | PB15: 1008.563831 | PC15: 50957.183 | PD15: 35907337.59 | PE15: 26862616.16 | PF15: 51393571.72 | PG15: 49520501.09 | PH15: 194877109.9 | PI15: 187774692.6 | QO15: 0 | QP15: 0 | QQ15: 0 | QR15: 0 | QS15: 0 | QT15: -4.563480616e-08 | QU15: 194877109.9 | QV15: 194877109.9 | QW15: 187774692.6 | QX15: =QV15-IF((DU15-DS15)>0,(DU15-DS15)*0.2,0)+(メイン!YD15-メイン!XC15-メイン!WX15*32000*AE15-メイン!WU15*3%-メイン!WM15*3%-(メイン!YD15-メイン!XC15-メイン!WX15*32000*AE15-メイン!WU15*3%-メイン!WM15*3%-メイン!YC15)*23%)*0.8/100000*PC15-PF15-NY15*3%-(NY15*95%-NY15*3%)*20%-(OG15*95%-OG15*3%)*20%-(OP15*95%-OP15*3%)*20% -> 174396226.6 | QY15: 168040247.8 | QZ15: 4877433.895 | RA15: 4904391.925 | RB15: 187774692.6 | RC15: 0 | RF15: 1060525.4 | RG15: 84733398.53 | RH15: 10258865.36 | RI15: 0.1210722754 | RJ15: 139.11776 | RK15: 16.84330376 | RL15: 155.9610638 | RO15: 0.08736261424 | RP15: 0.03655294121 | RS15: 135261784.7 | RT15: 45836585.29 | RU15: 7091668.767 | RV15: 45836585.29 | RW15: 7091668.767 | RX15: 14183337.53 | RY15: 67630892.34 | RZ15: 0 | SA15: 67630892.34 | SB15: 5742497.378 | SF15: 1 | SG15: =IF(SF15=1,家賃下落率!D17,SG14) -> 0.04419725725 | SH15: =家賃下落率!C18 -> 0.009 | SI15: 1.037824145 | SJ15: 0.9583955174 | SK15: 27837226.61 | SL15: =IF(AB15=1,0,IF($AA15=0,IF($SF15=1,SL14*(100%-$SG15)*($SI15/$SI14)*($SJ15/$SJ14),SL14),0)) -> 22692441.8 | SM15: 0.8151832837 | SN15: -21337267.42 | SO15: 0 | SP15: 0 | SQ15: 2564925.317 | SR15: =IF(AB15=1,0,IF($AA15=0,IF($SF15=1,SR14*(100%-$SG15)*($SI15/$SI14)*($SJ15/$SJ14),SR14),0)) -> 2337887.467 | SS15: 0.911483641 | ST15: 220337.0297 | SU15: 0 | SV15: 0 | SX15: =家賃下落率!C39 -> 0.007 | SY15: 0 | SZ15: 0 | TA15: 0 | TB15: 43574.41412 | TC15: 0 | TD15: 156425000 | TE15: 0 | TF15: 0 | TG15: -1177038.381 | TH15: 0 | TI15: 348500.6846 | TJ15: =アセットアロケーション!S32 -> 0.1238342431 | TK15: 43156.31851 | TL15: 25073485.58 | TM15: 4000129.607 | TN15: =IF(AB15=1,0,IF($AA15=0,TN14*(100%+メイン!$AD15)*WG15/WG14,0)) -> 1746054.208 | TO15: 5881943 | TP15: =IF($AA15=0,IF(TP14<2761500*0.03217,TP14,IF(WH14*0.167>2761500*0.03217,WH14*0.167,WH14*0.2)),0) -> 41475.2 | TQ15: =IF($AA15=0,IF(TQ14<8550000*0.03217,TQ14,IF(WI14*0.167>8550000*0.03217,WI14*0.167,WI14*0.2)),0) -> 128411.4 | TR15: =IF($AA15=0,IF(TR14<38062366*0.03217,TR14,IF(WJ14*0.167>38062366*0.03217,WJ14*0.167,WJ14*0.2)),0) -> 571652.4 | TT15: 6623482 | TU15: =VLOOKUP(XN15,返済明細!A:Z,9,FALSE) -> 4339781.801 | TV15: 270666 | TX15: 0 | TY15: 0 | TZ15: 0 | UA15: 109839.113 | UB15: 2148085.508 | UC15: 0 | UD15: 0 | UE15: 0 | UF15: 0 | UG15: 0 | UH15: 0 | UI15: 0 | UJ15: 0 | UK15: 0 | UL15: 0 | UM15: 0 | UN15: 0 | UO15: 1868083.462 | UP15: 0 | UQ15: 0 | UR15: 0 | US15: 1606551.777 | UT15: 996311.1795 | UU15: 0 | UV15: 52475.50403 | UX15: 0 | UY15: 0 | UZ15: 212535.2243 | VA15: 447012.6075 | VB15: -234477.3832 | VC15: 0 | VD15: 1338238.949 | VE15: 206298.6836 | VF15: 511807.1286 | VG15: 0 | VH15: 2400000 | VI15: 460793.9205 | VJ15: 4917138.682 | VK15: 22810385.77 | VL15: -31446244.67 | VM15: 0 | VN15: 0 | VO15: 0 | VP15: 0 | VQ15: 20756.48291 | VR15: 20557.07924 | VS15: -0.0006098332542 | VT15: 2263099.809 | VU15: 0 | VV15: 16207460.85 | VW15: -12207331.24 | VX15: 0 | VY15: -1940868.028 | VZ15: 10000000 | WA15: 391657.0031 | WB15: 10391657 | WC15: 12038993 | WD15: 2081450 | WE15: 5055439 | WF15: 15.5 | WG15: 199005773 | WH15: 41475.2 | WI15: 128411.4 | WJ15: 571652.4 | WK15: 1 | WL15: 199747313 | WM15: 195292670 | WN15: =築年スプレッド!C16 -> 0.07206716252 | WO15: 0.09946921615 | WP15: -0.009428921086 | WQ15: =(SL15+SR15-TN15-UA15-メイン!ZQ15-TU15-TV15-TW15-(SL15+SR15-TN15-UA15-メイン!ZQ15-TU15-TT15-TV15-TW15)*20%)/(WM15+WU15+メイン!ABI15+メイン!OG15) -> 0.05263969258 | WR15: 334.31 | WS15: 18600000 | WT15: 45258093.74 | WU15: 61612542.17 | WV15: 37 | WW15: 0 | WX15: 0 | WY15: 0 | WZ15: 0 | XA15: 0 | XB15: 0 | XC15: 0 | XD15: 0 | XE15: 8950356.284 | XF15: 12184653.8 | XG15: 104437.8309 | XH15: 0 | XI15: 0 | XJ15: 0 | XK15: 298657404.9 | XL15: 287772650.4 | XM15: 15 | XN15: 195 | XP15: =VLOOKUP(XN15,返済明細!A:Z,10,FALSE)*-1 -> 13610354.59 | XQ15: =XO15+XP15 -> 13610354.59 | XR15: =VLOOKUP(XN15,返済明細!A:H,8,FALSE) -> 156288004.3 | XS15: =IF(W15=1,0,IF(メイン!J15="",0,18000000)) -> 0 | XT15: 0 | XU15: 1000000 | XV15: 0 | XW15: 1000000 | XX15: 7500000 | XY15: 33992261 | XZ15: 41492261 | YA15: 197780265.3 | YB15: 46186865.11 | YC15: 70465703.7 | YD15: 100877139.6 | YE15: =YD15/メイン!AE15 -> 97200609.63 | YF15: 100877139.6 | YG15: -1177038.381 | YI15: 0.3377687542 | YJ15: 2.546713885 | YK15: 0.7635111144 | YL15: -7049572.08 | YM15: =YL15/(YD15+メイン!ABI15+メイン!ABL15) -> -0.02554316335 | YN15: =(SUM(YL11:YL15)+SUM(メイン!DR11:DR15)+SUM(メイン!FD11:FD15)+SUM(メイン!IG11:IG15)+SUM(メイン!CD11:CD15)+SUM(メイン!GH11:GH15))/(SUM(YD11:YD15)+SUM(メイン!ABI11:ABI15)+SUM(メイン!ABL11:ABL15)+SUM(メイン!OG11:OG15)+SUM(メイン!OP11:OP15)+SUM(メイン!DP11:DP15)+SUM(メイン!FB11:FB15)+SUM(メイン!IE11:IE15)+SUM(メイン!CB11:CB15)+SUM(メイン!GF11:GF15)) -> -0.01739532792 | YS15: =IF(I15<>"",メイン!UB15,0) -> 2148085.508 | YT15: =IF(I15<>"",メイン!UM15+IF(X15=1,388831*12*AE15*IF(E15-B$57>=1,1,0.5),0),0) -> 4842458.403 | YU15: 6006640.158 | YV15: =IF(I15<>"",メイン!US15,0) -> 1606551.777 | YW15: 1035748.497 | YX15: 1035748.497 | YY15: 780100 | YZ15: 714000.602 | ZA15: 1335806 | ZB15: 1207788.718 | ZC15: 1921789.32 | ZD15: 823467.6657 | ZE15: 823467.6657 | ZF15: 0 | ZG15: 0 | ZH15: 10518885.01 | ZI15: 28941.43426 | ZJ15: 203509.4523 | ZK15: 6533311.84 | ZL15: 862992.5459 | ZM15: 6740876.669 | ZN15: 677148.6138 | ZO15: 146021.568 | ZP15: 129049.7701 | ZQ15: 108612.2516 | ZR15: 0 | ZS15: 875291.5017 | ZT15: 0 | ZU15: 1037824.145 | ZV15: 3113472.436 | ZW15: 1037824.145 | ZX15: 1037824.145 | ZY15: =SUM(ZV$13:ZW15)+(AAK15-AAK$12)*PA15 -> 10135247.06 | ZZ15: 0 | AAA15: 367330.3999 | AAB15: 0 | AAC15: -861446.6184 | AAD15: 0 | AAE15: 0 | AAF15: 0 | AAG15: 0 | AAH15: -494116.2185 | AAI15: 8764395.791 | AAJ15: 1754489.217 | AAK15: 0 | AAL15: 0 | AAM15: 0 | AAN15: 1000 | AAO15: 7526.300702 | AAP15: 7526300.702 | AAQ15: 2000 | AAR15: 331.0659024 | AAS15: 662131.8047 | AAT15: 7930843 | AAU15: 2724.288381 | AAV15: 2160590.344 | AAW15: 30000 | AAX15: 108.5434826 | AAY15: 3256304.478 | AAZ15: 47 | ABA15: 200.55 | ABB15: 60.58912387 | ABC15: 8589579.276 | ABD15: 436.8366667 | ABE15: 11837717.98 | ABF15: 37399104.63 | ABG15: 330.57 | ABH15: 35801425.14 | ABI15: 48738615.21 | ABJ15: 748.5 | ABK15: 85942404.67 | ABL15: 126370895.1 | ABM15: 4516472 | ABN15: 6231890 | ABO15: 0 | ABP15: 10748362 | ABQ15: 13125639.81 | ABR15: 1468009.649 | ABS15: 260045533 | ABT15: 170370103.9 | ABU15: 65344895.97 | ABV15: 12338699.77 | ABW15: 0.1448458326 | ABX15: 32672447.98 | ABY15: 4458841.306 | ABZ15: 32672447.98 | ACA15: 4458841.306 | ACB15: 21256382.39 | ACC15: 30476551.18 | ACD15: 30580629.96 | ACE15: 44775143.74 | ACF15: 69050607.19 | ACG15: 38574056 | ACH15: 1.077444707 | ACI15: 1 | ACJ15: 2772630.868 | ACK15: 4466797.668 | ACL15: 38469977.22 | ACM15: 0.4476250969 | ACN15: 0 | ACO15: 4799742.019 | ACP15: 96098701.5 | ACQ15: 188375545.1 | ACT15: =メイン!UT15 -> 996311.1795 | ACU15: 425507.8996 | ACV15: 425507.8996 | ACW15: 0 | ACX15: 0 | ACY15: 0 | ACZ15: 0 | ADA15: 0 | ADB15: 780100 | ADC15: 714000.602 | ADD15: 415270.1612 | ADE15: 1129270.763 | ADF15: 749270.7632 | ADG15: =IF(メイン!XS15<65,IF(ADF15<700000,0,IF(ADF15<1299999,ADF15-700000,IF(ADF15<4099999,ADF15*75%-375000,IF(ADF15<7699999,ADF15*85%-785000)))),0)+IF(メイン!XS15>64,IF(ADF15<1200000,0,IF(ADF15<3299999,ADF15-1200000,IF(ADF15<4099999,ADF15*75%-375000,IF(ADF15<7699999,ADF15*85%-785000)))),0) -> 49270.7632 | ADH15: 0 | ADI15: 0 | ADJ15: 0 | ADK15: 2125581.943 | ADL15: 0 | ADM15: 0 | ADN15: 0 | ADO15: 0 | ADP15: 0 | ADQ15: 0 | ADR15: 52475.50403 | ADS15: 101754.7261 | ADT15: -330660.3349 | ADU15: 0 | ADV15: -278769.1276 | ADW15: 0 | ADX15: 3736166.923 | ADY15: 0 | ADZ15: 0 | AEA15: 0 | AEB15: 0 | AEC15: 3736166.923 | AED15: 3890397.153 | AEE15: -1764815.211 | AEF15: 25642.817 | AEG15: 13517881.28 | AEH15: 25862417.76 | AEI15: 0 | AEJ15: 0 | AEK15: 0 | AEL15: 0 | AEM15: 0 | AEN15: 0 | AEO15: 0 | AEP15: 0 | AEQ15: 0 | AER15: 0 | AES15: 0 | AET15: 0 | AEU15: 0 | AEV15: 0 | AEW15: 0 | AEX15: 0 | AEY15: 0 | AEZ15: 0 | AFA15: 0 | AFB15: 0 | AFC15: 0 | AFD15: 0 | AFE15: 0 | AFF15: 0 | AFG15: 0 | AFH15: 21274965.89 | AFI15: 0 | AFJ15: 11955026.22 | AFK15: 0.01 | AFL15: 119550.2622 | AFM15: 20000000 | AFN15: 32074576.49 | AFO15: 79211960.14 | AFP15: 66867423.66 | AFQ15: 11639404.78 | AFR15: 1226998.644 | AFS15: 0.03669944427 | AFT15: 2453997.288 | AFU15: 5430786.403 | AFV15: 72298210.06 | AFW15: 30718318.63 | AFX15: 17200437.35 | AFY15: 1127345.223 | AGB15: 0 | AGC15: 0 | AGD15: 0 | AGE15: 0 | AGF15: 23400 | AGG15: 12335556.66 | AGH15: 23600393.65 | AGI15: 0 | AGJ15: 0 | AGK15: 0 | AGL15: 0 | AGM15: 0 | AGN15: 0 | AGO15: 0 | AGP15: 0 | AGQ15: 0 | AGR15: 0 | AGS15: 0 | AGT15: 0 | AGU15: 0 | AGV15: 0 | AGW15: 0 | AGX15: 14091655.3 | AGY15: 0 | AGZ15: 0 | AHA15: 0 | AHC15: 0 | AHD15: 0 | AHE15: 23600393.65 | AHF15: 22740262.65 | AHH15: 100000 | AHI15: 126370895.1
A16: パート化 妻 | B16: 41 | D16: F2027 | E16: 46 | F16: 43 | G16: 8 | I16: 76 | J16: 72 | K16: 0 | L16: 0 | M16: 0 | N16: 0 | O16: 1 | P16: 9 | Q16: 1 | R16: 2 | S16: 0 | T16: 0 | U16: 0 | V16: 0 | W16: 1 | X16: 1 | Z16: 0 | AA16: 0 | AB16: 0 | AC16: 0 | AD16: 0.0096 | AE16: 1.047787257 | AF16: -0.006 | AG16: 0.9985006763 | AI16: =AI15 -> 1.007874989 | AJ16: 30.47435977 | AK16: 1.038836937 | AL16: 5752200 | AM16: 445411.9991 | AN16: 1056000 | AO16: 2496335.002 | AP16: 1000000 | AQ16: 10000 | AR16: 0 | AS16: 0 | AT16: 0 | AU16: 0 | AV16: 0 | AW16: 0 | AX16: 9759947.001 | AY16: 2043185.151 | AZ16: 7716761.849 | BA16: 0 | BB16: 0 | BC16: 0 | BD16: 0 | BE16: 0 | BF16: 0 | BG16: 12114000 | BH16: =348000+201000+532000 -> 1081000 | BI16: 0.818 | BL16: 10793510 | BM16: 956942 | BN16: 24 | BO16: 11316102.38 | BP16: 0 | BQ16: 350000 | BR16: =_xlfn.IFS(AND(BX16>=1,BX16<=4),0.4,AND(BX16>=5,BX16<=9),0.5,AND(BX16>=10,BX16<=14),0.6,AND(BX16>=15,BX16<=19),0.7,TRUE,0) -> 0 | BT16: 267 | BV16: 0 | BW16: 0 | BX16: 0 | BY16: 0 | BZ16: 330000 | CA16: 0 | CB16: 3822568.617 | CC16: =IF(アセットアロケーション!$R33=10,アセットアロケーション!$H$10*$B$33*-1+(アセットアロケーション!$H$9+$AD16),IF(アセットアロケーション!$R33=5,アセットアロケーション!$H$10*($B$33-1)*-1+(アセットアロケーション!$H$9+$AD16),(アセットアロケーション!$H$9+$AD16)+アセットアロケーション!$H$10*$B$33/8+アセットアロケーション!$H$10*($B$33-1)/8)) -> 0.133296 | CD16: 465545.4264 | CE16: 0 | CF16: 11 | CG16: 11 | CH16: 23 | CI16: 10 | CJ16: 0 | CK16: 419114.9029 | CL16: 0 | CM16: 2400000 | CO16: 2400000 | CP16: 682714.0797 | CQ16: 1036224.203 | CR16: 1036224.203 | CS16: 0 | CT16: 0.333 | CU16: 0.9185102906 | CY16: 0.229 | CZ16: 0.9087301587 | DI16: 0 | DJ16: 0 | DK16: 0 | DL16: 0 | DM16: 0 | DN16: 0 | DO16: 0 | DP16: 78977270.16 | DQ16: 0.111516425 | DR16: =IF(DP16=0,0,(((CB16-BZ16-CA16)+(BZ16+CA16)/12)+(DP16-DO16+DO16/12)+(FB16-FA16+FA16/12)+(FI16-FG16+FG16/12)+(GF16-GE16+GE16/12)+(HG16-HF16+HF16/12)+(IE16-ID16+ID16/12)+(IJ16-II16+II16/12))*アセットアロケーション!S33+((BZ16+CA16)/12+DO16/12+FA16/12+FG16/12+GE16/12+HF16/12+ID16/12+II16/12)*アセットアロケーション!S33/12*11+((BZ16+CA16)/12+DO16/12+FA16/12+FG16/12+GE16/12+HF16/12+ID16/12+II16/12)*アセットアロケーション!S33/12*10+((BZ16+CA16)/12+DO16/12+FA16/12+FG16/12+GE16/12+HF16/12+ID16/12+II16/12)*アセットアロケーション!S33/12*9+((BZ16+CA16)/12+DO16/12+FA16/12+FG16/12+GE16/12+HF16/12+ID16/12+II16/12)*アセットアロケーション!S33/12*8+((BZ16+CA16)/12+DO16/12+FA16/12+FG16/12+GE16/12+HF16/12+ID16/12+II16/12)*アセットアロケーション!S33/12*7+((BZ16+CA16)/12+DO16/12+FA16/12+FG16/12+GE16/12+HF16/12+ID16/12+II16/12)*アセットアロケーション!S33/12*6+((BZ16+CA16)/12+DO16/12+FA16/12+FG16/12+GE16/12+HF16/12+ID16/12+II16/12)*アセットアロケーション!S33/12*5+((BZ16+CA16)/12+DO16/12+FA16/12+FG16/12+GE16/12+HF16/12+ID16/12+II16/12)*アセットアロケーション!S33/12*4+((BZ16+CA16)/12+DO16/12+FA16/12+FG16/12+GE16/12+HF16/12+ID16/12+II16/12)*アセットアロケーション!S33/12*3+((BZ16+CA16)/12+DO16/12+FA16/12+FG16/12+GE16/12+HF16/12+ID16/12+II16/12)*アセットアロケーション!S33/12*2+((BZ16+CA16)/12+DO16/12+FA16/12+FG16/12+GE16/12+HF16/12+ID16/12+II16/12)*アセットアロケーション!S33/12*1-CD16-GH16-IG16-IL16-FK16-FD16-HI16) -> 8807262.822 | DS16: 55657319.2 | DT16: 32127213.78 | DU16: 87784532.98 | DV16: 0.577232505 | DW16: 0 | DX16: 0 | DY16: -11944.45077 | DZ16: 0 | EA16: 0 | EB16: 0 | EC16: 0 | ED16: 0 | EE16: 0 | EF16: 0 | EG16: 0 | EH16: 3885009.153 | EI16: 1000000 | EJ16: 0 | EK16: 4885009.153 | EL16: 0.00768 | EM16: 37516.8703 | EN16: 0 | EO16: 18745 | EP16: 0.5 | EQ16: 150 | ER16: 0 | ES16: 62867.23543 | ET16: 0 | EW16: 62867.23543 | EX16: =LG16*0.02/IF(AND(LG16>0,LG16<=ふるさと納税計算式!B$2),ふるさと納税計算式!D$2,IF(LG16<=ふるさと納税計算式!B$3,ふるさと納税計算式!D$3,IF(LG16<=ふるさと納税計算式!B$4,ふるさと納税計算式!D$4,IF(LG16<=ふるさと納税計算式!B$5,ふるさと納税計算式!D$5,IF(LG16<=ふるさと納税計算式!B$6,ふるさと納税計算式!D$6,IF(LG16<=ふるさと納税計算式!B$7,ふるさと納税計算式!D$7,ふるさと納税計算式!D$8))))))+2000*AE16 -> 183727.3559 | EY16: 53022.63226 | FB16: 2516828.689 | FC16: =IF(アセットアロケーション!$R33=10,アセットアロケーション!$H$10*$B$33*-1+(アセットアロケーション!$H$9+$AD16),IF(アセットアロケーション!$R33=5,アセットアロケーション!$H$10*($B$33-1)*-1+(アセットアロケーション!$H$9+$AD16),(アセットアロケーション!$H$9+$AD16)+アセットアロケーション!$H$10*$B$33/8+アセットアロケーション!$H$10*($B$33-1)/8)) -> 0.133296 | FD16: 335483.197 | FE16: 0 | FF16: 0 | FG16: 4840246.455 | FH16: 28255919.97 | FI16: 27693889.69 | FJ16: =IF(アセットアロケーション!$R33=10,アセットアロケーション!$H$10*$B$33*-1+(アセットアロケーション!$H$9+$AD16),IF(アセットアロケーション!$R33=5,アセットアロケーション!$H$10*($B$33-1)*-1+(アセットアロケーション!$H$9+$AD16),(アセットアロケーション!$H$9+$AD16)+アセットアロケーション!$H$10*$B$33/8+アセットアロケーション!$H$10*($B$33-1)/8)) -> 0.133296 | FK16: 3395774.704 | FL16: 31089664.4 | FM16: 0.1002885213 | FN16: 2833744.432 | FO16: 5343103.277 | FP16: 0 | FQ16: 0 | FR16: 0 | FS16: 0 | FT16: 89935.0729 | FU16: 1079220.875 | FV16: 0 | FW16: 1079220.875 | FX16: 502937.8834 | FY16: 502937.8834 | FZ16: 0 | GD16: 0 | GE16: 283687.6935 | GF16: 2144652.327 | GG16: =IF(アセットアロケーション!$R33=10,アセットアロケーション!$H$10*$B$33*-1+(アセットアロケーション!$H$9+$AD16),IF(アセットアロケーション!$R33=5,アセットアロケーション!$H$10*($B$33-1)*-1+(アセットアロケーション!$H$9+$AD16),(アセットアロケーション!$H$9+$AD16)+アセットアロケーション!$H$10*$B$33/8+アセットアロケーション!$H$10*($B$33-1)/8)) -> 0.133296 | GH16: 268541.9607 | GI16: 0 | GR16: 0 | GS16: 0 | GT16: 0 | GU16: 0 | GV16: 0.5 | GW16: 30 | GX16: 0 | GY16: 0 | GZ16: 0 | HA16: =LM16*0.02/IF(AND(LM16>0,LM16<=ふるさと納税計算式!B$2),ふるさと納税計算式!D$2,IF(LM16<=ふるさと納税計算式!B$3,ふるさと納税計算式!D$3,IF(LM16<=ふるさと納税計算式!B$4,ふるさと納税計算式!D$4,IF(LM16<=ふるさと納税計算式!B$5,ふるさと納税計算式!D$5,IF(LM16<=ふるさと納税計算式!B$6,ふるさと納税計算式!D$6,IF(LM16<=ふるさと納税計算式!B$7,ふるさと納税計算式!D$7,ふるさと納税計算式!D$8))))))+2000*AE16 -> -5015.283826 | HB16: 0 | HF16: 453963.1021 | HG16: 4276581.049 | HH16: =IF(アセットアロケーション!$R33=10,アセットアロケーション!$H$10*$B$33*-1+(アセットアロケーション!$H$9+$AD16),IF(アセットアロケーション!$R33=5,アセットアロケーション!$H$10*($B$33-1)*-1+(アセットアロケーション!$H$9+$AD16),(アセットアロケーション!$H$9+$AD16)+アセットアロケーション!$H$10*$B$33/8+アセットアロケーション!$H$10*($B$33-1)/8)) -> 0.133296 | HI16: 542316.7257 | HJ16: 0 | HK16: 0 | HL16: 0 | HM16: 0 | HN16: =アセットアロケーション!S33 -> 0.1188889334 | HO16: 0 | HP16: 0 | HQ16: 0 | HR16: 0 | HS16: 0 | HT16: 207030 | HU16: 2519480 | HV16: 2343612.896 | HW16: 2343612.896 | HX16: 208838.5983 | HY16: 1808.598299 | HZ16: 12 | IA16: -0.006011758286 | IB16: 1047787.257 | IC16: 0 | ID16: 0 | IE16: 4322013.843 | IF16: =IF(アセットアロケーション!$R33=10,アセットアロケーション!$H$10*$B$33*-1+(アセットアロケーション!$H$9+$AD16),IF(アセットアロケーション!$R33=5,アセットアロケーション!$H$10*($B$33-1)*-1+(アセットアロケーション!$H$9+$AD16),(アセットアロケーション!$H$9+$AD16)+アセットアロケーション!$H$10*$B$33/8+アセットアロケーション!$H$10*($B$33-1)/8)) -> 0.133296 | IG16: 576107.1572 | IH16: 0 | IJ16: 0 | IK16: =IF(アセットアロケーション!$R33=10,アセットアロケーション!$H$10*$B$33*-1+(アセットアロケーション!$H$9+$AD16),IF(アセットアロケーション!$R33=5,アセットアロケーション!$H$10*($B$33-1)*-1+(アセットアロケーション!$H$9+$AD16),(アセットアロケーション!$H$9+$AD16)+アセットアロケーション!$H$10*$B$33/8+アセットアロケーション!$H$10*($B$33-1)/8)) -> 0.133296 | IL16: 0 | IM16: 1047787.257 | IN16: 36499090.54 | IO16: 365760.3324 | IP16: 110000 | IQ16: =IF(OR(AND(Q16=0,Q15=1),E16>52),98000,IQ15) -> 110000 | IR16: 115256.5983 | IS16: 28526.73462 | IT16: 10806.44119 | IU16: 5934.667024 | IV16: 0 | IW16: 147000 | IX16: 33000 | IY16: 10717 | IZ16: 7500 | JA16: 2750 | JB16: 3492.62419 | JC16: 2881.414957 | JD16: 78000 | JE16: 690000 | JF16: 78000 | JG16: 0 | JH16: 0 | JI16: 0 | JJ16: 0 | JK16: 0 | JL16: 0 | JM16: 2923.336493 | JN16: 4676396.497 | JO16: 314336.1771 | JP16: 30000 | JQ16: 100000 | JW16: 84000 | JX16: 0 | JY16: 1849 | JZ16: 7397 | KA16: 2977 | KB16: 1053 | KC16: 6 | KD16: 3232 | KE16: 17087 | KF16: 1018 | KG16: 1618 | KH16: 950 | KI16: 6311 | KJ16: 3176 | KK16: 43425 | KL16: 84000 | KM16: 85800 | KN16: 小学校 | KO16: 481982.1383 | KP16: 0 | KQ16: 272318.8603 | KR16: 0 | KS16: 481982.1383 | KT16: 272318.8603 | KU16: 456917.9505 | KV16: 893035.1506 | KW16: 334799.392 | KX16: 87086.54706 | KY16: 48799.735 | KZ16: 0 | LA16: 0 | LB16: 0 | LC16: 0 | LG16: 6318969.675 | LH16: 815864.8825 | LI16: 0 | LJ16: 17133.16253 | LK16: 6448895.295 | LL16: 647544.3895 | LM16: -283687.6935 | LN16: 0 | LO16: 0 | LP16: -231298.3306 | LQ16: 0 | LR16: 2079.799587 | LS16: 0 | LT16: 0 | LU16: 0 | LV16: 0 | LW16: 0 | LX16: 0 | LY16: 0 | LZ16: 0 | MA16: 0 | MB16: 0 | MC16: 0 | MD16: 0 | ME16: 0 | MF16: 0 | MG16: 0 | MH16: 0 | MI16: 0 | MJ16: 0 | MK16: 0 | ML16: 0 | MM16: 0 | MN16: 5627.530544 | MO16: 118.1781414 | MP16: 1875.843515 | MQ16: 7621.552201 | MR16: 0 | MS16: 0 | MT16: 0 | MU16: 8598998.284 | MV16: 27900092.26 | MW16: 26627630.82 | MX16: 87784532.98 | MY16: 0 | MZ16: 2852311.886 | NA16: 4818897.774 | NB16: 31089664.4 | NC16: 4898121 | ND16: 0 | NE16: 4288114.043 | NF16: 2413194.288 | NG16: 138144836.4 | NH16: 131844356.2 | NI16: 400000 | NJ16: 1000000 | NK16: 0 | NL16: -774749.512 | NM16: 3941445.489 | NN16: 3941445.489 | NO16: 2343612.896 | NP16: 10793510 | NQ16: 8139442.554 | NR16: 26618010.94 | NS16: 25404022.39 | NT16: 104656.5813 | NU16: 78186.98083 | NV16: 74372.98176 | NW16: 15.06333333 | NX16: 1188161.028 | NY16: 1277679.847 | NZ16: 786492.9427 | OA16: 0.9525950334 | OB16: 137222.2628 | OC16: 330.57 | OD16: 48908694.06 | OE16: 0 | OF16: 0 | OG16: 0 | OH16: 786492.9427 | OI16: 0.9525950334 | OJ16: 137222.2628 | OK16: 90465.0473 | OL16: 749 | OM16: 86299920.4 | ON16: 0 | OO16: 0 | OP16: 0 | OQ16: 1277679.847 | OR16: 1219407.698 | OS16: 336.3397095 | OT16: 5.448493737 | OU16: 37.72034126 | OV16: 183.36277 | OW16: 0 | OX16: 7.978367904 | OY16: 123.4807842 | OZ16: 737.5526998 | PA16: 567.2026736 | PB16: 1070.721468 | PC16: 52989.20089 | PD16: 39082328.18 | PE16: 30055616.42 | PF16: 56736674.99 | PG16: 54149040.86 | PH16: 222777202.2 | PI16: 212616827.2 | QO16: 0 | QP16: 0 | QQ16: 0 | QR16: 0 | QS16: 0 | QT16: -7.264316082e-08 | QU16: 222777202.2 | QV16: 222777202.2 | QW16: 212616827.2 | QX16: =QV16-IF((DU16-DS16)>0,(DU16-DS16)*0.2,0)+(メイン!YD16-メイン!XC16-メイン!WX16*32000*AE16-メイン!WU16*3%-メイン!WM16*3%-(メイン!YD16-メイン!XC16-メイン!WX16*32000*AE16-メイン!WU16*3%-メイン!WM16*3%-メイン!YC16)*23%)*0.8/100000*PC16-PF16-NY16*3%-(NY16*95%-NY16*3%)*20%-(OG16*95%-OG16*3%)*20%-(OP16*95%-OP16*3%)*20% -> 199001914.8 | QY16: 189925878.1 | QZ16: 4896682.791 | RA16: 4840246.455 | RB16: 212616827.2 | RC16: 0 | RF16: 1067650.796 | RG16: 96059914.68 | RH16: 10995257.29 | RI16: 0.1144624928 | RJ16: 155.9610638 | RK16: 17.85169213 | RL16: 173.8127559 | RO16: 0.1252376455 | RP16: 0.03539063842 | RQ16: =SUM(MV8:MV17)/SUM(QV8:QV17) -> 0.08370704758 | RS16: 150443134.4 | RT16: 53218034.8 | RU16: 8630899.641 | RV16: 53218034.8 | RW16: 8630899.641 | RX16: 17261799.28 | RY16: 75221567.2 | RZ16: 0 | SA16: 75221567.2 | SB16: 7373554.932 | SF16: 2 | SG16: =IF(SF16=1,家賃下落率!D18,SG15) -> 0.04419725725 | SH16: =家賃下落率!C19 -> 0.009 | SI16: 1.037824145 | SJ16: 0.9583955174 | SK16: 27682958.42 | SL16: 22692441.8 | SM16: 0.8197260371 | SN16: -3094094.266 | SO16: 0 | SP16: 0 | SQ16: 2550711.028 | SR16: 2337887.467 | SS16: 0.9165630452 | ST16: 215003.8562 | SU16: 0 | SV16: 0 | SX16: =家賃下落率!C40 -> 0.007 | SY16: 0 | SZ16: 0 | TA16: 0 | TB16: 42519.7121 | TC16: 0 | TD16: 156425000 | TE16: 0 | TF16: 0 | TG16: -391657.0031 | TH16: 0 | TI16: 0 | TJ16: =アセットアロケーション!S33 -> 0.1188889334 | TK16: 0 | TL16: 25030329.26 | TM16: 22193758.57 | TN16: =IF(AB16=1,0,IF($AA16=0,TN15*(100%+メイン!$AD16)*WG16/WG15,0)) -> 1710713.392 | TO16: 5881943 | TT16: 5881943 | TU16: =VLOOKUP(XN16,返済明細!A:Z,9,FALSE) -> 4087305.674 | TV16: 270666 | TX16: 0 | TY16: 0 | TZ16: 0 | UA16: 110222.4088 | UB16: 2155581.493 | UC16: 0 | UD16: 0 | UE16: 0 | UF16: 0 | UG16: 0 | UH16: 0 | UI16: 0 | UJ16: 0 | UK16: 0 | UL16: 0 | UM16: 0 | UN16: 0 | UO16: 1886017.063 | UP16: 0 | UQ16: 0 | UR16: 0 | US16: 1621974.674 | UT16: 1005875.767 | UU16: 0 | UV16: 53396.48 | UX16: 0 | UY16: 0 | UZ16: 212535.2243 | VA16: 449209.383 | VB16: -236674.1588 | VC16: 0 | VD16: 1351086.043 | VE16: 208279.151 | VF16: 516720.477 | VG16: 0 | VH16: 2400000 | VI16: 465217.5422 | VJ16: 4941303.213 | VK16: 21838982.1 | VL16: -28254897.5 | VM16: 0 | VN16: 0 | VO16: 0 | VP16: 0 | VQ16: 20955.74514 | VR16: 20756.48291 | VS16: -0.000660062374 | VT16: 3191347.162 | VU16: 0 | VV16: 15977795.58 | VW16: 6215962.981 | VX16: -808192.2371 | VY16: -1924951.125 | VZ16: 10000000 | WA16: 0 | WB16: 9191807.763 | WC16: 12038993 | WD16: 2081450 | WE16: 4784773 | WF16: 16.5 | WG16: 193123830 | WH16: 41475.2 | WI16: 128411.4 | WJ16: 571652.4 | WK16: 1 | WL16: 193865370 | WM16: 192198575.7 | WN16: =築年スプレッド!C17 -> 0.07278783414 | WO16: 0.09980255774 | WP16: 0.05165578679 | WQ16: =(SL16+SR16-TN16-UA16-メイン!ZQ16-TU16-TV16-TW16-(SL16+SR16-TN16-UA16-メイン!ZQ16-TU16-TT16-TV16-TW16)*20%)/(WM16+WU16+メイン!ABI16+メイン!OG16) -> 0.05337891908 | WR16: 334.31 | WS16: 18600000 | WT16: 45416026.92 | WU16: 61827546.03 | WV16: 38 | WW16: 0 | WX16: 0 | WY16: 0 | WZ16: 0 | XA16: 0 | XB16: 0 | XC16: 0 | XD16: 0 | XE16: 8981589.553 | XF16: 12227173.52 | XG16: 104802.2784 | XH16: 0 | XI16: 0 | XJ16: 0 | XK16: 294350319 | XL16: 280925652.6 | XM16: 14 | XN16: 207 | XP16: =VLOOKUP(XN16,返済明細!A:Z,10,FALSE)*-1 -> 13610354.59 | XQ16: =XO16+XP16 -> 13610354.59 | XR16: =VLOOKUP(XN16,返済明細!A:H,8,FALSE) -> 146764955.4 | XS16: =IF(W16=1,0,IF(メイン!J16="",0,18000000)) -> 0 | XT16: 0 | XU16: 1000000 | XV16: 0 | XW16: 1000000 | XX16: 6500000 | XY16: 33992261 | XZ16: 40492261 | YA16: 187257216.4 | YB16: 49392313.68 | YC16: 73755269.98 | YD16: 107093102.6 | YE16: =YD16/メイン!AE16 -> 102208823.3 | YF16: 107093102.6 | YG16: -1199849.24 | YI16: 0.3638287295 | YJ16: 2.372011974 | YK16: 0.6753540255 | YL16: 11416540.24 | YM16: =YL16/(YD16+メイン!ABI16+メイン!ABL16) -> 0.04036770908 | YN16: =(SUM(YL12:YL16)+SUM(メイン!DR12:DR16)+SUM(メイン!FD12:FD16)+SUM(メイン!IG12:IG16)+SUM(メイン!CD12:CD16)+SUM(メイン!GH12:GH16))/(SUM(YD12:YD16)+SUM(メイン!ABI12:ABI16)+SUM(メイン!ABL12:ABL16)+SUM(メイン!OG12:OG16)+SUM(メイン!OP12:OP16)+SUM(メイン!DP12:DP16)+SUM(メイン!FB12:FB16)+SUM(メイン!IE12:IE16)+SUM(メイン!CB12:CB16)+SUM(メイン!GF12:GF16)) -> -0.02074104002 | YS16: =IF(I16<>"",メイン!UB16,0) -> 2155581.493 | YT16: =IF(I16<>"",メイン!UM16+IF(X16=1,388831*12*AE16*IF(E16-B$57>=1,1,0.5),0),0) -> 4888946.004 | YU16: 6057190.301 | YV16: =IF(I16<>"",メイン!US16,0) -> 1621974.674 | YW16: 1045691.683 | YX16: 1045691.683 | YY16: 780100 | YZ16: 716529.8777 | ZA16: 1335806 | ZB16: 1212067.189 | ZC16: 1928597.066 | ZD16: 826384.7175 | ZE16: 826384.7175 | ZF16: 0 | ZG16: 0 | ZH16: 10595099.24 | ZI16: 29449.37347 | ZJ16: 207081.1629 | ZK16: 6582081.672 | ZL16: 868487.282 | ZM16: 6791639.124 | ZN16: 680107.0469 | ZO16: 147128.5283 | ZP16: 127854.5161 | ZQ16: 108991.2662 | ZR16: 0 | ZS16: 878345.9293 | ZT16: 0 | ZU16: 1047787.257 | ZV16: 3143361.771 | ZW16: 1047787.257 | ZX16: 1047787.257 | ZY16: =SUM(ZV$13:ZW16)+(AAK16-AAK$12)*PA16 -> 14159426.87 | ZZ16: 0 | AAA16: 370856.7718 | AAB16: 0 | AAC16: -869716.5059 | AAD16: 0 | AAE16: 0 | AAF16: 0 | AAG16: 0 | AAH16: -498859.7342 | AAI16: 8835308.914 | AAJ16: 1759790.323 | AAK16: 0 | AAL16: 0 | AAM16: 0 | AAN16: 1000 | AAO16: 7598.553189 | AAP16: 7598553.189 | AAQ16: 2000 | AAR16: 334.244135 | AAS16: 668488.27 | AAT16: 7930843 | AAU16: 2750.44155 | AAV16: 2181332.011 | AAW16: 30000 | AAX16: 109.5855 | AAY16: 3287565.001 | AAZ16: 48 | ABA16: 200.55 | ABB16: 60.58912387 | ABC16: 8654695.159 | ABD16: 436.8366667 | ABE16: 11728077.49 | ABF16: 37052715.56 | ABG16: 330.57 | ABH16: 35926358.21 | ABI16: 48908694.06 | ABJ16: 748.5 | ABK16: 86242310.31 | ABL16: 126811880.4 | ABM16: 4516472 | ABN16: 6231890 | ABO16: 0 | ABP16: 10748362 | ABQ16: 7934490.783 | ABR16: 1966869.384 | ABS16: 255813645.9 | ABT16: 166188739.8 | ABU16: 65027189.17 | ABV16: 12173645.95 | ABW16: 0.1465038602 | ABX16: 32513594.58 | ABY16: 4407144.403 | ABZ16: 32513594.58 | ACA16: 4407144.403 | ACB16: 20987934.76 | ACC16: 31899294.87 | ACD16: 32398175.73 | ACE16: 49015569.6 | ACF16: 69875445 | ACG16: 37976150.13 | ACH16: 1.057055377 | ACI16: 1 | ACJ16: 2049791.918 | ACK16: 4537130.873 | ACL16: 37477269.27 | ACM16: 0.4345578074 | ACN16: 0 | ACO16: 4732995.047 | ACP16: 92785112.32 | ACQ16: 187506215.9 | ACT16: =メイン!UT16 -> 1005875.767 | ACU16: 429592.7754 | ACV16: 429592.7754 | ACW16: 0 | ACX16: 0 | ACY16: 0 | ACZ16: 0 | ADA16: 0 | ADB16: 780100 | ADC16: 716529.8777 | ADD16: 427728.2661 | ADE16: 1144258.144 | ADF16: 764258.1438 | ADG16: =IF(メイン!XS16<65,IF(ADF16<700000,0,IF(ADF16<1299999,ADF16-700000,IF(ADF16<4099999,ADF16*75%-375000,IF(ADF16<7699999,ADF16*85%-785000)))),0)+IF(メイン!XS16>64,IF(ADF16<1200000,0,IF(ADF16<3299999,ADF16-1200000,IF(ADF16<4099999,ADF16*75%-375000,IF(ADF16<7699999,ADF16*85%-785000)))),0) -> 64258.14377 | ADH16: 0 | ADI16: 0 | ADJ16: 0 | ADK16: 2150133.911 | ADL16: 0 | ADM16: 0 | ADN16: 0 | ADO16: 0 | ADP16: 0 | ADQ16: 0 | ADR16: 53396.48 | ADS16: 103540.5815 | ADT16: -335060.8952 | ADU16: 0 | ADV16: -282671.5323 | ADW16: 0 | ADX16: 3772034.126 | ADY16: 0 | ADZ16: 0 | AEA16: 0 | AEB16: 0 | AEC16: 3772034.126 | AED16: 3928971.187 | AEE16: -1778837.277 | AEF16: 23610.79911 | AEG16: 13392108.38 | AEH16: 25280589.49 | AEI16: 0 | AEJ16: 0 | AEK16: 0 | AEL16: 0 | AEM16: 0 | AEN16: 0 | AEO16: 0 | AEP16: 0 | AEQ16: 0 | AER16: 0 | AES16: 0 | AET16: 0 | AEU16: 0 | AEV16: 0 | AEW16: 0 | AEX16: 0 | AEY16: 0 | AEZ16: 0 | AFA16: 0 | AFB16: 0 | AFC16: 0 | AFD16: 0 | AFE16: 0 | AFF16: 0 | AFG16: 0 | AFH16: 24418327.66 | AFI16: 0 | AFJ16: =AFI16+AFJ15+AFL15 -> 12074576.49 | AFK16: 0.01 | AFL16: 120745.7649 | AFM16: 20000000 | AFN16: 32195322.25 | AFO16: 81894239.4 | AFP16: 70005758.29 | AFQ16: 12999346.75 | AFR16: 1426008.383 | AFS16: 0.04073974536 | AFT16: 2852016.767 | AFU16: 7183033.309 | AFV16: 77188791.6 | AFW16: 31411362.49 | AFX16: 18019254.11 | AFY16: 1279690.909 | AGB16: 0 | AGC16: 0 | AGD16: 0 | AGE16: 0 | AGF16: 23400 | AGG16: 13272542.56 | AGH16: 25054882.36 | AGI16: 0 | AGJ16: 0 | AGK16: 0 | AGL16: 0 | AGM16: 0 | AGN16: 0 | AGO16: 0 | AGP16: 0 | AGQ16: 0 | AGR16: 0 | AGS16: 0 | AGT16: 0 | AGU16: 0 | AGV16: 0 | AGW16: 0 | AGX16: 15139442.55 | AGY16: 0 | AGZ16: 0 | AHA16: 0 | AHC16: 0 | AHD16: 0 | AHE16: 25054882.36 | AHF16: 23912184.65 | AHH16: 100000 | AHI16: 126811880.4
A17: 子供の人数 | B17: 1 | D17: F2028 | E17: 47 | F17: 44 | G17: 9 | I17: 77 | J17: 73 | K17: 0 | L17: 0 | M17: 0 | N17: 0 | O17: 1 | P17: 10 | Q17: 1 | R17: 2 | S17: 0 | T17: 0 | U17: 0 | V17: 0 | W17: 1 | X17: 1 | Z17: 0 | AA17: 0 | AB17: 0 | AC17: 0 | AD17: =IF(B$34="",AD16,B$34) -> 0.025 | AE17: 1.073981939 | AF17: -0.006 | AG17: 1.017322414 | AI17: =AI16 -> 1.007874989 | AJ17: 30.71434501 | AK17: 1.047017766 | AL17: =IF(AND(Q17=1,E17<=B$15),AL16+5000*12,0) -> 5812200 | AM17: 450057.9989 | AN17: 1056000 | AO17: 2522373.752 | AP17: 1000000 | AQ17: 10000 | AR17: 0 | AS17: 0 | AT17: 0 | AU17: 0 | AV17: 0 | AW17: 0 | AX17: 9850631.751 | AY17: 2094264.78 | AZ17: 7756366.971 | BA17: 0 | BB17: 0 | BC17: 0 | BD17: 0 | BE17: 0 | BF17: 0 | BG17: 13195000 | BH17: =348000+201000+532000 -> 1081000 | BI17: 0.824 | BL17: 11763424 | BM17: 969914 | BN17: 25 | BO17: 12350792.29 | BP17: 0 | BQ17: 350000 | BR17: =_xlfn.IFS(AND(BX17>=1,BX17<=4),0.4,AND(BX17>=5,BX17<=9),0.5,AND(BX17>=10,BX17<=14),0.6,AND(BX17>=15,BX17<=19),0.7,TRUE,0) -> 0 | BT17: 422 | BV17: 0 | BW17: 0 | BX17: 0 | BY17: 0 | BZ17: 330000 | CA17: 0 | CB17: 4618114.043 | CC17: =IF(アセットアロケーション!$R34=10,アセットアロケーション!$H$10*$B$33*-1+(アセットアロケーション!$H$9+$AD17),IF(アセットアロケーション!$R34=5,アセットアロケーション!$H$10*($B$33-1)*-1+(アセットアロケーション!$H$9+$AD17),(アセットアロケーション!$H$9+$AD17)+アセットアロケーション!$H$10*$B$33/8+アセットアロケーション!$H$10*($B$33-1)/8)) -> 0.148696 | CD17: 637625.4058 | CE17: 0 | CF17: 12 | CG17: 12 | CH17: 25 | CI17: 12 | CJ17: 0 | CK17: 0 | CL17: 0 | CM17: 2400000 | CO17: 2400000 | CP17: 699781.9317 | CQ17: 1002129.808 | CR17: 1002129.808 | CS17: 0 | CT17: 0.333 | CU17: 0.9358242096 | CY17: 0.229 | CZ17: 0.9087301587 | DI17: 0 | DJ17: 0 | DK17: 0 | DL17: 0 | DM17: 0 | DN17: 0 | DO17: 0 | DP17: 87784532.98 | DQ17: 0.1221825673 | DR17: =IF(DP17=0,0,(((CB17-BZ17-CA17)+(BZ17+CA17)/12)+(DP17-DO17+DO17/12)+(FB17-FA17+FA17/12)+(FI17-FG17+FG17/12)+(GF17-GE17+GE17/12)+(HG17-HF17+HF17/12)+(IE17-ID17+ID17/12)+(IJ17-II17+II17/12))*アセットアロケーション!S34+((BZ17+CA17)/12+DO17/12+FA17/12+FG17/12+GE17/12+HF17/12+ID17/12+II17/12)*アセットアロケーション!S34/12*11+((BZ17+CA17)/12+DO17/12+FA17/12+FG17/12+GE17/12+HF17/12+ID17/12+II17/12)*アセットアロケーション!S34/12*10+((BZ17+CA17)/12+DO17/12+FA17/12+FG17/12+GE17/12+HF17/12+ID17/12+II17/12)*アセットアロケーション!S34/12*9+((BZ17+CA17)/12+DO17/12+FA17/12+FG17/12+GE17/12+HF17/12+ID17/12+II17/12)*アセットアロケーション!S34/12*8+((BZ17+CA17)/12+DO17/12+FA17/12+FG17/12+GE17/12+HF17/12+ID17/12+II17/12)*アセットアロケーション!S34/12*7+((BZ17+CA17)/12+DO17/12+FA17/12+FG17/12+GE17/12+HF17/12+ID17/12+II17/12)*アセットアロケーション!S34/12*6+((BZ17+CA17)/12+DO17/12+FA17/12+FG17/12+GE17/12+HF17/12+ID17/12+II17/12)*アセットアロケーション!S34/12*5+((BZ17+CA17)/12+DO17/12+FA17/12+FG17/12+GE17/12+HF17/12+ID17/12+II17/12)*アセットアロケーション!S34/12*4+((BZ17+CA17)/12+DO17/12+FA17/12+FG17/12+GE17/12+HF17/12+ID17/12+II17/12)*アセットアロケーション!S34/12*3+((BZ17+CA17)/12+DO17/12+FA17/12+FG17/12+GE17/12+HF17/12+ID17/12+II17/12)*アセットアロケーション!S34/12*2+((BZ17+CA17)/12+DO17/12+FA17/12+FG17/12+GE17/12+HF17/12+ID17/12+II17/12)*アセットアロケーション!S34/12*1-CD17-GH17-IG17-IL17-FK17-FD17-HI17) -> 10725739.61 | DS17: 55657319.2 | DT17: 42852953.39 | DU17: 98510272.59 | DV17: 0.7699428217 | DW17: 0 | DX17: 0 | DY17: 7474.843871 | DZ17: 0 | EA17: 0 | EB17: 0 | EC17: 0 | ED17: 0 | EE17: 0 | EF17: 0 | EG17: 0 | EH17: 3941445.489 | EI17: 1000000 | EJ17: 0 | EK17: 4941445.489 | EL17: 0.02 | EM17: 98828.90979 | EN17: 0 | EO17: 18911.66667 | EP17: 0.5 | EQ17: 150 | ER17: 0 | ES17: 64438.91631 | ET17: 0 | EW17: 64438.91631 | EX17: =LG17*0.02/IF(AND(LG17>0,LG17<=ふるさと納税計算式!B$2),ふるさと納税計算式!D$2,IF(LG17<=ふるさと納税計算式!B$3,ふるさと納税計算式!D$3,IF(LG17<=ふるさと納税計算式!B$4,ふるさと納税計算式!D$4,IF(LG17<=ふるさと納税計算式!B$5,ふるさと納税計算式!D$5,IF(LG17<=ふるさと納税計算式!B$6,ふるさと納税計算式!D$6,IF(LG17<=ふるさと納税計算式!B$7,ふるさと納税計算式!D$7,ふるさと納税計算式!D$8))))))+2000*AE17 -> 183149.7837 | EY17: 52796.97124 | FB17: 2852311.886 | FC17: =IF(アセットアロケーション!$R34=10,アセットアロケーション!$H$10*$B$33*-1+(アセットアロケーション!$H$9+$AD17),IF(アセットアロケーション!$R34=5,アセットアロケーション!$H$10*($B$33-1)*-1+(アセットアロケーション!$H$9+$AD17),(アセットアロケーション!$H$9+$AD17)+アセットアロケーション!$H$10*$B$33/8+アセットアロケーション!$H$10*($B$33-1)/8)) -> 0.148696 | FD17: 424127.3682 | FE17: 0 | FF17: 0 | FG17: 3924605.637 | FH17: 32180525.6 | FI17: 35014270.04 | FJ17: =IF(アセットアロケーション!$R34=10,アセットアロケーション!$H$10*$B$33*-1+(アセットアロケーション!$H$9+$AD17),IF(アセットアロケーション!$R34=5,アセットアロケーション!$H$10*($B$33-1)*-1+(アセットアロケーション!$H$9+$AD17),(アセットアロケーション!$H$9+$AD17)+アセットアロケーション!$H$10*$B$33/8+アセットアロケーション!$H$10*($B$33-1)/8)) -> 0.148696 | FK17: 4939010.866 | FL17: 39953280.9 | FM17: 0.2415359958 | FN17: 7772755.298 | FO17: 4986611.627 | FP17: 0 | FQ17: 0 | FR17: 0 | FS17: 0 | FT17: 92183.44973 | FU17: 1106201.397 | FV17: 0 | FW17: 1106201.397 | FX17: 515511.3305 | FY17: 515511.3305 | FZ17: 0 | GD17: 0 | GE17: 286439.4641 | GF17: 2699633.752 | GG17: =IF(アセットアロケーション!$R34=10,アセットアロケーション!$H$10*$B$33*-1+(アセットアロケーション!$H$9+$AD17),IF(アセットアロケーション!$R34=5,アセットアロケーション!$H$10*($B$33-1)*-1+(アセットアロケーション!$H$9+$AD17),(アセットアロケーション!$H$9+$AD17)+アセットアロケーション!$H$10*$B$33/8+アセットアロケーション!$H$10*($B$33-1)/8)) -> 0.148696 | GH17: 381903.2226 | GI17: 0 | GR17: 0 | GS17: 0 | GT17: 0 | GU17: 0 | GV17: 0.5 | GW17: 30 | GX17: 0 | GY17: 0 | GZ17: 0 | HA17: =LM17*0.02/IF(AND(LM17>0,LM17<=ふるさと納税計算式!B$2),ふるさと納税計算式!D$2,IF(LM17<=ふるさと納税計算式!B$3,ふるさと納税計算式!D$3,IF(LM17<=ふるさと納税計算式!B$4,ふるさと納税計算式!D$4,IF(LM17<=ふるさと納税計算式!B$5,ふるさと納税計算式!D$5,IF(LM17<=ふるさと納税計算式!B$6,ふるさと納税計算式!D$6,IF(LM17<=ふるさと納税計算式!B$7,ふるさと納税計算式!D$7,ふるさと納税計算式!D$8))))))+2000*AE17 -> -5031.869789 | HB17: 0 | HF17: 465312.1796 | HG17: 5284209.954 | HH17: =IF(アセットアロケーション!$R34=10,アセットアロケーション!$H$10*$B$33*-1+(アセットアロケーション!$H$9+$AD17),IF(アセットアロケーション!$R34=5,アセットアロケーション!$H$10*($B$33-1)*-1+(アセットアロケーション!$H$9+$AD17),(アセットアロケーション!$H$9+$AD17)+アセットアロケーション!$H$10*$B$33/8+アセットアロケーション!$H$10*($B$33-1)/8)) -> 0.148696 | HI17: 754028.7726 | HJ17: 0 | HK17: 0 | HL17: 0 | HM17: 0 | HN17: =アセットアロケーション!S34 -> 0.1319836237 | HO17: 0 | HP17: 0 | HQ17: 0 | HR17: 0 | HS17: 0 | HT17: 207030 | HU17: 2726510 | HV17: 2554699.369 | HW17: 2554699.369 | HX17: 211086.4735 | HY17: 4056.473457 | HZ17: 13 | IA17: -0.004994244783 | IB17: 1073981.939 | IC17: 0 | ID17: 0 | IE17: 4898121 | IF17: =IF(アセットアロケーション!$R34=10,アセットアロケーション!$H$10*$B$33*-1+(アセットアロケーション!$H$9+$AD17),IF(アセットアロケーション!$R34=5,アセットアロケーション!$H$10*($B$33-1)*-1+(アセットアロケーション!$H$9+$AD17),(アセットアロケーション!$H$9+$AD17)+アセットアロケーション!$H$10*$B$33/8+アセットアロケーション!$H$10*($B$33-1)/8)) -> 0.148696 | IG17: 728331.0002 | IH17: 0 | IJ17: 0 | IK17: =IF(アセットアロケーション!$R34=10,アセットアロケーション!$H$10*$B$33*-1+(アセットアロケーション!$H$9+$AD17),IF(アセットアロケーション!$R34=5,アセットアロケーション!$H$10*($B$33-1)*-1+(アセットアロケーション!$H$9+$AD17),(アセットアロケーション!$H$9+$AD17)+アセットアロケーション!$H$10*$B$33/8+アセットアロケーション!$H$10*($B$33-1)/8)) -> 0.148696 | IL17: 0 | IM17: 1073981.939 | IN17: 40609685.01 | IO17: 374904.3408 | IP17: 110000 | IQ17: 110000 | IR17: 118138.0132 | IS17: 29239.90299 | IT17: 11076.60222 | IU17: 6083.0337 | IV17: 0 | IW17: 147000 | IX17: 33000 | IY17: 10717 | IZ17: 7500 | JA17: 2750 | JB17: 3579.939795 | JC17: 2953.450331 | JD17: 78000 | JE17: 690000 | JF17: 78000 | JG17: 0 | JH17: 0 | JI17: 0 | JJ17: 0 | JK17: 0 | JL17: 0 | JM17: 2996.419905 | JN17: 4788913.809 | JO17: 322194.5816 | JP17: 30000 | JQ17: 100000 | JW17: 84000 | JX17: 0 | JY17: 2607 | JZ17: 7494 | KA17: 3067 | KB17: 1566 | KC17: 8 | KD17: 2506 | KE17: 15278 | KF17: 1712 | KG17: 1209 | KH17: 1242 | KI17: 6197 | KJ17: 2775 | KK17: 44217 | KL17: 84000 | KM17: 500000 | KN17: 小学校+塾 | KO17: 494031.6917 | KP17: 0 | KQ17: 723732.8008 | KR17: 0 | KS17: 494031.6917 | KT17: 723732.8008 | KU17: 491075.3661 | KV17: 901332.8052 | KW17: 340552.8433 | KX17: 88583.10952 | KY17: 49253.15875 | KZ17: 0 | LA17: 0 | LB17: 0 | LC17: 0 | LG17: 6297053.313 | LH17: 800283.3838 | LI17: 0 | LJ17: 16805.95106 | LK17: 6430227.073 | LL17: 650966.6955 | LM17: -286439.4641 | LN17: 0 | LO17: 0 | LP17: -232740.3672 | LQ17: 0 | LR17: 2099.765663 | LS17: 0 | LT17: 0 | LU17: 0 | LV17: 0 | LW17: 0 | LX17: 0 | LY17: 0 | LZ17: 0 | MA17: 0 | MB17: 0 | MC17: 0 | MD17: 0 | ME17: 0 | MF17: 0 | MG17: 0 | MH17: 0 | MI17: 0 | MJ17: 0 | MK17: 0 | ML17: 0 | MM17: 0 | MN17: 14824.33647 | MO17: 311.3110658 | MP17: 4941.445489 | MQ17: 20077.09302 | MR17: 0 | MS17: 0 | MT17: 0 | MU17: 9198827.689 | MV17: 31410857.32 | MW17: 29247100.15 | MX17: 98510272.59 | MY17: 0 | MZ17: 3276439.255 | NA17: 6038238.727 | NB17: 39953280.9 | NC17: 5626452 | ND17: 0 | NE17: 5255739.449 | NF17: 3081536.975 | NG17: 161741959.9 | NH17: 150600260.7 | NI17: 400000 | NJ17: 1000000 | NK17: 0 | NL17: 97533.41452 | NM17: 4506110.403 | NN17: 4506110.403 | NO17: 2554699.369 | NP17: 11763424 | NQ17: 9213424.493 | NR17: 29437658.26 | NS17: 27409826.19 | NT17: 102701.3233 | NU17: 78644.40017 | NV17: 74808.08797 | NW17: 15.06333333 | NX17: 1195112.158 | NY17: 1285154.691 | NZ17: 781732.8623 | OA17: 0.9468296557 | OB17: 139801.5482 | OC17: 330.57 | OD17: 49828001.76 | OE17: 0 | OF17: 0 | OG17: 0 | OH17: 781732.8623 | OI17: 0.9468296557 | OJ17: 139801.5482 | OK17: 92165.46511 | OL17: 749 | OM17: 87922048.8 | ON17: 0 | OO17: 0 | OP17: 0 | OQ17: 1285154.691 | OR17: 1196625.981 | OS17: 344.7482023 | OT17: 5.58470608 | OU17: 38.66334979 | OV17: 187.9468392 | OW17: 0 | OX17: 8.219383003 | OY17: 131.6685377 | OZ17: 776.6570576 | PA17: 598.2000062 | PB17: 1122.974726 | PC17: 54964.09244 | PD17: 42688250.31 | PE17: 32879520.44 | PF17: 61723286.62 | PG17: 57471438.21 | PH17: 254188059.5 | PI17: 236678151 | QO17: 0 | QP17: 0 | QQ17: 0 | QR17: 0 | QS17: 0 | QT17: -3.539025784e-08 | QU17: 254188059.5 | QV17: 254188059.5 | QW17: 236678151 | QX17: =QV17-IF((DU17-DS17)>0,(DU17-DS17)*0.2,0)+(メイン!YD17-メイン!XC17-メイン!WX17*32000*AE17-メイン!WU17*3%-メイン!WM17*3%-(メイン!YD17-メイン!XC17-メイン!WX17*32000*AE17-メイン!WU17*3%-メイン!WM17*3%-メイン!YC17)*23%)*0.8/100000*PC17-PF17-NY17*3%-(NY17*95%-NY17*3%)*20%-(OG17*95%-OG17*3%)*20%-(OP17*95%-OP17*3%)*20% -> 226964559 | QY17: 211329959 | QZ17: 4489270.55 | RA17: 3924605.637 | RB17: 236678151 | RC17: 0 | RF17: 1081751.644 | RG17: 108136923.6 | RH17: 13651755.37 | RI17: 0.1262450874 | RJ17: 173.8127559 | RK17: 21.94300657 | RL17: 195.7557625 | RM17: =(RL17-RJ8)/RJ8/10-B$34 -> 0.0707557625 | RO17: 0.1235733 | RP17: 0.03356597997 | RQ17: 0.06369314399 | RS17: 168000042.8 | RT17: 61446400.68 | RU17: 10916046.63 | RV17: 61446400.68 | RW17: 10916046.63 | RX17: 21832093.27 | RY17: 84000021.39 | RZ17: 0 | SA17: 84000021.39 | SB17: 9734666.502 | SF17: 3 | SG17: =IF(SF17=1,家賃下落率!D19,SG16) -> 0.04419725725 | SH17: =家賃下落率!C20 -> 0.009 | SI17: 1.037824145 | SJ17: 0.9583955174 | SK17: 27949468.87 | SL17: 22692441.8 | SM17: 0.8119095894 | SN17: -5314853.469 | SO17: 0 | SP17: 0 | SQ17: 2575267.333 | SR17: 2337887.467 | SS17: 0.9078232141 | ST17: 1162135.696 | SU17: 0 | SV17: 0 | SX17: =家賃下落率!C41 -> 0.007 | SY17: 0 | SZ17: 0 | TA17: 0 | TB17: 229826.9253 | TC17: 0 | TD17: 156425000 | TE17: 0 | TF17: 0 | TG17: 0 | TH17: 0 | TI17: 0 | TJ17: =アセットアロケーション!S34 -> 0.1319836237 | TK17: 0 | TL17: 25030329.26 | TM17: 21107438.42 | TN17: =IF(AB17=1,0,IF($AA17=0,TN16*(100%+メイン!$AD17)*WG17/WG16,0)) -> 1700075.717 | TO17: 5881943 | TT17: 5881943 | TU17: =VLOOKUP(XN17,返済明細!A:Z,9,FALSE) -> 3827953.576 | TV17: 270666 | TX17: 0 | TY17: 0 | TZ17: 0 | UA17: 112294.194 | UB17: 2196098.679 | UC17: 0 | UD17: 0 | UE17: 0 | UF17: 0 | UG17: 0 | UH17: 0 | UI17: 0 | UJ17: 0 | UK17: 0 | UL17: 0 | UM17: 0 | UN17: 0 | UO17: 1933167.489 | UP17: 0 | UQ17: 0 | UR17: 0 | US17: 1662524.041 | UT17: 1031022.661 | UU17: 0 | UV17: 55162.40109 | UX17: 0 | UY17: 0 | UZ17: 212535.2243 | VA17: 454985.0722 | VB17: -242449.8479 | VC17: 0 | VD17: 1384863.194 | VE17: 213486.1297 | VF17: 529638.4889 | VG17: 0 | VH17: 2400000 | VI17: 476847.9807 | VJ17: 5004835.794 | VK17: 21742576.06 | VL17: -24967144.3 | VM17: 0 | VN17: 0 | VO17: 0 | VP17: 0 | VQ17: 21479.63877 | VR17: 20955.74514 | VS17: -0.0007416677105 | VT17: 3287753.201 | VU17: 0 | VV17: 15881588.81 | VW17: 5225849.608 | VX17: -2171186.798 | VY17: -1779606.164 | VZ17: 10000000 | WA17: 0 | WB17: 7828813.202 | WC17: 12038993 | WD17: 2081450 | WE17: 4514107 | WF17: 17.5 | WG17: 187241887 | WH17: 41475.2 | WI17: 128411.4 | WJ17: 571652.4 | WK17: 1 | WL17: 187983427 | WM17: 186883722.2 | WN17: =築年スプレッド!C18 -> 0.07351571248 | WO17: 0.1018504939 | WP17: 0.04569029753 | WQ17: =(SL17+SR17-TN17-UA17-メイン!ZQ17-TU17-TV17-TW17-(SL17+SR17-TN17-UA17-メイン!ZQ17-TU17-TT17-TV17-TW17)*20%)/(WM17+WU17+メイン!ABI17+メイン!OG17) -> 0.05466450334 | WR17: 334.31 | WS17: 18600000 | WT17: 46269685.02 | WU17: 62989681.72 | WV17: 39 | WW17: 0 | WX17: 0 | WY17: 0 | WZ17: 0 | XA17: 0 | XB17: 0 | XC17: 0 | XD17: 0 | XE17: 9150411.162 | XF17: 12457000.44 | XG17: 106772.1847 | XH17: 0 | XI17: 0 | XJ17: 0 | XK17: 288793767.6 | XL17: 268900022.6 | XM17: 13 | XN17: 219 | XP17: =VLOOKUP(XN17,返済明細!A:Z,10,FALSE)*-1 -> 13610354.59 | XQ17: =XO17+XP17 -> 13610354.59 | XR17: =VLOOKUP(XN17,返済明細!A:H,8,FALSE) -> 136982554.4 | XS17: =IF(W17=1,0,IF(メイン!J17="",0,18000000)) -> 0 | XT17: 0 | XU17: 1000000 | XV17: 0 | XW17: 1000000 | XX17: 5500000 | XY17: 33992261 | XZ17: 39492261 | YA17: 176474815.4 | YB17: 52667415.07 | YC17: 77665705.76 | YD17: 112318952.2 | YE17: =YD17/メイン!AE17 -> 104581788.7 | YF17: 112318952.2 | YG17: -1362994.561 | YI17: 0.3889244326 | YJ17: 2.224677128 | YK17: 0.5752100835 | YL17: 10549625 | YM17: =YL17/(YD17+メイン!ABI17+メイン!ABL17) -> 0.03621039531 | YN17: =(SUM(YL13:YL17)+SUM(メイン!DR13:DR17)+SUM(メイン!FD13:FD17)+SUM(メイン!IG13:IG17)+SUM(メイン!CD13:CD17)+SUM(メイン!GH13:GH17))/(SUM(YD13:YD17)+SUM(メイン!ABI13:ABI17)+SUM(メイン!ABL13:ABL17)+SUM(メイン!OG13:OG17)+SUM(メイン!OP13:OP17)+SUM(メイン!DP13:DP17)+SUM(メイン!FB13:FB17)+SUM(メイン!IE13:IE17)+SUM(メイン!CB13:CB17)+SUM(メイン!GF13:GF17)) -> -0.03049526166 | YO17: =(SUM(YL8:YL17)+SUM(メイン!DR8:DR17)+SUM(メイン!FD8:FD17)+SUM(メイン!IG8:IG17)+SUM(メイン!CD8:CD17)+SUM(メイン!GH8:GH17))/(SUM(YD8:YD17)+SUM(メイン!ABI8:ABI17)+SUM(メイン!ABL8:ABL17)+SUM(メイン!OG8:OG17)+SUM(メイン!OP8:OP17)+SUM(メイン!DP8:DP17)+SUM(メイン!FB8:FB17)+SUM(メイン!IE8:IE17)+SUM(メイン!CB8:CB17)+SUM(メイン!GF8:GF17)) -> 0.02064553639 | YS17: =IF(I17<>"",メイン!UB17,0) -> 2196098.679 | YT17: =IF(I17<>"",メイン!UM17+IF(X17=1,388831*12*AE17*IF(E17-B$57>=1,1,0.5),0),0) -> 5011169.654 | YU17: 6201372.746 | YV17: =IF(I17<>"",メイン!US17,0) -> 1662524.041 | YW17: 1071833.975 | YX17: 1071833.975 | YY17: 780100 | YZ17: 730036.4659 | ZA17: 1335806 | ZB17: 1234914.655 | ZC17: 1964951.121 | ZD17: 841962.0694 | ZE17: 841962.0694 | ZF17: 0 | ZG17: 0 | ZH17: 10834743.49 | ZI17: 60846.63823 | ZJ17: 213929.7228 | ZK17: 6809369.768 | ZL17: 902746.6749 | ZM17: 6916767.962 | ZN17: 685241.0784 | ZO17: 150505.128 | ZP17: 128602.5067 | ZQ17: 111039.9104 | ZR17: 0 | ZS17: 894855.6765 | ZT17: 0 | ZU17: 1073981.939 | ZV17: 360508.844 | ZW17: 1073981.939 | ZX17: 1073981.939 | ZY17: =SUM(ZV$13:ZW17)+(AAK17-AAK$12)*PA17 -> 15464663.8 | ZZ17: 0 | AAA17: 380128.1911 | AAB17: 0 | AAC17: -891459.4186 | AAD17: 0 | AAE17: 0 | AAF17: 0 | AAG17: 0 | AAH17: -511331.2275 | AAI17: 6218890.768 | AAJ17: 4615852.726 | AAK17: 0 | AAL17: 0 | AAM17: 0 | AAN17: 1000 | AAO17: 7788.517018 | AAP17: 7788517.018 | AAQ17: 2000 | AAR17: 342.6002384 | AAS17: 685200.4768 | AAT17: 7930843 | AAU17: 2819.202589 | AAV17: 2235865.312 | AAW17: 30000 | AAX17: 112.3251375 | AAY17: 3369754.126 | AAZ17: 49 | ABA17: 200.55 | ABB17: 60.58912387 | ABC17: 8853320.413 | ABD17: 436.8366667 | ABE17: 11796690.57 | ABF17: 37269486.03 | ABG17: 330.57 | ABH17: 36601644.65 | ABI17: 49828001.76 | ABJ17: 748.5 | ABK17: 87863355.84 | ABL17: 129195488.1 | ABM17: 4516472 | ABN17: 6231890 | ABO17: 0 | ABP17: 10748362 | ABQ17: 5500000 | ABR17: 2478200.611 | ABS17: 257952195.9 | ABT17: 167172549 | ABU17: 65543039.88 | ABV17: 12145038.39 | ABW17: 0.1452994342 | ABX17: 32771519.94 | ABY17: 4406340.111 | ABZ17: 32771519.94 | ACA17: 4406340.111 | ACB17: 20957718.62 | ACC17: 33590565.8 | ACD17: 34387199.64 | ACE17: 50680201.32 | ACF17: 71457628.95 | ACG17: 37867063.14 | ACH17: 1.034572722 | ACI17: 1 | ACJ17: 1265418.493 | ACK17: 4588594.084 | ACL17: 37070429.3 | ACM17: 0.4219100096 | ACN17: 0 | ACO17: 4647363.643 | ACP17: 93500475.06 | ACQ17: 191066317.5 | ACT17: =メイン!UT17 -> 1031022.661 | ACU17: 440332.5948 | ACV17: 440332.5948 | ACW17: 0 | ACX17: 0 | ACY17: 0 | ACZ17: 0 | ADA17: 0 | ADB17: 780100 | ADC17: 730036.4659 | ADD17: 440560.114 | ADE17: 1170596.58 | ADF17: 790596.5799 | ADG17: =IF(メイン!XS17<65,IF(ADF17<700000,0,IF(ADF17<1299999,ADF17-700000,IF(ADF17<4099999,ADF17*75%-375000,IF(ADF17<7699999,ADF17*85%-785000)))),0)+IF(メイン!XS17>64,IF(ADF17<1200000,0,IF(ADF17<3299999,ADF17-1200000,IF(ADF17<4099999,ADF17*75%-375000,IF(ADF17<7699999,ADF17*85%-785000)))),0) -> 90596.57994 | ADH17: 0 | ADI17: 0 | ADJ17: 0 | ADK17: 2201619.241 | ADL17: 0 | ADM17: 0 | ADN17: 0 | ADO17: 0 | ADP17: 0 | ADQ17: 0 | ADR17: 55162.40109 | ADS17: 106964.8614 | ADT17: -344704.192 | ADU17: 0 | ADV17: -291005.0951 | ADW17: 0 | ADX17: 3866334.979 | ADY17: 0 | ADZ17: 0 | AEA17: 0 | AEB17: 0 | AEC17: 3866334.979 | AED17: 4028462.241 | AEE17: -1826843 | AEF17: 21635.90756 | AEG17: 12942600.04 | AEH17: 24296577.36 | AEI17: 0 | AEJ17: 0 | AEK17: 0 | AEL17: 0 | AEM17: 0 | AEN17: 0 | AEO17: 0 | AEP17: 0 | AEQ17: 0 | AER17: 0 | AES17: 0 | AET17: 0 | AEU17: 0 | AEV17: 0 | AEW17: 0 | AEX17: 0 | AEY17: 0 | AEZ17: 0 | AFA17: 0 | AFB17: 0 | AFC17: 0 | AFD17: 0 | AFE17: 0 | AFF17: 0 | AFG17: 0 | AFH17: 24778836.51 | AFI17: 0 | AFJ17: 12195322.25 | AFK17: 0.01 | AFL17: 121953.2225 | AFM17: 20000000 | AFN17: 32317275.47 | AFO17: 81392689.34 | AFP17: 70038712.02 | AFQ17: 12465735.3 | AFR17: 1332869.326 | AFS17: 0.03806093194 | AFT17: 2665738.652 | AFU17: 9097684.505 | AFV17: 79136396.53 | AFW17: 30470513.76 | AFX17: 17527913.72 | AFY17: 1159736.15 | AGB17: 0 | AGC17: 0 | AGD17: 0 | AGE17: 0 | AGF17: 23400 | AGG17: 13997880.15 | AGH17: 26277608.58 | AGI17: 0 | AGJ17: 0 | AGK17: 0 | AGL17: 0 | AGM17: 0 | AGN17: 0 | AGO17: 0 | AGP17: 0 | AGQ17: 0 | AGR17: 0 | AGS17: 0 | AGT17: 0 | AGU17: 0 | AGV17: 0 | AGW17: 0 | AGX17: 16213424.49 | AGY17: 0 | AGZ17: 0 | AHA17: 0 | AHC17: 0 | AHD17: 0 | AHE17: 26277608.58 | AHF17: 24467458.56 | AHH17: 100000 | AHI17: 129195488.1
A18: 生活費底上 | D18: F2029 | E18: 48 | F18: 45 | G18: 10 | I18: 78 | J18: 74 | K18: 0 | L18: 0 | M18: 0 | N18: 0 | O18: 1 | P18: 11 | Q18: 1 | R18: 2 | S18: 0 | T18: 0 | U18: 0 | V18: 0 | W18: 1 | X18: 1 | Z18: 0 | AA18: 0 | AB18: 0 | AC18: 0 | AD18: 0.025 | AE18: 1.100831487 | AF18: -0.006 | AG18: 1.036498942 | AI18: =AI17 -> 1.007874989 | AJ18: 30.95622012 | AK18: 1.055263018 | AL18: 5872200 | AM18: 454703.9987 | AN18: 1056000 | AO18: 2548412.502 | AP18: 1000000 | AQ18: 10000 | AR18: 0 | AS18: 0 | AT18: 0 | AU18: 0 | AV18: 0 | AW18: 0 | AX18: 9941316.501 | AY18: 2146621.4 | AZ18: 7794695.101 | BA18: 0 | BB18: 0 | BC18: 0 | BD18: 0 | BE18: 0 | BF18: 0 | BG18: 14276000 | BH18: =492000+201000+532000 -> 1225000 | BI18: 0.83 | BL18: 12865830 | BM18: 1102406 | BN18: 26 | BO18: 13430144.14 | BP18: 0 | BQ18: 350000 | BR18: =_xlfn.IFS(AND(BX18>=1,BX18<=4),0.4,AND(BX18>=5,BX18<=9),0.5,AND(BX18>=10,BX18<=14),0.6,AND(BX18>=15,BX18<=19),0.7,TRUE,0) -> 0 | BT18: 422 | BV18: 0 | BW18: 0 | BX18: 0 | BY18: 0 | BZ18: 330000 | CA18: 0 | CB18: 5585739.449 | CC18: =IF(アセットアロケーション!$R35=10,アセットアロケーション!$H$10*$B$33*-1+(アセットアロケーション!$H$9+$AD18),IF(アセットアロケーション!$R35=5,アセットアロケーション!$H$10*($B$33-1)*-1+(アセットアロケーション!$H$9+$AD18),(アセットアロケーション!$H$9+$AD18)+アセットアロケーション!$H$10*$B$33/8+アセットアロケーション!$H$10*($B$33-1)/8)) -> -0.233304 | CD18: -1226185.036 | CE18: 0 | CF18: 13 | CG18: 13 | CH18: 26 | CI18: 13 | CJ18: 0 | CK18: 0 | CL18: 0 | CM18: 2400000 | CO18: 2400000 | CP18: 717276.48 | CQ18: 967183.0535 | CR18: 967183.0535 | CS18: 0 | CT18: 0.333 | CU18: 0.9534644959 | CY18: 0.229 | CZ18: 0.9087301587 | DI18: 0 | DJ18: 0 | DK18: 0 | DL18: 0 | DM18: 0 | DN18: 0 | DO18: 0 | DP18: 98510272.59 | DQ18: -0.1556168618 | DR18: =IF(DP18=0,0,(((CB18-BZ18-CA18)+(BZ18+CA18)/12)+(DP18-DO18+DO18/12)+(FB18-FA18+FA18/12)+(FI18-FG18+FG18/12)+(GF18-GE18+GE18/12)+(HG18-HF18+HF18/12)+(IE18-ID18+ID18/12)+(IJ18-II18+II18/12))*アセットアロケーション!S35+((BZ18+CA18)/12+DO18/12+FA18/12+FG18/12+GE18/12+HF18/12+ID18/12+II18/12)*アセットアロケーション!S35/12*11+((BZ18+CA18)/12+DO18/12+FA18/12+FG18/12+GE18/12+HF18/12+ID18/12+II18/12)*アセットアロケーション!S35/12*10+((BZ18+CA18)/12+DO18/12+FA18/12+FG18/12+GE18/12+HF18/12+ID18/12+II18/12)*アセットアロケーション!S35/12*9+((BZ18+CA18)/12+DO18/12+FA18/12+FG18/12+GE18/12+HF18/12+ID18/12+II18/12)*アセットアロケーション!S35/12*8+((BZ18+CA18)/12+DO18/12+FA18/12+FG18/12+GE18/12+HF18/12+ID18/12+II18/12)*アセットアロケーション!S35/12*7+((BZ18+CA18)/12+DO18/12+FA18/12+FG18/12+GE18/12+HF18/12+ID18/12+II18/12)*アセットアロケーション!S35/12*6+((BZ18+CA18)/12+DO18/12+FA18/12+FG18/12+GE18/12+HF18/12+ID18/12+II18/12)*アセットアロケーション!S35/12*5+((BZ18+CA18)/12+DO18/12+FA18/12+FG18/12+GE18/12+HF18/12+ID18/12+II18/12)*アセットアロケーション!S35/12*4+((BZ18+CA18)/12+DO18/12+FA18/12+FG18/12+GE18/12+HF18/12+ID18/12+II18/12)*アセットアロケーション!S35/12*3+((BZ18+CA18)/12+DO18/12+FA18/12+FG18/12+GE18/12+HF18/12+ID18/12+II18/12)*アセットアロケーション!S35/12*2+((BZ18+CA18)/12+DO18/12+FA18/12+FG18/12+GE18/12+HF18/12+ID18/12+II18/12)*アセットアロケーション!S35/12*1-CD18-GH18-IG18-IL18-FK18-FD18-HI18) -> -15329859.47 | DS18: 55657319.2 | DT18: 27523093.92 | DU18: 83180413.12 | DV18: 0.4945098743 | DW18: 0 | DX18: 0 | DY18: 7518.574146 | DZ18: 0 | EA18: 0 | EB18: 0 | EC18: 0 | ED18: 0 | EE18: 0 | EF18: 0 | EG18: 0 | EH18: 4506110.403 | EI18: 1000000 | EJ18: 0 | EK18: 5506110.403 | EL18: 0.02 | EM18: 110122.2081 | EN18: 0 | EO18: 19078.33333 | EP18: 0.5 | EQ18: 150 | ER18: 0 | ES18: 66049.88922 | ET18: 0 | EW18: 66049.88922 | EX18: =LG18*0.02/IF(AND(LG18>0,LG18<=ふるさと納税計算式!B$2),ふるさと納税計算式!D$2,IF(LG18<=ふるさと納税計算式!B$3,ふるさと納税計算式!D$3,IF(LG18<=ふるさと納税計算式!B$4,ふるさと納税計算式!D$4,IF(LG18<=ふるさと納税計算式!B$5,ふるさと納税計算式!D$5,IF(LG18<=ふるさと納税計算式!B$6,ふるさと納税計算式!D$6,IF(LG18<=ふるさと納税計算式!B$7,ふるさと納税計算式!D$7,ふるさと納税計算式!D$8))))))+2000*AE18 -> 182508.0912 | EY18: 52550.76439 | FB18: 3276439.255 | FC18: =IF(アセットアロケーション!$R35=10,アセットアロケーション!$H$10*$B$33*-1+(アセットアロケーション!$H$9+$AD18),IF(アセットアロケーション!$R35=5,アセットアロケーション!$H$10*($B$33-1)*-1+(アセットアロケーション!$H$9+$AD18),(アセットアロケーション!$H$9+$AD18)+アセットアロケーション!$H$10*$B$33/8+アセットアロケーション!$H$10*($B$33-1)/8)) -> -0.233304 | FD18: -764406.3838 | FE18: 0 | FF18: 0 | FG18: 3211310.17 | FH18: 35391835.77 | FI18: 43164591.07 | FJ18: =IF(アセットアロケーション!$R35=10,アセットアロケーション!$H$10*$B$33*-1+(アセットアロケーション!$H$9+$AD18),IF(アセットアロケーション!$R35=5,アセットアロケーション!$H$10*($B$33-1)*-1+(アセットアロケーション!$H$9+$AD18),(アセットアロケーション!$H$9+$AD18)+アセットアロケーション!$H$10*$B$33/8+アセットアロケーション!$H$10*($B$33-1)/8)) -> -0.233304 | FK18: -9727083.147 | FL18: 33437507.92 | FM18: -0.05521973661 | FN18: -1954327.85 | FO18: 5205979.998 | FP18: 0 | FQ18: 0 | FR18: 0 | FS18: 0 | FT18: 94488.03597 | FU18: 1133856.432 | FV18: 0 | FW18: 1133856.432 | FX18: 528399.1138 | FY18: 528399.1138 | FZ18: 0 | GD18: 0 | GE18: 289189.283 | GF18: 3370726.258 | GG18: =IF(アセットアロケーション!$R35=10,アセットアロケーション!$H$10*$B$33*-1+(アセットアロケーション!$H$9+$AD18),IF(アセットアロケーション!$R35=5,アセットアロケーション!$H$10*($B$33-1)*-1+(アセットアロケーション!$H$9+$AD18),(アセットアロケーション!$H$9+$AD18)+アセットアロケーション!$H$10*$B$33/8+アセットアロケーション!$H$10*($B$33-1)/8)) -> -0.233304 | GH18: -755480.6196 | GI18: 0 | GR18: 0 | GS18: 0 | GT18: 0 | GU18: 0 | GV18: 0.5 | GW18: 30 | GX18: 0 | GY18: 0 | GZ18: 0 | HA18: =LM18*0.02/IF(AND(LM18>0,LM18<=ふるさと納税計算式!B$2),ふるさと納税計算式!D$2,IF(LM18<=ふるさと納税計算式!B$3,ふるさと納税計算式!D$3,IF(LM18<=ふるさと納税計算式!B$4,ふるさと納税計算式!D$4,IF(LM18<=ふるさと納税計算式!B$5,ふるさと納税計算式!D$5,IF(LM18<=ふるさと納税計算式!B$6,ふるさと納税計算式!D$6,IF(LM18<=ふるさと納税計算式!B$7,ふるさと納税計算式!D$7,ふるさと納税計算式!D$8))))))+2000*AE18 -> -5047.097095 | HB18: 0 | HF18: 476944.9841 | HG18: 6515183.711 | HH18: =IF(アセットアロケーション!$R35=10,アセットアロケーション!$H$10*$B$33*-1+(アセットアロケーション!$H$9+$AD18),IF(アセットアロケーション!$R35=5,アセットアロケーション!$H$10*($B$33-1)*-1+(アセットアロケーション!$H$9+$AD18),(アセットアロケーション!$H$9+$AD18)+アセットアロケーション!$H$10*$B$33/8+アセットアロケーション!$H$10*($B$33-1)/8)) -> -0.233304 | HI18: -1469018.216 | HJ18: 0 | HK18: 0 | HL18: 0 | HM18: 0 | HN18: =アセットアロケーション!S35 -> -0.186406686 | HO18: 0 | HP18: 0 | HQ18: 0 | HR18: 0 | HS18: 0 | HT18: 207030 | HU18: 2933540 | HV18: 2769479.34 | HW18: 2769479.34 | HX18: 214779.9707 | HY18: 7749.970656 | HZ18: 14 | IA18: -0.004102315731 | IB18: 1100831.487 | IC18: 0 | ID18: 0 | IE18: 5626452 | IF18: =IF(アセットアロケーション!$R35=10,アセットアロケーション!$H$10*$B$33*-1+(アセットアロケーション!$H$9+$AD18),IF(アセットアロケーション!$R35=5,アセットアロケーション!$H$10*($B$33-1)*-1+(アセットアロケーション!$H$9+$AD18),(アセットアロケーション!$H$9+$AD18)+アセットアロケーション!$H$10*$B$33/8+アセットアロケーション!$H$10*($B$33-1)/8)) -> -0.233304 | IG18: -1312673.757 | IH18: 0 | IJ18: 0 | IK18: =IF(アセットアロケーション!$R35=10,アセットアロケーション!$H$10*$B$33*-1+(アセットアロケーション!$H$9+$AD18),IF(アセットアロケーション!$R35=5,アセットアロケーション!$H$10*($B$33-1)*-1+(アセットアロケーション!$H$9+$AD18),(アセットアロケーション!$H$9+$AD18)+アセットアロケーション!$H$10*$B$33/8+アセットアロケーション!$H$10*($B$33-1)/8)) -> -0.233304 | IL18: 0 | IM18: 1100831.487 | IN18: -8025493.321 | IO18: 384276.9493 | IP18: 110000 | IQ18: 110000 | IR18: 121091.4636 | IS18: 29970.90056 | IT18: 11353.51728 | IU18: 6235.109542 | IV18: 0 | IW18: 180000 | IX18: 40000 | IY18: 10717 | IZ18: 7500 | JA18: 3333.333333 | JB18: 3669.43829 | JC18: 3669.43829 | JD18: 78000 | JE18: 690000 | JF18: 78000 | JG18: 0 | JH18: 0 | JI18: 0 | JJ18: 0 | JK18: 0 | JL18: 0 | JM18: 3071.330403 | JN18: 4911949.875 | JO18: 330249.4461 | JP18: 30000 | JQ18: 100000 | JW18: 84000 | JX18: 0 | JY18: 8704 | JZ18: 7742 | KA18: 3227 | KB18: 1871 | KC18: 8 | KD18: 2471 | KE18: 16567 | KF18: 4665 | KG18: 1022 | KH18: 952 | KI18: 5780 | KJ18: 3349 | KK18: 43927 | KL18: 84000 | KM18: 1000000 | KN18: 小学校+塾 | KO18: 506382.484 | KP18: 0 | KQ18: 1303698.218 | KR18: 0 | KS18: 506382.484 | KT18: 1303698.218 | KU18: 533860.0947 | KV18: 909630.4599 | KW18: 346376.1485 | KX18: 90097.8421 | KY18: 49706.58251 | KZ18: 0 | LA18: 0 | LB18: 0 | LC18: 0 | LG18: 6272860.638 | LH18: 783966.6669 | LI18: 0 | LJ18: 16463.3 | LK18: 6409363.742 | LL18: 649251.8026 | LM18: -289189.283 | LN18: 0 | LO18: 0 | LP18: -234147.7086 | LQ18: 0 | LR18: 2152.259805 | LS18: 0 | LT18: 0 | LU18: 0 | LV18: 0 | LW18: 0 | LX18: 0 | LY18: 0 | LZ18: 0 | MA18: 0 | MB18: 0 | MC18: 0 | MD18: 0 | ME18: 0 | MF18: 0 | MG18: 0 | MH18: 0 | MI18: 0 | MJ18: 0 | MK18: 0 | ML18: 0 | MM18: 0 | MN18: 16518.33121 | MO18: 346.8849554 | MP18: 5506.110403 | MQ18: 22371.32657 | MR18: 0 | MS18: 0 | MT18: 0 | MU18: 9922296.412 | MV18: -17947789.73 | MW18: -16303848.45 | MX18: 83180413.12 | MY18: 0 | MZ18: 2512032.871 | NA18: 5046165.494 | NB18: 33437507.92 | NC18: 4313778.243 | ND18: 0 | NE18: 4359554.413 | NF18: 2615245.638 | NG18: 135464697.7 | NH18: 123056706.9 | NI18: 400000 | NJ18: 1000000 | NK18: 0 | NL18: 2737693.595 | NM18: 5204066.835 | NN18: 5204066.835 | NO18: 2769479.34 | NP18: 12865830 | NQ18: 10314255.98 | NR18: 32553632.15 | NS18: 29571857.76 | NT18: 100782.5947 | NU18: 79104.49556 | NV18: 75245.73968 | NW18: 15.06333333 | NX18: 1202103.954 | NY18: 1292673.265 | NZ18: 777001.5912 | OA18: 0.9410991716 | OB18: 142429.315 | OC18: 330.57 | OD18: 50764589.15 | OE18: 0 | OF18: 0 | OG18: 0 | OH18: 777001.5912 | OI18: 0.9410991716 | OJ18: 142429.315 | OK18: 93897.84467 | OL18: 749 | OM18: 89574667.38 | ON18: 0 | OO18: 0 | OP18: 0 | OQ18: 1292673.265 | OR18: 1174269.886 | OS18: 353.3669073 | OT18: 5.724323732 | OU18: 39.62993353 | OV18: 192.6455102 | OW18: 0 | OX18: 8.471834775 | OY18: 140.1113222 | OZ18: 816.886932 | PA18: 630.1399483 | PB18: 1176.555885 | PC18: 56885.75228 | PD18: 46469227.66 | PE18: 35845985 | PF18: 66929266.62 | PG18: 60798830.17 | PH18: 236240269.7 | PI18: 214601664.8 | QO18: 0 | QP18: 0 | QQ18: 0 | QR18: 0 | QS18: 0 | QT18: -3.911554813e-08 | QU18: 236240269.7 | QV18: 236240269.7 | QW18: 214601664.8 | QX18: =QV18-IF((DU18-DS18)>0,(DU18-DS18)*0.2,0)+(メイン!YD18-メイン!XC18-メイン!WX18*32000*AE18-メイン!WU18*3%-メイン!WM18*3%-(メイン!YD18-メイン!XC18-メイン!WX18*32000*AE18-メイン!WU18*3%-メイン!WM18*3%-メイン!YC18)*23%)*0.8/100000*PC18-PF18-NY18*3%-(NY18*95%-NY18*3%)*20%-(OG18*95%-OG18*3%)*20%-(OP18*95%-OP18*3%)*20% -> 210732803.2 | QY18: 191430573.8 | QZ18: 3909266.603 | RA18: 3211310.17 | RB18: 214601664.8 | RC18: 0 | RF18: 1096134.267 | RG18: 122884813.3 | RH18: -20857623.49 | RI18: -0.1697331259 | RJ18: 195.7557625 | RK18: -33.22623749 | RL18: 162.529525 | RM18: 0.02347351765 | RO18: -0.07597260938 | RP18: 0.07618291242 | RQ18: 0.06596730879 | RS18: 156884242.2 | RT18: 55324659.86 | RU18: 8891577.548 | RV18: 55324659.86 | RW18: 8891577.548 | RX18: 17783155.1 | RY18: 78442121.08 | RZ18: 0 | SA18: 78442121.08 | SB18: 7790746.061 | SF18: 4 | SG18: =IF(SF18=1,家賃下落率!D20,SG17) -> 0.04419725725 | SH18: =家賃下落率!C21 -> 0.009 | SI18: 1.037824145 | SJ18: 0.9583955174 | SK18: 28218545.09 | SL18: 22692441.8 | SM18: 0.8041676751 | SN18: -5308670.856 | SO18: 0 | SP18: 0 | SQ18: 2600060.047 | SR18: 2337887.467 | SS18: 0.8991667212 | ST18: 1183979.671 | SU18: 0 | SV18: 0 | SX18: =家賃下落率!C42 -> 0.007 | SY18: 0 | SZ18: 0 | TA18: 0 | TB18: 234146.8456 | TC18: 0 | TD18: 156425000 | TE18: 0 | TF18: 0 | TG18: 0 | TH18: 0 | TI18: 0 | TJ18: =アセットアロケーション!S35 -> -0.186406686 | TK18: 0 | TL18: 25030329.26 | TM18: 21139784.92 | TN18: =IF(AB18=1,0,IF($AA18=0,TN17*(100%+メイン!$AD18)*WG18/WG17,0)) -> 1687836.962 | TO18: 5881943 | TT18: 5881943 | TU18: =VLOOKUP(XN18,返済明細!A:Z,9,FALSE) -> 3561538.245 | TV18: 270666 | TX18: 0 | TY18: 0 | TZ18: 0 | UA18: 114404.9214 | UB18: 2237377.443 | UC18: 0 | UD18: 0 | UE18: 0 | UF18: 0 | UG18: 0 | UH18: 0 | UI18: 0 | UJ18: 0 | UK18: 0 | UL18: 0 | UM18: 0 | UN18: 0 | UO18: 1981496.677 | UP18: 0 | UQ18: 0 | UR18: 0 | US18: 1704087.142 | UT18: 1056798.228 | UU18: 0 | UV18: 56986.72447 | UX18: 0 | UY18: 0 | UZ18: 212535.2243 | VA18: 460905.1535 | VB18: -248369.9292 | VC18: 0 | VD18: 1419484.774 | VE18: 218823.283 | VF18: 542879.4511 | VG18: 0 | VH18: 2400000 | VI18: 488769.1802 | VJ18: 5069956.689 | VK18: 21641595.35 | VL18: -21578410.39 | VM18: 0 | VN18: 0 | VO18: 0 | VP18: 0 | VQ18: 22016.62974 | VR18: 21479.63877 | VS18: -0.0008603162024 | VT18: 3388733.91 | VU18: 0 | VV18: 15781131.99 | VW18: 5358652.931 | VX18: -3700139.875 | VY18: -1632212.666 | VZ18: 10000000 | WA18: 0 | WB18: 6299860.125 | WC18: 12038993 | WD18: 2081450 | WE18: 4243441 | WF18: 18.5 | WG18: 181359944 | WH18: 41475.2 | WI18: 128411.4 | WJ18: 571652.4 | WK18: 1 | WL18: 182101484 | WM18: 181575051.4 | WN18: =築年スプレッド!C19 -> 0.07425086961 | WO18: 0.1039366697 | WP18: 0.04712802133 | WQ18: =(SL18+SR18-TN18-UA18-メイン!ZQ18-TU18-TV18-TW18-(SL18+SR18-TN18-UA18-メイン!ZQ18-TU18-TT18-TV18-TW18)*20%)/(WM18+WU18+メイン!ABI18+メイン!OG18) -> 0.05599274418 | WR18: 334.31 | WS18: 18600000 | WT18: 47139388.84 | WU18: 64173661.39 | WV18: 40 | WW18: 0 | WX18: 0 | WY18: 0 | WZ18: 0 | XA18: 0 | XB18: 0 | XC18: 0 | XD18: 0 | XE18: 9322406.011 | XF18: 12691147.29 | XG18: 108779.1181 | XH18: 0 | XI18: 0 | XJ18: 0 | XK18: 283103604.2 | XL18: 257172516.9 | XM18: 12 | XN18: 231 | XP18: =VLOOKUP(XN18,返済明細!A:Z,10,FALSE)*-1 -> 13610354.59 | XQ18: 13610354.59 | XR18: =VLOOKUP(XN18,返済明細!A:H,8,FALSE) -> 126933738 | XS18: =IF(W18=1,0,IF(メイン!J18="",0,18000000)) -> 0 | XT18: 0 | XU18: 1000000 | XV18: 0 | XW18: 1000000 | XX18: 4500000 | XY18: 33992261 | XZ18: 38492261 | YA18: 165425999 | YB18: 56044528.88 | YC18: 81688693.2 | YD18: 117677605.1 | YE18: =YD18/メイン!AE18 -> 106898836.5 | YF18: 117677605.1 | YG18: -1528953.077 | YI18: 0.4156697527 | YJ18: 2.088321839 | YK18: 0.4628725932 | YL18: 10808584.43 | YM18: =YL18/(YD18+メイン!ABI18+メイン!ABL18) -> 0.03602067902 | YN18: =(SUM(YL14:YL18)+SUM(メイン!DR14:DR18)+SUM(メイン!FD14:FD18)+SUM(メイン!IG14:IG18)+SUM(メイン!CD14:CD18)+SUM(メイン!GH14:GH18))/(SUM(YD14:YD18)+SUM(メイン!ABI14:ABI18)+SUM(メイン!ABL14:ABL18)+SUM(メイン!OG14:OG18)+SUM(メイン!OP14:OP18)+SUM(メイン!DP14:DP18)+SUM(メイン!FB14:FB18)+SUM(メイン!IE14:IE18)+SUM(メイン!CB14:CB18)+SUM(メイン!GF14:GF18)) -> 0.03185408622 | YO18: =(SUM(YL9:YL18)+SUM(メイン!DR9:DR18)+SUM(メイン!FD9:FD18)+SUM(メイン!IG9:IG18)+SUM(メイン!CD9:CD18)+SUM(メイン!GH9:GH18))/(SUM(YD9:YD18)+SUM(メイン!ABI9:ABI18)+SUM(メイン!ABL9:ABL18)+SUM(メイン!OG9:OG18)+SUM(メイン!OP9:OP18)+SUM(メイン!DP9:DP18)+SUM(メイン!FB9:FB18)+SUM(メイン!IE9:IE18)+SUM(メイン!CB9:CB18)+SUM(メイン!GF9:GF18)) -> 0.01515133794 | YS18: =IF(I18<>"",メイン!UB18,0) -> 2237377.443 | YT18: =IF(I18<>"",メイン!UM18+IF(X18=1,388831*12*AE18*IF(E18-B$57>=1,1,0.5),0),0) -> 5136448.895 | YU18: 6349023.528 | YV18: =IF(I18<>"",メイン!US18,0) -> 1704087.142 | YW18: 1098629.824 | YX18: 1098629.824 | YY18: 780100 | YZ18: 743797.6533 | ZA18: 1335806 | ZB18: 1258192.796 | ZC18: 2001990.45 | ZD18: 857833.0545 | ZE18: 857833.0545 | ZF18: 0 | ZG18: 0 | ZH18: 11079903.93 | ZI18: 62858.94993 | ZJ18: 221004.7773 | ZK18: 6964824.452 | ZL18: 922359.4297 | ZM18: 7074907.601 | ZN18: 697905.8914 | ZO18: 153959.2207 | ZP18: 129354.8733 | ZQ18: 113127.0617 | ZR18: 0 | ZS18: 911675.7477 | ZT18: 0 | ZU18: 1100831.487 | ZV18: -1100831.487 | ZW18: 1100831.487 | ZX18: 1100831.487 | ZY18: =SUM(ZV$13:ZW18)+(AAK18-AAK$12)*PA18 -> 15331479.41 | ZZ18: 0 | AAA18: 389631.3958 | AAB18: 0 | AAC18: -913745.904 | AAD18: 0 | AAE18: 0 | AAF18: 0 | AAG18: 0 | AAH18: -524114.5082 | AAI18: 4889794.418 | AAJ18: 6190109.512 | AAK18: 0 | AAL18: 0 | AAM18: 0 | AAN18: 1000 | AAO18: 7983.229944 | AAP18: 7983229.944 | AAQ18: 2000 | AAR18: 351.1652444 | AAS18: 702330.4887 | AAT18: 7930843 | AAU18: 2889.682653 | AAV18: 2291761.944 | AAW18: 30000 | AAX18: 115.133266 | AAY18: 3453997.98 | AAZ18: 50 | ABA18: 200.55 | ABB18: 60.58912387 | ABC18: 9056504.116 | ABD18: 436.8366667 | ABE18: 11865705.06 | ABF18: 37487524.68 | ABG18: 330.57 | ABH18: 37289624.05 | ABI18: 50764589.15 | ABJ18: 748.5 | ABK18: 89514871.2 | ABL18: 131623899 | ABM18: 4516472 | ABN18: 6231890 | ABO18: 0 | ABP18: 10748362 | ABQ18: 4500000 | ABR18: 3002315.119 | ABS18: 261614514.5 | ABT18: 169660339.9 | ABU18: 66075953.96 | ABV18: 12116965.78 | ABW18: 0.1428379289 | ABX18: 33037976.98 | ABY18: 4405932.422 | ABZ18: 33037976.98 | ACA18: 4405932.422 | ACB18: 20928830.63 | ACC18: 35330515.54 | ACD18: 36429410.19 | ACE18: 50921028.47 | ACF18: 73085323.53 | ACG18: 37754807.99 | ACH18: 1.01247489 | ACI18: 1 | ACJ18: 465183.9414 | ACK18: 4599944.962 | ACL18: 36655913.34 | ACM18: 0.4094952363 | ACN18: 0 | ACO18: 4521772.16 | ACP18: 95714802.52 | ACQ18: 196188480.1 | ACT18: =メイン!UT18 -> 1056798.228 | ACU18: 451340.9097 | ACV18: 451340.9097 | ACW18: 0 | ACX18: 0 | ACY18: 0 | ACZ18: 0 | ADA18: 0 | ADB18: 780100 | ADC18: 743797.6533 | ADD18: 453776.9175 | ADE18: 1197574.571 | ADF18: 817574.5707 | ADG18: =IF(メイン!XS18<65,IF(ADF18<700000,0,IF(ADF18<1299999,ADF18-700000,IF(ADF18<4099999,ADF18*75%-375000,IF(ADF18<7699999,ADF18*85%-785000)))),0)+IF(メイン!XS18>64,IF(ADF18<1200000,0,IF(ADF18<3299999,ADF18-1200000,IF(ADF18<4099999,ADF18*75%-375000,IF(ADF18<7699999,ADF18*85%-785000)))),0) -> 117574.5707 | ADH18: 0 | ADI18: 0 | ADJ18: 0 | ADK18: 2254372.798 | ADL18: 0 | ADM18: 0 | ADN18: 0 | ADO18: 0 | ADP18: 0 | ADQ18: 0 | ADR18: 56986.72447 | ADS18: 110502.3887 | ADT18: -347139.0439 | ADU18: 0 | ADV18: -292097.4695 | ADW18: 0 | ADX18: 3962993.353 | ADY18: 0 | ADZ18: 0 | AEA18: 0 | AEB18: 0 | AEC18: 3962993.353 | AED18: 4130482.466 | AEE18: -1876109.668 | AEF18: 19714.24772 | AEG18: 12422735.04 | AEH18: 23194914.17 | AEI18: 0 | AEJ18: 0 | AEK18: 0 | AEL18: 0 | AEM18: 0 | AEN18: 0 | AEO18: 0 | AEP18: 0 | AEQ18: 0 | AER18: 0 | AES18: 0 | AET18: 0 | AEU18: 0 | AEV18: 0 | AEW18: 0 | AEX18: 0 | AEY18: 0 | AEZ18: 0 | AFA18: 0 | AFB18: 0 | AFC18: 0 | AFD18: 0 | AFE18: 0 | AFF18: 0 | AFG18: 0 | AFH18: 23678005.02 | AFI18: 0 | AFJ18: 12317275.47 | AFK18: 0.01 | AFL18: 123172.7547 | AFM18: 20000000 | AFN18: 32440448.23 | AFO18: 79313367.42 | AFP18: 68541188.29 | AFQ18: 11153132.92 | AFR18: 1122554.194 | AFS18: 0.03275560935 | AFT18: 2245108.388 | AFU18: 11138712.12 | AFV18: 79679900.41 | AFW18: 28701238.08 | AFX18: 16278503.05 | AFY18: 940126.5425 | AGB18: 0 | AGC18: 0 | AGD18: 0 | AGE18: 0 | AGF18: 23400 | AGG18: 14745274.79 | AGH18: 27531407.71 | AGI18: 0 | AGJ18: 0 | AGK18: 0 | AGL18: 0 | AGM18: 0 | AGN18: 0 | AGO18: 0 | AGP18: 0 | AGQ18: 0 | AGR18: 0 | AGS18: 0 | AGT18: 0 | AGU18: 0 | AGV18: 0 | AGW18: 0 | AGX18: 17314255.98 | AGY18: 0 | AGZ18: 0 | AHA18: 0 | AHC18: 0 | AHD18: 0 | AHE18: 27531407.71 | AHF18: 25009647.74 | AHH18: 100000 | AHI18: 131623899
A19: 生活費底上現役後 | B19: 20000 | D19: F2030 | E19: 49 | F19: 46 | G19: 11 | I19: 79 | J19: 75 | K19: 0 | L19: 0 | M19: 0 | N19: 0 | O19: 1 | P19: 12 | Q19: 1 | R19: 2 | S19: 0 | T19: 0 | U19: 0 | V19: 0 | W19: 1 | X19: 1 | Z19: 0 | AA19: 0 | AB19: 0 | AC19: 0 | AD19: 0.025 | AE19: 1.128352274 | AF19: -0.006 | AG19: 1.056036947 | AH19: 31.2 | AI19: =AI18 -> 1.007874989 | AJ19: 31.2 | AK19: 1.063573203 | AL19: 5932200 | AM19: 459349.9985 | AN19: 1056000 | AO19: 2574451.253 | AP19: 1000000 | AQ19: 10000 | AR19: 0 | AS19: 0 | AT19: 0 | AU19: 0 | AV19: 0 | AW19: 0 | AX19: 10032001.25 | AY19: 2200286.935 | AZ19: 7831714.317 | BA19: 0 | BB19: 0 | BC19: 0 | BD19: 0 | BE19: 0 | BF19: 0 | BG19: 15501000 | BH19: =492000+201000+532000 -> 1225000 | BI19: 1 | BJ19: 24 | BK19: 2650000 | BL19: 33352400 | BM19: 20486570 | BN19: 27 | BO19: 14555744.34 | BP19: 0 | BQ19: 350000 | BR19: =_xlfn.IFS(AND(BX19>=1,BX19<=4),0.4,AND(BX19>=5,BX19<=9),0.5,AND(BX19>=10,BX19<=14),0.6,AND(BX19>=15,BX19<=19),0.7,TRUE,0) -> 0 | BT19: 422 | BV19: 0 | BW19: 0 | BX19: 0 | BY19: 0 | BZ19: 330000 | CA19: 0 | CB19: 4689554.413 | CC19: =IF(アセットアロケーション!$R36=10,アセットアロケーション!$H$10*$B$33*-1+(アセットアロケーション!$H$9+$AD19),IF(アセットアロケーション!$R36=5,アセットアロケーション!$H$10*($B$33-1)*-1+(アセットアロケーション!$H$9+$AD19),(アセットアロケーション!$H$9+$AD19)+アセットアロケーション!$H$10*$B$33/8+アセットアロケーション!$H$10*($B$33-1)/8)) -> 0.148696 | CD19: 648248.3029 | CE19: 0 | CF19: 14 | CG19: 14 | CH19: 27 | CI19: 14 | CJ19: 0 | CK19: 0 | CL19: 0 | CM19: 2400000 | CO19: 2400000 | CP19: 735208.392 | CQ19: 931362.6298 | CR19: 931362.6298 | CS19: 0 | CT19: 0.333 | CU19: 0.9714373017 | CY19: 0.229 | CZ19: 0.9087301587 | DI19: 0 | DJ19: 0 | DK19: 0 | DL19: 0 | DM19: 0 | DN19: 0 | DO19: 3055825.104 | DP19: 86236238.22 | DQ19: 0.1255922685 | DR19: =IF(DP19=0,0,(((CB19-BZ19-CA19)+(BZ19+CA19)/12)+(DP19-DO19+DO19/12)+(FB19-FA19+FA19/12)+(FI19-FG19+FG19/12)+(GF19-GE19+GE19/12)+(HG19-HF19+HF19/12)+(IE19-ID19+ID19/12)+(IJ19-II19+II19/12))*アセットアロケーション!S36+((BZ19+CA19)/12+DO19/12+FA19/12+FG19/12+GE19/12+HF19/12+ID19/12+II19/12)*アセットアロケーション!S36/12*11+((BZ19+CA19)/12+DO19/12+FA19/12+FG19/12+GE19/12+HF19/12+ID19/12+II19/12)*アセットアロケーション!S36/12*10+((BZ19+CA19)/12+DO19/12+FA19/12+FG19/12+GE19/12+HF19/12+ID19/12+II19/12)*アセットアロケーション!S36/12*9+((BZ19+CA19)/12+DO19/12+FA19/12+FG19/12+GE19/12+HF19/12+ID19/12+II19/12)*アセットアロケーション!S36/12*8+((BZ19+CA19)/12+DO19/12+FA19/12+FG19/12+GE19/12+HF19/12+ID19/12+II19/12)*アセットアロケーション!S36/12*7+((BZ19+CA19)/12+DO19/12+FA19/12+FG19/12+GE19/12+HF19/12+ID19/12+II19/12)*アセットアロケーション!S36/12*6+((BZ19+CA19)/12+DO19/12+FA19/12+FG19/12+GE19/12+HF19/12+ID19/12+II19/12)*アセットアロケーション!S36/12*5+((BZ19+CA19)/12+DO19/12+FA19/12+FG19/12+GE19/12+HF19/12+ID19/12+II19/12)*アセットアロケーション!S36/12*4+((BZ19+CA19)/12+DO19/12+FA19/12+FG19/12+GE19/12+HF19/12+ID19/12+II19/12)*アセットアロケーション!S36/12*3+((BZ19+CA19)/12+DO19/12+FA19/12+FG19/12+GE19/12+HF19/12+ID19/12+II19/12)*アセットアロケーション!S36/12*2+((BZ19+CA19)/12+DO19/12+FA19/12+FG19/12+GE19/12+HF19/12+ID19/12+II19/12)*アセットアロケーション!S36/12*1-CD19-GH19-IG19-IL19-FK19-FD19-HI19) -> 10830604.79 | DS19: 58713144.3 | DT19: 38353698.7 | DU19: 97066843.01 | DV19: 0.653238711 | DW19: 0 | DX19: 0 | DY19: 7562.560257 | DZ19: 0 | EA19: 0 | EB19: 0 | EC19: 0 | ED19: 0 | EE19: 0 | EF19: 0 | EG19: 0 | EH19: 5204066.835 | EI19: 1000000 | EJ19: 0 | EK19: 6204066.835 | EL19: 0.02 | EM19: 124081.3367 | EN19: 0 | EO19: 19245 | EP19: 0.5 | EQ19: 150 | ER19: 0 | ES19: 67701.13645 | ET19: 0 | EW19: 67701.13645 | EX19: =LG19*0.02/IF(AND(LG19>0,LG19<=ふるさと納税計算式!B$2),ふるさと納税計算式!D$2,IF(LG19<=ふるさと納税計算式!B$3,ふるさと納税計算式!D$3,IF(LG19<=ふるさと納税計算式!B$4,ふるさと納税計算式!D$4,IF(LG19<=ふるさと納税計算式!B$5,ふるさと納税計算式!D$5,IF(LG19<=ふるさと納税計算式!B$6,ふるさと納税計算式!D$6,IF(LG19<=ふるさと納税計算式!B$7,ふるさと納税計算式!D$7,ふるさと納税計算式!D$8))))))+2000*AE19 -> 181800.7116 | EY19: 52283.50894 | FB19: 2512032.871 | FC19: =IF(アセットアロケーション!$R36=10,アセットアロケーション!$H$10*$B$33*-1+(アセットアロケーション!$H$9+$AD19),IF(アセットアロケーション!$R36=5,アセットアロケーション!$H$10*($B$33-1)*-1+(アセットアロケーション!$H$9+$AD19),(アセットアロケーション!$H$9+$AD19)+アセットアロケーション!$H$10*$B$33/8+アセットアロケーション!$H$10*($B$33-1)/8)) -> 0.148696 | FD19: 373529.2397 | FE19: 0 | FF19: 0 | FG19: 608164.227 | FH19: 36000000 | FI19: 34045672.15 | FJ19: =IF(アセットアロケーション!$R36=10,アセットアロケーション!$H$10*$B$33*-1+(アセットアロケーション!$H$9+$AD19),IF(アセットアロケーション!$R36=5,アセットアロケーション!$H$10*($B$33-1)*-1+(アセットアロケーション!$H$9+$AD19),(アセットアロケーション!$H$9+$AD19)+アセットアロケーション!$H$10*$B$33/8+アセットアロケーション!$H$10*($B$33-1)/8)) -> 0.148696 | FK19: 5021007.455 | FL19: 39066679.61 | FM19: 0.0851855446 | FN19: 3066679.605 | FO19: 5461255.687 | FP19: 0 | FQ19: 0 | FR19: 0 | FS19: 0 | FT19: 96850.23687 | FU19: 1162202.842 | FV19: 0 | FW19: 1162202.842 | FX19: 541609.0916 | FY19: 541609.0916 | FZ19: 0 | GD19: 0 | GE19: 296419.015 | GF19: 2911664.653 | GG19: =IF(アセットアロケーション!$R36=10,アセットアロケーション!$H$10*$B$33*-1+(アセットアロケーション!$H$9+$AD19),IF(アセットアロケーション!$R36=5,アセットアロケーション!$H$10*($B$33-1)*-1+(アセットアロケーション!$H$9+$AD19),(アセットアロケーション!$H$9+$AD19)+アセットアロケーション!$H$10*$B$33/8+アセットアロケーション!$H$10*($B$33-1)/8)) -> 0.148696 | GH19: 412751.2397 | GI19: 0 | GR19: 0 | GS19: 0 | GT19: 0 | GU19: 0 | GV19: 0.5 | GW19: 30 | GX19: 0 | GY19: 0 | GZ19: 0 | HA19: =LM19*0.02/IF(AND(LM19>0,LM19<=ふるさと納税計算式!B$2),ふるさと納税計算式!D$2,IF(LM19<=ふるさと納税計算式!B$3,ふるさと納税計算式!D$3,IF(LM19<=ふるさと納税計算式!B$4,ふるさと納税計算式!D$4,IF(LM19<=ふるさと納税計算式!B$5,ふるさと納税計算式!D$5,IF(LM19<=ふるさと納税計算式!B$6,ふるさと納税計算式!D$6,IF(LM19<=ふるさと納税計算式!B$7,ふるさと納税計算式!D$7,ふるさと納税計算式!D$8))))))+2000*AE19 -> -5173.274523 | HB19: 0 | HF19: 488868.6087 | HG19: 5535034.103 | HH19: =IF(アセットアロケーション!$R36=10,アセットアロケーション!$H$10*$B$33*-1+(アセットアロケーション!$H$9+$AD19),IF(アセットアロケーション!$R36=5,アセットアロケーション!$H$10*($B$33-1)*-1+(アセットアロケーション!$H$9+$AD19),(アセットアロケーション!$H$9+$AD19)+アセットアロケーション!$H$10*$B$33/8+アセットアロケーション!$H$10*($B$33-1)/8)) -> 0.148696 | HI19: 789719.8946 | HJ19: 0 | HK19: 0 | HL19: 0 | HM19: 0 | HN19: =アセットアロケーション!S36 -> 0.1355800917 | HO19: 0 | HP19: 0 | HQ19: 0 | HR19: 0 | HS19: 0 | HT19: 207030 | HU19: 3140570 | HV19: 2986488.345 | HW19: 2986488.345 | HX19: 217009.005 | HY19: 9979.005015 | HZ19: 15 | IA19: -0.003348121272 | IB19: 1128352.274 | IC19: 0 | ID19: 0 | IE19: 4313778.243 | IF19: =IF(アセットアロケーション!$R36=10,アセットアロケーション!$H$10*$B$33*-1+(アセットアロケーション!$H$9+$AD19),IF(アセットアロケーション!$R36=5,アセットアロケーション!$H$10*($B$33-1)*-1+(アセットアロケーション!$H$9+$AD19),(アセットアロケーション!$H$9+$AD19)+アセットアロケーション!$H$10*$B$33/8+アセットアロケーション!$H$10*($B$33-1)/8)) -> 0.148696 | IG19: 641441.5696 | IH19: 0 | IJ19: 0 | IK19: =IF(アセットアロケーション!$R36=10,アセットアロケーション!$H$10*$B$33*-1+(アセットアロケーション!$H$9+$AD19),IF(アセットアロケーション!$R36=5,アセットアロケーション!$H$10*($B$33-1)*-1+(アセットアロケーション!$H$9+$AD19),(アセットアロケーション!$H$9+$AD19)+アセットアロケーション!$H$10*$B$33/8+アセットアロケーション!$H$10*($B$33-1)/8)) -> 0.148696 | IL19: 0 | IM19: 1128352.274 | IN19: 61107644.36 | IO19: 393883.873 | IP19: 110000 | IQ19: 110000 | IR19: 124118.7502 | IS19: 30720.17308 | IT19: 11637.35521 | IU19: 6390.987281 | IV19: 0 | IW19: 180000 | IX19: 40000 | IY19: 10717 | IZ19: 7500 | JA19: 3333.333333 | JB19: 3761.174247 | JC19: 3761.174247 | JD19: 78000 | JE19: 690000 | JF19: 78000 | JG19: 0 | JH19: 0 | JI19: 0 | JJ19: 0 | JK19: 0 | JL19: 0 | JM19: 3148.113663 | JN19: 5030356.022 | JO19: 338505.6823 | JP19: 30000 | JQ19: 100000 | JW19: 84000 | JX19: 0 | JY19: 25003 | JZ19: 8934 | KA19: 3322 | KB19: 2914 | KC19: 48 | KD19: 2332 | KE19: 14079 | KF19: 3368 | KG19: 3155 | KH19: 6893 | KI19: 7533 | KJ19: 6930 | KK19: 43995 | KL19: 84000 | KM19: 1000000 | KN19: 小学校+塾 | KO19: 519042.0461 | KP19: 0 | KQ19: 1368133.903 | KR19: 0 | KS19: 519042.0461 | KT19: 1368133.903 | KU19: 535887.4336 | KV19: 917928.1145 | KW19: 352270.0511 | KX19: 91630.93815 | KY19: 50160.00626 | KZ19: 0 | LA19: 0 | LB19: 0 | LC19: 0 | LG19: 6246336.007 | LH19: 766896.6041 | LI19: 0 | LJ19: 16104.82869 | LK19: 6386251.689 | LL19: 647321.1969 | LM19: -296419.015 | LN19: 0 | LO19: 0 | LP19: -240001.4013 | LQ19: 0 | LR19: 2206.0663 | LS19: 0 | LT19: 0 | LU19: 0 | LV19: 0 | LW19: 0 | LX19: 0 | LY19: 0 | LZ19: 0 | MA19: 0 | MB19: 0 | MC19: 0 | MD19: 0 | ME19: 0 | MF19: 0 | MG19: 0 | MH19: 0 | MI19: 0 | MJ19: 0 | MK19: 0 | ML19: 0 | MM19: 0 | MN19: 18612.20051 | MO19: 390.8562106 | MP19: 6204.066835 | MQ19: 25207.12355 | MR19: 0 | MS19: 0 | MT19: 0 | MU19: 10125762.58 | MV19: 50981881.78 | MW19: 45182593.19 | MX19: 97066843.01 | MY19: 0 | MZ19: 2885562.11 | NA19: 6324753.998 | NB19: 39066679.61 | NC19: 4955219.812 | ND19: 0 | NE19: 5337802.716 | NF19: 3324415.893 | NG19: 158961277.1 | NH19: 140879121.5 | NI19: 400000 | NJ19: 1000000 | NK19: 0 | NL19: 4294004.88 | NM19: 5388619.648 | NN19: 5388619.648 | NO19: 2986488.345 | NP19: 33352400 | NQ19: 11442608.25 | NR19: 54570116.25 | NS19: 48362658.98 | NT19: 98899.71292 | NU19: 79567.28267 | NV19: 75685.9518 | NW19: 15.06333333 | NX19: 1209136.654 | NY19: 1300235.825 | NZ19: 772298.9552 | OA19: 0.93540337 | OB19: 145106.4743 | OC19: 330.57 | OD19: 51718781.01 | OE19: 0 | OF19: 0 | OG19: 0 | OH19: 772298.9552 | OI19: 0.93540337 | OJ19: 145106.4743 | OK19: 95662.78674 | OL19: 749 | OM19: 91258349.25 | ON19: 0 | OO19: 0 | OP19: 0 | OQ19: 1300235.825 | OR19: 1152331.461 | OS19: 362.20108 | OT19: 5.867431826 | OU19: 40.62068187 | OV19: 197.461648 | OW19: 0 | OX19: 8.883321725 | OY19: 148.9683214 | OZ19: 858.8806052 | PA19: 664.413691 | PB19: 1232.098431 | PC19: 58753.84669 | PD19: 50462539.41 | PE19: 39036860.14 | PF19: 72390522.31 | PG19: 64155959.06 | PH19: 287222151.5 | PI19: 254550071 | QO19: 0 | QP19: 0 | QQ19: 0 | QR19: 0 | QS19: 0 | QT19: -4.470348358e-08 | QU19: 287222151.5 | QV19: 287222151.5 | QW19: 254550071 | QX19: =QV19-IF((DU19-DS19)>0,(DU19-DS19)*0.2,0)+(メイン!YD19-メイン!XC19-メイン!WX19*32000*AE19-メイン!WU19*3%-メイン!WM19*3%-(メイン!YD19-メイン!XC19-メイン!WX19*32000*AE19-メイン!WU19*3%-メイン!WM19*3%-メイン!YC19)*23%)*0.8/100000*PC19-PF19-NY19*3%-(NY19*95%-NY19*3%)*20%-(OG19*95%-OG19*3%)*20%-(OP19*95%-OP19*3%)*20% -> 258144691.1 | QY19: 228780228.5 | QZ19: 3848542.144 | RA19: 3663989.331 | RB19: 254550071 | RC19: 0 | RF19: 4171112.728 | RG19: 106198302.5 | RH19: 13696295.03 | RI19: 0.128969058 | RJ19: 162.529525 | RK19: =RJ19*RI19 -> 20.96127973 | RL19: =RJ19+RK19 -> 183.4908047 | RM19: 0.007609745734 | RO19: 0.1774998255 | RP19: 0.09149968783 | RQ19: 0.07214041403 | RS19: 197119832.5 | RT19: 74864518.51 | RU19: 14560889.63 | RV19: 74864518.51 | RW19: 14560889.63 | RX19: 29121779.26 | RY19: 98559916.26 | RZ19: 0 | SA19: 98559916.26 | SB19: 13545372.59 | SF19: 5 | SG19: =IF(SF19=1,家賃下落率!D21,SG18) -> 0.04419725725 | SH19: =家賃下落率!C22 -> 0.009 | SI19: 1.037824145 | SJ19: 0.9583955174 | SK19: 28490211.76 | SL19: 22692441.8 | SM19: 0.7964995832 | SN19: -5303232.271 | SO19: 0 | SP19: 0 | SQ19: 2625091.446 | SR19: 2337887.467 | SS19: 0.8905927718 | ST19: 1206234.234 | SU19: 0 | SV19: 0 | SX19: =家賃下落率!C43 -> 0.007 | SY19: 0 | SZ19: 0 | TA19: 0 | TB19: 238547.9649 | TC19: 0 | TD19: 156425000 | TE19: 0 | TF19: 0 | TG19: 0 | TH19: 0 | TI19: 0 | TJ19: =アセットアロケーション!S36 -> 0.1355800917 | TK19: 0 | TL19: 25030329.26 | TM19: 21171879.19 | TN19: =IF(AB19=1,0,IF($AA19=0,TN18*(100%+メイン!$AD19)*WG19/WG18,0)) -> 1673923.722 | TO19: 5881943 | TT19: 5881943 | TU19: =VLOOKUP(XN19,返済明細!A:Z,9,FALSE) -> 3287867.32 | TV19: 270666 | TX19: 0 | TY19: 0 | TZ19: 0 | UA19: 116555.3228 | UB19: 2279432.099 | UC19: 0 | UD19: 0 | UE19: 0 | UF19: 0 | UG19: 0 | UH19: 0 | UI19: 0 | UJ19: 0 | UK19: 0 | UL19: 0 | UM19: 0 | UN19: 0 | UO19: 2031034.094 | UP19: 0 | UQ19: 0 | UR19: 0 | US19: 1746689.32 | UT19: 1083218.183 | UU19: 0 | UV19: 0 | UX19: 0 | UY19: 0 | UZ19: 212535.2243 | VA19: 466973.2369 | VB19: -254438.0126 | VC19: 0 | VD19: 1454971.894 | VE19: 224293.8651 | VF19: 556451.4374 | VG19: 0 | VH19: 2400000 | VI19: 500988.4097 | VJ19: 5136705.606 | VK19: 21477000.57 | VL19: -18025081.7 | VM19: 0 | VN19: 0 | VO19: 0 | VP19: 0 | VQ19: 22567.04548 | VR19: 22016.62974 | VS19: -0.001020308231 | VT19: 3553328.69 | VU19: 0 | VV19: 15617074.2 | VW19: 5554804.988 | VX19: -5338706.088 | VY19: -1541628.674 | VZ19: 10000000 | WA19: 0 | WB19: 4661293.912 | WC19: 12038993 | WD19: 2081450 | WE19: 3972775 | WF19: 19.5 | WG19: 175478001 | WH19: 41475.2 | WI19: 128411.4 | WJ19: 571652.4 | WK19: 1 | WL19: 176219541 | WM19: 176271819.1 | WN19: =築年スプレッド!C20 -> 0.0749933783 | WO19: 0.1060614604 | WP19: 0.04861712882 | WQ19: =(SL19+SR19-TN19-UA19-メイン!ZQ19-TU19-TV19-TW19-(SL19+SR19-TN19-UA19-メイン!ZQ19-TU19-TT19-TV19-TW19)*20%)/(WM19+WU19+メイン!ABI19+メイン!OG19) -> 0.05736513933 | WR19: 334.31 | WS19: 18600000 | WT19: 48025439.96 | WU19: 65379895.63 | WV19: 41 | WW19: 0 | WX19: 0 | WY19: 0 | WZ19: 0 | XA19: 0 | XB19: 0 | XC19: 0 | XD19: 0 | XE19: 9497633.746 | XF19: 12929695.25 | XG19: 110823.7746 | XH19: 0 | XI19: 0 | XJ19: 0 | XK19: 277335921.9 | XL19: 245788419.3 | XM19: 11 | XN19: 243 | XP19: =VLOOKUP(XN19,返済明細!A:Z,10,FALSE)*-1 -> 13610354.59 | XQ19: =XO19+XP19 -> 13610354.59 | XR19: =VLOOKUP(XN19,返済明細!A:H,8,FALSE) -> 116611250.8 | XS19: =IF(W19=1,0,IF(メイン!J19="",0,18000000)) -> 0 | XT19: 0 | XU19: 1000000 | XV19: 0 | XW19: 1000000 | XX19: 3500000 | XY19: 33992261 | XZ19: 37492261 | YA19: 154103511.8 | YB19: 59587328.57 | YC19: 85888060.52 | YD19: 123232410.1 | YE19: =YD19/メイン!AE19 -> 109214482.9 | YF19: 123232410.1 | YG19: -1638566.213 | YI19: 0.4443434852 | YJ19: 1.96094286 | YK19: 0.3424814453 | YL19: 11075051.06 | YM19: =YL19/(YD19+メイン!ABI19+メイン!ABL19) -> 0.0358358895 | YN19: =(SUM(YL15:YL19)+SUM(メイン!DR15:DR19)+SUM(メイン!FD15:FD19)+SUM(メイン!IG15:IG19)+SUM(メイン!CD15:CD19)+SUM(メイン!GH15:GH19))/(SUM(YD15:YD19)+SUM(メイン!ABI15:ABI19)+SUM(メイン!ABL15:ABL19)+SUM(メイン!OG15:OG19)+SUM(メイン!OP15:OP19)+SUM(メイン!DP15:DP19)+SUM(メイン!FB15:FB19)+SUM(メイン!IE15:IE19)+SUM(メイン!CB15:CB19)+SUM(メイン!GF15:GF19)) -> 0.03252741458 | YO19: =(SUM(YL10:YL19)+SUM(メイン!DR10:DR19)+SUM(メイン!FD10:FD19)+SUM(メイン!IG10:IG19)+SUM(メイン!CD10:CD19)+SUM(メイン!GH10:GH19))/(SUM(YD10:YD19)+SUM(メイン!ABI10:ABI19)+SUM(メイン!ABL10:ABL19)+SUM(メイン!OG10:OG19)+SUM(メイン!OP10:OP19)+SUM(メイン!DP10:DP19)+SUM(メイン!FB10:FB19)+SUM(メイン!IE10:IE19)+SUM(メイン!CB10:CB19)+SUM(メイン!GF10:GF19)) -> 0.009036781317 | YS19: =IF(I19<>"",メイン!UB19,0) -> 2279432.099 | YT19: =IF(I19<>"",メイン!UM19+IF(X19=1,388831*12*AE19*IF(E19-B$57>=1,1,0.5),0),0) -> 5264860.118 | YU19: 6500226.797 | YV19: =IF(I19<>"",メイン!US19,0) -> 1746689.32 | YW19: 1126095.57 | YX19: 1126095.57 | YY19: 780100 | YZ19: 757818.2391 | ZA19: 1335806 | ZB19: 1281909.731 | ZC19: 2039727.97 | ZD19: 874003.2075 | ZE19: 874003.2075 | ZF19: 0 | ZG19: 0 | ZH19: 11330709.51 | ZI19: 64937.81253 | ZJ19: 228313.8171 | ZK19: 7011020.534 | ZL19: 919833.5095 | ZM19: 7236690.988 | ZN19: 713875.5827 | ZO19: 157492.5848 | ZP19: 130111.6415 | ZQ19: 115253.444 | ZR19: 0 | ZS19: 928811.9758 | ZT19: 0 | ZU19: 1128352.274 | ZV19: -1128352.274 | ZW19: 1128352.274 | ZX19: 1128352.274 | ZY19: =SUM(ZV$13:ZW19)+(AAK19-AAK$12)*PA19 -> 15188563.45 | ZZ19: 0 | AAA19: 399372.1807 | AAB19: 0 | AAC19: -936589.5516 | AAD19: 0 | AAE19: 0 | AAF19: 0 | AAG19: 0 | AAH19: -537217.3709 | AAI19: 4978117.545 | AAJ19: 6352591.961 | AAK19: 0 | AAL19: 0 | AAM19: 0 | AAN19: 1000 | AAO19: 8182.810692 | AAP19: 8182810.692 | AAQ19: 2000 | AAR19: 359.9443755 | AAS19: 719888.7509 | AAT19: 7930843 | AAU19: 2961.92472 | AAV19: 2349055.993 | AAW19: 30000 | AAX19: 118.0115976 | AAY19: 3540347.929 | AAZ19: 51 | ABA19: 200.55 | ABB19: 60.58912387 | ABC19: 9264350.886 | ABD19: 436.8366667 | ABE19: 11935123.3 | ABF19: 37706838.93 | ABG19: 330.57 | ABH19: 37990534.98 | ABI19: 51718781.01 | ABJ19: 748.5 | ABK19: 91197429.12 | ABL19: 134097955.4 | ABM19: 4516472 | ABN19: 6231890 | ABO19: 0 | ABP19: 10748362 | ABQ19: 3500000 | ABR19: 3539532.49 | ABS19: 265367924 | ABT19: 172219074.1 | ABU19: 66623364.22 | ABV19: 12088543.35 | ABW19: 0.1403856501 | ABX19: 33311682.11 | ABY19: 4432576.179 | ABZ19: 33311682.11 | ACA19: 4432576.179 | ACB19: 20953695.7 | ACC19: 37146749.91 | ACD19: 38540414.42 | ACE19: 51193157.2 | ACF19: 74774848.92 | ACG19: 37628099.01 | ACH19: 0.9904598349 | ACI19: 0.9904598349 | ACJ19: 0 | ACK19: 4578167.316 | ACL19: 36234434.5 | ACM19: 0.397318596 | ACN19: 0 | ACO19: 4408601.767 | ACP19: 98356540.64 | ACQ19: 201953185.2 | ACT19: =メイン!UT19 -> 1083218.183 | ACU19: 462624.4324 | ACV19: 462624.4324 | ACW19: 0 | ACX19: 0 | ACY19: 0 | ACZ19: 0 | ADA19: 0 | ADB19: 780100 | ADC19: 757818.2391 | ADE19: 757818.2391 | ADF19: 377818.2391 | ADG19: =IF(メイン!XS19<65,IF(ADF19<700000,0,IF(ADF19<1299999,ADF19-700000,IF(ADF19<4099999,ADF19*75%-375000,IF(ADF19<7699999,ADF19*85%-785000)))),0)+IF(メイン!XS19>64,IF(ADF19<1200000,0,IF(ADF19<3299999,ADF19-1200000,IF(ADF19<4099999,ADF19*75%-375000,IF(ADF19<7699999,ADF19*85%-785000)))),0) -> 0 | ADH19: 0 | ADI19: 0 | ADJ19: 0 | ADK19: 1841036.422 | ADL19: 0 | ADM19: 0 | ADN19: 0 | ADO19: 0 | ADP19: 0 | ADQ19: 0 | ADR19: 32468.90626 | ADS19: 114156.9086 | ADT19: -225610.474 | ADU19: 0 | ADV19: -169192.8603 | ADW19: 0 | ADX19: 4062068.187 | ADY19: 0 | ADZ19: 0 | AEA19: 0 | AEB19: 0 | AEC19: 4062068.187 | AED19: 4208694.002 | AEE19: -2367657.58 | AEF19: 17846.15331 | AEG19: 11857228.59 | AEH19: 21988217.49 | AEI19: 0 | AEJ19: 0 | AEK19: 0 | AEL19: 0 | AEM19: 0 | AEN19: 0 | AEO19: 0 | AEP19: 0 | AEQ19: 0 | AER19: 0 | AES19: 0 | AET19: 0 | AEU19: 0 | AEV19: 0 | AEW19: 0 | AEX19: 0 | AEY19: 0 | AEZ19: 0 | AFA19: 0 | AFB19: 0 | AFC19: 0 | AFD19: 0 | AFE19: 0 | AFF19: 0 | AFG19: 0 | AFH19: 22549652.75 | AFI19: 0 | AFJ19: 12440448.23 | AFK19: 0.01 | AFL19: 124404.4823 | AFM19: 20000000 | AFN19: 32564852.71 | AFO19: 77102722.94 | AFP19: 66971734.05 | AFQ19: 9790469.266 | AFR19: 904394.2527 | AFS19: 0.0270082376 | AFT19: 1808788.505 | AFU19: 13315789.5 | AFV19: 80287523.54 | AFW19: 26827972.28 | AFX19: 14970743.69 | AFY19: 724576.2495 | AGB19: 0 | AGC19: 0 | AGD19: 0 | AGE19: 0 | AGF19: 23400 | AGG19: 15547280.37 | AGH19: 28831103.28 | AGI19: 0 | AGJ19: 0 | AGK19: 0 | AGL19: 0 | AGM19: 0 | AGN19: 0 | AGO19: 0 | AGP19: 0 | AGQ19: 0 | AGR19: 0 | AGS19: 0 | AGT19: 0 | AGU19: 0 | AGV19: 0 | AGW19: 0 | AGX19: 18442608.25 | AGY19: 0 | AGZ19: 0 | AHA19: 0 | AHC19: 0 | AHD19: 0 | AHE19: 28831103.28 | AHF19: 25551508.99 | AHH19: 100000 | AHI19: 134097955.4
